{"text_format":"1","workbook":"xlsx","n_sheets":1,"sheets":["PT_CORG_LCVL"],"not_rendered":{"charts":0,"images":0,"macros":1,"external_links":1,"defined_names":10,"comments":0,"pivot_tables":0},"unopened":[],"bounds":{"document_bytes":16777216,"sheet_cells":100000,"rows_first":2000,"rows_last":500,"rows_between":2000,"halvings":0,"cell_chars":16384,"cell_head_chars":4096},"cells_cut":0,"cells_raw":0,"read":"whole","date_system":"1900"}

{"sheet":"PT_CORG_LCVL","index":0,"n_rows":3724,"n_cols":49,"rows_kept":1125,"cut":true,"hidden":false,"merged":[[0,2,0,6],[0,7,0,10],[0,11,1,11],[0,15,0,17],[0,18,0,20],[0,21,0,23],[0,42,0,44],[0,45,0,47],[0,24,0,26],[0,27,0,29],[0,30,0,32],[0,33,0,35],[0,36,0,38],[0,39,0,41]],"bounds":{"rows_first":500,"rows_last":125,"rows_between":500,"halvings":2}}
[null,null,"RENSEIGNEMENTS ADMINISTRATIFS",null,null,null,null,"RESULTATS DES TESTS",null,null,null,"TESTS TERMINES","UV1 / KATA","UV2 / TECHNIQUE","UV4 / IMPLICATION PERSONNELLE"," UV3 / EFFICACITE N°1",null,null," UV3 / EFFICACITE N°2",null,null," UV3 / EFFICACITE N°3",null,null," UV3 / EFFICACITE N°4",null,null," UV3 / EFFICACITE N°5",null,null," UV3 / EFFICACITE N°6",null,null," UV3 / EFFICACITE N°7",null,null," UV3 / EFFICACITE N°8",null,null," UV3 / EFFICACITE N°9",null,null," UV3 / EFFICACITE N°10",null,null," UV3 / EFFICACITE N°11"]
["N° LICENCE","NOM","PRENOM","Né (e) Le","CLUB","GDE","DPT","UV1 - KATA","UV2 - TEC","UV3 - POINTS","UV4 - REQUIS",null,"DATE LIEU","DATE LIEU","DATE LIEU","DATE LIEU","PTS","5 Victoires consécutives","DATE LIEU","PTS","5 Victoires consécutives","DATE LIEU","PTS","5 Victoires consécutives","DATE LIEU","PTS","5 Victoires consécutives","DATE LIEU","PTS","5 Victoires consécutives","DATE LIEU","PTS","5 Victoires consécutives","DATE LIEU","PTS","5 Victoires consécutives","DATE LIEU","PTS","5 Victoires consécutives","DATE LIEU","PTS","5 Victoires consécutives","DATE LIEU","PTS","5 Victoires consécutives","DATE LIEU","PTS","5 Victoires consécutives","DATE DE MISE A JOUR"]
["PAS LICENCIE","ABDAOUI","Adam","2000-03-14","USM ST DENIS EN VAL","CM 12/12/14",45,{"$f":"IF(M3=\"\",\"\",\"OK\")","v":""},{"$f":"IF(N3=\"\",\"\",\"OK\")","v":""},{"$f":"Q3+T3+W3+Z3+AC3+AF3+AI3+AL3+AO3+AR3+AU3","v":17},{"$f":"IF(O3=\"\",\"\",\"OK\")","v":""},null,null,null,null,"05/02/17 St jean le blanc",17,null,null,null,null,null,null,null,null,null,null,null,null,null,null,null,null,null,null,null,null,null,null,null,null,null,null,null,null,null,null,null,{"$f":"TODAY()","v":"2023-05-22"}]
["PAS LICENCIE","ABDELKAMEL","Mehdy","2003-06-06","ES GATINAISE","CM 26/06/16",45,{"$f":"IF(M4=\"\",\"\",\"OK\")","v":"OK"},{"$f":"IF(N4=\"\",\"\",\"OK\")","v":""},{"$f":"Q4+T4+W4+Z4+AC4+AF4+AI4+AL4+AO4+AR4+AU4","v":0},{"$f":"IF(O4=\"\",\"\",\"OK\")","v":""},null,"12/05/18 Tours",null,null,null,null,null,null,null,null,null,null,null,null,null,null,null,null,null,null,null,null,null,null,null,null,null,null,null,null,null,null,null,null,null,null,null,{"$f":"TODAY()","v":"2023-05-22"}]
["PAS LICENCIE","ABEL DIT DELAMARQUE","Ketty","1986-01-11","JC DUNOIS CHATEAUDUN","1 Dan 30/11/13",28,"","",20,"",null,null,null,null,"02/02/14 ligue Bretagne",10,null,"06/04/14 Vendome",10,null,null,null,null,null,null,null,null,null,null,null,null,null,null,null,null,null,null,null,null,null,null,null,null,null,null,null,null,{"$f":"TODAY()","v":"2023-05-22"}]
["PAS LICENCIE","ABEYEV","Nariman","1983-05-09","AS GIEN JUDO","CM",45,"","",15,"",null,null,null,null,"16/01/11 Amilly",15,null,null,null,null,null,null,null,null,null,null,null,null,null,null,null,null,null,null,null,null,null,null,null,null,null,null,null,null,null,null,null,"2023-05-22"]
["M04111995ABIVE02","ABIVEN PERO","FLORIAN","1995-11-04","U S ELECTRIQUE AVOINE-BEAUMONT","CM",37,{"$f":"IF(M7=\"\",\"\",\"OK\")","v":""},{"$f":"IF(N7=\"\",\"\",\"OK\")","v":"OK"},{"$f":"Q7+T7+W7+Z7+AC7+AF7+AI7+AL7+AO7+AR7+AU7","v":0},{"$f":"IF(O7=\"\",\"\",\"OK\")","v":""},null,null,"12/06/2022 TOURS"]
["F25102002ABLEK01","ABLEKIMOGLU","Housnia","2002-10-25","CSMS JUDO JUJITSU","1 Dan 22/10/17",45,"",{"$f":"IF(N8=\"\",\"\",\"OK\")","v":""},{"$f":"Q8+T8+W8+Z8+AC8+AF8+AI8+AL8+AO8+AR8+AU8","v":14},{"$f":"IF(O8=\"\",\"\",\"OK\")","v":""},null,null,null,null,"04/02/18 Vendome",14,null,null,null,null,null,null,null,null,null,null,null,null,null,null,null,null,null,null,null,null,null,null,null,null,null,null,null,null,null,null,null,"2023-05-22"]
["PAS LICENCIE","ACCADBLED","Baptiste","1992-03-03","US LA FERTE ST AUBIN","2 Dan 04/05/13",45,"","",60,"",null,null,null,null,"16/11/13 St Georges/eure",30,null,"25/01/14 Bourges",30,null,null,null,null,null,null,null,null,null,null,null,null,null,null,null,null,null,null,null,null,null,null,null,null,null,null,null,null,"2023-05-22"]
["M11102000ACCAD01","ACCADBLED","Victor","2000-10-11","CO SOLOGNOT","1 Dan 28/05/18",45,"","",110,"",null,null,null,null,"04/11/18 Tours",20,null,"OPEN SENIOR - LAMOTTE - 24-03-2019",10,null,"05/05/2019 - SHIAI GIEN",30,null,"Vierzon 12-05-2019 OPEN SENIOR CEINTURE DE COULEUR",10,null,"13-10-2019 - TEST EFFICACITE COMBAT A SAINT GEORGES/EURE",10,null,"13-10-2019 - TEST EFFICACITE COMBAT A SAINT GEORGES/EURE RATTRAPAGE 2",30,null,null,null,null,null,null,null,null,null,null,null,null,null,null,null,null,"2023-05-22"]
["PAS LICENCIE","ACHOURI","Mohamed","2001-07-07","AS GIEN JUDO","CM 02/03/16",45,"","",90,"",null,null,null,null,"29/01/17 Orléans",20,null,"30/09/17 Orléans",20,null,"28/01/18 Orléans",50,"OK",null,null,null,null,null,null,null,null,null,null,null,null,null,null,null,null,null,null,null,null,null,null,null,null,"2023-05-22"]
["M25061999ACIER01","ACIER","Mathys","1999-06-25","US ELECTRIQUE AVOINE BEAUMONT","1 Dan 14/11/15",37,"","",0,"",null,null,null,null,null,null,null,null,null,null,null,null,null,null,null,null,null,null,null,null,null,null,null,null,null,null,null,null,null,null,null,null,null,null,null,null,null,"2023-05-22"]
["PAS LICENCIE","ACIER","Orianne","2001-06-29","US ELECTRIQUE AVOINE BEAUMONT","CM 20/10/16",37,"OK","",0,"",null,"02/12/17 Tours",null,null,null,null,null,null,null,null,null,null,null,null,null,null,null,null,null,null,null,null,null,null,null,null,null,null,null,null,null,null,null,null,null,null,null,"2023-05-22"]
["PAS LICENCIE","ACKERMANN","François","1996-02-21","JUDO CLUB RIDELLOIS","CM",37,"","",20,"OK",null,null,null,"05/12/10 Tours CJA 14,93","29/01/11 Orléans",20,null,null,null,null,null,null,null,null,null,null,null,null,null,null,null,null,null,null,null,null,null,null,null,null,null,null,null,null,null,null,null,"2023-05-22"]
["PAS LICENCIE","ADMOND","Nicolas","1995-07-27","AS GIEN JUDO","1 Dan 09/06/12",45,"","",27,"",null,null,null,null,"01/12/12 Orléans",27,null,null,null,null,null,null,null,null,null,null,null,null,null,null,null,null,null,null,null,null,null,null,null,null,null,null,null,null,null,null,null,"2023-05-22"]
["M06051997ADOLP01","ADOLPHE dit VENEROSY","Nicolas","1997-05-06","US ORLEANS LOIRET JUDO JUJITSU","1 Dan 08/02/15",45,"","",200,"",null,null,null,null,"07/11/15 Vierzon",20,null,"27/02/16 St Georges/eure",40,null,"20/03/16 Orléans",40,null,"12/01/2019 JUJITSU ORLEANS",10,null,"17/03/2019 1/4 DE FINALE SENIORS G ET F 1ERE DIV N°1 - dojo J C Rousseau - ORLEANS",10,null,"1/2 Finale Chpt de France Angers 23/02/2019",10,null,"Chpt de France Seniors LE PUY en VELAY 23/03/2019",20,null,"11/05/2019 CHAMPIONNAT REGIONAL INDIVIDUEL SENIOR 2DIV - VIERZON",20,null,"RGC jujitsu DEC 2019",10,null,"12/01/2020 - 1/2 Finale Chpt de France Orleans",10,null,"25/01/2020 - 1/2 Finale Chpt de France Ploermel",10,null,"2023-05-22"]
["PAS LICENCIE","ADUMEAU","Laurent","1989-04-14","JUDO CLUB ST GEORGES/CHER","2 Dan  5/12/08  ",41,"","",11,"",null,null,null,null,"3/04/10 Vineuil",10,null,"16/05/10 Tours",1,null,null,null,null,null,null,null,null,null,null,null,null,null,null,null,null,null,null,null,null,null,null,null,null,null,null,null,null,"2023-05-22"]
["M07091969AFONS01","AFONSO","Philippe","1969-09-07","SPG CLUB AMBOISIEN","1 Dan 13/05/12",37,"","",0,"",null,null,null,null,null,null,null,null,null,null,null,null,null,null,null,null,null,null,null,null,null,null,null,null,null,null,null,null,null,null,null,null,null,null,null,null,null,"2023-05-22"]
["PAS LICENCIE","AGUIAR","Matteo","2001-09-01","CHAMPHOL JUDO","CM15/01/16",28,"","",10,"",null,null,null,null,"30/09/17 Orléans",10,null,null,null,null,null,null,null,null,null,null,null,null,null,null,null,null,null,null,null,null,null,null,null,null,null,null,null,null,null,null,null,"2023-05-22"]
["PAS LICENCIE","AGUILAR","Emilie","1986-06-03","ES COULLONNAISE JUDO","CM 15/02/02",45,"OK","",0,"",null,"11/12/10 Tours",null,null,null,null,null,null,null,null,null,null,null,null,null,null,null,null,null,null,null,null,null,null,null,null,null,null,null,null,null,null,null,null,null,null,null,"2023-05-22"]
["F01022000AGUIL01","AGUILLON","Perrine","2000-02-01","US ORLEANS LOIRET JUDO JUJITSU","1 Dan 31/05/17",45,"","",97,"",null,null,null,null,"30/09/17 Orléans",20,null,"21/10/17 Ceyrat",37,null,"17/02/18 Orléans",20,null,"17/03/2019 1/4 DE FINALE SENIORS G ET F 1ERE DIV N°1 - dojo J C Rousseau - ORLEANS",20,null,null,null,null,null,null,null,null,null,null,null,null,null,null,null,null,null,null,null,null,null,null,"2023-05-22"]
["F13032004AHUEL01","AHUELIE","OCEANE","2004-03-13","US.ORLEANS LOIRET JUDO JUJITSU","MA",45,{"$f":"IF(M22=\"\",\"\",\"OK\")","v":"OK"},{"$f":"IF(N22=\"\",\"\",\"OK\")","v":"OK"},{"$f":"Q22+T22+W22+Z22+AC22+AF22+AI22+AL22+AO22+AR22+AU22","v":0},{"$f":"IF(O22=\"\",\"\",\"OK\")","v":""},null,"11/02/2023 ORLEANS","11/02/2023 ORLEANS"]
["M25032004AIME*01","AIME","UGO","2004-03-25","A.S. MONTLOUIS JUDO",null,37,"OK","OK",0,"",null,"26/06/2021 ORLEANS","26/06/2021 ORLEANS",null,null,null,null,null,null,null,null,null,null,null,null,null,null,null,null,null,null,null,null,null,null,null,null,null,null,null,null,null,null,null,null,null,null,"2023-05-22"]
["M15051979AIME*01","AIME","Ludovic","1979-05-15","UNION JUDO LARCAY VERETZ","1 Dan 02/05/10",37,"","",60,"",null,null,null,null,"23/01/11 Tours",10,null,"31/03/13 Bourges",10,null,"14/05/17 Tours",10,null,"28/05/17 Angers",10,null,"11/03/18 Tours",20,null,null,null,null,null,null,null,null,null,null,null,null,null,null,null,null,null,null,null,"2023-05-22"]
["PAS LICENCIE","AIT ALI YAHIA","Yannis","1993-04-21","JC MISTRAL","CM",37,"","",15,"",null,null,null,null,"10/01/10 Tours",15,null,null,null,null,null,null,null,null,null,null,null,null,null,null,null,null,null,null,null,null,null,null,null,null,null,null,null,null,null,null,null,"2023-05-22"]
["M21102000AIT*S01","AÏT SI SELMI","Nattan","2000-10-21","JUDO CLUB FERTESIEN","CM",45,{"$f":"IF(M26=\"\",\"\",\"OK\")","v":"OK"},{"$f":"IF(N26=\"\",\"\",\"OK\")","v":"OK"},{"$f":"Q26+T26+W26+Z26+AC26+AF26+AI26+AL26+AO26+AR26+AU26","v":10},{"$f":"IF(O26=\"\",\"\",\"OK\")","v":""},null,"11/02/2023 ORLEANS","13/05/2023 TOURS",null,"18_11_2022 St Doulchard Open ",10]
["PAS LICENCIE","AÏT SI SELMI","Dylan","1995-02-12","ALLIANCE JUDO 28","2 Dan 13/10/13",28,"","",34,"",null,null,null,null,"01/03/14 La fleche",10,null,"30/04/17 Orléans",10,null,"21/10/17 Vendome",14,null,null,null,null,null,null,null,null,null,null,null,null,null,null,null,null,null,null,null,null,null,null,null,null,null,"2023-05-22"]
["PAS LICENCIE","AKAABOUNE","Saifddine","2002-04-04","USM SARAN","CM 28/09/15",45,"","",20,"",null,null,null,null,"30/09/17 Orléans",20,null,null,null,null,null,null,null,null,null,null,null,null,null,null,null,null,null,null,null,null,null,null,null,null,null,null,null,null,null,null,null,"2023-05-22"]
["PAS LICENCIE","AKARKOUB","Ilyas","1998-05-29","BOURGES JUDO","CM",18,"","",137,"",null,null,null,null,"15/12/12 Orléans",10,null,"01/12/12 St Amand",10,null,"02/06/13 Ceyrat",10,null,"17/01/15 St Amand",37,null,"31/01/15 Vierzon",30,null,"14/03/15 Ceyrat",40,null,null,null,null,null,null,null,null,null,null,null,null,null,null,null,null,"2023-05-22"]
["M02081960ALADE01","ALADENIZE","Pascal","1960-08-02","SAINT AMAND JUDO","3 Dan 29/05/16",18,"","",10,"",null,null,null,null,"11/11/17 Angers",10,null,null,null,null,null,null,null,null,null,null,null,null,null,null,null,null,null,null,null,null,null,null,null,null,null,null,null,null,null,null,null,"2023-05-22"]
["PAS LICENCIE","ALAOUI","Yacine","1976-02-28","JC ST GERMAIN PUY","1 Dan 12/02/11",18,"","",100,"",null,null,null,null,"26/11/11 Issoudun",20,null,"28/01/12 Orléans",20,null,"13/05/12 Vendome",30,null,"12/01/13 Orléans",30,null,null,null,null,null,null,null,null,null,null,null,null,null,null,null,null,null,null,null,null,null,null,"2023-05-22"]
["PAS LICENCIE","ALAYRAC","Christophe","1966-12-14","US SANDILLONNAISE JUDO","CM",45,"OK","",0,"",null,"18/06/11 Orléans",null,null,null,null,null,null,null,null,null,null,null,null,null,null,null,null,null,null,null,null,null,null,null,null,null,null,null,null,null,null,null,null,null,null,null,"2023-05-22"]
["M12111995ALBER01","ALBERT","Anthony","1995-11-12","AS NIHERNE JUDO","CM",36,"OK","",91,"OK",null,"18/06/11 Chateauroux ",null,"12/12/09 Chateauroux","26/11/11 Issoudun",10,null,"28/01/12 Orléans",27,null,"13/05/12 Vendome",27,null,"02/06/13 Vendome",27,null,null,null,null,null,null,null,null,null,null,null,null,null,null,null,null,null,null,null,null,null,null,"2023-05-22"]
["M24072000ALCAR01","ALCARAZ","FLORENT","2000-07-24","U S ELECTRIQUE AVOINE-BEAUMONT","CM",37,"","",0,"",null,null,null,null,null,null,null,null,null,null,null,null,null,null,null,null,null,null,null,null,null,null,null,null,null,null,null,null,null,null,null,null,null,null,null,null,null,"2023-05-22"]
["PAS LICENCIE","ALETON","Benjamin","1989-12-17","BOURGES KODOKAN","CM",18,"","",20,"",null,null,null,null,"02/04/11 Saint Doulchard",20,null,null,null,null,null,null,null,null,null,null,null,null,null,null,null,null,null,null,null,null,null,null,null,null,null,null,null,null,null,null,null,"2023-05-22"]
["M05032002ALIEV01","ALIEV","Baysangur","2002-03-05","US ORLEANS LOIRET JUDO JUJITSU","CM 20/06/17",45,"","",50,"",null,null,null,null,"28/01/18 Orléans",40,null,"19/05/2019 INDIVIDUEL CADETS \"ESPOIR\" - LA SOURCE MINOUFLET",10,null,null,null,null,null,null,null,null,null,null,null,null,null,null,null,null,null,null,null,null,null,null,null,null,null,null,null,null,"2023-05-22"]
["M20022005ALLAI01","ALLAIN","Wayne","20/02/2005","C CHARTRES JUDO","CM","28","","",20,"",null,null,null,null,"Challenge TROYES 26/10/19",10,null,"25 01 2020 CHAMPIONNAT CADETS-CADETTES 1ERE DIVISION BASSIN NORD TOURS",10,null,null,null,null,null,null,null,null,null,null,null,null,null,null,null,null,null,null,null,null,null,null,null,null,null,null,null,null,"2023-05-22"]
["M18061982ALLAR01","ALLARD","Cedric","1982-06-18","US ELECTRIQUE AVOINE BEAUMONT","3 Dan 01/12/18",37,"OK","",0,"",null,"13/05/2023 TOURS",null,null,null,null,null,null,null,null,null,null,null,null,null,null,null,null,null,null,null,null,null,null,null,null,null,null,null,null,null,null,null,null,null,null,null,"2023-05-22"]
["M19062004ALLEY01","ALLEYNE","Guylan","2004-06-19","JC BALGENTIEN","1 DAN 27/06/2021",45,"","",0,"",null,null,null,null,null,null,null,null,null,null,null,null,null,null,null,null,null,null,null,null,null,null,null,null,null,null,null,null,null,null,null,null,null,null,null,null,null,"2023-05-22"]
["PAS LICENCIE","ALLEYNE","Gracy","2000-03-26","US ORLEANS LOIRET JUDO JUJITSU","CM",45,"OK","",57,"OK",null,"16/05/15 Orléans",null,"N1 03/10/15 Amilly","14/03/15 Chatellerault",30,null,"29/01/17 Orléans",10,null,"18/02/17 Chatellerault",17,null,null,null,null,null,null,null,null,null,null,null,null,null,null,null,null,null,null,null,null,null,null,null,null,null,"2023-05-22"]
["PAS LICENCIE","ALLEYNE","James","1966-11-20","JC BALGENTIEN","1 Dan18/03/17",45,"","",20,"",null,null,null,null,"19/11/17 Nantes",10,null,"02/12/17 Angers",10,null,null,null,null,null,null,null,null,null,null,null,null,null,null,null,null,null,null,null,null,null,null,null,null,null,null,null,null,"2023-05-22"]
["PAS LICENCIE","ALLIX","Dominique","1966-06-15","AS JUDO HANCHES","1 Dan 04/12/04 ",28,"","",77,"",null,null,null,null,"4/12/04 Vendôme",10,null,"30/04/05 Brou",7,null,"10/06/07 Vendôme",50,"OK","15/04/12 Tours",10,null,null,null,null,null,null,null,null,null,null,null,null,null,null,null,null,null,null,null,null,null,null,"2023-05-22"]
["PAS LICENCIE","ALLIX","Antoine","1994-06-30","AS JUDO HANCHES","CM",28,"","",7,"",null,null,null,null,"11/10/09 St Georges/Eure",7,null,null,null,null,null,null,null,null,null,null,null,null,null,null,null,null,null,null,null,null,null,null,null,null,null,null,null,null,null,null,null,"2023-05-22"]
["F22021982ALMA*01","ALMA","JULIE","1982-02-22","MJC BELLEGARDE JUDO","CM",45,{"$f":"IF(M44=\"\",\"\",\"OK\")","v":""},{"$f":"IF(N44=\"\",\"\",\"OK\")","v":""},{"$f":"Q44+T44+W44+Z44+AC44+AF44+AI44+AL44+AO44+AR44+AU44","v":10},{"$f":"IF(O44=\"\",\"\",\"OK\")","v":""},null,null,null,null,"06/11/2022 SHIAI ISSOUDUN",10]
["PAS LICENCIE","ALMELA","Marie","1998-08-12","SAINT DOULCHARD JUDO CLUB","1 Dan 19/05/13",18,"","",47,"",null,null,null,null,"01/02/15 Vendome",37,null,"07/11/15 Vierzon",10,null,null,null,null,null,null,null,null,null,null,null,null,null,null,null,null,null,null,null,null,null,null,null,null,null,null,null,null,"2023-05-22"]
["M17011983ALTME01 ","ALTMEYER","FLORIAN","1983-01-17","BLOIS JUDO","1 DAN 01/12/2022",41,"","",0,"",null,null,null,null,null,null,null,null,null,null,null,null,null,null,null,null,null,null,null,null,null,null,null,null,null,null,null,null,null,null,null,null,null,null,null,null,null,"2023-05-22"]
["PAS LICENCIE","ALVES","Andrea","1997-01-31","BLOIS JUDO","CM",41,"","",20,"",null,null,null,null,"03/03/12 Limoges",10,null,"20/05/12 Amilly",10,null,null,null,null,null,null,null,null,null,null,null,null,null,null,null,null,null,null,null,null,null,null,null,null,null,null,null,null,"2023-05-22"]
["PAS LICENCIE","AMABLE","Axel","1992-09-28","JUDO CLUB TOURAINE","1 Dan 23/01/08   ",37,"","",62,"",null,null,null,null,"1/12/07 Vendôme",17,null,"16/11/08 Amilly",20,null,"25/04/09 Tours",25,null,null,null,null,null,null,null,null,null,null,null,null,null,null,null,null,null,null,null,null,null,null,null,null,null,"2023-05-22"]
["PAS LICENCIE","AMADE","Mathilde","2001-06-09","AS VENNECY JUDO","1 Dan 27/05/17",45,"","",10,"",null,null,null,null,"30/09/17 Orléans",10,null,null,null,null,null,null,null,null,null,null,null,null,null,null,null,null,null,null,null,null,null,null,null,null,null,null,null,null,null,null,null,"2023-05-22"]
["PAS LICENCIE","AMAFUL","Brivel","1999-08-18","USM SARAN","CM 01/06/13",45,"","",114,"",null,null,null,null,"01/10/16 Orléans",17,null,"11/03/17 St georges/eure",10,null,"02/04/17 Issoudun",10,null,"27/05/17 Issoudun",47,"OK",null,null,null,"21/10/17 Vendome",10,null,"17/02/18 Orléans",20,null,null,null,null,null,null,null,null,null,null,null,null,null,"2023-05-22"]
["PAS LICENCIE","AMAND","Justine","1991-06-23","JUDO CLUB DEOLS","1 Dan 25/03/07  ",36,"","",83,"",null,null,null,null,"31/01/09 Issoudun",10,null,"18/04/09 Amilly",25,null,"10/05/09 Vendôme",34,null,"14/02/10 Chateauroux",14,null,null,null,null,null,null,null,null,null,null,null,null,null,null,null,null,null,null,null,null,null,null,"2023-05-22"]
["PAS LICENCIE","AMAROUI","Jordan","1993-01-11","US ORLEANS LOIRET JUDO JUJITSU","1 Dan 15/03/08",45,"","",134,"",null,null,null,null,"11/12/11 Tours",20,null,"13/01/13 Orléans",37,null,"04/05/13 St Berthevin",27,null,"26/05/13 Tours",50,null,null,null,null,null,null,null,null,null,null,null,null,null,null,null,null,null,null,null,null,null,null,"2023-05-22"]
["PAS LICENCIE","AMARY","Victor","1992-01-09","ASL ST JEAN LE BLANC","1 Dan  13/12/08 ",45,"","",110,"",null,null,null,null,"22/03/09 Orléans",17,null,"25/04/09 Orléans",14,null,"10/05/09 Vendôme",32,null,"10/01/10 Orléans",10,null,"24/01/10 Tours",7,null,"16/01/11 Amilly",10,null,"30/01/11 Orléans",20,null,null,null,null,null,null,null,null,null,null,null,null,null,"2023-05-22"]
["PAS LICENCIE","AMARY","Gabriel","1994-03-07","ASL ST JEAN LE BLANC","CM",45,"","",60,"",null,null,null,null,"02/04/11 Orléans",30,null,"07/05/11 St Jean le Blanc",20,null,"01/05/11 Orléans",10,null,null,null,null,null,null,null,null,null,null,null,null,null,null,null,null,null,null,null,null,null,null,null,null,null,"2023-05-22"]
["M14122003AMER","AMER","ANTHONY ","2003-12-14","CHAMPHOL JUDO","CM",28,"","",10,"",null,null,null,null,"25 01 2020 CHAMPIONNAT CADETS-CADETTES 1ERE DIVISION BASSIN NORD TOURS",10,null,null,null,null,null,null,null,null,null,null,null,null,null,null,null,null,null,null,null,null,null,null,null,null,null,null,null,null,null,null,null,"2023-05-22"]
["PAS LICENCIE","AMBERT","Eva","2001-02-17","JC ISSOLDUNOIS","1 Dan 05/06/18",36,"","",10,"",null,null,null,null,"06/10/18 Tours",10,null,null,null,null,null,null,null,null,null,null,null,null,null,null,null,null,null,null,null,null,null,null,null,null,null,null,null,null,null,null,null,"2023-05-22"]
["M22032004AMBER01","AMBERT","Marius","2004-03-22","JC ISSOLDUNOIS","CM",36,"","",107,"OK",null,null,null,"CJA Minime 12/03/17 Issoudun","19/05/2019 INDIVIDUEL CADETS \"ESPOIR\" - LA SOURCE MINOUFLET",37,null,"TOURNOI NATIONAL INDIVIDUEL CADET - CREPS DE BOURGES - DATE ?",20,null,"25-01-2020 CHAMPIONNAT CADETS 1ERE DIVISION BASSIN SUD TOURS",30,null,"30 - 11 et 01 - 12 - TOURNOI NATIONAL INDIVIDUEL CADET-BOURGES",20,null,null,null,null,null,null,null,null,null,null,null,null,null,null,null,null,null,null,null,null,null,null,"2023-05-22"]
["PAS LICENCIE","AMBROIS","Pierre","1998-07-22","JUDO CLUB ARDENTES","1 Dan 08/06/13",36,"","",100,"",null,null,null,null,"11/01/15 Le Poinconnet",30,null,"22/02/15 Issoudun",10,null,"14/03/15 Chatellerault",30,null,"04/04/15 Limoges",30,null,null,null,null,null,null,null,null,null,null,null,null,null,null,null,null,null,null,null,null,null,null,"2023-05-22"]
["PAS LICENCIE","AMELIN","Mathilde","1993-04-13","CSMS JUDO JUJITSU","1 Dan 04/04/09  ",45,"","",25,"",null,null,null,null,"10/01/10 Orléans",25,null,null,null,null,null,null,null,null,null,null,null,null,null,null,null,null,null,null,null,null,null,null,null,null,null,null,null,null,null,null,null,"2023-05-22"]
["PAS LICENCIE","AMINDA","Jada Coline","2003-07-10","AL LA SOURCE JUDO","CM 20/06/18",45,"","",10,"",null,null,null,null,"06/10/18 Orléans",10,null,null,null,null,null,null,null,null,null,null,null,null,null,null,null,null,null,null,null,null,null,null,null,null,null,null,null,null,null,null,null,"2023-05-22"]
["PAS LICENCIE","AMIEL","Philippe","1964-01-01","INGRE JUDO CLUB","1 Dan ET 19/06/16",37,"OK","",0,"",null,"01/06/2019 TOURS",null,null,null,null,null,null,null,null,null,null,null,null,null,null,null,null,null,null,null,null,null,null,null,null,null,null,null,null,null,null,null,null,null,null,null,"2023-05-22"]
["PAS LICENCIE","AMOEV","Merabi","1998-05-20","BOURGES JUDO","CM",18,"","",57,"",null,null,null,null,"02/02/13 Issoudun",7,null,"01/12/12 St Amand",10,null,"01/06/13 Ceyrat",20,null,"12/01/14 Bourges",10,null,"17/01/15 St amand",10,null,null,null,null,null,null,null,null,null,null,null,null,null,null,null,null,null,null,null,"2023-05-22"]
["PAS LICENCIE","AMOS-DJORO","José","1962-11-24","CERCLE BUDO BOURGES JUDO","3 Dan 24/06/07  ",18,"","",117,"OK",null,null,null,"12/05/07 Arbitre Départemental","17/02/07 Bourges",10,null,"1/12/07 Vendôme",10,null,"14/06/08 Limoges",18,null,"14/02/09 Vierzon",14,null,"4/04/09 Vierzon ",34,"OK","17/04/11 Tours",17,null,"31/03/13 Bourges",14,null,null,null,null,null,null,null,null,null,null,null,null,null,"2023-05-22"]
["M24101999AMPHO01","AMPHOUX","Baptiste","1999-10-24","UNION JUDO TOURAINE METROPOLE",null,37,{"$f":"IF(M64=\"\",\"\",\"OK\")","v":""},{"$f":"IF(N64=\"\",\"\",\"OK\")","v":""},{"$f":"Q64+T64+W64+Z64+AC64+AF64+AI64+AL64+AO64+AR64+AU64","v":10},{"$f":"IF(O64=\"\",\"\",\"OK\")","v":""},null,null,null,null,"18_11_2022 St Doulchard Open ",10]
["M07062002AMRAN01","AMRANE","Riad","2002-06-07","ALLIANCE JUDO 28","1 Dan 18/06/17",28,"","",37,"",null,null,null,null,"30/09/17 Orléans",10,null,"06/10/18 Orléans",7,null,"13/01/2019 ST GEORGES SUR EURE",10,null,"26/01/2019 CHAMPIONNAT CADETS CADETTES 1ERE DIV BASIN NORD",10,null,null,null,null,null,null,null,null,null,null,null,null,null,null,null,null,null,null,null,null,null,null,"2023-05-22"]
["M13102004ANACL01","ANACLET","ALEXIS","2004-10-13","CCAM JUDO/JUJITSU LA CHAPELLE","CM",45,"OK","OK",127,"OK",null,"02/03/2019 ORLEANS","20/11/2019 orleans","30/11/2019 LA CHAPELLE","25/03/18 Orléans",10,null,"26/01/2019 CHAMPIONNAT CADETS CADETTES 1ERE DIV BASIN NORD",20,null,"05/05/2019 - SHIAI GIEN",50,"OUI","19/05/2019 INDIVIDUEL CADETS \"ESPOIR\" - LA SOURCE MINOUFLET",47,null,null,null,null,null,null,null,null,null,null,null,null,null,null,null,null,null,null,null,null,null,null,"2023-05-22"]
["M17052002ANACL01","ANACLET","Wilfried","2002-05-17","LACHAPELLE ST M","CM",45,"","",20,"",null,null,null,null,"19/05/2019 INDIVIDUEL CADETS \"ESPOIR\" - LA SOURCE MINOUFLET",20,null,null,null,null,null,null,null,null,null,null,null,null,null,null,null,null,null,null,null,null,null,null,null,null,null,null,null,null,null,null,null,"2023-05-22"]
["PAS LICENCIE","ANDENNAH","Camille","1995-04-02","UNION JUDO LARCAY VERETZ","CM",37,"OK","",14,"",null,"16/02/13 Tours",null,null,"13/03/16 Tours",14,null,"19/06/16 Angers ",null,null,null,null,null,null,null,null,null,null,null,null,null,null,null,null,null,null,null,null,null,null,null,null,null,null,null,null,null,"2023-05-22"]
["PAS LICENCIE","ANDRAULT","Julien","1984-11-26","CSADN NOUATRE","3 Dan 16/02/13 ",37,"","",47,"",null,null,null,null,"16/11/14 Limoges",10,null,"27/05/17 Issoudun",17,null,"04/02/18 Vendome",20,null,null,null,null,null,null,null,null,null,null,null,null,null,null,null,null,null,null,null,null,null,null,null,null,null,"2023-05-22"]
["PAS LICENCIE","ANDRAULT","Pauline","1994-07-12","AVENIR SONZAY JUDO","1 Dan 13/02/11",37,"","",107,"",null,null,null,null,"13/02/11 Vendome",40,null,"19/03/11 Le Mans",10,null,"03/04/11 Tours",7,null,"21/05/11 St Jean le Blanc",50,null,null,null,null,null,null,null,null,null,null,null,null,null,null,null,null,null,null,null,null,null,null,"2023-05-22"]
["PAS LICENCIE","ANDRE ","Jeremy","1990-12-15","SAINT AMAND JUDO","2 Dan 14/05/17",18,"","",40,"",null,null,null,null,"11/11/17 Angers",40,null,null,null,null,null,null,null,null,null,null,null,null,null,null,null,null,null,null,null,null,null,null,null,null,null,null,null,null,null,null,null,"2023-05-22"]
["PAS LICENCIE","ANDRIEUX","Florian","1995-04-09","JC ST JEAN DE LA RUELLE","CM",45,"OK","",40,"OK",null,"22/03/14 Orléans",null,"10/01/15 Orléans","05/04/14 Vendome",40,null,null,null,null,null,null,null,null,null,null,null,null,null,null,null,null,null,null,null,null,null,null,null,null,null,null,null,null,null,null,null,"2023-05-22"]
["PAS LICENCIE","ANDROUIN","Emeline","1997-09-07","JUDO CLUB DE SAVONNIERES","CM",37,{"$f":"IF(M73=\"\",\"\",\"OK\")","v":""},"",30,"OK",null,null,null,"08/12/12 Tours","01/01/12 Tours",10,null,"15/12/12 Orléans",10,null,"05/05/13 Tours",10,null,null,null,null,null,null,null,null,null,null,null,null,null,null,null,null,null,null,null,null,null,null,null,null,null,"2023-05-22"]
["PAS LICENCIE","ANFRAY","Pauline","1997-06-18","MJC BELLEGARDE JUDO","CM",45,"","",20,"",null,null,null,null,"31/01/15 Orléans",20,null,null,null,null,null,null,null,null,null,null,null,null,null,null,null,null,null,null,null,null,null,null,null,null,null,null,null,null,null,null,null,{"$f":"TODAY()","v":"2023-05-22"}]
["M24052005ANGEA01","ANGEARD ","GUILLAUME","2005-05-24","AVENIR SONZAY JUDO","1 DAN 28/01/2022",37,"","",0,""]
["M17111987ANGIB01 ","ANGIBAUD","Arnaud","1987-11-17","JUDO CLUB DE VIERZON","CM 26/06/15",18,"OK",{"$f":"IF(N76=\"\",\"\",\"OK\")","v":"OK"},{"$f":"Q76+T76+W76+Z76+AC76+AF76+AI76+AL76+AO76+AR76+AU76","v":30},{"$f":"IF(O76=\"\",\"\",\"OK\")","v":"OK"},null,"02/12/17 Tours","01/02/2020 ORLEANS","15/10/17 Vierzon","05/02/17 St jean le blanc",20,null,"27/05/17 Issoudun",10,null,null,null,null,null,null,null,null,null,null,null,null,null,null,null,null,null,null,null,null,null,null,null,null,null,null,null,null,"2023-05-22"]
["PAS LICENCIE","ANGLADE","Chloé","1999-12-07","JUDO CLUB CHATEAUNEUF","1 Dan ET 26/05/18",45,"","",20,"",null,null,null,null,"25-01-2020 CHAMPIONNAT CADETS 1ERE DIVISION BASSIN SUD TOURS",20,null,null,null,null,null,null,null,null,null,null,null,null,null,null,null,null,null,null,null,null,null,null,null,null,null,null,null,null,null,null,null,"2023-05-22"]
["M16102003ANGOU01 ","ANGOUMARE","ERIC ","2003-10-16","COM J C E SIME IND","CM",18,"","",0,"",null,null,null,null,null,null,null,null,null,null,null,null,null,null,null,null,null,null,null,null,null,null,null,null,null,null,null,null,null,null,null,null,null,null,null,null,null,"2023-05-22"]
["PAS LICENCIE","ANIEL","Anne Lise","1981-08-16","CSC BRIARE","2 Dan  22/03/08  ",45,"","",79,"",null,null,null,null,"3/05/08 St Berthevin",7,null,"16/11/08 Amilly",24,null,"13/12/08 INJ Paris",7,null,"22/03/09 Orléans",10,null,"18/04/09 Amilly",24,null,"23/05/09 St Berthevin",7,null,null,null,null,null,null,null,null,null,null,null,null,null,null,null,null,"2023-05-22"]
["M09051968ANJUE01 ","ANJUERE","MARC ","1968-05-09","JUDO CLUB DE DUN","CM",18,"","OK",34,"",null,null,"01/02/2020 ORLEANS",null,"07-11-2021 SHIAI AMILLY",7,null,"06/11/2022 SHIA ISSOUDUN",27,null,null,null,null,null,null,null,null,null,null,null,null,null,null,null,null,null,null,null,null,null,null,null,null,null,null,null,null,"2023-05-22"]
["M12041994ANNAB02 ","ANNABI","ABDEL DJALIL","1994-04-12"," JC ARTENAY","CM",45,"","",20,"",null,null,null,null,"RGC jujitsu DEC 2019",20,null,null,null,null,null,null,null,null,null,null,null,null,null,null,null,null,null,null,null,null,null,null,null,null,null,null,null,null,null,null,null,"2023-05-22"]
["PAS LICENCIE","ANNE LOUISE","Florian","1993-08-14","JUDO CLUB BLANCOIS","1 Dan 12/06/10   ",36,"","",41,"",null,null,null,null,"30/01/11 Orléans",21,null,"13/02/11 Orléans",10,null,"08/12/13 Orléans",10,null,null,null,null,null,null,null,null,null,null,null,null,null,null,null,null,null,null,null,null,null,null,null,null,null,"2023-05-22"]
["PAS LICENCIE","ANTOINE","Frederic","1970-12-02","ARTS MARTIAUX DE ST GEORGES","1 Dan 15/03/87",28,"","",37,"",null,null,null,null,"19/11/17 Nantes",10,null,"02/12/17 Angers",17,null,"28/04/18 Tours",10,null,null,null,null,null,null,null,null,null,null,null,null,null,null,null,null,null,null,null,null,null,null,null,null,null,"2023-05-22"]
["PAS LICENCIE","ANTOUREL","Benjamin","1994-07-16","US ORLEANS LOIRET JUDO JUJITSU","1 Dan 14/05/09",45,"","",50,"",null,null,null,null,"26/01/14 Bourges",20,null,"17/05/14 Rennes",30,null,null,null,null,null,null,null,null,null,null,null,null,null,null,null,null,null,null,null,null,null,null,null,null,null,null,null,null,"2023-05-22"]
["PAS LICENCIE","ANTUNES","Mickaël","1990-02-07","SAINT MARTIN SPORTS","1 Dan  2/12/06  ",41,"","",132,"",null,null,null,null,"2/12/06 Lamotte Beuvron",10,null,"2/06/07 Orléans",14,null,"26/01/08 Vendôme",28,"4 victoires consécutives","3/02/08 St Doulchard",30,"OK",null,null,null,"29/05/11 Issoudun",10,null,"17/03/12 Tours",40,null,null,null,null,null,null,null,null,null,null,null,null,null,"2023-05-22"]
["PAS LICENCIE","ANTUNES","Dylan","1996-11-26","JC ISSOLDUNOIS","CM",36,"","",10,"",null,null,null,null,"15/01/12 Lamotte Beuvron",10,null,null,null,null,null,null,null,null,null,null,null,null,null,null,null,null,null,null,null,null,null,null,null,null,null,null,null,null,null,null,null,"2023-05-22"]
["M21071998APPAV01","APPAVOU","Jason","1998-07-21","US ORLEANS LOIRET JUDO JUJITSU","1 Dan 26/07/15",45,"","",150,"",null,null,null,null,"21/10/17 Vendome",40,null,"25/11/17 Paris",50,"OK","17/03/2019 1/4 DE FINALE SENIORS G ET F 1ERE DIV N°1 - dojo J C Rousseau - ORLEANS",20,null,"08/04/18 Orléans",20,null,"11/05/2019 CHAMPIONNAT REGIONAL INDIVIDUEL SENIOR 2DIV - VIERZON",20,null,null,null,null,null,null,null,null,null,null,null,null,null,null,null,null,null,null,null,"2023-05-22"]
["PAS LICENCIE","APPOLONUS","Cedric","1994-12-17","JC DESCARTES","1 Dan 6/03/10 ",37,"","",94,"",null,null,null,null,"6/03/10 Issoudun",20,null,"2/05/10 Tours",21,null,"15/05/10 Tours",17,null,"19/12/10 Tours",14,null,"30/01/11 Orléans",22,null,null,null,null,null,null,null,null,null,null,null,null,null,null,null,null,null,null,null,"2023-05-22"]
["PAS LICENCIE","APPOLONUS","Romuald","1997-09-20","JC DESCARTES","1 Dan 19/05/12",37,"","",30,"OK",null,null,null,"06/10/12 Tours","31/01/15 Tours",10,null,"28/03/15 Concarneau",10,null,"29/11/15 Tours",10,null,null,null,null,null,null,null,null,null,null,null,null,null,null,null,null,null,null,null,null,null,null,null,null,null,"2023-05-22"]
["PAS LICENCIE","APPOLONUS","Stessy","2000-04-24","JC DESCARTES","CM",37,"","",20,"OK",null,null,null,"25/10/14 Parcay Meslay","22/02/15 Issoudun",10,null,"14/03/15 Chatellerault",10,null,null,null,null,null,null,null,null,null,null,null,null,null,null,null,null,null,null,null,null,null,null,null,null,null,null,null,null,"2023-05-22"]
["PAS LICENCIE","ARBAOUIA","Hakim","1979-09-14","USM SARAN","CM",45,"","",10,"",null,null,null,null,"02/04/11 Orléans",10,null,null,null,null,null,null,null,null,null,null,null,null,null,null,null,null,null,null,null,null,null,null,null,null,null,null,null,null,null,null,null,"2023-05-22"]
["PAS LICENCIE","ARCELIN","Vince ","2000-07-07","JC ST JEAN DE LA RUELLE","CM 15/04/14",45,"OK","",0,"OK",null,"23/04/16 Orléans",null,"N1 17/05/14 Gien",null,null,null,null,null,null,null,null,null,null,null,null,null,null,null,null,null,null,null,null,null,null,null,null,null,null,null,null,null,null,null,null,null,"2023-05-22"]
["PAS LICENCIE","ARCHAMBAULT","Quentin","1995-01-28","JUDO CLUB DE SEMBLANCAY","CM",37,"OK","",0,"OK",null,"12/01/13 La milesse",null,"08/12/12 Tours",null,null,null,null,null,null,null,null,null,null,null,null,null,null,null,null,null,null,null,null,null,null,null,null,null,null,null,null,null,null,null,null,null,"2023-05-22"]
["PAS LICENCIE","ARCHENAULT","Raphaël","1991-11-06","MJC BELLEGARDE JUDO","1 Dan 6/06/09   ",45,"","",10,"",null,null,null,null,"6/06/09 St Jean le Blanc",10,null,null,null,null,null,null,null,null,null,null,null,null,null,null,null,null,null,null,null,null,null,null,null,null,null,null,null,null,null,null,null,"2023-05-22"]
["M21101998ARIAN01","ARIANO ESSONGUE","Joris Augustin","1998-10-21","US ORLEANS LOIRET JUDO JUJITSU","CM 10/05/12",45,"","",157,"",null,null,null,null,"28/04/13 Gien",10,null,"30/11/13 Orléans",20,null,"15/02/14 Issoudun",10,null,"23/03/14 Limoges",20,null,"31/05/14 Ceyrat",7,null,"10/01/15 Orléans",30,null,"22/02/15 Issoudun",30,null,"11/05/2019 CHAMPIONNAT REGIONAL INDIVIDUEL SENIOR 2DIV - VIERZON",30,null,null,null,null,null,null,null,null,null,null,"2023-05-22"]
["PAS LICENCIE","ARIANO IKAMBA","Naomi Chelsea","1993-04-08","US ORLEANS LOIRET JUDO JUJITSU","CM",45,"","",25,"",null,null,null,null,"13/03/11 Issoudun",25,null,null,null,null,null,null,null,null,null,null,null,null,null,null,null,null,null,null,null,null,null,null,null,null,null,null,null,null,null,null,null,"2023-05-22"]
["PAS LICENCIE","ARIANO REBOUKA","Nell Honore","1995-01-20","US ORLEANS LOIRET JUDO JUJITSU","1 Dan 06/06/12",45,"","",110,"",null,null,null,null,"03/02/13 Issoudun",10,null,"01/12/12 Nantes",10,null,"16/03/13 La flèche",20,null,"07/12/13 Nantes",20,null,"26/01/14 Bourges",50,null,null,null,null,null,null,null,null,null,null,null,null,null,null,null,null,null,null,null,"2023-05-22"]
["PAS LICENCIE","ARMEDE","Edwin","1997-07-04","US ORLEANS LOIRET JUDO JUJITSU","1 Dan 08/06/13",45,"","",20,"",null,null,null,null,"09/11/13 Orléans",20,null,null,null,null,null,null,null,null,null,null,null,null,null,null,null,null,null,null,null,null,null,null,null,null,null,null,null,null,null,null,null,"2023-05-22"]
["M22042005ARNAU01","ARNAULT","Lilian","2005-04-22","J.C.DESCARTES","CM",37,"OK","OK",10,"",null,"10/10/2020 TOURS","23/10/2021 TOURS",null,"25-01-2020 CHAMPIONNAT CADETS 1ERE DIVISION BASSIN SUD TOURS",10,null,null,null,null,null,null,null,null,null,null,null,null,null,null,null,null,null,null,null,null,null,null,null,null,null,null,null,null,null,null,null,"2023-05-22"]
["PAS LICENCIE","ARNOULT","Thierry","1958-12-13","BLOIS JUDO","1 Dan 18/01/03",41,"OK","",0,"",null,"30/05/10 Le Mée/Seine",null,null,null,null,null,null,null,null,null,null,null,null,null,null,null,null,null,null,null,null,null,null,null,null,null,null,null,null,null,null,null,null,null,null,null,"2023-05-22"]
["PAS LICENCIE","ARNOULT","Nicolas","1990-04-17","JC DESCARTES","1 Dan  15/06/07  ",37,"","",103,"OK",null,null,null,"08/10/11 Tours","16/12/07 Tours",17,null,"6/07/08 Tours",7,null,"3/02/08 St Doulchard",7,null,"16/03/08 Le Mans",25,null,"5/04/08 Tours",22,null,"29/11/08 Chatellerault ",10,null,"6/12/08 Nantes",10,null,"31/01/09 Issoudun ",5,null,null,null,null,null,null,null,null,null,null,"2023-05-22"]
["M15121992ARNOU01","ARNOULT","Clément","1992-12-15","J VINEUIL SPORTS","1 Dan 09/12/18",41,"","",10,"",null,null,null,null,"26/11/2018 – SHIAI ANGERS",10,null,null,null,null,null,null,null,null,null,null,null,null,null,null,null,null,null,null,null,null,null,null,null,null,null,null,null,null,null,null,null,"2023-05-22"]
["PAS LICENCIE","ARNOULT","Antoine","1996-08-04","JC LIGUEIL","CM",37,"OK","",50,"",null,"21/04/13 La Milesse",null,null,"15/01/12 Tours",10,null,"02/06/13 Vendome",30,null,"08/06/13 Limoges",10,null,null,null,null,null,null,null,null,null,null,null,null,null,null,null,null,null,null,null,null,null,null,null,null,null,"2023-05-22"]
["PAS LICENCIE","ARNOUX","Loic","1994-09-24","US ORLEANS LOIRET JUDO JUJITSU","1 Dan 06/02/10",45,"","",104,"",null,null,null,null,"16/01/11 Amilly",10,null,"30/01/11 Orléans",17,null,"13/02/11 Orléans",10,null,"01/05/11 Orléans",37,null,"03/12/11 Nantes",30,null,null,null,null,null,null,null,null,null,null,null,null,null,null,null,null,null,null,null,"2023-05-22"]
["PAS LICENCIE","ARRAGUAIN","Pascal","1960-04-28","ALERTE SP FONDETTES","1 Dan 1/12/07  ",37,"OK","",35,"OK",null,"10/12/11 Tours",null,"11/10/08 Tours","1/12/07 Vendôme",10,null,"6/06/09 St Jean le Blanc",15,null,"24/02/13 Angers",10,null,null,null,null,null,null,null,null,null,null,null,null,null,null,null,null,null,null,null,null,null,null,null,null,null,"2023-05-22"]
["PAS LICENCIE","ARRIGONI","Angélina","1995-09-25","JKCB VIERZON","CM",18,"","",40,"",null,null,null,null,"27/02/10 Issoudun",10,null,"15/05/10 Tours",20,null,"03/02/13 Issoudun",10,null,null,null,null,null,null,null,null,null,null,null,null,null,null,null,null,null,null,null,null,null,null,null,null,null,"2023-05-22"]
["PAS LICENCIE","ARTAL","Guillaume","1995-10-23","DREUX AC JUDO","CM",28,"","",60,"",null,null,null,null,"11/10/09 St Georges/Eure",10,null,"15/05/10 Tours",10,null,"12/03/11 Issoudun",20,null,"03/04/11 Nogent le Rotrou",20,null,null,null,null,null,null,null,null,null,null,null,null,null,null,null,null,null,null,null,null,null,null,"2023-05-22"]
["PAS LICENCIE","ARZEL","Mickael","2001-10-15","US ORLEANS LOIRET JUDO JUJITSU","CM 15/01/16",45,"","",20,"",null,null,null,null,"27/05/17 Issoudun",10,null,"30/09/17 Orléans",10,null,null,null,null,null,null,null,null,null,null,null,null,null,null,null,null,null,null,null,null,null,null,null,null,null,null,null,null,"2023-05-22"]
["PAS LICENCIE","ASLKHANOV","MAGOMED","2003-02-18","LACHAPELLE ST M","CM",45,"","",30,"",null,null,null,null,"26/01/2019 CHAMPIONNAT CADETS CADETTES 1ERE DIV BASIN NORD",30,null,null,null,null,null,null,null,null,null,null,null,null,null,null,null,null,null,null,null,null,null,null,null,null,null,null,null,null,null,null,null,"2023-05-22"]
["PAS LICENCIE","ATTARD","Daniel","1967-08-08","SAINT AVERTIN SPORTS","CM 5/50/08",37,"OK","",0,"OK",null,"12/06/09 Tours",null,"6/05/09 Tours",null,null,null,null,null,null,null,null,null,null,null,null,null,null,null,null,null,null,null,null,null,null,null,null,null,null,null,null,null,null,null,null,null,"2023-05-22"]
["PAS LICENCIE","AUBERGER","Alexandre","1994-05-03","ASS JUDO OLIVET","CM",45,"","",110,"OK",null,null,null,"04/12/11 Orléans","24/04/10 Orléans",30,null,"5/06/10 Amilly",20,null,"02/04/11 Orléans",30,null,"07/05/11 St Jean le Blanc",30,null,null,null,null,null,null,null,null,null,null,null,null,null,null,null,null,null,null,null,null,null,null,"2023-05-22"]
["M25052002AUBER01","AUBERT","Julien","2002-05-25","US ORLEANS LOIRET JUDO JUJITSU","1 Dan 31/05/17",45,"","",90,"",null,null,null,null,"06/10/18 Orléans",20,null,"13/01/2019 ST GEORGES SUR EURE",10,null,"26/01/2019 CHAMPIONNAT CADETS CADETTES 1ERE DIV BASIN NORD",20,null,"16-02-2019 - Demi final Championnat de France Cadet(te)s - Tours",30,null,"17/03/2019 1/4 DE FINALE SENIORS G ET F 1ERE DIV N°1 - dojo J C Rousseau - ORLEANS",10,null,null,null,null,null,null,null,null,null,null,null,null,null,null,null,null,null,null,null,"2023-05-22"]
["PAS LICENCIE","AUBERT","Amandine","1988-03-15","JUDO CLUB DEOLS","CM",36,"OK","",20,"OK",null,"08/06/13 Orléans",null,"06/04/13 Chateauroux","16/11/13 Limoges",10,null,"16/06/13 Roullet",10,null,null,null,null,null,null,null,null,null,null,null,null,null,null,null,null,null,null,null,null,null,null,null,null,null,null,null,null,"2023-05-22"]
["F27112004AUBER01 ","AUBERT","EMELIE","2004-11-27","AVENIR SONZAY JUDO","1 DAN 17/01/2022",37,"","",0,"",null,null,null,null,null,null,null,null,null,null,null,null,null,null,null,null,null,null,null,null,null,null,null,null,null,null,null,null,null,null,null,null,null,null,null,null,null,"2023-05-22"]
["PAS LICENCIE","AUBERT","Lucie","1993-04-15","JC RICHELAIS","2 Dan 12/06/10 ",37,"","",45,"",null,null,null,null,"6/03/10 Issoudun",25,null,"19/04/15 Parthenay",20,null,null,null,null,null,null,null,null,null,null,null,null,null,null,null,null,null,null,null,null,null,null,null,null,null,null,null,null,"2023-05-22"]
["PAS LICENCIE","AUBERT","Vincent","1998-01-14","JC MAGDUNOIS","1 Dan 07/12/13",45,"","",20,"",null,null,null,null,"10/01/15 Orléans",10,null,"14/03/15 Chatellerault",10,null,null,null,null,null,null,null,null,null,null,null,null,null,null,null,null,null,null,null,null,null,null,null,null,null,null,null,null,"2023-05-22"]
["PAS LICENCIE","AUBERT","Maxence","1999-07-23","AS JUDO HANCHES","1 Dan 13/12/15",28,"","",24,"",null,null,null,null,"11/03/17 St georges/eure",17,null,"02/04/17 Issoudun",7,null,null,null,null,null,null,null,null,null,null,null,null,null,null,null,null,null,null,null,null,null,null,null,null,null,null,null,null,"2023-05-22"]
["M01011976AUBER01","AUBERT","WILLIAM","1976-01-01","AVENIR SONZAY JUDO","1 DAN 17/11/1996",37,{"$f":"IF(M118=\"\",\"\",\"OK\")","v":"OK"},{"$f":"IF(N118=\"\",\"\",\"OK\")","v":""},{"$f":"Q118+T118+W118+Z118+AC118+AF118+AI118+AL118+AO118+AR118+AU118","v":20},{"$f":"IF(O118=\"\",\"\",\"OK\")","v":""},null,"12/06/2022 TOURS",null,null,"07-11-2021 SHIAI AMILLY",20]
["PAS LICENCIE","AUBIJOUX","Peter","1982-01-20","ENTENTE SPORTIVE JUDO AUNEAU","2 Dan 13/03/16",28,"","",10,"",null,null,null,null,"21/10/17 Vendome",10,null,null,null,null,null,null,null,null,null,null,null,null,null,null,null,null,null,null,null,null,null,null,null,null,null,null,null,null,null,null,null,"2023-05-22"]
["PAS LICENCIE","AUBIN","Benjamin","1992-08-22","JUDO CLUB BUZANCAIS","1 Dan 13/06/09 ",36,"","",30,"",null,null,null,null,"13/06/09 Limoges",30,null,null,null,null,null,null,null,null,null,null,null,null,null,null,null,null,null,null,null,null,null,null,null,null,null,null,null,null,null,null,null,"2023-05-22"]
["PAS LICENCIE","AUBIN ","Michael","1994-10-31","COM JCE SIME IND","CM 20/06/08",18,"OK","",50,"OK",null,"11/12/10 Tours",null,"02/04/11 St Doulchard","02/04/11 Saint Doulchard",10,null,"07/05/11 St Jean le Blanc",10,null,"21/05/11 St Jean le Blanc",30,null,null,null,null,null,null,null,null,null,null,null,null,null,null,null,null,null,null,null,null,null,null,null,null,null,"2023-05-22"]
["PAS LICENCIE","AUBINEAU","Valentin","1998-08-12","JUDO DOJO LOCHOIS","CM",37,"","",30,"",null,null,null,null,"01/12/12 Tours",30,null,null,null,null,null,null,null,null,null,null,null,null,null,null,null,null,null,null,null,null,null,null,null,null,null,null,null,null,null,null,null,"2023-05-22"]
["PAS LICENCIE","AUBRY","Cédric","1981-01-27","DOJO BEAUCERON","CM",28,"","",17,"",null,null,null,null,"30/11/08 St Georges/Eure",10,null,"16/01/10 St Georges/Eure",7,null,null,null,null,null,null,null,null,null,null,null,null,null,null,null,null,null,null,null,null,null,null,null,null,null,null,null,null,"2023-05-22"]
["PAS LICENCIE","AUCHER","Benjamin","1980-10-29","JUDO CLUB VILLEDIEU","CM 02/05/15",36,"","",10,"OK",null,null,null,"08/10/16 Vierzon","09/04/16 Orléans",10,null,null,null,null,null,null,null,null,null,null,null,null,null,null,null,null,null,null,null,null,null,null,null,null,null,null,null,null,null,null,null,"2023-05-22"]
["PAS LICENCIE","AUCHERE","Jérôme","1995-01-09","JUDO CLUB MEHUN","1 Dan 13/02/11",18,"","",20,"",null,null,null,null,"13/02/11 Vendome",20,null,null,null,null,null,null,null,null,null,null,null,null,null,null,null,null,null,null,null,null,null,null,null,null,null,null,null,null,null,null,null,"2023-05-22"]
["PAS LICENCIE","AUGE","Clément","1992-02-27","ARTS MARTIAUX DE ST GEORGES","1 Dan  14/06/09   ",28,"","",7,"",null,null,null,null,"14/06/09 Houlgate",7,null,null,null,null,null,null,null,null,null,null,null,null,null,null,null,null,null,null,null,null,null,null,null,null,null,null,null,null,null,null,null,"2023-05-22"]
["PAS LICENCIE","AUGER","Hervé","1964-12-07","JC RICHELAIS","CM",37,"OK","",60,"OK",null,"11/12/10 Tours",null,"09/02/11 Tours","28/05/11 Parthenay",20,null,"23/03/13 Parthenay",10,null,"23/01/11 Chatellearult",20,null,"02/06/13 Vendome",10,null,null,null,null,null,null,null,null,null,null,null,null,null,null,null,null,null,null,null,null,null,null,"2023-05-22"]
["PAS LICENCIE","AUGER","Julien","1985-12-11","ESVRES JUDO CLUB","2 Dan 4/03/05   ",37,"","",27,"OK",null,null,null,"F1 1/06/03 Tours","26/02/05 Tours",10,null,"25/04/09 Tours",17,null,null,null,null,null,null,null,null,null,null,null,null,null,null,null,null,null,null,null,null,null,null,null,null,null,null,null,null,"2023-05-22"]
["PAS LICENCIE","AUGIS","Georges","1998-09-08","JC LUNOTIER","CM",41,"","",50,"",null,null,null,null,"18/11/12 Vendome",10,null,"04/05/13 Vineuil",20,null,"15/12/13 Vendome",20,null,null,null,null,null,null,null,null,null,null,null,null,null,null,null,null,null,null,null,null,null,null,null,null,null,"2023-05-22"]
["M06021994AUGRI02","AUGRIS","XAVIER","1994-02-06","CCAM JUDO/JUJITSU LA CHAPELLE","CM",45,"","",0,"",null,null,null,null,null,null,null,null,null,null,null,null,null,null,null,null,null,null,null,null,null,null,null,null,null,null,null,null,null,null,null,null,null,null,null,null,null,"2023-05-22"]
["M01062006AULLE01","AULLEN CHOUBRAC","YANNIS","2006-06-01","A JUDO CHATEAUROUX","CM",36,{"$f":"IF(M131=\"\",\"\",\"OK\")","v":"OK"},{"$f":"IF(N131=\"\",\"\",\"OK\")","v":"OK"},{"$f":"Q131+T131+W131+Z131+AC131+AF131+AI131+AL131+AO131+AR131+AU131","v":10},{"$f":"IF(O131=\"\",\"\",\"OK\")","v":""},null,"26/11/2022 ORLEANS","26/11/2022 ORLEANS",null,"20/11/2022 Open cadets St Doulchard",10]
["PAS LICENCIE","AUMAY","Marc","1958-11-23","AVENIR J LIGNIERES","CM ",18,"OK","",0,"OK",null,"5/04/09 Vierzon",null,"2/05/09 St Doulchard",null,null,null,null,null,null,null,null,null,null,null,null,null,null,null,null,null,null,null,null,null,null,null,null,null,null,null,null,null,null,null,null,null,"2023-05-22"]
["PAS LICENCIE","AUPIN","Patrick","1965-10-09","JUDO KODOKAN 28","1 Dan 4/02/06   ",28,"","",84,"OK",null,null,null,"Arbitre Départemental 25/03/06 Chartres","4/02/06 Orléans",10,null,"10/06/07 Vendôme ",17,null,"17/11/07 Angers",10,null,"20/01/08 ST Georges/Eure",5,null,"29/11/08 St Georges/Eure",35,null,"26/11/11 Issoudun",7,null,null,null,null,null,null,null,null,null,null,null,null,null,null,null,null,"2023-05-22"]
["M14052004AUREG01","AUREGAN","Gabriel","2004-05-14","JUDO CLUB SANCERROIS","CM",18,"OK","OK",10,"OK",null,"01/06/2019 TOURS","01/06/2019 TOURS","CJA Minime 30/04/17 Vierzon","19/05/2019 INDIVIDUEL CADETS \"ESPOIR\" - LA SOURCE MINOUFLET",10,null,null,null,null,null,null,null,null,null,null,null,null,null,null,null,null,null,null,null,null,null,null,null,null,null,null,null,null,null,null,null,"2023-05-22"]
["PAS LICENCIE","AUREGAN","Juliette","2000-11-06","JUDO CLUB SANCERROIS","CM",18,"","",10,"",null,null,null,null,"03/10/15 Bourges",10,null,null,null,null,null,null,null,null,null,null,null,null,null,null,null,null,null,null,null,null,null,null,null,null,null,null,null,null,null,null,null,"2023-05-22"]
["M07041967AUREG01","AUREGAN","JEAN YVES","1967-04-07","JUDO CLUB SANCERROIS","CM",18,"OK","OK",0,"",null,"01/06/2019 TOURS","01/06/2019 TOURS",null,null,null,null,null,null,null,null,null,null,null,null,null,null,null,null,null,null,null,null,null,null,null,null,null,null,null,null,null,null,null,null,null,null,"2023-05-22"]
["M22052001AURUS01","AURUS","Aurélien","2001-05-22","USM ST DENIS EN VAL","CM 08/09/14",45,"OK","",81,"",null,"01/12/18 Orléans",null,null,"05/02/17 St jean le blanc",17,null,"27/05/17 Issoudun",24,null,"03/02/2019 SHIAI TEST EFFICACITE - ISSOUDUN",20,null,"05/05/2019 - SHIAI GIEN",20,null,null,null,null,null,null,null,null,null,null,null,null,null,null,null,null,null,null,null,null,null,null,"2023-05-22"]
["PAS LICENCIE","AUSSIBAL","Yann","1978-12-22","DREUX AC JUDO","2 Dan 19/11/17",28,{"$f":"IF(M138=\"\",\"\",\"OK\")","v":""},"",10,"",null,null,null,null,"28/04/18 Tours",10,null,null,null,null,null,null,null,null,null,null,null,null,null,null,null,null,null,null,null,null,null,null,null,null,null,null,null,null,null,null,null,"2023-05-22"]
["M25112003AUTHI01","AUTHIER","LOUIS","2003-11-25","AS VENNECY JUDO","MA 08/11/2018",45,{"$f":"IF(M139=\"\",\"\",\"OK\")","v":""},{"$f":"IF(N139=\"\",\"\",\"OK\")","v":"OK"},{"$f":"Q139+T139+W139+Z139+AC139+AF139+AI139+AL139+AO139+AR139+AU139","v":0},{"$f":"IF(O139=\"\",\"\",\"OK\")","v":""},null,null,"26/06/2021 ORLEANS"]
["PAS LICENCIE","AUVRAY","Malo","2001-01-02","JUDO CLUB VALLEE D AVRE","CM 10/02/13",28,"OK","",117,"OK",null,"23/04/16 Orléans",null,"04/02/17 Epernon","01/10/16 Orléans",20,null,"29/01/17 Orléans",27,null,"05/03/17 Tours",10,null,"30/09/17 Orléans",20,null,"28/01/18 Orléans",40,null,null,null,null,null,null,null,null,null,null,null,null,null,null,null,null,null,null,null,"2023-05-22"]
["M11121978AUZAN02","AUZANNEAU","SEBASTIEN","1978-12-11","A.S.T.CHATEAUNEUF","1 DAN 22/03/2022",28,{"$f":"IF(M141=\"\",\"\",\"OK\")","v":""},{"$f":"IF(N141=\"\",\"\",\"OK\")","v":""},{"$f":"Q141+T141+W141+Z141+AC141+AF141+AI141+AL141+AO141+AR141+AU141","v":0},{"$f":"IF(O141=\"\",\"\",\"OK\")","v":""}]
["PAS LICENCIE","AUZANNEAU","Quentin","1991-05-14","INGRE JUDO CLUB","1 Dan  22/03/08   ",45,"","",83,"",null,null,null,null,"29/11/08 St Georges/Eure",15,null,"13/12/08 Orléans",17,null,"4/04/09 Vierzon",10,null,"28/11/09 Vendôme",10,null,"18/04/10 Orléans",7,null,"27/02/10 Orléans",24,null,null,null,null,null,null,null,null,null,null,null,null,null,null,null,null,{"$f":"TODAY()","v":"2023-05-22"}]
["M18052001AVIGN01","AVIGNON","ANTOINE","2001-05-18","JC.VAL.D.ARDOUX","CM",null,"",{"$f":"IF(N143=\"\",\"\",\"OK\")","v":""},{"$f":"Q143+T143+W143+Z143+AC143+AF143+AI143+AL143+AO143+AR143+AU143","v":30},{"$f":"IF(O143=\"\",\"\",\"OK\")","v":""},null,null,null,null,"OPEN SENIOR - LAMOTTE - 24-03-2019",10,null,"Vierzon 12-05-2019 OPEN SENIOR CEINTURE DE COULEUR",20,null,null,null,null,null,null,null,null,null,null,null,null,null,null,null,null,null,null,null,null,null,null,null,null,null,null,null,null,"2023-05-22"]
["PAS LICENCIE","AVIRON","Thibault","1980-08-20","JC DESCARTES","CM",37,"OK","",0,"OK",null,"08/06/13 Tours",null,"13/10/12 Tours",null,null,null,null,null,null,null,null,null,null,null,null,null,null,null,null,null,null,null,null,null,null,null,null,null,null,null,null,null,null,null,null,null,"2023-05-22"]
["PAS LICENCIE","AVRIL ","Michel","1988-10-31","JC DUNOIS CHATEAUDUN","2 Dan 28/05/07",28,"","",57,"",null,null,null,null,"02/02/14 ligue Bretagne",27,null,"06/04/14 Vendome",30,null,null,null,null,null,null,null,null,null,null,null,null,null,null,null,null,null,null,null,null,null,null,null,null,null,null,null,null,"2023-05-22"]
["PAS LICENCIE","AVRILLEUX","David","1976-05-12","ENTENTE SPORTIVE JUDO AUNEAU","1 Dan 12/06/94",28,"","",30,"OK",null,null,null,"31/01/16 St Georges/eure","21/10/12 St jean le blanc",20,null,"19/04/15 Tours",10,null,null,null,null,null,null,null,null,null,null,null,null,null,null,null,null,null,null,null,null,null,null,null,null,null,null,null,null,"2023-05-22"]
["PAS LICENCIE","AYAD","Exan","2001-11-09","US CHAMBRAY JUDO","1 Dan 09/11/16",37,"","",10,"",null,null,null,null,"20/10/18 Ceyrat",10,null,null,null,null,null,null,null,null,null,null,null,null,null,null,null,null,null,null,null,null,null,null,null,null,null,null,null,null,null,null,null,"2023-05-22"]
["PAS LICENCIE","AYAD","Michel","1984-08-18","ALLIANCE DE DREUX","2 Dan 6/06/09",28,"","",14,"",null,null,null,null,"21/05/11 St Jean le Blanc",14,null,null,null,null,null,null,null,null,null,null,null,null,null,null,null,null,null,null,null,null,null,null,null,null,null,null,null,null,null,null,null,"2023-05-22"]
["F30042005BABA*01","BABA BOURA","Oceane","30/04/2005","JUDO CLUB TOURAINE","CM",null,"","",40,"",null,null,null,null,"Challenge TROYES 26/10/19",10,null,"15-02-2020 - 1/2 FINALE CADETS - Tours",30,null,null,null,null,null,null,null,null,null,null,null,null,null,null,null,null,null,null,null,null,null,null,null,null,null,null,null,null,"2023-05-22"]
["PAS LICENCIE","BACHA","Gwenael","1997-06-30","US ORLEANS LOIRET JUDO JUJITSU","CM",45,"","",10,"",null,null,null,null,"01/12/12 Orléans",10,null,null,null,null,null,null,null,null,null,null,null,null,null,null,null,null,null,null,null,null,null,null,null,null,null,null,null,null,null,null,null,"2023-05-22"]
["PAS LICENCIE","BADAIRE","Flavien","1999-11-20","JUDO CLUB MONTOIRE/S/LE LOIR","CM 11/09/13",41,"OK","",30,"",null,"16/05/15 Tours",null,null,"17/05/14 Vineuil",10,null,"11/01/15 Vendome",20,null,null,null,null,null,null,null,null,null,null,null,null,null,null,null,null,null,null,null,null,null,null,null,null,null,null,null,null,"2023-05-22"]
["PAS LICENCIE","BADET","Benjamin","1993-08-28","ARTS MARTIAUX DE ST GEORGES","CM 12/11/07",28,"OK","",30,"",null,"12/06/10 St Georges/Eure",null,null,"1/03/08 St Georges/Eure",10,null,"13/12/09 Nogent le Rotrou",10,null,"13/06/10 Forges les eaux",10,null,null,null,null,null,null,null,null,null,null,null,null,null,null,null,null,null,null,null,null,null,null,null,null,null,"2023-05-22"]
["M03102003BAEZA01","BAEZA GLOMON","Ludovic","2003-10-03","AVENIR J LIGNIERES","1 DAN 07/05/2019",18,"","",0,"",null,null,null,null,null,null,null,null,null,null,null,null,null,null,null,null,null,null,null,null,null,null,null,null,null,null,null,null,null,null,null,null,null,null,null,null,null,"2023-05-22"]
["PAS LICENCIE","BAFFOU","Amaury","1993-04-03","JUDO ST CYR SUR LOIRE","CM",37,"OK","",15,"",null,"19/03/11 Tours",null,null,"10/01/10 Tours",15,null,null,null,null,null,null,null,null,null,null,null,null,null,null,null,null,null,null,null,null,null,null,null,null,null,null,null,null,null,null,null,"2023-05-22"]
["M07062003BAGOT01","BAGOT","Elowan","2003-06-07","BLERE VAL DE CHER JUDO","CM 15/03/17",37,"","",20,"",null,null,null,null,"06/10/18 Tours",20,null,null,null,null,null,null,null,null,null,null,null,null,null,null,null,null,null,null,null,null,null,null,null,null,null,null,null,null,null,null,null,"2023-05-22"]
["PAS LICENCIE","BAGOT","Thomas","1993-11-12","JC VAL DE LOIRE  ","1 Dan 12/06/09",45,"","",103,"",null,null,null,null,"1/02/09 Issoudun",10,null,"10/01/10 Orléans",21,null,"24/01/10 Tours",17,null,"27/02/10 Orléans",21,null,"30/01/11 Orléans",27,null,"01/05/11 Orléans",7,null,null,null,null,null,null,null,null,null,null,null,null,null,null,null,null,"2023-05-22"]
["M12022003BAHOY01","BAHOYA CALODAT","Emmanuel","2003-02-12","JUDO CLUB DE VIERZON","1 DAN 20/02/2022",18,"","",10,"",null,null,null,null,"18_11_2022 St Doulchard Open",10,null,null,null,null,null,null,null,null,null,null,null,null,null,null,null,null,null,null,null,null,null,null,null,null,null,null,null,null,null,null,null,"2023-05-22"]
["PAS LICENCIE","BAILET","Thomas","1992-03-27","ASL ST PRIVE ST MESMAIN","CM",45,"","",60,"",null,null,null,null,"28/01/12 Orléans",30,null,"21/10/12 St jean le blanc",20,null,"12/01/13 Orléans",10,null,null,null,null,null,null,null,null,null,null,null,null,null,null,null,null,null,null,null,null,null,null,null,null,null,"2023-05-22"]
["F05012005BAILL01","BAILLEAU","CHLOE","2005-01-05","JUDO CLUB THIRONNAIS","1 DAN 19/03/2023",28,{"$f":"IF(M159=\"\",\"\",\"OK\")","v":"OK"},{"$f":"IF(N159=\"\",\"\",\"OK\")","v":"OK"},{"$f":"Q159+T159+W159+Z159+AC159+AF159+AI159+AL159+AO159+AR159+AU159","v":20},{"$f":"IF(O159=\"\",\"\",\"OK\")","v":""},null,"12/06/2022 TOURS","12/06/2022 TOURS",null,"18_11_2022 St Doulchard Open",20]
["PAS LICENCIE","BAILLON","Camille","1997-02-25","AS DE ROCHECORBON","CM 22/10/14",37,"","",47,"",null,null,null,null,"27/05/17 Issoudun",47,"ok",null,null,null,null,null,null,null,null,null,null,null,null,null,null,null,null,null,null,null,null,null,null,null,null,null,null,null,null,null,null,"2023-05-22"]
["PAS LICENCIE","BAILLON","Thomas","1994-07-19","UNION SPORT VERNOU","CM",37,"","",100,"",null,null,null,null,"13/05/12 Vendome",10,null,"19/01/13 Tours",20,null,"01/06/13 Vendome",10,null,"30/05/2010 Mandelieu",30,null,"02/06/13 Vendome",30,null,null,null,null,null,null,null,null,null,null,null,null,null,null,null,null,null,null,null,"2023-05-22"]
["PAS LICENCIE","BAILLY","Victorien","1996-12-31","US ORLEANS LOIRET JUDO JUJITSU","1 Dan 16/06/11",45,"OK","",124,"",null,"24/04/2021 TOURS",null,null,"06/11/16 Orléans",40,null,"11/03/18 Tours",40,null,"22/04/18 Issoudun",17,null,"29/09/18 Orléans",27,null,null,null,null,null,null,null,null,null,null,null,null,null,null,null,null,null,null,null,null,null,null,"2023-05-22"]
["PAS LICENCIE","BAISSET","Christophe","1976-08-05","PLANETE JUDO TOURY JANVILLE","CM",28,"","",17,"",null,null,null,null,"05/02/17 St jean le blanc",17,null,null,null,null,null,null,null,null,null,null,null,null,null,null,null,null,null,null,null,null,null,null,null,null,null,null,null,null,null,null,null,"2023-05-22"]
["PAS LICENCIE","BAKARY","Abdel Awal","1993-08-17","JC MISTRAL","1 Dan 18/12/11",37,"","",10,"",null,null,null,null,"29/01/12 Orléans",10,null,null,null,null,null,null,null,null,null,null,null,null,null,null,null,null,null,null,null,null,null,null,null,null,null,null,null,null,null,null,null,"2023-05-22"]
["PAS LICENCIE","BALANGER","Quentin","1994-12-22","UNION JUDO 37 TOURS","1 Dan 18/12/11",37,"","",50,"OK",null,null,null,"22/05/12 Tours","19/01/13 Tours",10,null,"03/02/13 Issoudun",20,null,"01/12/12 Nantes",10,null,"26/01/14 Bourges",10,null,null,null,null,null,null,null,null,null,null,null,null,null,null,null,null,null,null,null,null,null,null,"2023-05-22"]
["PAS LICENCIE","BALCEROWIAK","Adrien","1990-08-29","ENTENTE SPORTIVE JUDO AUNEAU","CM 15/12/05",28,"OK","",57,"",null,"15/06/07 Luisant",null,null,"29/11/08 St Georges/Eure",30,null,"5/06/10 St Jean le Blanc",27,null,null,null,null,null,null,null,null,null,null,null,null,null,null,null,null,null,null,null,null,null,null,null,null,null,null,null,null,"2023-05-22"]
["PAS LICENCIE","BALLAND","Jean Philippe","1981-01-23","JC BELLEVILLE","2 Dan 06/06/03",18,"","",50,"",null,null,null,null,"06/04/13 Vauzelles",50,"OK",null,null,null,null,null,null,null,null,null,null,null,null,null,null,null,null,null,null,null,null,null,null,null,null,null,null,null,null,null,null,"2023-05-22"]
["PAS LICENCIE","BALLANGER","Cédric","1980-02-05","US LA FERTE ST AUBIN","1 Dan 13/12/08  ",45,"","",50,"",null,null,null,null,"6/06/09 St Jean le Blanc",10,null,"28/11/09 Vendôme",30,null,"29/11/09 Vendôme",10,null,null,null,null,null,null,null,null,null,null,null,null,null,null,null,null,null,null,null,null,null,null,null,null,null,"2023-05-22"]
["PAS LICENCIE","BALLESTERO","Jérémy","1993-05-05","DOJO BEAUCERON","CM 05/06/07",28,"OK","",70,"OK",null,"12/06/10 St Georges/Eure",null,"24/01/10 St Georges/Eure","24/11/07 Vierzon",20,null,"15/12/07 Nogent le Rotrou",10,null,"1/03/08 St Georges/Eure",10,null,"18/10/08 Tours",10,null,"22/11/08 Lignières",20,null,null,null,null,null,null,null,null,null,null,null,null,null,null,null,null,null,null,null,"2023-05-22"]
["PAS LICENCIE","BALLESTERO","Laurine","1999-01-07","DOJO BEAUCERON","1 Dan 10/12/17",28,"","",30,"",null,null,null,null,"29/09/18 Orléans",10,null,"13/01/2018 ST GEORGES SUR EURE",20,null,null,null,null,null,null,null,null,null,null,null,null,null,null,null,null,null,null,null,null,null,null,null,null,null,null,null,null,"2023-05-22"]
["PAS LICENCIE","BALLOT","Erwin","1987-04-20","J3 SPORTS AMILLY","1 Dan 15/12/02",45,"OK","",105,"",null,"22/12/06 Orléans",null,null,"15/02/03 Tours",21,null,"9/02/03 Orléans",24,null,"26/04/03 Coubertin",20,null,"6/12/03 Orléans",26,null,"25/01/04 Orléans",14,null,null,null,null,null,null,null,null,null,null,null,null,null,null,null,null,null,null,null,"2023-05-22"]
["PAS LICENCIE","BALMAJOU","Jean Matthieu","1990-12-14","ASL ST JEAN LE BLANC","1 Dan 13/06/08 ",45,"","",44,"",null,null,null,null,"26/04/08 Tours",20,null,"13/12/08 Orléans",14,null,"12/02/12 Issoudun",10,null,null,null,null,null,null,null,null,null,null,null,null,null,null,null,null,null,null,null,null,null,null,null,null,null,"2023-05-22"]
["PAS LICENCIE","BALZAN","Nicolas","1969-11-02","JUJITSU ST CYR SUR LOIRE","CM",37,"OK","",0,"",null,"24/01/15 Tours",null,null,null,null,null,null,null,null,null,null,null,null,null,null,null,null,null,null,null,null,null,null,null,null,null,null,null,null,null,null,null,null,null,null,null,"2023-05-22"]
["M21052008BANDE01","BANDEIRA","Toan","2008-05-21","C CHARTRES JUDO","CM",null,{"$f":"IF(M174=\"\",\"\",\"OK\")","v":""},{"$f":"IF(N174=\"\",\"\",\"OK\")","v":""},{"$f":"Q174+T174+W174+Z174+AC174+AF174+AI174+AL174+AO174+AR174+AU174","v":34},{"$f":"IF(O174=\"\",\"\",\"OK\")","v":""},null,null,null,null,"20/11/2022 Open cadets St Doulchard",27,null,"03/12/2022 TOURNOI DE BOURGES",7,null,"03/12/2022 TOURNOI DE BOURGES"]
["PAS LICENCIE","BANGOURA ALKALY","Mohamed  ","1997-09-26","DOJO BEAUCERON","CM",28,"","",47,"OK",null,null,null,"12/01/14 Gien","30/11/13 Orléans",27,null,"11/01/15 St Georges/eure",20,null,null,null,null,null,null,null,null,null,null,null,null,null,null,null,null,null,null,null,null,null,null,null,null,null,null,null,null,"2023-05-22"]
["PAS LICENCIE","BANNIER","Isabelle","1966-01-04","JC DESCARTES","CM",37,"OK","",0,"OK",null,"16/02/13 Tours",null,"09/11/11 Tours",null,null,null,null,null,null,null,null,null,null,null,null,null,null,null,null,null,null,null,null,null,null,null,null,null,null,null,null,null,null,null,null,null,"2023-05-22"]
["PAS LICENCIE","BAPTISTE","Thibault","1989-09-23","US LA FERTE ST AUBIN","1 Dan  5/04/08 ",45,"","",82,"",null,null,null,null,"5/04/08 Gien",30,null,"1/06/08 Lamotte Beuvron ",25,null,"25/04/09 Orléans",27,null,null,null,null,null,null,null,null,null,null,null,null,null,null,null,null,null,null,null,null,null,null,null,null,null,"2023-05-22"]
["PAS LICENCIE","BARANGER","Aurélien","1993-02-05","JUDO CLUB DEOLS","1 Dan 6/06/09",36,"","",105,"OK",null,null,null,"04/12/14 Orléans","6/06/09 St Jean le Blanc ",30,null,"24/01/10 Tours",14,null,"2/05/10 Le Poinçonnet",10,null,"16/05/10 Tours",7,null,"30/01/11 Orléans",10,null,"20/02/11 Chateauroux",7,null,"11/12/11 Tours",10,null,"12/02/12 Issoudun",17,null,null,null,null,null,null,null,null,null,null,"2023-05-22"]
["PAS LICENCIE","BARBAN","Corentin","1996-09-06","JC CHATILLONNAIS","1 Dan 14/04/12",36,"","",10,"",null,null,null,null,"31/03/13 Bourges",10,null,null,null,null,null,null,null,null,null,null,null,null,null,null,null,null,null,null,null,null,null,null,null,null,null,null,null,null,null,null,null,"2023-05-22"]
["PAS LICENCIE","BARBE","Stéphane","1971-10-06","AS GIEN JUDO","CM 12/02/15",45,"OK","",0,"",null,"23/04/16 Orléans",null,null,null,null,null,null,null,null,null,null,null,null,null,null,null,null,null,null,null,null,null,null,null,null,null,null,null,null,null,null,null,null,null,null,null,"2023-05-22"]
["M16031985BARBE01","BARBEAU","NICOLAS","1985-03-16","LE CENTRAL J.JUDO ORLEANAIS","CM",45,{"$f":"IF(M181=\"\",\"\",\"OK\")","v":"OK"},{"$f":"IF(N181=\"\",\"\",\"OK\")","v":"OK"},{"$f":"Q181+T181+W181+Z181+AC181+AF181+AI181+AL181+AO181+AR181+AU181","v":0},{"$f":"IF(O181=\"\",\"\",\"OK\")","v":""},null,"26/11/2022 ORLEANS","2022-11-26"]
["M21012006BARBI01","BARBIER-PALLY","ENZO","2006-01-21","JUDO CLUB CLOYSIEN","1 DAN 18/02/2023",28,{"$f":"IF(M182=\"\",\"\",\"OK\")","v":""},{"$f":"IF(N182=\"\",\"\",\"OK\")","v":""},{"$f":"Q182+T182+W182+Z182+AC182+AF182+AI182+AL182+AO182+AR182+AU182","v":0},{"$f":"IF(O182=\"\",\"\",\"OK\")","v":""}]
["M29041994BARBO01","BARBOUX","Alexis","1994-04-29","A JUDO CHATEAUROUX","1 Dan 12/12/09  ",36,"","",146,"",null,null,null,null,"15/05/10 Tours",31,null,"30/01/11 Orléans",31,null,"13/03/11 Issoudun",10,null,"03/04/11 Châteauroux",27,null,"29/05/11 Issoudun",37,null,"18_11_2022 St Doulchard Open",10,null,null,null,null,null,null,null,null,null,null,null,null,null,null,null,null,"2023-05-22"]
["F01012008BARDE01","BARDE","Kayliah","2008-01-01","ENTENTE SPORTIVE JUDO AUNEAU","CM",28,{"$f":"IF(M184=\"\",\"\",\"OK\")","v":""},{"$f":"IF(N184=\"\",\"\",\"OK\")","v":""},{"$f":"Q184+T184+W184+Z184+AC184+AF184+AI184+AL184+AO184+AR184+AU184","v":10},{"$f":"IF(O184=\"\",\"\",\"OK\")","v":""},null,null,null,null,"03/12/2022 TOURNOI DE BOURGES",10]
["PAS LICENCIE","BARDET","Robin","1990-10-11","A JUDO CHATEAUROUX","1 Dan 25/11/06  ",36,"","",126,"",null,null,null,null,"25/11/06 Limoges",20,null,"2/06/07 Orléans",27,null,"9/12/07 Le Poinçonnet",7,null,"7/12/08 Issoudun",14,null,"31/01/09 Issoudun",20,null,"26/04/09 Chateauroux",38,null,null,null,null,null,null,null,null,null,null,null,null,null,null,null,null,"2023-05-22"]
["M14032007BARDE01","BARDET","Gaston","2007-03-14","C CHARTRES JUDO","CM",28,{"$f":"IF(M186=\"\",\"\",\"OK\")","v":""},{"$f":"IF(N186=\"\",\"\",\"OK\")","v":""},{"$f":"Q186+T186+W186+Z186+AC186+AF186+AI186+AL186+AO186+AR186+AU186","v":20},{"$f":"IF(O186=\"\",\"\",\"OK\")","v":""},null,null,null,null,"03/12/2022 TOURNOI DE BOURGES",20]
["PAS LICENCIE","BARDIN","Joffrey","1989-12-13","US SANDILLONNAISE JUDO","2 Dan 15/05/10 ",45,"","",47,"OK",null,null,null,"Arbitre Départemental 15/05/10 Tours","5/06/10 St Jean le Blanc",7,null,"13/05/12 Vendome",30,null,"21/10/12 St jean le blanc",10,null,null,null,null,null,null,null,null,null,null,null,null,null,null,null,null,null,null,null,null,null,null,null,null,null,"2023-05-22"]
["F22121999BARDO01","BARDOUX","Lucie","1999-12-22","US ORLEANS LOIRET JUDO JUJITSU","1 Dan 13/06/15",45,"","",110,"",null,null,null,null,"27/02/16 St Georges/eure",10,null,"10/04/16 Orléans",10,null,"11/03/17 St georges/eure",10,null,"29/09/18 Orléans",10,null,"13/01/2019 ST GEORGES SUR EURE",30,null,"02-02-2019 Demie finale juniors Issoudun",30,null,"17/03/2019 1/4 DE FINALE SENIORS G ET F 1ERE DIV N°1 - dojo J C Rousseau - ORLEANS",10,null,null,null,null,null,null,null,null,null,null,null,null,null,"2023-05-22"]
["PAS LICENCIE","BARILLOT","Tanguy","1980-04-15","JC BELLEVILLE","2 Dan 15/04/04",18,"","",50,"",null,null,null,null,"06/04/13 Vauzelles",40,null,"14/05/17 Tours",10,null,null,null,null,null,null,null,null,null,null,null,null,null,null,null,null,null,null,null,null,null,null,null,null,null,null,null,null,"2023-05-22"]
["PAS LICENCIE","BARLIER","Cyrille","1974-12-13","JC DESCARTES","1 Dan 6/03/10  ",37,"","",17,"OK",null,null,null,"19/12/10 Tours","6/03/10 Issoudun",10,null,"03/04/11 Tours",7,null,null,null,null,null,null,null,null,null,null,null,null,null,null,null,null,null,null,null,null,null,null,null,null,null,null,null,null,"2023-05-22"]
["PAS LICENCIE","BARON","Cyprien","2003-04-03","JUDO CLUB DE VOVES","CM 19/06/18",28,"","",30,"",null,null,null,null,"06/10/18 Orléans",30,null,null,null,null,null,null,null,null,null,null,null,null,null,null,null,null,null,null,null,null,null,null,null,null,null,null,null,null,null,null,null,"2023-05-22"]
["PAS LICENCIE","BARON","Gaultier","1993-04-26","CERCLE DU DOJO NOGENTAIS","CM 05/05/05",28,"OK","",40,"OK",null,"19/03/11 St Georges/Eure",null,"25/03/06 Chartres","14/12/08 St Georges/Eure",10,null,"21/05/11 St Jean le Blanc",30,null,null,null,null,null,null,null,null,null,null,null,null,null,null,null,null,null,null,null,null,null,null,null,null,null,null,null,null,"2023-05-22"]
["F15042005BARON01","BARONNET","ANAIS","2005-04-15","JUDO CLUB DE VIERZON","CM",18,"OK","OK",10,"",null,"01/02/2020 ORLEANS","01/02/2020 ORLEANS",null,"25-01-2020 CHAMPIONNAT CADETS 1ERE DIVISION BASSIN SUD TOURS",10,null,null,null,null,null,null,null,null,null,null,null,null,null,null,null,null,null,null,null,null,null,null,null,null,null,null,null,null,null,null,null,"2023-05-22"]
["PAS LICENCIE","BARRANDON","Georges","1940-05-05","JUJITSU ST CYR SUR LOIRE","CM 24/06/08",37,"OK","",0,"",null,"12/06/10 Tours",null,null,null,null,null,null,null,null,null,null,null,null,null,null,null,null,null,null,null,null,null,null,null,null,null,null,null,null,null,null,null,null,null,null,null,"2023-05-22"]
["PAS LICENCIE","BARREAU","Nicolas","1983-04-29","AS MONTS JUDO JUJITSU","CM",37,"OK","",50,"",null,"6/04/01 Tours",null,null,"12/01/02 Vendôme",20,null,"23/03/02 Tours",10,null,"1/06/02 Vierzon",10,null,"11/01/09 Poitiers",10,null,null,null,null,null,null,null,null,null,null,null,null,null,null,null,null,null,null,null,null,null,null,"2023-05-22"]
["PAS LICENCIE","BARRERE","Victor","1999-09-28","USM SARAN","CM",45,"","",57,"OK",null,null,null,"11/10/15 Amilly","30/11/13 Orléans",7,null,"15/02/14 Issoudun",10,null,"17/05/14 Gien",10,null,"03/10/15 Orléans",20,null,"01/10/16 Orléans",10,null,null,null,null,null,null,null,null,null,null,null,null,null,null,null,null,null,null,null,"2023-05-22"]
["F05102003BARRI01","BARRIER","Diaba","2003-10-05","JUDO CLUB CHALETTOIS","1 DAN 22/12/2018",45,"","",40,"",null,null,null,null,"TOURNOI NATIONAL INDIVIDUEL CADET - CREPS DE BOURGES -",20,null,"30 - 11 et 01 - 12 - TOURNOI NATIONAL INDIVIDUEL CADET-BOURGES",20,null,null,null,null,null,null,null,null,null,null,null,null,null,null,null,null,null,null,null,null,null,null,null,null,null,null,null,null,"2023-05-22"]
["PAS LICENCIE","BARRIER","Elise","1991-11-25","JUDO CLUB DE SAVONNIERES","1 Dan 1/06/08  ",37,"","",10,"",null,null,null,null,"31/01/09 Issoudun",10,null,null,null,null,null,null,null,null,null,null,null,null,null,null,null,null,null,null,null,null,null,null,null,null,null,null,null,null,null,null,null,"2023-05-22"]
["PAS LICENCIE","BARRIER","Lucien","1994-06-29","JC MAGDUNOIS","2 Dan 10/05/14",45,"","",10,"",null,null,null,null,"05/02/17 St jean le blanc",10,null,null,null,null,null,null,null,null,null,null,null,null,null,null,null,null,null,null,null,null,null,null,null,null,null,null,null,null,null,null,null,"2023-05-22"]
["M11032003BARRU01","BARRUET","ALEXY","2003-03-11","C.S.M.S JUDO / JUJITSU","CM",45,"OK","OK",0,"",null,"01/06/2019 TOURS","01/06/2019 TOURS",null,null,null,null,null,null,null,null,null,null,null,null,null,null,null,null,null,null,null,null,null,null,null,null,null,null,null,null,null,null,null,null,null,null,"2023-05-22"]
["M28071967BARRU01","BARRUET","LAURENT","1967-07-28","C.S.M.S JUDO / JUJITSU","1 DAN 16/05/2022",45,"","",0,"",null,null,null,null,null,null,null,null,null,null,null,null,null,null,null,null,null,null,null,null,null,null,null,null,null,null,null,null,null,null,null,null,null,null,null,null,null,"2023-05-22"]
["M02021987BARTH01","BARTHELEMY  ","Jonathan","1987-02-02","JUDO CLUB MEHUN","1 Dan 02/06/18",18,"","",70,"",null,null,null,null,"13-10-2019 - TEST EFFICACITE COMBAT A SAINT GEORGES/EURE",30,null,"TEST EFFICACITE TOURS 15-12-19",40,null,null,null,null,null,null,null,null,null,null,null,null,null,null,null,null,null,null,null,null,null,null,null,null,null,null,null,null,"2023-05-22"]
["PAS LICENCIE","BASILE","Thomas","1999-08-03","CERCLE DU DOJO NOGENTAIS","1 Dan 22/06/14",28,"","",30,"",null,null,null,null,"02/04/17 Issoudun",10,null,"13/01/2019 ST GEORGES SUR EURE",20,null,null,null,null,null,null,null,null,null,null,null,null,null,null,null,null,null,null,null,null,null,null,null,null,null,null,null,null,"2023-05-22"]
["PAS LICENCIE","BASILIO","Adrien","1999-11-04","JC BALGENTIEN","1 Dan 07/06/15",45,"","",17,"",null,null,null,null,"27/02/16 Vierzon",17,null,null,null,null,null,null,null,null,null,null,null,null,null,null,null,null,null,null,null,null,null,null,null,null,null,null,null,null,null,null,null,"2023-05-22"]
["PAS LICENCIE","BASRI","Dalila","2002-04-30","JUDO CLUB TOURAINE","CM",37,"","",7,"OK",null,null,null,"CJA Minimes Tours 09/10/16","22/10/17 Ceyrat",7,null,null,null,null,null,null,null,null,null,null,null,null,null,null,null,null,null,null,null,null,null,null,null,null,null,null,null,null,null,null,null,"2023-05-22"]
["PAS LICENCIE","BASTIEN","Dominique","1960-03-03","ALLIANCE DE DREUX","2 Dan 13/02/11",28,"","",17,"",null,null,null,null,"21/05/11 St Jean le Blanc",17,null,null,null,null,null,null,null,null,null,null,null,null,null,null,null,null,null,null,null,null,null,null,null,null,null,null,null,null,null,null,null,"2023-05-22"]
["PAS LICENCIE","BASTILLE","Claire","2000-07-28","AS MONTLOUIS JUDO","CM 15/01/10",37,"","",10,"",null,null,null,null,"30/01/16 Tours",10,null,null,null,null,null,null,null,null,null,null,null,null,null,null,null,null,null,null,null,null,null,null,null,null,null,null,null,null,null,null,null,"2023-05-22"]
["M22092005BATAR01","BATARD","NADJI","2005-09-22","A JUDO CHATEAUROUX","1 DAN 11/02/2023",36,"","",0,"",null,null,null,null,null,null,null,null,null,null,null,null,null,null,null,null,null,null,null,null,null,null,null,null,null,null,null,null,null,null,null,null,null,null,null,null,null,"2023-05-22"]
["13/05/2022 TOURS","BATISTA","DANIEL","2006-07-20","JUDO CLUB DE VIERZON","MA 01/02/2022",18,null,null,null,null,null,"13/05/2023 TOURS"]
["M17092003BATUT01","BATUT","Gabriel","2003-09-17","UNION JUDO TOURAINE METROPOLE 37","1 Dan 05/12/18",37,{"$f":"IF(M210=\"\",\"\",\"OK\")","v":""},"",0,"",null,null,null,null,null,null,null,null,null,null,null,null,null,null,null,null,null,null,null,null,null,null,null,null,null,null,null,null,null,null,null,null,null,null,null,null,null,"2023-05-22"]
["M07032004BATZO01","BATZORIGT","TELMEN","2004-03-07","A JUDO CHATEAUROUX","1 DAN 30/11/2021",36,"","",70,"",null,null,null,null,"13/01/13 Orléans",30,null,"04/05/13 St Berthevin",30,null,"16/02/14 Issoudun",10,null,null,null,null,null,null,null,null,null,null,null,null,null,null,null,null,null,null,null,null,null,null,null,null,null,"2023-05-22"]
["PAS LICENCIE","BAUCHE","Céline","1992-08-07","US ORLEANS LOIRET JUDO JUJITSU","1 Dan 20/11/10",45,"","",89,"",null,null,null,null,"5/06/10 St Jean le Blanc",24,null,"19/02/11 Vendome",5,null,"26/11/11 Issoudun",50,"OK","01/04/12 Orléans",10,null,null,null,null,null,null,null,null,null,null,null,null,null,null,null,null,null,null,null,null,null,null,{"$f":"TODAY()","v":"2023-05-22"}]
["F21111993BAUCH01","BAUCHE","MARGOT","1993-11-21","ST AVERTIN SPORTS",1,37,{"$f":"IF(M213=\"\",\"\",\"OK\")","v":"OK"},{"$f":"IF(N213=\"\",\"\",\"OK\")","v":""},{"$f":"Q213+T213+W213+Z213+AC213+AF213+AI213+AL213+AO213+AR213+AU213","v":0},{"$f":"IF(O213=\"\",\"\",\"OK\")","v":""},null,"13/05/2023 TOURS"]
["PAS LICENCIE","BAUDIN","Grégoire","1988-09-26","BLOIS JUDO","2 Dan 3/04/10  ",41,"",{"$f":"IF(N214=\"\",\"\",\"OK\")","v":""},{"$f":"Q214+T214+W214+Z214+AC214+AF214+AI214+AL214+AO214+AR214+AU214","v":30},{"$f":"IF(O214=\"\",\"\",\"OK\")","v":""},null,null,null,null,"25-10-2020 RGC - CREPS DE LA REGION CENTRE",10,null,"24/10/2021 CHAMPIONNAT REGIONAL INDIVIDUEL SENIOR 1ERE DIVISION",20,null,null,null,null,null,null,null,null,null,null,null,null,null,null,null,null,null,null,null,null,null,null,null,null,null,null,null,null,"2023-05-22"]
["F23042000BAUDR01","BAUDRY","LEA","2000-04-23",null,"1 DAN",null,"","",50,"",null,null,null,null,"29/11/15 Angers",50,"OK",null,null,null,null,null,null,null,null,null,null,null,null,null,null,null,null,null,null,null,null,null,null,null,null,null,null,null,null,null,null,"2023-05-22"]
["PAS LICENCIE","BAUSSART","Andrew","1994-11-27","ES BOURGUEIL","2 Dan 10/05/14",37,"OK","",0,"",null,"23/04/16 Orléans",null,null,null,null,null,null,null,null,null,null,null,null,null,null,null,null,null,null,null,null,null,null,null,null,null,null,null,null,null,null,null,null,null,null,null,"2023-05-22"]
["PAS LICENCIE","BAZATE","Christian","1975-01-17","AS GIEN JUDO","CM 12/02/15",45,"OK","",90,"OK",null,"20/06/15 Bretigny",null,"16/01/16 Parcay Meslay","13/03/16 Tours",30,null,"28/05/16 Issoudun",40,null,"04/06/16 Angers",20,null,null,null,null,null,null,null,null,null,null,null,null,null,null,null,null,null,null,null,null,null,null,null,null,null,"2023-05-22"]
["PAS LICENCIE","BEAL","Nicolas","1973-12-15","SPG CLUB AMBOISIEN","CM 12/06/90",37,"","",0,"",null,null,null,null,null,null,null,null,null,null,null,null,null,null,null,null,null,null,null,null,null,null,null,null,null,null,null,null,null,null,null,null,null,null,null,null,null,"2023-05-22"]
["M18041965BEAU*01","BEAU","Christophe","1965-04-18","JUDO CLUB DEOLS","1 DAN 15/06/2019",36,"","",47,"",null,null,null,null,"30/01/11 Orléans",10,null,"03/04/11 Châteauroux",7,null,"29/05/11 Issoudun",10,null,"11/12/11 Tours",10,null,"21/10/17 Vendome",10,null,null,null,null,null,null,null,null,null,null,null,null,null,null,null,null,null,null,null,"2023-05-22"]
["PAS LICENCIE","BEAU","Maxime","1994-03-07","A JUDO CHATEAUROUX","1 Dan 12/06/10 ",36,"OK","",77,"",null,"12/06/09 Vierzon",null,null,"2/02/08 St Doulchard",10,null,"7/12/08 Issoudun",17,null,"28/11/09 Vendôme",50,"OK",null,null,null,null,null,null,null,null,null,null,null,null,null,null,null,null,null,null,null,null,null,null,null,null,"2023-05-22"]
["PAS LICENCIE","BEAUCHÊNE","Antoine","1992-02-06","JUDO CLUB DEOLS","CM                ",36,"","",20,"",null,null,null,null,"16/11/13 St Georges/eure",10,null,"07/06/15 Vierzon",10,null,null,null,null,null,null,null,null,null,null,null,null,null,null,null,null,null,null,null,null,null,null,null,null,null,null,null,null,"2023-05-22"]
["PAS LICENCIE","BEAUCHET","Lilian","1995-12-15","JC MEROIS","2 Dan 08/06/13",41,"OK","",0,"OK",null,"09/06/12 Tours",null,"13/02/15 Vineuil",null,null,null,null,null,null,null,null,null,null,null,null,null,null,null,null,null,null,null,null,null,null,null,null,null,null,null,null,null,null,null,null,null,"2023-05-22"]
["PAS LICENCIE","BEAUDRU","Christophe","1969-08-09","JUDO CLUB SELLOIS","1 Dan 02/06/02",41,"","",0,"",null,null,null,null,null,null,null,null,null,null,null,null,null,null,null,null,null,null,null,null,null,null,null,null,null,null,null,null,null,null,null,null,null,null,null,null,null,"2023-05-22"]
["M21062003BEAUJ01","BEAUJOUAN","Mathéo","2003-06-21","ARTS MARTIAUX DE ST GEORGES","1 DAN 05/12/2021",28,"","",25,"",null,null,null,null,"24/01/10 Tours",10,null,"7/02/10 St Georges/Eure",15,null,null,null,null,null,null,null,null,null,null,null,null,null,null,null,null,null,null,null,null,null,null,null,null,null,null,null,null,"2023-05-22"]
["PAS LICENCIE","BEAUMONT","Marion","1992-05-03","ENTENTE SPORTIVE JUDO AUNEAU","CM",28,"","",0,"",null,null,null,null,null,null,null,null,null,null,null,null,null,null,null,null,null,null,null,null,null,null,null,null,null,null,null,null,null,null,null,null,null,null,null,null,null,"2023-05-22"]
["M01092001BEAUM01","BEAUMONT","Robin","2001-09-01","ALLIANCE JUDO 28","2 DAN 30/08/2021",28,"","",30,"",null,null,null,null,"06/11/2022 SHIAI ISSOUDUN",30,null,null,null,null,null,null,null,null,null,null,null,null,null,null,null,null,null,null,null,null,null,null,null,null,null,null,null,null,null,null,null,"2023-05-22"]
["M11082005BEAUS01","BEAUSSE","JULIEN","2005-08-11","J.C.DESCARTES","1 DAN 10/04/2022",37,"","",81,"",null,null,null,null,"30/09/17 Tours",27,null,"21/10/17 Ceyrat",14,null,"17/02/18 Orléans",20,null,"06/10/18 Tours",null,null,"11/05/2019 CHAMPIONNAT REGIONAL INDIVIDUEL SENIOR 2DIV - VIERZON",20,null,null,null,null,null,null,null,null,null,null,null,null,null,null,null,null,null,null,null,"2023-05-22"]
["M20112001BEAUS01","BEAUSSE","Nicolas","2001-11-20","CSADN NOUATRE","1 Dan 20/11/16",37,"","",72,"",null,null,null,null,"9/06/07 Poitiers",10,null,"11/01/09 Tours",7,null,"28/11/09 Vendôme",10,null,"21/05/11 St Jean le Blanc",15,null,"20/11/16 Angers",10,null,"04/02/18 Vendome",10,null,"04/11/18 Tours",10,null,null,null,null,null,null,null,null,null,null,null,null,null,"2023-05-22"]
["PAS LICENCIE","BEAUVAIS","Bastien","1987-12-26","AS MONTS JUDO JUJITSU","1 Dan  9/06/07  ",37,"","",30,"",null,null,null,null,"11/10/15 St Georges/eure",30,null,null,null,null,null,null,null,null,null,null,null,null,null,null,null,null,null,null,null,null,null,null,null,null,null,null,null,null,null,null,null,"2023-05-22"]
["PAS LICENCIE","BEAUVAIS","Yann","2000-10-18","CERCLE DU DOJO NOGENTAIS","CM 08/09/13",28,"","",71,"",null,null,null,null,"05/02/17 St jean le blanc",30,null,"27/05/17 Issoudun",34,null,"10/06/17 Limoges",7,null,null,null,null,null,null,null,null,null,null,null,null,null,null,null,null,null,null,null,null,null,null,null,null,null,"2023-05-22"]
["PAS LICENCIE","BECERRA","Cyril ","1984-05-28","ASL ST JEAN LE BLANC","1 Dan 28/03/04",45,"","",33,"OK",null,null,null,"22/05/12 Tours","19/12/10 Tours",33,null,null,null,null,null,null,null,null,null,null,null,null,null,null,null,null,null,null,null,null,null,null,null,null,null,null,null,null,null,null,null,"2023-05-22"]
["PAS LICENCIE","BEDRANE","Nicolas","1995-05-19","BLERE VAL DE CHER JUDO","1 Dan 19/05/10  ",37,"","",0,"",null,null,null,null,null,null,null,null,null,null,null,null,null,null,null,null,null,null,null,null,null,null,null,null,null,null,null,null,null,null,null,null,null,null,null,null,null,"2023-05-22"]
["M24081963BEGEN01 ","BEGENNE","Lilian","1963-08-24","JUDO CLUB CHINON","2 DAN 17/06/2022",37,"","",194,"",null,null,null,null,"04/03/17 Angers",34,null,"02/04/17 Issoudun",20,null,"11/03/17 Issoudun",10,null,"26/03/17 Chatellerault",50,"OK","17/03/2019 1/4 DE FINALE SENIORS G ET F 1ERE DIV N°1 - dojo J C Rousseau - ORLEANS",20,null,"13/01/2019 ST GEORGES SUR EURE",20,null,"02-02-2019 Demie finale juniors Issoudun",10,null,"16-02-2020 – 1/4 DE FINALE SENIOR 1ERE DIVISION BASSIN SUD -  TOURS",30,null,null,null,null,null,null,null,null,null,null,"2023-05-22"]
["M18071999BEGHA01","BEGHAMI","Murat","1999-07-18","UNION JUDO TOURAINE METROPOLE 37","1 Dan 14/03/15",37,"OK","OK",10,"",null,"01/06/2019 TOURS","01/06/2019 TOURS",null,"TEST EFFICACITE TOURS 15-12-19",10,null,null,null,null,null,null,null,null,null,null,null,null,null,null,null,null,null,null,null,null,null,null,null,null,null,null,null,null,null,null,null,"2023-05-22"]
["M07102004BEGHA01","BEGHAMI","YOUNES","2004-10-07","A.S.CHANCEAUX JUDO","CM",37,"","",117,"",null,null,null,null,"27/03/10 Gien",10,null,"13/02/11 Vendome",40,null,"01/02/15 Vendome",10,null,"13/03/16 Tours",10,null,"28/05/16 Issoudun",10,null,"09/10/16 Vierzon",27,null,"Vierzon 12-05-2019 OPEN SENIOR CEINTURE DE COULEUR",10,null,null,null,null,null,null,null,null,null,null,null,null,null,"2023-05-22"]
["M21071987BEGUIN01","BEGUIN","Anthony","1987-07-21","US LA FERTE ST AUBIN","1 Dan 12/06/10  ",45,"","",80,"OK",null,null,null,"22/11/14 St Georges/eure","21/02/15 Issoudun",10,null,"07/06/15 Vierzon",30,null,"21/06/2015 Bretigny",40,null,null,null,null,null,null,null,null,null,null,null,null,null,null,null,null,null,null,null,null,null,null,null,null,null,"2023-05-22"]
["PAS LICENCIE","BEGZADIAN","Kevin","1988-05-25","JC DUNOIS CHATEAUDUN","CM",28,"","",20,"",null,null,null,null,"01/12/12 Tours",10,null,"11/01/15 Tours",10,null,null,null,null,null,null,null,null,null,null,null,null,null,null,null,null,null,null,null,null,null,null,null,null,null,null,null,null,"2023-05-22"]
["PAS LICENCIE","BEIGNEUX","Valentin","1998-08-14","ESP SPORT DU BEFFROI JUDO","CM",37,{"$f":"IF(M238=\"\",\"\",\"OK\")","v":""},{"$f":"IF(N238=\"\",\"\",\"OK\")","v":"OK"},{"$f":"Q238+T238+W238+Z238+AC238+AF238+AI238+AL238+AO238+AR238+AU238","v":0},{"$f":"IF(O238=\"\",\"\",\"OK\")","v":""},null,null,"12/06/2022 TOURS"]
["F03112007BEKAE01","BEKAEV","FATIMA","2007-11-03","S.M.O.C. ST JEAN DE BRAYE","cm",45,"","",25,"",null,null,null,null,"06/02/10 Dijon",20,null,"30/01/11 Orléans",5,null,null,null,null,null,null,null,null,null,null,null,null,null,null,null,null,null,null,null,null,null,null,null,null,null,null,null,null,"2023-05-22"]
["PAS LICENCIE","BEKHTAOUI","Inès","1994-07-15","AS VENNECY","1 Dan 12/06/10",45,"","",7,"",null,null,null,null,"28/01/18 Tours",7,null,null,null,null,null,null,null,null,null,null,null,null,null,null,null,null,null,null,null,null,null,null,null,null,null,null,null,null,null,null,null,"2023-05-22"]
["PAS LICENCIE","BELFKIH","Samir","2003-03-01","BOURGES JUDO","CM 26/05/16",18,"","",42,"OK",null,null,null,"22/01/2011 St Jean le Blanc","11/04/09 Orléans",7,null,"13/02/11 Vendome",25,null,"21/05/11 St Jean le Blanc",10,null,null,null,null,null,null,null,null,null,null,null,null,null,null,null,null,null,null,null,null,null,null,null,null,null,"2023-05-22"]
["PAS LICENCIE","BELGACEMI","Giséle","1969-10-15","JUDO CLUB CHATEAUNEUF","1 Dan  11/04/09    ",45,{"$f":"IF(M242=\"\",\"\",\"OK\")","v":""},{"$f":"IF(N242=\"\",\"\",\"OK\")","v":""},{"$f":"Q242+T242+W242+Z242+AC242+AF242+AI242+AL242+AO242+AR242+AU242","v":0},{"$f":"IF(O242=\"\",\"\",\"OK\")","v":""}]
["M24022007BELGH01","BELGHOUL","ADAM","2007-02-24","JUDO CLUB TOURAINE","1 DAN 18/02/2023",37,"OK","",0,"",null,"21/05/16 Limoges",null,null,null,null,null,null,null,null,null,null,null,null,null,null,null,null,null,null,null,null,null,null,null,null,null,null,null,null,null,null,null,null,null,null,null,"2023-05-22"]
["PAS LICENCIE","BELHEN","Louis","1998-11-25","US FLORENTAISE","CM 14/09/14",18,"","",30,"",null,null,null,null,"09/04/16 Orléans",30,null,null,null,null,null,null,null,null,null,null,null,null,null,null,null,null,null,null,null,null,null,null,null,null,null,null,null,null,null,null,null,"2023-05-22"]
["PAS LICENCIE","BELHOSTE","Emilie","1982-01-26","CSC BRIARE","CM",45,"","",147,"",null,null,null,null,"27/11/10 Issoudun",35,null,"13/02/11 Vendome",45,null,"12/02/12 Issoudun",10,null,"13/01/13 Orléans",27,null,"OPEN SENIOR - LAMOTTE - 24-03-2019",30,null,null,null,null,null,null,null,null,null,null,null,null,null,null,null,null,null,null,null,"2023-05-22"]
["M24061975BELHO01","BELHOSTE","Vincent","1975-06-24","CSC BRIARE","1 Dan 17/01/99",45,"","",0,"",null,null,null,null,null,null,null,null,null,null,null,null,null,null,null,null,null,null,null,null,null,null,null,null,null,null,null,null,null,null,null,null,null,null,null,null,null,"2023-05-22"]
["F20011981BELHO01","BELHOSTE","LUCIE","1981-01-20","JUDO CLUB CHATEAUNEUF","4 DAN 05/02/2021",45,"","",10,"",null,null,null,null,"01/12/12 Orléans",10,null,null,null,null,null,null,null,null,null,null,null,null,null,null,null,null,null,null,null,null,null,null,null,null,null,null,null,null,null,null,null,"2023-05-22"]
["PAS LICENCIE","BELIERES","Jonathan","1995-03-01","USM SARAN","1 Dan 08/06/11",45,"","",10,"",null,null,null,null,"29/01/10 Vineuil",10,null,null,null,null,null,null,null,null,null,null,null,null,null,null,null,null,null,null,null,null,null,null,null,null,null,null,null,null,null,null,null,"2023-05-22"]
["PAS LICENCIE","BELLERET","Baptiste","1990-05-28","JC MONTRICHARD","CM",41,"OK","",27,"OK",null,"12/06/10 Chateauroux",null,"28/09/08 Issoudun","27/11/10 Issoudun",27,null,null,null,null,null,null,null,null,null,null,null,null,null,null,null,null,null,null,null,null,null,null,null,null,null,null,null,null,null,null,null,"2023-05-22"]
["PAS LICENCIE","BELLET","Alexis","1994-07-17","JC CASTELMEILLANTAIS","CM 16/06/08",18,"OK","OK",30,"",null,"26/06/2021 ORLEANS","26/06/2021 ORLEANS",null,"25-01-2020 CHAMPIONNAT CADETS 1ERE DIVISION BASSIN SUD TOURS",30,null,null,null,null,null,null,null,null,null,null,null,null,null,null,null,null,null,null,null,null,null,null,null,null,null,null,null,null,null,null,null,"2023-05-22"]
["M03012005BELLI01 ","BELLIARD","GABRIEL ","2005-01-03","E.S.BOURGUEIL","CM",37,"","",126,"",null,null,null,null,"19/05/07 Orléans",15,null,"8/12/07 Orléans",19,null,"3/02/08 St Doulchard",5,null,"17/05/08 Orléans",25,null,"13/12/08 Orléans",17,null,"31/01/09 Issoudun",12,null,"25/04/09 Orléans",5,null,"28/11/09 Vendôme",28,null,null,null,null,null,null,null,null,null,null,"2023-05-22"]
["PAS LICENCIE","BELLIER","Vincent","1990-06-29","JC BALGENTIEN","2 Dan 15/06/07  ",45,"","",59,"",null,null,null,null,"11/10/09 St Georges/Eure",7,null,"24/10/09 Limoges",14,null,"13/12/09 Amilly",21,null,"27/02/10 Issoudun",7,null,"30/01/11 Orléans",10,null,null,null,null,null,null,null,null,null,null,null,null,null,null,null,null,null,null,null,"2023-05-22"]
["PAS LICENCIE","BELLIER","Nicolas","1994-05-09","JC BALGENTIEN","1 Dan 03/06/09  ",45,"","",20,"OK",null,null,null,"13/04/13 Tours","09/04/11 Tours",10,null,"21/10/12 St jean le blanc",10,null,null,null,null,null,null,null,null,null,null,null,null,null,null,null,null,null,null,null,null,null,null,null,null,null,null,null,null,"2023-05-22"]
["PAS LICENCIE","BELLINA","Marie","1994-12-10","JUDO CLUB DE SEMBLANCAY","CM",37,"OK","",0,"OK",null,"23/01/16 Tours",null,"31/01/15 Vendome",null,null,null,null,null,null,null,null,null,null,null,null,null,null,null,null,null,null,null,null,null,null,null,null,null,null,null,null,null,null,null,null,null,"2023-05-22"]
["PAS LICENCIE","BELLON","Nicolas","1989-11-15","ACCCO COUR CHEVERNY","CM",41,"","",10,"",null,null,null,null,"29/09/18 Orléans",10,null,null,null,null,null,null,null,null,null,null,null,null,null,null,null,null,null,null,null,null,null,null,null,null,null,null,null,null,null,null,null,"2023-05-22"]
["PAS LICENCIE","BELMADI","Gebril","1998-03-24","BOURGES JUDO","1 Dan 19/03/17",18,"","OK",112,"",null,null,"01/06/2019 TOURS",null,"6/06/09 St Jean le Blanc",45,null,"28/05/18 Orléans",40,null,"07-11-2021 SHIAI AMILLY",27,null,null,null,null,null,null,null,null,null,null,null,null,null,null,null,null,null,null,null,null,null,null,null,null,null,"2023-05-22"]
["M05101977BELTO01","BELTOISE","Olivier","1977-10-05","JUDO CLUB LOURY","1 Dan 07/05/05 ",45,"","",7,"",null,null,null,null,"27/05/17 Issoudun",7,null,null,null,null,null,null,null,null,null,null,null,null,null,null,null,null,null,null,null,null,null,null,null,null,null,null,null,null,null,null,null,"2023-05-22"]
["PAS LICENCIE","BEN AISSA","Wassim","2001-01-12","CO SOLOGNOT","CM12/06/15",45,"","",14,"",null,null,null,null,"TOURNOI NATIONAL INDIVIDUEL CADET - CREPS DE BOURGES - DATE ?",7,null,"30 - 11 et 01 - 12 - TOURNOI NATIONAL INDIVIDUEL CADET-BOURGES",7,null,null,null,null,null,null,null,null,null,null,null,null,null,null,null,null,null,null,null,null,null,null,null,null,null,null,null,null,"2023-05-22"]
["M29082004BEN*S01","BEN SASSI","OUSSAMA","2004-08-29","US.ORLEANS LOIRET JUDO JUJITSU","CM",45,"OK","OK",10,"OK",null,"01/02/2020 ORLEANS","01/02/2020 ORLEANS","CJA Minimes St Georges/eure 09/10/16","15-02-2020 - 1/2 FINALE CADETS - Tours",10,null,null,null,null,null,null,null,null,null,null,null,null,null,null,null,null,null,null,null,null,null,null,null,null,null,null,null,null,null,null,null,"2023-05-22"]
["M03092003BENAH01","BENAHMED","Ahmed","2003-09-03","DREUX AC JUDO","CB",28,"","",10,"",null,null,null,null,"10/01/15 St Georges/eure",10,null,null,null,null,null,null,null,null,null,null,null,null,null,null,null,null,null,null,null,null,null,null,null,null,null,null,null,null,null,null,null,"2023-05-22"]
["PAS LICENCIE","BENAHMED","Ryad","2000-05-17","ENTENTE SPORTIVE JUDO AUNEAU","CM",28,"","",10,"",null,null,null,null,"25 01 2020 CHAMPIONNAT CADETS-CADETTES 1ERE DIVISION BASSIN NORD TOURS",10,null,null,null,null,null,null,null,null,null,null,null,null,null,null,null,null,null,null,null,null,null,null,null,null,null,null,null,null,null,null,null,"2023-05-22"]
["M16112005BENAH01 ","BENAHMED","YASSIR ","2005-11-16","DREUX A.C.JUDO","CM",28,"","",40,"",null,null,null,null,"04/03/18 Mont de Marsan",10,null,"06/10/18 Orléans",10,null,"17/11/18 Forges les eaux",10,null,"19/10/2020 - Championnat de France",10,null,null,null,null,null,null,null,null,null,null,null,null,null,null,null,null,null,null,null,null,null,null,"2023-05-22"]
["M06092001BENAI01","BENAICHA","Yani","2001-09-06","J3 SPORTS AMILLY","1 Dan 14/05/17",45,"","",10,"",null,null,null,null,"12/01/2020 - 1/2 Finale Chpt de France Orleans",10,null,null,null,null,null,null,null,null,null,null,null,null,null,null,null,null,null,null,null,null,null,null,null,null,null,null,null,null,null,null,null,"2023-05-22"]
["F13022005BENAI01 ","BENAICHA","LILIA","2005-02-13","J3 SPORTS AMILLY","1 DAN 03/03/2020",45,"","",80,"",null,null,null,null,"08/10/17 St Georges/eure",40,null,"27/05/18 Orléans",40,null,null,null,null,null,null,null,null,null,null,null,null,null,null,null,null,null,null,null,null,null,null,null,null,null,null,null,null,"2023-05-22"]
["PAS LICENCIE","BENARD","Augustin","1998-04-02","DOJO BREZOLIEN","1 Dan 01/02/15",28,{"$f":"IF(M265=\"\",\"\",\"OK\")","v":"OK"},{"$f":"IF(N265=\"\",\"\",\"OK\")","v":""},{"$f":"Q265+T265+W265+Z265+AC265+AF265+AI265+AL265+AO265+AR265+AU265","v":0},{"$f":"IF(O265=\"\",\"\",\"OK\")","v":""},null,"11/02/2023 ORLEANS"]
["M18102005BENCH01","BENCHEBRA","SAMI","2005-10-18","JUDO KODOKAN CLUB DU BERRY","MA",18,"OK","OK",0,"OK",null,"24/03/18 Orléans","13/05/2023 TOURS","26/09/18 Olivet",null,null,null,null,null,null,null,null,null,null,null,null,null,null,null,null,null,null,null,null,null,null,null,null,null,null,null,null,null,null,null,null,null,"2023-05-22"]
["PAS LICENCIE","BENHAMOU","Guy","1957-01-12","AS GIEN JUDO","2 Dan 09/10/16",45,{"$f":"IF(M267=\"\",\"\",\"OK\")","v":"OK"},{"$f":"IF(N267=\"\",\"\",\"OK\")","v":""},{"$f":"Q267+T267+W267+Z267+AC267+AF267+AI267+AL267+AO267+AR267+AU267","v":0},{"$f":"IF(O267=\"\",\"\",\"OK\")","v":""},null,"11/02/2023 ORLEANS"]
["M24032001BENKE01","BENKEREDAGH","SALAH EDDINE","2001-03-24","ESP.SPORT DU BEFFROI JUDO","MA",37,"","OK",20,"",null,null,"13/05/2023 TOURS",null,"10/03/13 St jean le blanc",20,null,null,null,null,null,null,null,null,null,null,null,null,null,null,null,null,null,null,null,null,null,null,null,null,null,null,null,null,null,null,null,"2023-05-22"]
["PAS LICENCIE","BENMALEK","Mehdi","1987-09-19","J3 SPORTS AMILLY","1 Dan 12/06/04  ",45,{"$f":"IF(M269=\"\",\"\",\"OK\")","v":""},{"$f":"IF(N269=\"\",\"\",\"OK\")","v":""},{"$f":"Q269+T269+W269+Z269+AC269+AF269+AI269+AL269+AO269+AR269+AU269","v":0},{"$f":"IF(O269=\"\",\"\",\"OK\")","v":""}]
["M08082006BENOI01","BENOIT","PAUL","2006-08-08","TATAMIS SAINVILLAIS","MA",28,"","",15,"",null,null,null,null,"12/02/11 Vierzon",15,null,null,null,null,null,null,null,null,null,null,null,null,null,null,null,null,null,null,null,null,null,null,null,null,null,null,null,null,null,null,null,"2023-05-22"]
["PAS LICENCIE","BENSETTA","Abdel","1992-04-14","JUDO CLUB DE VIERZON","CM",18,"OK","OK",10,"",null,"01/12/18 Orléans","27/04/2019 NANTES",null,"06/10/18 Orléans",10,null,null,null,null,null,null,null,null,null,null,null,null,null,null,null,null,null,null,null,null,null,null,null,null,null,null,null,null,null,null,null,"2023-05-22"]
["M10072003BENYO01","BENYOUCEF","Amine","2003-07-10","DOJO BEAUCERON","CM 04/06/14",28,"OK","",100,"",null,"13/03/09 Tours",null,null,"12/10/08 Clermont Ferrant",10,null,"18/10/08 Tours",20,null,"25/10/08 Limoges",10,null,"14/12/08 Tours",40,null,"10/01/09 Bressuire",20,null,null,null,null,null,null,null,null,null,null,null,null,null,null,null,null,null,null,null,"2023-05-22"]
["PAS LICENCIE","BENZAIT","Sofiane","1994-04-13","JUDO CLUB TOURAINE","CM 30/01/07",37,"","",56,"",null,null,null,null,"8/03/03 Vierzon",10,null,"22/03/03 Tours",17,null,"16/01/10 Vierzon",29,null,null,null,null,null,null,null,null,null,null,null,null,null,null,null,null,null,null,null,null,null,null,null,null,null,"2023-05-22"]
["PAS LICENCIE","BENZITOUNE","Lasla","1983-11-06","JUDO CLUB DE VIERZON","1 Dan 29/09/02",18,"","",7,"",null,null,null,null,"11/10/15 Tours",7,null,null,null,null,null,null,null,null,null,null,null,null,null,null,null,null,null,null,null,null,null,null,null,null,null,null,null,null,null,null,null,"2023-05-22"]
["PAS LICENCIE","BEORD","Sarah","2000-10-24","AS DE ROCHECORBON","CM 01/06/12",37,"","",20,"",null,null,null,null,"06/10/18 Tours",10,null,"19/05/2019 INDIVIDUEL CADETS \"ESPOIR\" - LA SOURCE MINOUFLET",10,null,null,null,null,null,null,null,null,null,null,null,null,null,null,null,null,null,null,null,null,null,null,null,null,null,null,null,null,"2023-05-22"]
["F06032002BERAN01","BERANGER","Lysa","2002-03-06","AVENIR SONZAY JUDO","1 Dan 27/05/17",37,"","",10,"OK",null,null,null,"N1 03/10/15 Amilly","06/10/18 Orléans",10,null,null,null,null,null,null,null,null,null,null,null,null,null,null,null,null,null,null,null,null,null,null,null,null,null,null,null,null,null,null,null,"2023-05-22"]
["PAS LICENCIE","BERAULT","Florian","2002-09-18","ASL ST JEAN LE BLANC","CM",45,"","",0,"",null,null,null,null,null,null,null,null,null,null,null,null,null,null,null,null,null,null,null,null,null,null,null,null,null,null,null,null,null,null,null,null,null,null,null,null,null,"2023-05-22"]
["M20022003BERGE01","BERGER","Tim","2003-02-20","A JUDO CHATEAUROUX","2 Dan 02/05/2022",36,"","",107,"",null,null,null,null,"04/04/98 Tours",24,null,"7/02/99 Chartres 4vic con",34,null,"17/12/00 Chateauroux",15,null,"5/05/02 Chatillon/Indre",34,null,null,null,null,null,null,null,null,null,null,null,null,null,null,null,null,null,null,null,null,null,null,"2023-05-22"]
["PAS LICENCIE","BERGER","Loic","1981-09-09","A JUDO CHATEAUROUX","1 Dan 27/03/98",36,"","",10,"",null,null,null,null,"21/05/11 St Jean le Blanc",10,null,null,null,null,null,null,null,null,null,null,null,null,null,null,null,null,null,null,null,null,null,null,null,null,null,null,null,null,null,null,null,"2023-05-22"]
["PAS LICENCIE","BERGER","Nicolas","1983-03-13","BLOIS JUDO","CM",41,{"$f":"IF(M280=\"\",\"\",\"OK\")","v":"OK"},"",20,"",null,"12/12/09 Blois",null,null,"6/03/10 Issoudun",20,null,null,null,null,null,null,null,null,null,null,null,null,null,null,null,null,null,null,null,null,null,null,null,null,null,null,null,null,null,null,null,"2023-05-22"]
["PAS LICENCIE","BERGER","Théo","1989-10-12","JUDO CLUB CLOYSIEN","CM 20/06/04",28,"","",120,"",null,null,null,null,"4/05/08 Le Poinçonnet",17,null,"7/12/08 Issoudun",7,null,"31/01/09 Issoudun",17,null,"8/03/09 Reuilly",7,null,"26/04/09 Chateauroux",22,null,"13/12/09 Le Poinçonnet",7,null,"24/01/10 Tours",7,null,"2/05/10 Le Poinçonnet",7,null,"16/05/10 Tours",29,null,null,null,null,null,null,null,"2023-05-22"]
["PAS LICENCIE","BERGER","Maxime","1991-10-30","A JUDO CHATEAUROUX","1 Dan  17/03/07  ",36,"","",81,"",null,null,null,null,"14/06/08 Limoges",30,null,"7/12/08 St Amand",14,null,"31/01/09 Issoudun",7,null,"6/06/09 St Jean le Blanc",30,null,null,null,null,null,null,null,null,null,null,null,null,null,null,null,null,null,null,null,null,null,null,"2023-05-22"]
["PAS LICENCIE","BERGERON","Stéphane","1992-04-28","JC LEVETOIS","1 Dan  14/06/08 ",18,"",{"$f":"IF(N283=\"\",\"\",\"OK\")","v":""},{"$f":"Q283+T283+W283+Z283+AC283+AF283+AI283+AL283+AO283+AR283+AU283","v":109},{"$f":"IF(O283=\"\",\"\",\"OK\")","v":""},null,null,null,null,"29/01/11 Orléans",7,null,"15/01/11 St Amand",21,null,"12/03/11 Issoudun",19,null,"02/04/11 Saint Doulchard",14,null,"15/05/11 Lamotte Beuvron",28,null,"07/01/12 St Amand",20,null,null,null,null,null,null,null,null,null,null,null,null,null,null,null,null,{"$f":"TODAY()","v":"2023-05-22"}]
["PAS LICENCIE","BERGERON","Valentin","1995-07-24","BOURGES JUDO","1 Dan 05/06/10  ",18,"","",30,"",null,null,null,null,"01/02/15 Vendome",30,null,null,null,null,null,null,null,null,null,null,null,null,null,null,null,null,null,null,null,null,null,null,null,null,null,null,null,null,null,null,null,"2023-05-22"]
["PAS LICENCIE","BERGIN","Laurie","1997-01-30","CSC BRIARE","1 Dan 21/06/14",45,"","",15,"",null,null,null,null,"13/03/11 Issoudun",15,null,null,null,null,null,null,null,null,null,null,null,null,null,null,null,null,null,null,null,null,null,null,null,null,null,null,null,null,null,null,null,"2023-05-22"]
["PAS LICENCIE","BERNADOTTE","Leslie","1988-06-28","US ORLEANS LOIRET JUDO JUJITSU","CM",45,"","",161,"",null,null,null,null,"20/04/14 Tours",14,null,"13/12/14 Angers",20,null,"19/04/15 Tours",20,null,"12/12/15 Angers",40,null,"03/04/16 Tours",40,null,"03/03/2019 OPEN SENIOR Saint Georges sur Eure",27,null,null,null,null,null,null,null,null,null,null,null,null,null,null,null,null,"2023-05-22"]
["M11101969BERNA01","BERNAND","Luc","1969-10-11","JC NOGENT LE ROTROU","1 Dan 08/02/87",28,"","",20,"",null,null,null,null,"13-10-2019 - TEST EFFICACITE COMBAT A SAINT GEORGES/EURE",20,null,null,null,null,null,null,null,null,null,null,null,null,null,null,null,null,null,null,null,null,null,null,null,null,null,null,null,null,null,null,null,"2023-05-22"]
["M02041998BENAR01","BERNARD","AUGUSTIN","1998-04-02",null,"1 DAN",null,"OK","",100,"",null,"12/12/09 Blois",null,null,"Report ancien passeport",80,null,"29/01/95 Orléans",20,null,null,null,null,null,null,null,null,null,null,null,null,null,null,null,null,null,null,null,null,null,null,null,null,null,null,null,null,"2023-05-22"]
["PAS LICENCIE","BERNARD","Jean Luc","1963-06-19","US SANDILLONNAISE JUDO","1 Dan 31/10/87",45,"","",47,"",null,null,null,null,"16/03/08 Brou",30,null,"29/11/09 Vendôme",10,null,"3/04/10 St Georges/Eure",7,null,null,null,null,null,null,null,null,null,null,null,null,null,null,null,null,null,null,null,null,null,null,null,null,null,"2023-05-22"]
["PAS LICENCIE","BERNARD","Sylvain","1979-11-09","JC NOGENT LE ROTROU","1 Dan  11/04/09    ",28,"","",100,"",null,null,null,null,"11/10/15 Tours",20,null,"30/01/16 Tours",10,null,"26/03/17 Chatellerault",40,null,"27/05/17 Issoudun",30,null,null,null,null,null,null,null,null,null,null,null,null,null,null,null,null,null,null,null,null,null,null,"2023-05-22"]
["PAS LICENCIE","BERNARD","Théo","2000-09-29","SC LANGEAIS","CM 29/09/10",37,"","",30,"",null,null,null,null,"28/11/09 Vendôme",30,null,null,null,null,null,null,null,null,null,null,null,null,null,null,null,null,null,null,null,null,null,null,null,null,null,null,null,null,null,null,null,"2023-05-22"]
["PAS LICENCIE","BERNARDINO","Eric","1993-05-26","ES MAINTENON PIERRES","1 Dan  14/12/08 ",28,"","",100,"",null,null,null,null,"28/05/16 Issoudun",20,null,"12/06/16 Rochefort",30,null,"09/10/16 Vierzon",30,null,"11/03/17 Issoudun",10,null,"17/02/18 Orléans",10,null,null,null,null,null,null,null,null,null,null,null,null,null,null,null,null,null,null,null,"2023-05-22"]
["PAS LICENCIE","BERTEAU","Alex","1999-10-23","US ST PIERRE DES CORPS","1 Dan 07/06/15",37,{"$f":"IF(M293=\"\",\"\",\"OK\")","v":""},{"$f":"IF(N293=\"\",\"\",\"OK\")","v":""},{"$f":"Q293+T293+W293+Z293+AC293+AF293+AI293+AL293+AO293+AR293+AU293","v":0},{"$f":"IF(O293=\"\",\"\",\"OK\")","v":""}]
["M16082005BERTH01","BERTHEAU","ROMAIN","2005-08-16","AS VENNECY JUDO","1 DAN 20/02/2022",45,"","",20,"",null,null,null,null,"10/01/15 St Georges/eure",10,null,"22/02/15 Issoudun",10,null,null,null,null,null,null,null,null,null,null,null,null,null,null,null,null,null,null,null,null,null,null,null,null,null,null,null,null,"2023-05-22"]
["PAS LICENCIE","BERTHAULT","Rose","1999-02-11","CERCLE DU DOJO NOGENTAIS","CM",28,"","",0,"",null,null,null,null,null,null,null,null,null,null,null,null,null,null,null,null,null,null,null,null,null,null,null,null,null,null,null,null,null,null,null,null,null,null,null,null,null,"2023-05-22"]
["M25022004BERTH01","BERTHELOT","Clement","2004-02-25","JC DESCARTES","1 DAN 20/02/2022",37,"","",27,"",null,null,null,null,"20/03/16 Tours",10,null,"29/05/16 Issoudun",10,null,"21/10/17 Vendome",7,null,null,null,null,null,null,null,null,null,null,null,null,null,null,null,null,null,null,null,null,null,null,null,null,null,"2023-05-22"]
["PAS LICENCIE","BERTHELOT","Arnaud","1989-10-31","JC BALGENTIEN","2 Dan 21/06/09   ",45,"","",37,"",null,null,null,null,"29/01/11 Lille",5,null,"26/03/11 St Aubin du médoc",5,null,"17/04/11 Tours",7,null,"15/04/12 Tours",10,null,"24/03/12 St Aubin du médoc",10,null,null,null,null,null,null,null,null,null,null,null,null,null,null,null,null,null,null,null,"2023-05-22"]
["PAS LICENCIE","BERTHELOT","Christophe","1952-04-26","US ORLEANS LOIRET JUDO JUJITSU","3 Dan 21/06/09   ",45,"","",37,"",null,null,null,null,"22/03/09 Orléans",10,null,"29/11/09 Vendôme",8,null,"10/01/10 Orléans",12,null,"16/05/10 Tours",7,null,null,null,null,null,null,null,null,null,null,null,null,null,null,null,null,null,null,null,null,null,null,"2023-05-22"]
["PAS LICENCIE","BERTHELOT","Marine","1987-06-15","US ORLEANS LOIRET JUDO JUJITSU","2 Dan  13/06/08 ",45,"","",44,"",null,null,null,null,"13/12/08 Orléans",7,null,"31/01/09 Issoudun",7,null,"10/01/10 Orléans",20,null,"7/03/10 Issoudun",10,null,null,null,null,null,null,null,null,null,null,null,null,null,null,null,null,null,null,null,null,null,null,"2023-05-22"]
["PAS LICENCIE","BERTHELOT","Emeline","1992-01-30","US ORLEANS LOIRET JUDO JUJITSU","1 Dan  7/06/08  ",45,"OK","",27,"",null,"12/06/10 Tours",null,null,"16/12/07 Tours",10,null,"06/11/2010 angers",10,null,"28/01/12 Orléans",7,null,null,null,null,null,null,null,null,null,null,null,null,null,null,null,null,null,null,null,null,null,null,null,null,null,"2023-05-22"]
["PAS LICENCIE","BERTHELOT","Jean Baptiste","1993-04-19","ES BOURGUEIL","CM 14/06/07",37,"OK","",65,"",null,"15/06/07 Vierzon",null,null,"7/12/08 St Amand",15,null,"6/03/10 Issoudun",10,null,"02/04/11 Saint Doulchard",20,null,"21/05/11 St Jean le Blanc",20,null,null,null,null,null,null,null,null,null,null,null,null,null,null,null,null,null,null,null,null,null,null,"2023-05-22"]
["PAS LICENCIE","BERTHOLOM","Alexis","1992-02-05","JUDO CLUB DE DUN","CM 05/10/05",18,"","",10,"",null,null,null,null,"02/02/13 Issoudun",10,null,null,null,null,null,null,null,null,null,null,null,null,null,null,null,null,null,null,null,null,null,null,null,null,null,null,null,null,null,null,null,"2023-05-22"]
["PAS LICENCIE","BERTHOMMIER","Yaelle","1997-12-16","JUDO DOJO LOCHOIS","CM",37,"","",20,"",null,null,null,null,"17/03/2019 1/4 DE FINALE SENIORS G ET F 1ERE DIV N°1 - dojo J C Rousseau - ORLEANS",20,null,null,null,null,null,null,null,null,null,null,null,null,null,null,null,null,null,null,null,null,null,null,null,null,null,null,null,null,null,null,null,"2023-05-22"]
["M23052001BERTI03","BERTIN","SAMUEL","2001-05-23","USORLEAN.LOIRET","1 DAN",45,"","",117,"",null,null,null,null,"10/06/07 Vendôme",10,null,"29/11/08 St Georges/Eure",42,null,"4/04/09 Vierzon",10,null,"28/11/09 Vendôme",55,null,null,null,null,null,null,null,null,null,null,null,null,null,null,null,null,null,null,null,null,null,null,"2023-05-22"]
["PAS LICENCIE","BERTON","Ludovic","1965-04-22","ESVRES JUDO CLUB","1 Dan  10/06/07  ",37,"OK","",67,"",null,"15/05/13 Tours",null,null,"23/01/11 Chatellerault",10,null,"26/11/11 Issoudun",20,null,"11/12/11 Tours",10,null,"06/04/14 Vendome",27,null,null,null,null,null,null,null,null,null,null,null,null,null,null,null,null,null,null,null,null,null,null,"2023-05-22"]
["PAS LICENCIE","BERTRAND","Jeffrey","1993-06-15","ALERTE SP FONDETTES","1 Dan 23/01/11",37,"","",30,"",null,null,null,null,"02-02-2019 Demie finale juniors Issoudun",30,null,null,null,null,null,null,null,null,null,null,null,null,null,null,null,null,null,null,null,null,null,null,null,null,null,null,null,null,null,null,null,"2023-05-22"]
["PAS LICENCIE","BESANCON","Nina","2000-09-21","JUDO CLUB MEHUN","1 Dan 29/01/17",18,"","",20,"",null,null,null,null,"5/04/08 Gien",10,null,"11/04/09 Brou",10,null,null,null,null,null,null,null,null,null,null,null,null,null,null,null,null,null,null,null,null,null,null,null,null,null,null,null,null,"2023-05-22"]
["PAS LICENCIE","BESNARD","Patricia","1968-01-20","ENTENTE SPORTIVE JUDO AUNEAU","CM",28,"","",20,"",null,null,null,null,"08/12/13 Orléans",10,null,"22/06/14 Dijon",10,null,null,null,null,null,null,null,null,null,null,null,null,null,null,null,null,null,null,null,null,null,null,null,null,null,null,null,null,"2023-05-22"]
["PAS LICENCIE","BESNARD","Nicolas","1977-12-04","MJC BELLEGARDE JUDO","1 Dan 10/06/12",45,{"$f":"IF(M309=\"\",\"\",\"OK\")","v":""},{"$f":"IF(N309=\"\",\"\",\"OK\")","v":""},{"$f":"Q309+T309+W309+Z309+AC309+AF309+AI309+AL309+AO309+AR309+AU309","v":0},{"$f":"IF(O309=\"\",\"\",\"OK\")","v":""}]
["M17032000BESSO01","BESSON","ETIENNE","2000-03-17","BLOIS JUDO","1 DAN 06/11/2022",41,"OK","OK",0,"",null,"12/05/18 Tours","01/12/18 Orléans",null,null,null,null,null,null,null,null,null,null,null,null,null,null,null,null,null,null,null,null,null,null,null,null,null,null,null,null,null,null,null,null,null,null,"2023-05-22"]
["M15112002BESSO01","BESSON","Liam","2002-11-15","BLERE VAL DE CHER JUDO","CM 11/04/12",37,{"$f":"IF(M311=\"\",\"\",\"OK\")","v":""},{"$f":"IF(N311=\"\",\"\",\"OK\")","v":""},{"$f":"Q311+T311+W311+Z311+AC311+AF311+AI311+AL311+AO311+AR311+AU311","v":20},{"$f":"IF(O311=\"\",\"\",\"OK\")","v":""},null,null,null,null,"20/11/2022 Open cadets St Doulchard",20]
["F08102007BETAC01","BETACHEN","Alia","2007-10-08","BOURGES JUDO","CM",18,"","",108,"",null,null,null,null,"12/02/11 Vierzon",21,null,"13/03/11 Issoudun",10,null,"12/02/12 Issoudun",17,null,"13/01/13 Orléans",20,null,"31/03/13 Bourges",20,null,"12/10/13 Issoudun",10,null,"21/02/15 Issoudun",10,null,null,null,null,null,null,null,null,null,null,null,null,null,"2023-05-22"]
["M02011980BETAC01","BETACHEN","DIMITRI","1980-01-02","BOURGES JUDO","1 Dan 09/06/96",18,"OK","OK",55,"",null,"13/05/2023 TOURS","13/05/2023 TOURS",null,"22/03/09 Le Mans",10,null,"20/02/11 Chateauroux",10,null,"19/03/11 Le Mans",25,null,"03/04/11 Châteauroux",10,null,null,null,null,null,null,null,null,null,null,null,null,null,null,null,null,null,null,null,null,null,null,"2023-05-22"]
["PAS LICENCIE","BETREMIEUX","Kévin","1993-06-07","A JUDO CHATEAUROUX","CM",36,"OK","",20,"",null,"21/06/14 Dijon",null,null,"12/01/14 Bourges",20,null,null,null,null,null,null,null,null,null,null,null,null,null,null,null,null,null,null,null,null,null,null,null,null,null,null,null,null,null,null,null,"2023-05-22"]
["PAS LICENCIE","BEUGNON","Mallaury","1999-09-19","JUDO CLUB SANCOINS","CM 15/12/12",18,"","",42,"",null,null,null,null,"19/12/10 Tours",7,null,"13/02/11 Vendome",25,null,"18/12/11 Tours",10,null,null,null,null,null,null,null,null,null,null,null,null,null,null,null,null,null,null,null,null,null,null,null,null,null,"2023-05-22"]
["PAS LICENCIE","BEURROIS","Anthony","1993-10-19","AS CHANCEAUX JUDO","1 Dan 2/05/10  ",37,"OK","",30,"",null,"08/06/13 Tours",null,null,"16/11/13 St Georges/eure",10,null,"05/04/14 Vendome",20,null,null,null,null,null,null,null,null,null,null,null,null,null,null,null,null,null,null,null,null,null,null,null,null,null,null,null,null,"2023-05-22"]
["PAS LICENCIE","BEURROIS","Sebastien","1995-12-04","AS CHANCEAUX JUDO","CM",37,"","",100,"OK",null,null,null,"06/03/16 Vendome","07/06/15 Vierzon",20,null,"11/10/15 Vendome",10,null,"29/11/15 Angers",20,null,"13/03/16 Tours",30,null,"28/05/16 Issoudun",20,null,null,null,null,null,null,null,null,null,null,null,null,null,null,null,null,null,null,null,"2023-05-22"]
["PAS LICENCIE","BEVIERRE","Philippe","1973-06-26","CS OUCQUOIS","1 Dan 01/02/15",41,"","",10,"",null,null,null,null,"21/10/12 St jean le blanc",10,null,null,null,null,null,null,null,null,null,null,null,null,null,null,null,null,null,null,null,null,null,null,null,null,null,null,null,null,null,null,null,"2023-05-22"]
["PAS LICENCIE","BEYDON","Caroline","1990-01-19","ALLIANCE DE DREUX","CM",28,"","",97,"",null,null,null,null,"28/03/15 Concarneau",20,null,"20/09/15 La roche/yon",10,null,"10/10/15 Cormeilles le royal",20,null,"29/05/16 Issoudun",27,null,"02/04/17 Issoudun",20,null,null,null,null,null,null,null,null,null,null,null,null,null,null,null,null,null,null,null,"2023-05-22"]
["PAS LICENCIE","BEYSSAC POULIN","Hélèna","1997-02-18","US ORLEANS LOIRET JUDO JUJITSU","1 Dan 02/02/13",45,"","",10,"",null,null,null,null,"30/09/17 Orléans",10,null,null,null,null,null,null,null,null,null,null,null,null,null,null,null,null,null,null,null,null,null,null,null,null,null,null,null,null,null,null,null,"2023-05-22"]
["PAS LICENCIE","BEZANCON","Fanny","2002-05-28","SMOC ST JEAN DE BRAYE","1 Dan 05/03/17",45,"","",27,"",null,null,null,null,"30/09/17 Orléans",17,null,"22/10/17 Ceyrat",10,null,null,null,null,null,null,null,null,null,null,null,null,null,null,null,null,null,null,null,null,null,null,null,null,null,null,null,null,"2023-05-22"]
["PAS LICENCIE","BEZANCON","Morgan ","2002-05-28","SMOC ST JEAN DE BRAYE","1 Dan 10/06/17",45,"OK","OK",40,"",null,"02/03/2019 ORLEANS","01/06/2019 TOURS",null,"13-10-2019 - TEST EFFICACITE COMBAT A SAINT GEORGES/EURE",10,null,"25 01 2020 CHAMPIONNAT CADETS-CADETTES 1ERE DIVISION BASSIN NORD TOURS",10,null,"06/11/2022 SHIAI ISSOUDUN",20,null,null,null,null,null,null,null,null,null,null,null,null,null,null,null,null,null,null,null,null,null,null,null,null,null,"2023-05-22"]
["M27012003BEZOU01","BEZOUT","VALENTIN","2003-01-27","CHANTEAU JUDO CLUB","CM",45,"","",17,"",null,null,null,null,"11/03/07 St georges/eure",17,null,null,null,null,null,null,null,null,null,null,null,null,null,null,null,null,null,null,null,null,null,null,null,null,null,null,null,null,null,null,null,"2023-05-22"]
["PAS LICENCIE","BIARD","Mathieu","2000-06-25","CERCLE DU DOJO NOGENTAIS","1 Dan 26/03/16",28,"","",60,"",null,null,null,null,"06/10/18 Tours",10,null,"26/01/2019 CHAMPIONNAT CADETS/CADETTES 1ERE DIVISION BASSIN SUD - TOURS",10,null,"19/05/2019 INDIVIDUEL CADETS \"ESPOIR\" - LA SOURCE MINOUFLET",40,null,null,null,null,null,null,null,null,null,null,null,null,null,null,null,null,null,null,null,null,null,null,null,null,null,"2023-05-22"]
["M13052004BIBA*01","BIBA","Alban","2004-05-13","BOURGES JUDO","CM 02/09/16",18,"","",32,"",null,null,null,null,"26/04/08 Tours",10,null,"13/12/08 Orléans",7,null,"10/05/09 Vendôme",15,null,null,null,null,null,null,null,null,null,null,null,null,null,null,null,null,null,null,null,null,null,null,null,null,null,"2023-05-22"]
["PAS LICENCIE","BIDAULT","Julie","1991-06-25","SMOC ST JEAN DE BRAYE","1 Dan  13/06/08  ",45,"","",50,"",null,null,null,null,"OPEN SENIOR - LAMOTTE - 24-03-2019",50,"OK",null,null,null,null,null,null,null,null,null,null,null,null,null,null,null,null,null,null,null,null,null,null,null,null,null,null,null,null,null,null,"2023-05-22"]
["M23031988BIDAU01","BIDAULT","PAUL","1998-03-23","CSM.SULLY","1 DAN",45,{"$f":"IF(M327=\"\",\"\",\"OK\")","v":"OK"},{"$f":"IF(N327=\"\",\"\",\"OK\")","v":"OK"},{"$f":"Q327+T327+W327+Z327+AC327+AF327+AI327+AL327+AO327+AR327+AU327","v":0},{"$f":"IF(O327=\"\",\"\",\"OK\")","v":""},null,"11/02/2023  ORLEANS","11/02/2023 ORLEANS"]
["M20022006BIESZ01","BIESZCZAD","LUCAS","2006-02-20","JUDO CLUB DE DUN","MA",18,"","",106,"",null,null,null,null,"2/04/06 Vierzon",10,null,"17/05/08 Chateauneuf en Thimerais",7,null,"31/05/08 Lamotte Beuvron",10,null,"1/06/08 Lamotte Beuvron",35,null,"3/04/10 St Georges/Eure",17,null,"17/04/11 Tours",7,null,"10/04/11 Amilly",10,null,"26/11/11 Issoudun",10,null,null,null,null,null,null,null,null,null,null,"2023-05-22"]
["PAS LICENCIE","BIETRY","Frédéric","1968-12-16","JUDO CLUB GALLARDON","1 Dan 2/04/06  ",28,"OK","",40,"",null,"18/06/11 St Georges/Eure",null,null,"11/04/09 Brou",10,null,"9/05/09 Vendôme",10,null,"16/01/10 St Georges/Eure",10,null,"26/11/11 Issoudun",10,null,null,null,null,null,null,null,null,null,null,null,null,null,null,null,null,null,null,null,null,null,null,"2023-05-22"]
["PAS LICENCIE","BIETRY","Nathalie","1969-05-23","JUDO CLUB GALLARDON","CM",28,"","",10,"",null,null,null,null,"15/05/10 Tours",10,null,null,null,null,null,null,null,null,null,null,null,null,null,null,null,null,null,null,null,null,null,null,null,null,null,null,null,null,null,null,null,"2023-05-22"]
["PAS LICENCIE","BIETRY","Mélanie","1995-01-13","JUDO CLUB GALLARDON","CM",28,"","",102,"",null,null,null,null,"22/11/08 Lignières",20,null,"1/02/09 Issoudun",21,null,"22/03/09 Le Mans",7,null,"10/01/10 Tours",10,null,"2/05/10 Tours",10,null,"19/12/10 Tours",10,null,"03/04/11 Tours",24,null,null,null,null,null,null,null,null,null,null,null,null,null,"2023-05-22"]
["PAS LICENCIE","BIGARREAU","Jonathan","1993-04-09","JC MISTRAL","1 Dan  5/12/08   ",37,"","",10,"",null,null,null,null,"11/04/09 Brou",10,null,null,null,null,null,null,null,null,null,null,null,null,null,null,null,null,null,null,null,null,null,null,null,null,null,null,null,null,null,null,null,"2023-05-22"]
["PAS LICENCIE","BIGEAULT","Mickaël","1992-08-04","AMICALE COURVILLOISE","CM",28,"OK","",0,"",null,"12/03/17 Orléans GONO/KIME",null,null,null,null,null,null,null,null,null,null,null,null,null,null,null,null,null,null,null,null,null,null,null,null,null,null,null,null,null,null,null,null,null,null,null,"2023-05-22"]
["PAS LICENCIE","BIGNOLAIS","Laurent","1970-06-18","CERCLE BUDO BOURGES JUDO","2 Dan ET 16/06/13",18,"","",116,"",null,null,null,null,"22/11/98 Nogent/Vernisson",15,null,"20/5/01 Gallardon",5,null,"8/12/01 Senonches",10,null,"21/04/02 Chartres",17,null,"11/05/02 Limoges",7,null,"23/03/03 Vendôme",17,null,"24/04/05 Tours",45,null,null,null,null,null,null,null,null,null,null,null,null,null,"2023-05-22"]
["PAS LICENCIE","BIGUEREAU","Pascal","1963-06-13","ENTENTE SPORTIVE JUDO AUNEAU","1 Dan 09/05/82",28,"","",30,"",null,null,null,null,"29/11/15 Tours",10,null,"06/11/16 Orléans",10,null,"21/10/17 Vendome",10,null,null,null,null,null,null,null,null,null,null,null,null,null,null,null,null,null,null,null,null,null,null,null,null,null,"2023-05-22"]
["PAS LICENCIE","BIKONGO","Josaphat","1994-09-15","JUDO KODOKAN 28","CM 29/09/14",28,"","",90,"",null,null,null,null,"18/11/06 Tours",7,null,"5/05/07 Tours",10,null,"11/10/08 Tours",24,null,"11/01/09 Tours",15,null,"16/01/10 Tours",17,null,"15/04/12 Tours",7,null,"10/03/13 St jean le blanc",10,null,null,null,null,null,null,null,null,null,null,null,null,null,"2023-05-22"]
["PAS LICENCIE","BILBAULT","Franck","1962-01-18","SAINT AVERTIN SPORTS","1 Dan 2/06/06  ",37,"","",67,"",null,null,null,null,"30/11/13 Tours",10,null,"08/12/13 Orléans",10,null,"30/03/14 Tours",17,null,"05/04/14 Vendome",20,null,"25/05/14 Tours",10,null,null,null,null,null,null,null,null,null,null,null,null,null,null,null,null,null,null,null,"2023-05-22"]
["PAS LICENCIE","BILBAULT","Estelle","1994-06-01","SAINT AVERTIN SPORTS","CM",37,"","",80,"OK",null,null,null,"22/05/12 Tours","11/02/12 Issoudun",30,null,"19/01/13 Tours",10,null,"03/02/13 Issoudun",10,null,"05/04/14 Vendome",10,null,"25/05/14 Tours",10,null,"15/06/14 Villebon",10,null,null,null,null,null,null,null,null,null,null,null,null,null,null,null,null,"2023-05-22"]
["PAS LICENCIE","BILBAULT","Elise","1996-08-05","SAINT AVERTIN SPORTS","CM",37,"","",20,"",null,null,null,null,"02/04/11 Orléans",10,null,"02/04/11 Orléans",10,null,null,null,null,null,null,null,null,null,null,null,null,null,null,null,null,null,null,null,null,null,null,null,null,null,null,null,null,"2023-05-22"]
["PAS LICENCIE","BILLARD","Jerome","1973-10-21","ASCOUX SPORTS JUDO","CM",45,"","",22,"",null,null,null,null,"24/01/10 Tours",7,null,"20/03/10 Le Mans",10,null,"30/01/11 Orléans",5,null,null,null,null,null,null,null,null,null,null,null,null,null,null,null,null,null,null,null,null,null,null,null,null,null,"2023-05-22"]
["PAS LICENCIE","BILLARD","Benjamin","1993-05-10","AVIONNETTE PARCAY MESLAY","1 Dan 12/06/09   ",37,"","",68,"",null,null,null,null,"17/03/02 Dun/Auron",7,null,"9/01/05 Bourges",10,null,"22/01/06 Vierzon",27,null,"14/02/09 Vierzon",24,null,null,null,null,null,null,null,null,null,null,null,null,null,null,null,null,null,null,null,null,null,null,"2023-05-22"]
["PAS LICENCIE","BILLAUD","Elodie","1982-09-18","CERCLE BUDO BOURGES JUDO","1 Dan 5/05/01",18,"","",10,"",null,null,null,null,"15/04/12 Tours",10,null,null,null,null,null,null,null,null,null,null,null,null,null,null,null,null,null,null,null,null,null,null,null,null,null,null,null,null,null,null,null,"2023-05-22"]
["PAS LICENCIE","BILLAUT","Jean Charles","1967-01-09","SAINT AVERTIN SPORTS","1 Dan",37,"OK","",85,"",null,"12/06/09 St Georges/Eure",null,null,"25/03/06 Chartres",10,null,"26/11/06 Brou",7,null,"13/01/07 Tours",24,null,"10/03/07 Le Mans",27,null,"31/01/09 Issoudun",17,null,null,null,null,null,null,null,null,null,null,null,null,null,null,null,null,null,null,null,"2023-05-22"]
["PAS LICENCIE","BILLOIS","Anaïs","1990-06-09","AMIJ EPERNON","1 Dan 2/06/06 ",28,"","",40,"",null,null,null,null,"06/11/2022 SHIAI ISSOUDUN",30,null,"18_11_2022 St Doulchard Open",10,null,null,null,null,null,null,null,null,null,null,null,null,null,null,null,null,null,null,null,null,null,null,null,null,null,null,null,null,"2023-05-22"]
["M05021995BILLO01","BILLON","Corentin","1995-02-05","US FLORENTAISE","1 DAN 15/02/2020",18,"","",60,"",null,null,null,null,"20/10/18 Ceyrat",10,null,"06/10/18 Tours",10,null,"13/01/2019 ST GEORGES SUR EURE",10,null,"02-02-2019 Demie finale juniors Issoudun",20,null,"16-02-2019 - Demi final Championnat de France Cadet(te)s - Tours",10,null,null,null,null,null,null,null,null,null,null,null,null,null,null,null,null,null,null,null,"2023-05-22"]
["M26012002BILZ*01","BILZ","Erwan","2002-01-26","UNION JUDO 37 TOURS","1 Dan 23/05/18",37,{"$f":"IF(M346=\"\",\"\",\"OK\")","v":""},{"$f":"IF(N346=\"\",\"\",\"OK\")","v":""},{"$f":"Q346+T346+W346+Z346+AC346+AF346+AI346+AL346+AO346+AR346+AU346","v":0},{"$f":"IF(O346=\"\",\"\",\"OK\")","v":""}]
["M16022005BINON01","BINON","ENZO","2005-02-16","BOURGES JUDO","1 DAN 03/12/2022",18,"","",20,"OK",null,null,null,"14/12/08 St Georges/Eure","11/04/09 Brou",10,null,"2/05/09 St Georges/Eure",10,null,null,null,null,null,null,null,null,null,null,null,null,null,null,null,null,null,null,null,null,null,null,null,null,null,null,null,null,"2023-05-22"]
["PAS LICENCIE","BIREE","Florian","1989-06-09","CERCLE DU DOJO NOGENTAIS","CM",28,"","",32,"",null,null,null,null,"14/04/07 Gallardon",10,null,"31/01/09 Issoudun",7,null,"2/05/09 St Georges/Eure",15,null,null,null,null,null,null,null,null,null,null,null,null,null,null,null,null,null,null,null,null,null,null,null,null,null,"2023-05-22"]
["PAS LICENCIE","BIREE","Flavien","1990-09-02","CERCLE DU DOJO NOGENTAIS","1 Dan  14/12/08  ",28,{"$f":"IF(M349=\"\",\"\",\"OK\")","v":"OK"},"",100,"",null,"08/06/13 Tours",null,null,"1/03/08 St Georges/Eure",10,null,"18/10/08 Tours",30,null,"22/11/08 Lignières",10,null,"14/12/08 Le Poinçonnet",10,null,"1/02/09 Issoudun",10,null,"9/05/09 Vendôme",20,null,"05/12/10 Le Poinçonnet",10,null,null,null,null,null,null,null,null,null,null,null,null,null,"2023-05-22"]
["PAS LICENCIE","BISCAINO","Simon","1993-10-27","USP JC  POINCONNET","CM",36,"","",10,"",null,null,null,null,"19/10/2020 - Championnat de France",10,null,null,null,null,null,null,null,null,null,null,null,null,null,null,null,null,null,null,null,null,null,null,null,null,null,null,null,null,null,null,null,"2023-05-22"]
["F07021981BISSE01","BISSENI","EVA","1981-02-07","US.ORLEANS LOIRET JUDO JUJITSU","3 DAN",45,"","",100,"",null,null,null,null,"18/05/14 Limoges",40,null,"22/02/15 Dijon",30,null,"28/03/15 Concarneau",30,null,null,null,null,null,null,null,null,null,null,null,null,null,null,null,null,null,null,null,null,null,null,null,null,null,"2023-05-22"]
["PAS LICENCIE","BISSOLY","Jordan","1995-07-14","US ORLEANS LOIRET JUDO JUJITSU","1 Dan 13/06/10 ",45,"",{"$f":"IF(N352=\"\",\"\",\"OK\")","v":""},{"$f":"Q352+T352+W352+Z352+AC352+AF352+AI352+AL352+AO352+AR352+AU352","v":107},{"$f":"IF(O352=\"\",\"\",\"OK\")","v":""},null,null,null,null,"03/04/11 Tours",17,null,"09/06/12 Angers",10,null,"29/11/15 Tours",10,null,"27/05/17 Issoudun",40,null,"17/06/17 Angers",30,null,null,null,null,null,null,null,null,null,null,null,null,null,null,null,null,null,null,null,{"$f":"TODAY()","v":"2023-05-22"}]
["PAS LICENCIE","BISSON","Arnaud","1988-10-06","JUDO ST CYR SUR LOIRE","1 Dan  13/06/08  ",37,"","",10,"",null,null,null,null,"18/12/11 Tours",10,null,null,null,null,null,null,null,null,null,null,null,null,null,null,null,null,null,null,null,null,null,null,null,null,null,null,null,null,null,null,null,"2023-05-22"]
["PAS LICENCIE","BISSON","Gatien","1994-07-27","JUDO ST CYR SUR LOIRE","1 Dan 22/05/11",37,"","",36,"",null,null,null,null,"30/01/11 Orléans",5,null,"15/01/11 St Amand",7,null,"12/02/11 Vierzon",24,null,null,null,null,null,null,null,null,null,null,null,null,null,null,null,null,null,null,null,null,null,null,null,null,null,"2023-05-22"]
["PAS LICENCIE","BITEAU","Fabien","1992-09-22","SAINT DOULCHARD JUDO CLUB","2 Dan 12/06/10",18,"","",7,"",null,null,null,null,"11/12/11 Tours",7,null,null,null,null,null,null,null,null,null,null,null,null,null,null,null,null,null,null,null,null,null,null,null,null,null,null,null,null,null,null,null,"2023-05-22"]
["PAS LICENCIE","BIZERAY","Laurent","1964-05-11","CASL JUDO","CM",41,"","",30,"OK",null,null,null,"CJA Cadet 15 01/02/14 Lamotte beuvron","15/12/13 Vendome",10,null,"17/05/14 Vineuil",10,null,"11/01/15 Vendome",10,null,null,null,null,null,null,null,null,null,null,null,null,null,null,null,null,null,null,null,null,null,null,null,null,null,"2023-05-22"]
["PAS LICENCIE","BIZERAY","Pierre","1998-01-31","CASL JUDO","CM 26/06/13",41,{"$f":"IF(M357=\"\",\"\",\"OK\")","v":""},{"$f":"IF(N357=\"\",\"\",\"OK\")","v":""},{"$f":"Q357+T357+W357+Z357+AC357+AF357+AI357+AL357+AO357+AR357+AU357","v":0},{"$f":"IF(O357=\"\",\"\",\"OK\")","v":""}]
["M24042005BIZER01","BIZERAY","RAPHAEL","2005-04-24","JC BALGENTIEN","1 DAN 28/01/2023",45,{"$f":"IF(M358=\"\",\"\",\"OK\")","v":""},{"$f":"IF(N358=\"\",\"\",\"OK\")","v":""},{"$f":"Q358+T358+W358+Z358+AC358+AF358+AI358+AL358+AO358+AR358+AU358","v":20},{"$f":"IF(O358=\"\",\"\",\"OK\")","v":""},null,null,null,null,"20/11/2022 Open cadets St Doulchard",10,null,"03/12/2022 TOURNOI DE BOURGES",10]
["F06032006BIZET01","BIZET","Pauline","2006-03-06","JUDO CLUB SANCERROIS","CM",18,"","",100,"OK",null,null,null,"22/05/12 Tours","15/12/12 Orléans",10,null,"09/03/13 Paris",10,null,"30/11/13 Tours",30,null,"15/02/14 Issoudun",10,null,"11/01/15 Tours",30,null,"21/02/15 Nantes",10,null,null,null,null,null,null,null,null,null,null,null,null,null,null,null,null,"2023-05-22"]
["PAS LICENCIE","BIZIEUX","Etienne","1997-09-20","US ORLEANS LOIRET JUDO JUJITSU","1 Dan 13/05/12",45,"","",40,"",null,null,null,null,"15/12/13 Vendome",30,null,"17/05/14 Vineuil",10,null,null,null,null,null,null,null,null,null,null,null,null,null,null,null,null,null,null,null,null,null,null,null,null,null,null,null,null,"2023-05-22"]
["PAS LICENCIE","BIZIEUX","Raphael","1998-12-10","BLOIS JUDO","CM",41,"","",86,"",null,null,null,null,"24/02/02 Issoudun",7,null,"23/05/09 St Berthevin",24,null,"12/12/09 Chatellerault",5,null,"29/05/10 St Berthevin",19,null,"07/05/11 St Berthevin",24,null,"10/11/11 Liévin",7,null,null,null,null,null,null,null,null,null,null,null,null,null,null,null,null,"2023-05-22"]
["PAS LICENCIE","BLAIN","Marlène","1985-01-31","US ORLEANS LOIRET JUDO JUJITSU","2 Dan 21/03/09",45,"","",10,"",null,null,null,null,"30/04/17 Orléans",10,null,null,null,null,null,null,null,null,null,null,null,null,null,null,null,null,null,null,null,null,null,null,null,null,null,null,null,null,null,null,null,"2023-05-22"]
["PAS LICENCIE","BLANC","Axel","1995-10-17","DOJO BEAUCERON","1 Dan 16/02/13",28,"","",7,"",null,null,null,null,"03/04/11 Châteauroux",7,null,null,null,null,null,null,null,null,null,null,null,null,null,null,null,null,null,null,null,null,null,null,null,null,null,null,null,null,null,null,null,"2023-05-22"]
["PAS LICENCIE","BLANCHANDIN","David","1969-09-27","JC ISSOLDUNOIS","1 Dan 23/05/93",36,"","",27,"",null,null,null,null,"04/10/15 Limoges",27,null,null,null,null,null,null,null,null,null,null,null,null,null,null,null,null,null,null,null,null,null,null,null,null,null,null,null,null,null,null,null,"2023-05-22"]
["PAS LICENCIE","BLANCHARD","Frederic Guillaume","1997-10-15","US ORLEANS LOIRET JUDO JUJITSU","1 Dan 06/06/12",45,"","",51,"OK",null,null,null,"19/12/10 Tours","10/04/04 Tours",10,null,"1/05/04 Vierzon",14,null,"11/12/05 Vendôme",10,null,"8/01/06 Tours",7,null,"10/01/10  Roullet",10,null,null,null,null,null,null,null,null,null,null,null,null,null,null,null,null,null,null,null,"2023-05-22"]
["PAS LICENCIE","BLANCHARD","Nicolas","1975-02-20","JC DESCARTES","1 Dan 24/11/02",37,"","",102,"",null,null,null,null,"14/12/08 St Georges/Eure",7,null,"18/01/09 Nogent le Rotrou",10,null,"14/03/09 Le Mans",20,null,"13/12/09 Nogent le Rotrou",14,null,"24/01/10 Tours",24,null,"7/02/10 St Georges/Eure",27,null,null,null,null,null,null,null,null,null,null,null,null,null,null,null,null,"2023-05-22"]
["PAS LICENCIE","BLANCHARD","Julie","1991-03-27","AMIJ EPERNON","1 Dan 17/05/08  ",28,"","",107,"",null,null,null,null,"30/01/11 Orléans",37,null,"13/02/11 Orléans",30,null,"01/05/11 Orléans",30,null,"17/12/11 Orléans",10,null,null,null,null,null,null,null,null,null,null,null,null,null,null,null,null,null,null,null,null,null,null,"2023-05-22"]
["PAS LICENCIE","BLANCHARD","Clément","1994-01-26","US ORLEANS LOIRET JUDO JUJITSU","1 Dan 30/01/10   ",45,"","",10,"",null,null,null,null,"2/05/10 Tours",10,null,null,null,null,null,null,null,null,null,null,null,null,null,null,null,null,null,null,null,null,null,null,null,null,null,null,null,null,null,null,null,"2023-05-22"]
["PAS LICENCIE","BLANCHARD","Alexis","1995-10-26","SC LANGEAIS","CM",37,"","",152,"",null,null,null,null,"09/03/13 Paris",30,null,"09/11/13 Orléans",10,null,"26/01/14 Bourges",10,null,"19/04/14 Ceyrat",20,null,"06/12/14 Nantes",24,null,"11/01/15 Orléans",27,null,"17/03/2019 1/4 DE FINALE SENIORS G ET F 1ERE DIV N°1 - dojo J C Rousseau - ORLEANS",17,null,"11/05/2019 CHAMPIONNAT REGIONAL INDIVIDUEL SENIOR 2DIV - VIERZON",14,null,null,null,null,null,null,null,null,null,null,"2023-05-22"]
["M15101997BLANC04","BLANCHARD","Guillaume","1997-10-15","US ORLEANS LOIRET JUDO JUJITSU","1 Dan 06/06/12",45,"","",0,"",null,null,null,null,null,null,null,null,null,null,null,null,null,null,null,null,null,null,null,null,null,null,null,null,null,null,null,null,null,null,null,null,null,null,null,null,null,"2023-05-22"]
["M18092004BLANC03","BLANCHARD","Théo","2004-09-18","JC DESCARTES","1 DAN 04/06/2019",37,"","",10,"OK",null,null,null,"16 CJA Tours 10/03/13","21/10/18 Ceyrat",10,null,null,null,null,null,null,null,null,null,null,null,null,null,null,null,null,null,null,null,null,null,null,null,null,null,null,null,null,null,null,null,"2023-05-22"]
["PAS LICENCIE","BLANCHARD","Théo","1998-02-12","AS CHANCEAUX JUDO","CM",37,"OK","",0,"",null,"12/03/17 Tours",null,null,null,null,null,null,null,null,null,null,null,null,null,null,null,null,null,null,null,null,null,null,null,null,null,null,null,null,null,null,null,null,null,null,null,"2023-05-22"]
["PAS LICENCIE","BLANCHET","Florian","1999-10-24","JUDO CLUB DE DUN","CM 01/06/14",18,"","",0,"",null,null,null,null,null,null,null,null,null,null,null,null,null,null,null,null,null,null,null,null,null,null,null,null,null,null,null,null,null,null,null,null,null,null,null,null,null,"2023-05-22"]
["M14032004BLANC01","BLANCHET","Noam","2004-03-14","AS MONTS JUDO JUJITSU","1 DAN 12/06/2022",37,"","",120,"",null,null,null,null,"16/11/13 St Georges/eure",40,null,"25/01/14 Bourges",30,null,"06/04/14 Vendome",50,"OK",null,null,null,null,null,null,null,null,null,null,null,null,null,null,null,null,null,null,null,null,null,null,null,null,"2023-05-22"]
["PAS LICENCIE","BLANCHIER","Christophe","1968-03-25","US ORLEANS LOIRET JUDO JUJITSU","2 Dan 26/11/95",45,"","",0,"",null,null,null,null,null,null,null,null,null,null,null,null,null,null,null,null,null,null,null,null,null,null,null,null,null,null,null,null,null,null,null,null,null,null,null,null,null,"2023-05-22"]
["M19042003BLANL01","BLANLOEIL","Gabriel","2003-04-19","MJC BELLEGARDE JUDO","2 DAN 12/06/2022",45,"OK","OK",10,"",null,"26/06/2021 ORLEANS","01/02/2020 ORLEANS",null,"07-11-2021 SHIAI AMILLY",10,null,null,null,null,null,null,null,null,null,null,null,null,null,null,null,null,null,null,null,null,null,null,null,null,null,null,null,null,null,null,null,"2023-05-22"]
["F05012005BLANL01","BLANLOEIL","LOLA","2005-01-05","MJC BELLEGARDE JUDO","CM",45,"","",109,"OK",null,null,null,"26/05/08 Tours Arbitre Départemental","5/04/08 Tours",10,null,"11/10/08 Tours",21,null,"14/12/08 Tours",24,null,"25/04/09 Tours",20,null,"10/05/09 Vendôme",7,null,"17/10/09 Tours",27,null,null,null,null,null,null,null,null,null,null,null,null,null,null,null,null,"2023-05-22"]
["PAS LICENCIE","BLANVILLAIN","Rémi","1991-04-19","SAINT AVERTIN SPORTS","1 Dan 20/10/07  ",37,"","",20,"",null,null,null,null,"01/02/14 Tours",20,null,null,null,null,null,null,null,null,null,null,null,null,null,null,null,null,null,null,null,null,null,null,null,null,null,null,null,null,null,null,null,"2023-05-22"]
["PAS LICENCIE","BLANVILLAIN","Simon","1997-05-13","SAINT AVERTIN SPORTS","CM",37,"","",10,"OK",null,null,null,"24/05/14 Tours","11/01/15 Tours",10,null,null,null,null,null,null,null,null,null,null,null,null,null,null,null,null,null,null,null,null,null,null,null,null,null,null,null,null,null,null,null,"2023-05-22"]
["PAS LICENCIE","BLECUA","Antoine","1994-04-15","JUDO CLUB TOURAINE","CM",37,"OK","",0,"OK",null,"18/06/11 Tours",null,"11/05/11 Tours",null,null,null,null,null,null,null,null,null,null,null,null,null,null,null,null,null,null,null,null,null,null,null,null,null,null,null,null,null,null,null,null,null,"2023-05-22"]
["PAS LICENCIE","BLIEK","Jonathan","1994-03-14","US ST PIERRE DES CORPS","CM",37,"OK","OK",217,"",null,"02/06/2021 ORLEANS","26/06/2021 ORLEANS",null,"06/10/18 Tours",40,null,"16-02-2019 - Demi final Championnat de France Cadet(te)s - Tours",17,null,"19/05/2019 INDIVIDUEL CADETS \"ESPOIR\" - LA SOURCE MINOUFLET",10,null,"26/01/2019 1/2 FINALE CADETS TOURS",10,null,"10/03/2019 1/2 FINALE CADETS NANTES",20,null,"TOURNOI NATIONAL INDIVIDUEL CADET - CREPS DE BOURGES - DATE ?",30,null,"25-01-2020 CHAMPIONNAT CADETS 1ERE DIVISION BASSIN SUD TOURS",40,null,"15-02-2020 - 1/2 FINALE CADETS - Tours",20,null,"30 - 11 et 01 - 12 - TOURNOI NATIONAL INDIVIDUEL CADET-BOURGES",30,null,null,null,null,null,null,null,"2023-05-22"]
["F13032004BLIN*01","BLIN","Léonie","2004-03-13","UNION JUDO TOURAINE METROPOLE 37","CM",37,"","",60,"",null,null,null,null,"17/01/10 Vendôme",20,null,"29/01/10 Vineuil",40,null,null,null,null,null,null,null,null,null,null,null,null,null,null,null,null,null,null,null,null,null,null,null,null,null,null,null,null,"2023-05-22"]
["PAS LICENCIE","BLIN","Maxime","1992-07-12","JUDO CLUB  MONTOIRE/S/LE LOIR","CM",41,"","",0,"",null,null,null,null,null,null,null,null,null,null,null,null,null,null,null,null,null,null,null,null,null,null,null,null,null,null,null,null,null,null,null,null,null,null,null,null,null,"2023-05-22"]
["M03011970BLIRA01","BLIRANDO","CHRISTOPHE","1970-01-03","E.S.BOURGUEIL","1 DAN 17/05/2022",37,"","",0,"",null,null,null,null,null,null,null,null,null,null,null,null,null,null,null,null,null,null,null,null,null,null,null,null,null,null,null,null,null,null,null,null,null,null,null,null,null,"2023-05-22"]
["M06062005BLIRA01","BLIRANDO","NOA","2005-06-06","E.S.BOURGUEIL","1 DAN 11/12/2021",37,{"$f":"IF(M385=\"\",\"\",\"OK\")","v":""},{"$f":"IF(N385=\"\",\"\",\"OK\")","v":""},{"$f":"Q385+T385+W385+Z385+AC385+AF385+AI385+AL385+AO385+AR385+AU385","v":50},{"$f":"IF(O385=\"\",\"\",\"OK\")","v":""},null,null,null,null,"20/11/2022 Open cadets St Doulchard",40,null,"03/12/2022 TOURNOI DE BOURGES",10]
["F27062006BLOCH01","BLOCHE","Manon","2006-06-27","US.ORLEANS LOIRET JUDO JUJITSU","CM",45,"OK","OK",20,"",null,"13/05/2023 TOURS","13/05/2023 TOURS",null,"06/04/13 Illiers combray",10,null,"02/02/14 St georges/eure",10,null,null,null,null,null,null,null,null,null,null,null,null,null,null,null,null,null,null,null,null,null,null,null,null,null,null,null,null,"2023-05-22"]
["PAS LICENCIE","BLONDEAU","Natacha","1997-02-21","LE DOJO DU COMBRAY","CM 15/11/10",28,{"$f":"IF(M387=\"\",\"\",\"OK\")","v":"OK"},{"$f":"IF(N387=\"\",\"\",\"OK\")","v":"OK"},{"$f":"Q387+T387+W387+Z387+AC387+AF387+AI387+AL387+AO387+AR387+AU387","v":0},{"$f":"IF(O387=\"\",\"\",\"OK\")","v":""},null,"26/11/2022 ORLEANS","26/11/2022 ORLEANS"]
["M18041989BLOND01","BLONDEAU","HUGO","1989-04-18","LE CENTRAL J.JUDO ORLEANAIS","CM",45,"","",10,"",null,null,null,null,"TEST EFFICACITE TOURS 15-12-19",10,null,null,null,null,null,null,null,null,null,null,null,null,null,null,null,null,null,null,null,null,null,null,null,null,null,null,null,null,null,null,null,"2023-05-22"]
["M22122000BLOSS01","BLOSSE","Emilien","2000-12-22","JUDO CLUB SANCOINS","1 Dan 14/05/17",18,"","",10,"",null,null,null,null,"TEST EFFICACITE TOURS 15-12-19",10,null,null,null,null,null,null,null,null,null,null,null,null,null,null,null,null,null,null,null,null,null,null,null,null,null,null,null,null,null,null,null,"2023-05-22"]
["M28081972BLOSS01 ","BLOSSE","Raphael","1972-08-28","JUDO CLUB SANCOINS","1 Dan 05/03/17",18,"","",17,"",null,null,null,null,"13/02/11 Orléans",10,null,"07/05/11 St Jean le Blanc",7,null,null,null,null,null,null,null,null,null,null,null,null,null,null,null,null,null,null,null,null,null,null,null,null,null,null,null,null,"2023-05-22"]
["PAS LICENCIE","BLOT","Fanny","1993-08-22","J3 SPORTS AMILLY","CM",45,"","",107,"",null,null,null,null,"12/01/13 Orléans",40,null,"03/02/13 Issoudun",7,null,"31/03/13 Bourges",20,null,"26/05/13 Tours",10,null,"01/02/15 Vendome",30,null,null,null,null,null,null,null,null,null,null,null,null,null,null,null,null,null,null,null,"2023-05-22"]
["PAS LICENCIE","BLOT","Raphaëlle","1994-10-21","JC PITHIVIERS","1 Dan 03/12/11",45,"","",40,"",null,null,null,null,"15/12/12 Orléans",20,null,"01/12/12 Orléans",20,null,null,null,null,null,null,null,null,null,null,null,null,null,null,null,null,null,null,null,null,null,null,null,null,null,null,null,null,"2023-05-22"]
["PAS LICENCIE","BLOT","Adrien","1997-05-14","AS VENNECY","CM",45,{"$f":"IF(M393=\"\",\"\",\"OK\")","v":""},{"$f":"IF(N393=\"\",\"\",\"OK\")","v":""},{"$f":"Q393+T393+W393+Z393+AC393+AF393+AI393+AL393+AO393+AR393+AU393","v":0},{"$f":"IF(O393=\"\",\"\",\"OK\")","v":""}]
["M26052003BLOT*01","BLOT","THOMAS","2003-05-26","JC BALGENTIEN","1 DAN 10/01/2022",45,{"$f":"IF(M394=\"\",\"\",\"OK\")","v":""},{"$f":"IF(N394=\"\",\"\",\"OK\")","v":""},{"$f":"Q394+T394+W394+Z394+AC394+AF394+AI394+AL394+AO394+AR394+AU394","v":0},{"$f":"IF(O394=\"\",\"\",\"OK\")","v":""}]
["M21032007BLOT*01","BLOT","ROMAIN","2007-03-21","JC BALGENTIEN","1 DAN 11/02/2023",45,"","",40,"",null,null,null,null,"21/06/14 Limoges",20,null,"11/10/15 Vendome",20,null,null,null,null,null,null,null,null,null,null,null,null,null,null,null,null,null,null,null,null,null,null,null,null,null,null,null,null,"2023-05-22"]
["PAS LICENCIE","BOBAULT","Romain","1996-02-20","JC LUNOTIER","1 Dan 02/12/12",41,"","",0,""]
["M05072006BOCCA01","BOCCANFUSO","YANNIS","2006-07-05","E.S.BOURGUEIL","1 DAN 03/06/2022",37,"","",62,"",null,null,null,null,"13/02/11 Vendome",45,null,"01/05/11 Orléans",17,null,null,null,null,null,null,null,null,null,null,null,null,null,null,null,null,null,null,null,null,null,null,null,null,null,null,null,null,"2023-05-22"]
["PAS LICENCIE","BOCQUET","Florian","1980-03-11","JC MAGDUNOIS","1 Dan 10/11/01",45,"","",30,"",null,null,null,null,"11/10/09 St Georges/Eure",20,null,"24/04/10 Orléans",10,null,null,null,null,null,null,null,null,null,null,null,null,null,null,null,null,null,null,null,null,null,null,null,null,null,null,null,null,"2023-05-22"]
["PAS LICENCIE","BODDAERT","Victor","1994-11-30","SMOC ST JEAN DE BRAYE","CM",45,"","",10,"",null,null,null,null,"11/01/15 Orléans",10,null,null,null,null,null,null,null,null,null,null,null,null,null,null,null,null,null,null,null,null,null,null,null,null,null,null,null,null,null,null,null,"2023-05-22"]
["PAS LICENCIE","BODET","Romain","1992-02-18","AS GIEN JUDO","1 Dan 15/01/12",45,"","",10,"",null,null,null,null,"27/02/16 Vierzon",10,null,null,null,null,null,null,null,null,null,null,null,null,null,null,null,null,null,null,null,null,null,null,null,null,null,null,null,null,null,null,null,"2023-05-22"]
["PAS LICENCIE","BODIN","Anne Laure","1996-11-10","JUDO CLUB TOURAINE","1 Dan 06/04/14",37,"","",44,"OK",null,null,null,"12/05/07 Arbitre Départemental","17/12/06 Issoudun",34,null,"12/10/13 Issoudun",10,null,null,null,null,null,null,null,null,null,null,null,null,null,null,null,null,null,null,null,null,null,null,null,null,null,null,null,null,"2023-05-22"]
["PAS LICENCIE","BODIN","Damien","1989-10-19","USP JC  POINCONNET","2 Dan 7/12/07 ",36,"OK","",40,"",null,"10/12/11 Tours",null,null,"14/05/11 Lamotte Beuvron",10,null,"14/01/12 Lamotte Beuvron",10,null,"03/03/12 Limoges",10,null,"13/05/12 Vendome",10,null,null,null,null,null,null,null,null,null,null,null,null,null,null,null,null,null,null,null,null,null,null,"2023-05-22"]
["PAS LICENCIE","BODIN","Julie","1996-09-13","BLOIS JUDO","CM 24/06/10",41,"OK","",10,"OK",null,"28/01/17 Tours",null,"15/01/17 Vendome","05/02/17 St jean le blanc",10,null,null,null,null,null,null,null,null,null,null,null,null,null,null,null,null,null,null,null,null,null,null,null,null,null,null,null,null,null,null,null,"2023-05-22"]
["PAS LICENCIE","BODIN","Thomas","1999-05-22","JC VENDOME USV","CM 25/04/15",41,"OK","OK",10,"",null,"24/03/18 Orléans","24/03/18 Orléans",null,"21/04/18 Issoudun",10,null,null,null,null,null,null,null,null,null,null,null,null,null,null,null,null,null,null,null,null,null,null,null,null,null,null,null,null,null,null,null,"2023-05-22"]
["PAS LICENCIE","BOGE ","Christophe","1985-11-09","ASS JUDO OLIVET","CM 25/09/13",45,{"$f":"IF(M405=\"\",\"\",\"OK\")","v":"OK"},{"$f":"IF(N405=\"\",\"\",\"OK\")","v":""},{"$f":"Q405+T405+W405+Z405+AC405+AF405+AI405+AL405+AO405+AR405+AU405","v":10},{"$f":"IF(O405=\"\",\"\",\"OK\")","v":""},null,"12/03/2022 TOURS",null,null,"18_11_2022 St Doulchard Open",10]
["M26042005BOHY*01","BOHY","JOHAN","2005-04-26","J C ST GERMAIN PUY","CM 17/03/2019",18,"","",0,"",null,null,null,null,null,null,null,null,null,null,null,null,null,null,null,null,null,null,null,null,null,null,null,null,null,null,null,null,null,null,null,null,null,null,null,null,null,"2023-05-22"]
["F09101966BOI**01","BOI","Catherine","1966-10-09","JUDO CLUB JOCONDIEN","2 Dan 01/06/2019",37,"","",50,"OK",null,null,null,"07/05/13 Tours","20/01/13 Limoges",10,null,"26/01/14 Bourges",20,null,"21/02/15 Nantes",10,null,"02/04/17 Issoudun",10,null,null,null,null,null,null,null,null,null,null,null,null,null,null,null,null,null,null,null,null,null,null,"2023-05-22"]
["PAS LICENCIE","BOIBESSOT","Aurore","1997-04-21","BOURGES JUDO","1 Dan 15/12/12",18,"","",40,"",null,null,null,null,"28/04/18 Tours",40,null,null,null,null,null,null,null,null,null,null,null,null,null,null,null,null,null,null,null,null,null,null,null,null,null,null,null,null,null,null,null,"2023-05-22"]
["PAS LICENCIE","BOICHARD","Benoit","1988-01-26","SAINT AMAND JUDO","1 Dan 18/06/05",18,"","",10,"",null,null,null,null,"11/01/09 Poitiers",10,null,null,null,null,null,null,null,null,null,null,null,null,null,null,null,null,null,null,null,null,null,null,null,null,null,null,null,null,null,null,null,"2023-05-22"]
["PAS LICENCIE","BOILET","Margo","1992-04-23","SC LANGEAIS","1 Dan 11/01/09",37,"","",17,"",null,null,null,null,"21/04/13 Tours",7,null,"10/12/16 Angers",10,null,null,null,null,null,null,null,null,null,null,null,null,null,null,null,null,null,null,null,null,null,null,null,null,null,null,null,null,"2023-05-22"]
["PAS LICENCIE","BOILEVE","Damien","1981-10-04","SMOC ST JEAN DE BRAYE","1 Dan 10/04/11",45,"","",57,"",null,null,null,null,"2/03/09 Tours",30,null,"9/05/09 Vendôme",17,null,"16/01/10 Tours",10,null,null,null,null,null,null,null,null,null,null,null,null,null,null,null,null,null,null,null,null,null,null,null,null,null,"2023-05-22"]
["PAS LICENCIE","BOILLY","Hervé","1987-06-17","AS MONTS JUDO JUJITSU","CM",37,{"$f":"IF(M412=\"\",\"\",\"OK\")","v":"OK"},{"$f":"IF(N412=\"\",\"\",\"OK\")","v":"OK"},{"$f":"Q412+T412+W412+Z412+AC412+AF412+AI412+AL412+AO412+AR412+AU412","v":10},{"$f":"IF(O412=\"\",\"\",\"OK\")","v":""},null,"12/06/2022 TOURS","12/03/2022 TOURS",null,"06/11/2022 SHIAI ISSOUDUN",10]
["M10072006BOINA01","BOINA-MZE-PINAULT","MARIUS","2006-07-10","ALERTE SP.FONDETTES","CM",37,"OK","",50,"",null,"31/03/12 Tours",null,null,"11/12/11 Tours",40,null,"12/02/12 Issoudun",10,null,null,null,null,null,null,null,null,null,null,null,null,null,null,null,null,null,null,null,null,null,null,null,null,null,null,null,null,"2023-05-22"]
["PAS LICENCIE","BOIREAU","Steven","1989-05-24","AS CHANCEAUX JUDO","CM",37,"","",38,"",null,null,null,null,"1/04/06 Thiron Gardais",7,null,"18/01/09 Nogent le Rotrou",17,null,"2/05/09 St Georges/Eure",14,null,null,null,null,null,null,null,null,null,null,null,null,null,null,null,null,null,null,null,null,null,null,null,null,null,"2023-05-22"]
["PAS LICENCIE","BOIS","Dimitri","1988-08-26","DOJO LUISANTAIS","1 Dan 10/02/06  ",28,"","",102,"",null,null,null,null,"16/12/07 Nogent le Rotrou",15,null,"20/01/08 ST Georges/Eure",7,null,"18/01/09 Nogent le Rotrou",27,null,"31/01/09 Issoudun",17,null,"2/05/09 St Georges/Eure",29,null,"13/12/09 Nogent le Rotrou",7,null,null,null,null,null,null,null,null,null,null,null,null,null,null,null,null,"2023-05-22"]
["PAS LICENCIE","BOIS ","Alexis","1991-10-13","DOJO LUISANTAIS","1 Dan 16/12/07  ",28,"","",27,"",null,null,null,null,"27/03/10 Gien",10,null,"11/12/11 Tours",17,null,null,null,null,null,null,null,null,null,null,null,null,null,null,null,null,null,null,null,null,null,null,null,null,null,null,null,null,"2023-05-22"]
["PAS LICENCIE","BOISAUBERT","Pierre","1993-10-12","ASL ST PRIVE ST MESMAIN","1 Dan 27/03/10  ",45,"","",107,"OK",null,null,null,"22/01/11 St Jean le Blanc","1/12/07 Vendôme",10,null,"5/04/08 Gien",30,null,"1/06/08 Lamotte Beuvron",45,null,"29/11/08 St Georges/Eure",22,null,null,null,null,null,null,null,null,null,null,null,null,null,null,null,null,null,null,null,null,null,null,"2023-05-22"]
["PAS LICENCIE","BOISJIBAULT","Frédéric","1968-02-06","JUDO CLUB CHATEAUNEUF","1 Dan 10/06/07 ",45,"","",67,"",null,null,null,null,"17/12/11 Orléans",10,null,"11/02/12 Issoudun",17,null,"02/06/13 Vendome",20,null,"09/11/13 Orléans",20,null,null,null,null,null,null,null,null,null,null,null,null,null,null,null,null,null,null,null,null,null,null,"2023-05-22"]
["PAS LICENCIE","BOISJIBAULT","Anthony","1996-01-07","JUDO CLUB CHATEAUNEUF","1 Dan 18/06/11",45,"","",10,"",null,null,null,null,"13/12/09 Amilly",10,null,null,null,null,null,null,null,null,null,null,null,null,null,null,null,null,null,null,null,null,null,null,null,null,null,null,null,null,null,null,null,"2023-05-22"]
["PAS LICENCIE","BOISMOREAU","Jérôme","1995-06-28","JUDO CLUB CHATEAUNEUF","CM",45,"","",10,"OK",null,null,null,"CJA Cadets 14,25 05/12/10 Orléans","11/10/09 St Georges/Eure",10,null,null,null,null,null,null,null,null,null,null,null,null,null,null,null,null,null,null,null,null,null,null,null,null,null,null,null,null,null,null,null,"2023-05-22"]
["PAS LICENCIE","BOISSAY","Floriane","1995-06-18","JC MAGDUNOIS","CM",45,{"$f":"IF(M421=\"\",\"\",\"OK\")","v":"OK"},"",50,"OK",null,"18/05/13 Nantes",null,"09/05/12 Tours","01/12/12 Tours",10,null,"02/06/13 Vendome",20,null,"16/11/13 St Georges/eure",20,null,null,null,null,null,null,null,null,null,null,null,null,null,null,null,null,null,null,null,null,null,null,null,null,null,"2023-05-22"]
["PAS LICENCIE","BOISSEAU","Lisa","1998-03-17","JUDO CHÂTEAU RENAULT","CM",37,"","",17,"",null,null,null,null,"22/03/09 Orléans",17,null,null,null,null,null,null,null,null,null,null,null,null,null,null,null,null,null,null,null,null,null,null,null,null,null,null,null,null,null,null,null,"2023-05-22"]
["F14091981BOISS01","BOISSIEU","ELODIE","1981-09-14","C.E.S. TOURS","MA",37,null,null,null,null,null,"13/05/2023 TOURS"]
["PAS LICENCIE","BOISSET","Maxime","1989-11-18","CSC BRIARE","1 Dan  4/06/06 ",45,"","",30,"",null,null,null,null,"09/10/16 Vierzon",30,null,null,null,null,null,null,null,null,null,null,null,null,null,null,null,null,null,null,null,null,null,null,null,null,null,null,null,null,null,null,null,"2023-05-22"]
["PAS LICENCIE","BOISSET","Mélanie","1999-06-01","JC ST JEAN DE LA RUELLE","1 Dan 04/04/15",45,"",{"$f":"IF(N425=\"\",\"\",\"OK\")","v":""},{"$f":"Q425+T425+W425+Z425+AC425+AF425+AI425+AL425+AO425+AR425+AU425","v":10},{"$f":"IF(O425=\"\",\"\",\"OK\")","v":""},null,null,null,null,"11/03/17 Issoudun",10,null,null,null,null,null,null,null,null,null,null,null,null,null,null,null,null,null,null,null,null,null,null,null,null,null,null,null,null,null,null,null,"2023-05-22"]
["PAS LICENCIE","BOISSON","Margaux","1999-06-08","AVIONNETTE PARCAY MESLAY","1 Dan 07/06/15",37,{"$f":"IF(M426=\"\",\"\",\"OK\")","v":""},{"$f":"IF(N426=\"\",\"\",\"OK\")","v":""},{"$f":"Q426+T426+W426+Z426+AC426+AF426+AI426+AL426+AO426+AR426+AU426","v":30},{"$f":"IF(O426=\"\",\"\",\"OK\")","v":""},null,null,null,null,"20/11/2022 Open cadets St Doulchard",20,null,"03/12/2022 TOURNOI DE BOURGES",10]
["M07102008BOISS02","BOISSONNET","Hugo","2008-10-07","US.ORLEANS LOIRET JUDO JUJITSU","CM",45,"","",55,"",null,null,null,null,"27/11/10 Issoudun",38,null,"14/05/11 Dun/Auron",17,null,null,null,null,null,null,null,null,null,null,null,null,null,null,null,null,null,null,null,null,null,null,null,null,null,null,null,null,{"$f":"TODAY()","v":"2023-05-22"}]
["PAS LICENCIE","BOISSOU","Benjamin","1984-10-26","JUDO CLUB MEHUN","2 Dan 29/04/06",18,"","",0,"",null,null,null,null,null,null,null,null,null,null,null,null,null,null,null,null,null,null,null,null,null,null,null,null,null,null,null,null,null,null,null,null,null,null,null,null,null,"2023-05-22"]
["M08021976BOISV01","BOISVERT","Guillaume","1976-02-08","JC VENDOME USV","1 Dan 11/10/15",41,"","",0,"",null,null,null,null,null,null,null,null,null,null,null,null,null,null,null,null,null,null,null,null,null,null,null,null,null,null,null,null,null,null,null,null,null,null,null,null,null,"2023-05-22"]
["M17122003BOISV016","BOISVERT","GABRIEL","2003-12-17","JC VENDOME USV","1 DAN 01/02/2020",41,"","",30,"",null,null,null,null,"17/12/11 Orléans",10,null,"01/12/12 Orléans",20,null,null,null,null,null,null,null,null,null,null,null,null,null,null,null,null,null,null,null,null,null,null,null,null,null,null,null,null,"2023-05-22"]
["PAS LICENCIE","BOITARD","Morgan ","1996-01-25","JC VAL D'ARDOUX","CM",45,{"$f":"IF(M431=\"\",\"\",\"OK\")","v":""},{"$f":"IF(N431=\"\",\"\",\"OK\")","v":""},{"$f":"Q431+T431+W431+Z431+AC431+AF431+AI431+AL431+AO431+AR431+AU431","v":10},{"$f":"IF(O431=\"\",\"\",\"OK\")","v":""},null,null,null,null,"18_11_2022 St Doulchard Open",10]
["M21121989BOIXE01","BOIXEL","Melvin","1989-12-21","J C ISSOLDUNOIS","CM",36,"","",107,"",null,null,null,null,"26/11/11 Issoudun",30,null,"28/01/12 Orléans",27,null,"12/02/12 Issoudun",20,null,"13/05/12 Vendome",30,null,null,null,null,null,null,null,null,null,null,null,null,null,null,null,null,null,null,null,null,null,null,"2023-05-22"]
["PAS LICENCIE","BOIZIAU","Stéphane","1978-07-28","JUDO CLUB RIDELLOIS","1 Dan 23/11/97",37,"","",76,"",null,null,null,null,"13/12/08 Orléans",7,null,"25/04/09 Orléans",10,null,"10/05/09 Vendôme",10,null,"10/01/10 Orléans",17,null,"24/01/10 Tours",17,null,"18/04/10 Orléans",15,null,null,null,null,null,null,null,null,null,null,null,null,null,null,null,null,"2023-05-22"]
["PAS LICENCIE","BONALAIR","Kévin","1992-02-27","ASS JUDO OLIVET","1 Dan 29/11/08  ",45,"","",127,"",null,null,null,null,"04/02/18 Vendome",10,null,"06/10/18 Orléans",17,null,"26/01/2019 CHAMPIONNAT CADETS CADETTES 1ERE DIV BASIN NORD",0,null,"13-10-2019 - TEST EFFICACITE COMBAT A SAINT GEORGES/EURE",40,null,"13-10-2019 - TEST EFFICACITE COMBAT A SAINT GEORGES/EURE rattrapage 1",10,null,"06/11/2022 SHIAI ISSOUDUN",30,null,"18_11_2022 St Doulchard Open",20,null,null,null,null,null,null,null,null,null,null,null,null,null,"2023-05-22"]
["F01092002BONAV01","BONAVENTURE","Ilona","2002-09-01","CSMS JUDO JUJITSU","1 Dan 14/10/17",45,{"$f":"IF(M435=\"\",\"\",\"OK\")","v":""},{"$f":"IF(N435=\"\",\"\",\"OK\")","v":""},{"$f":"Q435+T435+W435+Z435+AC435+AF435+AI435+AL435+AO435+AR435+AU435","v":20},{"$f":"IF(O435=\"\",\"\",\"OK\")","v":""},null,null,null,null,"06/11/2022 SHIAI ISSOUDUN",20]
["M23032006BONAV01","BONAVENTURE","NOA","2006-03-23","C.S.M.S JUDO / JUJITSU","1 DAN 21/05/2022",45,"","",100,"",null,null,null,null,"30/11/13 Tours",10,null,"13/03/16 Tours",20,null,"28/05/16 Issoudun",30,null,"09/10/16 Vierzon",40,null,null,null,null,null,null,null,null,null,null,null,null,null,null,null,null,null,null,null,null,null,null,"2023-05-22"]
["PAS LICENCIE","BONAZZO","Simon","1996-11-22","JUDO CLUB JOCONDIEN","1 Dan 16/02/13",37,"","",30,"",null,null,null,null,"05/05/2019 - SHIAI GIEN",30,null,null,null,null,null,null,null,null,null,null,null,null,null,null,null,null,null,null,null,null,null,null,null,null,null,null,null,null,null,null,null,"2023-05-22"]
["M09071967BONAZ01","BONAZZO","Stéphane","1967-07-09","JUDO CLUB JOCONDIEN","1 Dan 27/05/18",37,"","",102,"",null,null,null,null,"24/01/10 Tours",17,null,"7/03/10 Issoudun",20,null,"20/03/10 Le Mans",20,null,"30/01/11 Orléans",21,null,"13/03/11 Issoudun",24,null,null,null,null,null,null,null,null,null,null,null,null,null,null,null,null,null,null,null,"2023-05-22"]
["PAS LICENCIE","BONFILS","Marie","1993-01-23","BOURGES JUDO","1 Dan 10/10/09  ",18,"","",30,"",null,null,null,null,"13/01/13 Orléans",30,null,null,null,null,null,null,null,null,null,null,null,null,null,null,null,null,null,null,null,null,null,null,null,null,null,null,null,null,null,null,null,"2023-05-22"]
["PAS LICENCIE","BONGAMBE LIYELI","Arnaud Brunel","1989-01-25","JUDO CLUB TOURAINE","CM",37,"","",7,"",null,null,null,null,"06/11/16 Orléans",7,null,null,null,null,null,null,null,null,null,null,null,null,null,null,null,null,null,null,null,null,null,null,null,null,null,null,null,null,null,null,null,"2023-05-22"]
["PAS LICENCIE","BONIS","Camille","1998-07-20","AS VENNECY JUDO","1 Dan 30/10/04",45,"","",17,"",null,null,null,null,"29/11/15 Angers",10,null,"06/11/2022 SHIAI ISSOUDUN",7,null,null,null,null,null,null,null,null,null,null,null,null,null,null,null,null,null,null,null,null,null,null,null,null,null,null,null,null,"2023-05-22"]
["M22081984BONNA01","BONNAC","Charles","1984-08-22","JUDO CLUB JOCONDIEN","1 Dan 26/01/14",37,"","",19,"",null,null,null,null,"24/01/10 Tours",19,null,null,null,null,null,null,null,null,null,null,null,null,null,null,null,null,null,null,null,null,null,null,null,null,null,null,null,null,null,null,null,"2023-05-22"]
["PAS LICENCIE","BONNEAU","Yohann","1992-07-01","AMICALE NEUVILLE AUX BOIS","1 Dan  5/04/08  ",45,"","",52,"OK",null,null,null,"19/01/13 St Jean le blanc","27/02/10 Issoudun",7,null,"15/05/10 Tours",25,null,"01/01/12 Oeléans",10,null,"03/02/13 Issoudun",10,null,null,null,null,null,null,null,null,null,null,null,null,null,null,null,null,null,null,null,null,null,null,"2023-05-22"]
["PAS LICENCIE","BONNEAU","Mélanie","1994-09-12","AMICALE NEUVILLE AUX BOIS","CM",45,"","",44,"",null,null,null,null,"3/06/06 Limoges",7,null,"5/06/10 St Jean le Blanc",10,null,"21/05/11 St Jean le Blanc",20,null,"28/01/12 Orléans",7,null,null,null,null,null,null,null,null,null,null,null,null,null,null,null,null,null,null,null,null,null,null,"2023-05-22"]
["PAS LICENCIE","BONNET","Jérôme","1965-02-19","ES COULLONNAISE JUDO","1 Dan 3/06/06 ",45,"","",30,"",null,null,null,null,"04/11/18 Tours",30,null,null,null,null,null,null,null,null,null,null,null,null,null,null,null,null,null,null,null,null,null,null,null,null,null,null,null,null,null,null,null,"2023-05-22"]
["PAS LICENCIE","BONNET","Marjorie","1994-01-08","AS MONTLOUIS JUDO","1 Dan 23/03/13",37,"","",120,"",null,null,null,null,"11/12/11 Tours",20,null,"08/01/12 Argenton/creuse",10,null,"29/01/12 Orléans",10,null,"12/02/12 Issoudun",10,null,"01/04/12 Orléans",10,null,"02/12/12 Reuilly",10,null,"03/02/13 Issoudun",10,null,"31/03/13 Bourges",20,null,"16-02-2020 – 1/4 DE FINALE SENIOR 1ERE DIVISION BASSIN SUD -  TOURS",20,null,null,null,null,null,null,null,"2023-05-22"]
["M21011995BONNE01","BONNET","Alexis","1995-01-21","A JUDO CHATEAUROUX","1 Dan 16/04/11",36,"","",0,"",null,null,null,null,null,null,null,null,null,null,null,null,null,null,null,null,null,null,null,null,null,null,null,null,null,null,null,null,null,null,null,null,null,null,null,null,null,"2023-05-22"]
["M10061997BONNE01","BONNET","Raphael","1997-06-10","UNION JUDO 37 TOURS","2 DAN 02/03/2022",37,"","",20,"",null,null,null,null,"11/12/11 Tours",10,null,"31/03/13 Bourges",10,null,null,null,null,null,null,null,null,null,null,null,null,null,null,null,null,null,null,null,null,null,null,null,null,null,null,null,null,"2023-05-22"]
["PAS LICENCIE","BONNETAT","Aymeric","1968-12-08","JC VALENCAY REGION","2 Dan 31/05/86",36,"","",5,"",null,null,null,null,"15/01/11 St Amand",5,null,null,null,null,null,null,null,null,null,null,null,null,null,null,null,null,null,null,null,null,null,null,null,null,null,null,null,null,null,null,null,"2023-05-22"]
["PAS LICENCIE","BONNETAUD","Yoan","1992-09-19","BOURGES JUDO","1 Dan 05/04/09",18,"","",24,"",null,null,null,null,"02/04/11 Saint Doulchard",7,null,"03/02/13 Issoudun",17,null,null,null,null,null,null,null,null,null,null,null,null,null,null,null,null,null,null,null,null,null,null,null,null,null,null,null,null,"2023-05-22"]
["PAS LICENCIE","BONNOT","Quentin","1995-06-06","BOURGES JUDO","1 Dan 12/06/10   ",18,"OK","",10,"OK",null,"22/03/14 Tours",null,"18/04/15 Chateauroux","06/03/16 Limoges",10,null,null,null,null,null,null,null,null,null,null,null,null,null,null,null,null,null,null,null,null,null,null,null,null,null,null,null,null,null,null,null,"2023-05-22"]
["PAS LICENCIE","BONNY","Christian","1982-07-17","JUDO CLUB CHABRIS","CM",36,"","",20,"",null,null,null,null,null,20,null,null,null,null,null,null,null,null,null,null,null,null,null,null,null,null,null,null,null,null,null,null,null,null,null,null,null,null,null,null,null,"2023-05-22"]
["M10021978BONTE01","BONTEMPS","Sylvain","1978-02-10","UNION SPORTIVE ST MAUR JUDO","3 Dan 23/04/19",36,"OK","",80,"",null,"01/12/18 Orléans",null,null,"03/02/2019 SHIAI TEST EFFICACITE - ISSOUDUN",30,null,"05/05/2019 - SHIAI GIEN",30,null,"26/05/2019 SHIAI ANGER",20,null,null,null,null,null,null,null,null,null,null,null,null,null,null,null,null,null,null,null,null,null,null,null,null,null,"2023-05-22"]
["M27071982BONTO01","BONTOUX","Joseph","1982-07-27","JUDO CLUB BUZANCAIS","CM 15/05/98",36,"","",117,"",null,null,null,null,"29/11/09 Vendôme",27,null,"28/02/10 Tours",20,null,"27/03/10 Gien",30,null,"2/05/10 Tours",30,null,"18_11_2022 St Doulchard Open",10,null,null,null,null,null,null,null,null,null,null,null,null,null,null,null,null,null,null,null,"2023-05-22"]
["M19031985BONVI01","BONVIN","Samuel","1985-03-19","AS MONTLOUIS JUDO","CM",37,"","",102,"",null,null,null,null,"13/03/11 Issoudun",42,null,"07/05/11 St Berthevin",15,null,"29/05/11 Issoudun",45,null,null,null,null,null,null,null,null,null,null,null,null,null,null,null,null,null,null,null,null,null,null,null,null,null,"2023-05-22"]
["PAS LICENCIE","BONVIN","Coralie","1986-04-04","UNION JUDO 37 TOURS","1 Dan 06/06/03",37,"","",10,"",null,null,null,null,"6/06/09 St Jean le Blanc",10,null,null,null,null,null,null,null,null,null,null,null,null,null,null,null,null,null,null,null,null,null,null,null,null,null,null,null,null,null,null,null,"2023-05-22"]
["PAS LICENCIE","BONY","Simon","1992-01-23","AS CHECY JUDO","1 Dan 06/12/09  ",45,"","",47,"",null,null,null,null,"05/04/14 Vendome",20,null,"11/01/15 Tours",20,null,"14/05/17 Tours",7,null,null,null,null,null,null,null,null,null,null,null,null,null,null,null,null,null,null,null,null,null,null,null,null,null,"2023-05-22"]
["PAS LICENCIE","BOQUERET","Julien","1984-08-06","JUDO ST CYR SUR LOIRE","CM",37,"","",17,"",null,null,null,null,"4/04/09 Vierzon",10,null,"28/11/09 Vendôme",7,null,null,null,null,null,null,null,null,null,null,null,null,null,null,null,null,null,null,null,null,null,null,null,null,null,null,null,null,"2023-05-22"]
["PAS LICENCIE","BOQUET","Nicolas","1983-10-26","JC DUNOIS CHATEAUDUN","1 Dan  04/04/09 ",28,{"$f":"IF(M459=\"\",\"\",\"OK\")","v":""},{"$f":"IF(N459=\"\",\"\",\"OK\")","v":""},{"$f":"Q459+T459+W459+Z459+AC459+AF459+AI459+AL459+AO459+AR459+AU459","v":0},{"$f":"IF(O459=\"\",\"\",\"OK\")","v":""}]
["M21062006BORDE01","BORDE","ETHAN",null,"ARTS MARTIAUX DE ST GEORGES","1 DAN 06/11/2022",28,"","",40,"",null,null,null,null,"01/02/17 Issoudun",10,null,"27/05/17 Issoudun",30,null,null,null,null,null,null,null,null,null,null,null,null,null,null,null,null,null,null,null,null,null,null,null,null,null,null,null,null,"2023-05-22"]
["PAS LICENCIE","BORGEAIS","Jean Baptiste","1982-04-21","JC ST JEAN DE LA RUELLE","CM 23/12/15",45,"","",144,"",null,null,null,null,"02/12/06 Lamotte Beuvron",20,null,"14/01/07 Tours",14,null,"17/03/07 Vendôme",14,null,"9/06/07 Issoudun",21,null,"8/12/07 Orléans",28,null,"28/11/09 Vendôme",47,null,null,null,null,null,null,null,null,null,null,null,null,null,null,null,null,"2023-05-22"]
["PAS LICENCIE","BORGET","Florian","1991-03-06","JC BALGENTIEN","1 Dan 02/12/06  ",45,"","",20,"",null,null,null,null,"05/06/10 St Jean le Blanc",20,null,null,null,null,null,null,null,null,null,null,null,null,null,null,null,null,null,null,null,null,null,null,null,null,null,null,null,null,null,null,null,"2023-05-22"]
["PAS LICENCIE","BORLET","Stéphane","1970-08-17","JUDO CLUB VILLEDIEU","1 Dan 05/06/10  ",36,"","",20,"",null,null,null,null,"Vierzon 12-05-2019 OPEN SENIOR CEINTURE DE COULEUR",10,null,"TEST EFFICACITE TOURS 15-12-19",10,null,null,null,null,null,null,null,null,null,null,null,null,null,null,null,null,null,null,null,null,null,null,null,null,null,null,null,null,"2023-05-22"]
["M01051974BORNE01","BORNE","JEROME","1974-05-01","C.S.M.S JUDO / JUJITSU","CM",45,"","",0,"",null,null,null,null,null,null,null,null,null,null,null,null,null,null,null,null,null,null,null,null,null,null,null,null,null,null,null,null,null,null,null,null,null,null,null,null,null,"2023-05-22"]
["F04042003BORNE01","BORNE","LAURA","2003-04-04","C.S.M.S JUDO / JUJITSU","1 DAN 18/10/2019",45,"","",102,"",null,null,null,null,"16/01/11 Amilly",10,null,"23/01/11 Tours",25,null,"13/03/11 Issoudun",7,null,"11/12/11 Tours",10,null,"20/05/12 Amilly",10,null,"13/01/13 Orléans",20,null,"10/03/13 St jean le blanc",20,null,null,null,null,null,null,null,null,null,null,null,null,null,"2023-05-22"]
["PAS LICENCIE","BORRY","Franck","1983-08-25","JUDO CLUB TOURAINE","1 Dan 08/06/01",37,"OK","",108,"",null,"13/06/08 Tours",null,null,"15/03/08 Tours",10,null,"5/04/08 Tours",10,null,"26/04/08 Tours",27,null,"15/11/08 Angers",17,null,"22/03/09 Tours",7,null,"4/04/09 Vierzon",27,null,"25/04/09 Tours",10,null,null,null,null,null,null,null,null,null,null,null,null,null,"2023-05-22"]
["PAS LICENCIE","BORTOLUSSI","Grégory","1982-08-18","JUDO CLUB TOURAINE","CM 05/06/07",37,"OK","",100,"",null,"3/06/09 Orléans",null,null,"28/10/06 Limoges",20,null,"12/11/06 Forges les Eaux",30,null,"2/12/06 Joigny",30,null,"14/01/07 Tours",20,null,null,null,null,null,null,null,null,null,null,null,null,null,null,null,null,null,null,null,null,null,null,"2023-05-22"]
["PAS LICENCIE","BOSSARD","Julie","1991-05-29","BOURGES JUDO","CM",18,"OK","",0,"",null,"12/03/17 Orléans GONO/KIME",null,null,null,null,null,null,null,null,null,null,null,null,null,null,null,null,null,null,null,null,null,null,null,null,null,null,null,null,null,null,null,null,null,null,null,"2023-05-22"]
["PAS LICENCIE","BOTHY","Pascal","1969-11-04","BOURGES JUDO","2 Dan ET 16/06/13",18,"OK","OK",40,"",null,"24/04/2021 TOURS","24/04/2021 TOURS",null,"21/10/17 Vendome",10,null,"22/04/18 Issoudun",10,null,"02-02-2019 Demie finale juniors Issoudun",10,null,"11/05/2019 CHAMPIONNAT REGIONAL INDIVIDUEL SENIOR 2DIV - VIERZON",10,null,null,null,null,null,null,null,null,null,null,null,null,null,null,null,null,null,null,null,null,null,null,"2023-05-22"]
["M31101999BOTHY01","BOTHY","Yann  ","1999-10-31","BOURGES JUDO","2 Dan 02/04/17",18,"","",0,"",null,null,null,null,null,null,null,null,null,null,null,null,null,null,null,null,null,null,null,null,null,null,null,null,null,null,null,null,null,null,null,null,null,null,null,null,null,"2023-05-22"]
["F19082005BOTHY01","BOTHY","SARAH","2005-08-19","BOURGES JUDO","2 DAN 10/10/2022",18,"","",40,"",null,null,null,null,"12/01/13 Orléans",20,null,"23/03/13 Parthenay",20,null,null,null,null,null,null,null,null,null,null,null,null,null,null,null,null,null,null,null,null,null,null,null,null,null,null,null,null,"2023-05-22"]
["PAS LICENCIE","BOTREAU","Guillaume","1988-09-01","JUDO CLUB STE MAURE","1 Dan 02/12/12",37,"","",100,"OK",null,null,null,"04/10/14 Tours","01/02/14 Tours",10,null,"15/12/14 Roullet",50,"OK",null,null,null,"31/01/15 Tours",20,null,"07/11/15 Vierzon",20,null,null,null,null,null,null,null,null,null,null,null,null,null,null,null,null,null,null,null,"2023-05-22"]
["PAS LICENCIE","BOTREAU","Enguerrand","1998-05-26","CSADN NOUATRE","1 Dan 23/03/13",37,"","",10,"",null,null,null,null,"18_11_2022 St Doulchard Open",10,null,null,null,null,null,null,null,null,null,null,null,null,null,null,null,null,null,null,null,null,null,null,null,null,null,null,null,null,null,null,null,"2023-05-22"]
["M13102001BOUAL01","BOUALAM","Ilyes","2001-10-13","DOJO BEAUCERON","2 Dan 09/10/2020",28,"","",60,"",null,null,null,null,"29/01/17 Orléans",10,null,"30/09/17 Orléans",10,null,"28/01/18 Orléans",20,null,"25/02/18 Tours",10,null,"10/03/18 Limoges",10,null,null,null,null,null,null,null,null,null,null,null,null,null,null,null,null,null,null,null,"2023-05-22"]
["PAS LICENCIE","BOUAOUDA","Hadjar","2002-05-11","JUDO CLUB AGYLIEN","CM 30/09/16",45,"OK","",30,"",null,"12/06/09 St Georges/Eure",null,null,"26/02/05 Tours",10,null,"6/06/09 St Jean le Blanc",20,null,null,null,null,null,null,null,null,null,null,null,null,null,null,null,null,null,null,null,null,null,null,null,null,null,null,null,null,"2023-05-22"]
["PAS LICENCIE","BOUASRIA","Magid","1984-03-21","ALLIANCE DE DREUX","1 Dan 26/02/05  ",28,"OK","",20,"",null,"31/03/12 Vierzon",null,null,"13/05/12 Vendome",20,null,null,null,null,null,null,null,null,null,null,null,null,null,null,null,null,null,null,null,null,null,null,null,null,null,null,null,null,null,null,null,"2023-05-22"]
["PAS LICENCIE","BOUCHAUD","Christophe","1972-12-02","JC CHAPELLOIS","CM",18,"OK","",50,"",null,"01/06/2019 TOURS",null,null,"28/01/18 Orléans",10,null,"TOURNOI NATIONAL INDIVIDUEL CADET - CREPS DE BOURGES - DATE ?",10,null,"TEST EFFICACITE TOURS 15-12-19",20,null,"30 - 11 et 01 - 12 - TOURNOI NATIONAL INDIVIDUEL CADET-BOURGES",10,null,null,null,null,null,null,null,null,null,null,null,null,null,null,null,null,null,null,null,null,null,null,"2023-05-22"]
["M04022003BOUCH01","BOUCHER","MORGAN","2003-02-04","JUDO CLUB SANCOINS","CM",18,"","",0,"",null,null,null,null,null,null,null,null,null,null,null,null,null,null,null,null,null,null,null,null,null,null,null,null,null,null,null,null,null,null,null,null,null,null,null,null,null,"2023-05-22"]
["F05102005BOUCH03","BOUCHER","JEANNE","2005-10-05","AVENIR JUDO CLUB COURTENAY","1 DAN 19/01/2020",45,"","",10,"",null,null,null,null,"12/12/15 Angers",10,null,null,null,null,null,null,null,null,null,null,null,null,null,null,null,null,null,null,null,null,null,null,null,null,null,null,null,null,null,null,null,"2023-05-22"]
["PAS LICENCIE","BOUCHER","Uriel","1976-03-22","JC NOGENT LE ROTROU","1 Dan 01/04/89",28,"","",0,"",null,null,null,null,null,null,null,null,null,null,null,null,null,null,null,null,null,null,null,null,null,null,null,null,null,null,null,null,null,null,null,null,null,null,null,null,null,"2023-05-22"]
["F02031970BOUCH01","BOUCHER","CHRISTELLE","1970-03-02","JUDO CLUB LOURY","4 DAN 12/10/2019",45,"","",34,"OK",null,null,null,"21/05/00 Orléans F2","4/02/04 Orléans",10,null,"13/03/11 Issoudun",14,null,"07/05/11 St Berthevin",10,null,null,null,null,null,null,null,null,null,null,null,null,null,null,null,null,null,null,null,null,null,null,null,null,null,"2023-05-22"]
["PAS LICENCIE","BOUCHER","David","1980-05-11","ES COULLONNAISE JUDO","3 Dan 12/03/10   ",45,"OK","",70,"OK",null,"15/12/00 Orléans",null,"CS Départemental Juin 2000","28/03/04 Vierzon",30,null,"17/02/07 Bourges",10,null,"4/04/09 Vierzon",10,null,"25/04/09 Orléans",10,null,"6/06/09 St Jean le Blanc",10,null,null,null,null,null,null,null,null,null,null,null,null,null,null,null,null,null,null,null,"2023-05-22"]
["PAS LICENCIE","BOUCHER","Romain","1984-11-28","ES COULLONNAISE JUDO","CM 07/06/98",45,"OK","",0,"",null,"09/06/12 Orléans",null,null,null,null,null,null,null,null,null,null,null,null,null,null,null,null,null,null,null,null,null,null,null,null,null,null,null,null,null,null,null,null,null,null,null,"2023-05-22"]
["PAS LICENCIE","BOUCHER","Gaelle","1988-10-25","ES COULLONNAISE JUDO","1 Dan 23/01/05",45,"","OK",57,"",null,null,"12/06/2022 TOURS",null,"27/05/18 Orléans",20,null,"07-11-2021 SHIAI AMILLY",37,null,null,null,null,null,null,null,null,null,null,null,null,null,null,null,null,null,null,null,null,null,null,null,null,null,null,null,null,"2023-05-22"]
["M04011998BOUCH01","BOUCHER","Jerôme","1998-01-04","JUDO CLUB LOURY","2 Dan 24/03/18",45,"","",14,"",null,null,null,null,"05/02/17 St jean le blanc",14,null,null,null,null,null,null,null,null,null,null,null,null,null,null,null,null,null,null,null,null,null,null,null,null,null,null,null,null,null,null,null,"2023-05-22"]
["PAS LICENCIE","BOUCHET","Charles","2002-12-14","JUDO CLUB DE JOUY/ST PRIEST","CM 09/06/15",28,{"$f":"IF(M486=\"\",\"\",\"OK\")","v":"OK"},{"$f":"IF(N486=\"\",\"\",\"OK\")","v":"OK"},{"$f":"Q486+T486+W486+Z486+AC486+AF486+AI486+AL486+AO486+AR486+AU486","v":0},{"$f":"IF(O486=\"\",\"\",\"OK\")","v":""},null,"11/02/2023 ORLEANS","28/11/2021 ORLEANS"]
["M09102005BOUCH01","BOUCHET","LEANDRE","2005-10-09","JC LEVETOIS","MA",18,"","",27,"",null,null,null,null,"02/06/13 Vendome",27,null,null,null,null,null,null,null,null,null,null,null,null,null,null,null,null,null,null,null,null,null,null,null,null,null,null,null,null,null,null,null,"2023-05-22"]
["PAS LICENCIE","BOUCHIER","Tristan","1970-06-07","JUDO CLUB CHALETTOIS","2 Dan 28/01/12",45,"","",30,"",null,null,null,null,"12/01/13 Orléans",30,null,null,null,null,null,null,null,null,null,null,null,null,null,null,null,null,null,null,null,null,null,null,null,null,null,null,null,null,null,null,null,"2023-05-22"]
["PAS LICENCIE","BOUCHTA","Sylvain","1967-08-18","LE CENTRAL J JUDO ORLEANAIS","2 Dan 24/11/12",45,"","",10,"",null,null,null,null,"04/12/11 St Georges/Eure",10,null,null,null,null,null,null,null,null,null,null,null,null,null,null,null,null,null,null,null,null,null,null,null,null,null,null,null,null,null,null,null,"2023-05-22"]
["PAS LICENCIE","BOUCLY","Brithany","1995-09-25","DOJO BEAUCERON","CM",28,"","",58,"",null,null,null,null,"08/03/03 Gallardon",7,null,"20/01/08 ST Georges/Eure",10,null,"16/01/11 Amilly",31,null,"11/01/15 St georges/eure",10,null,null,null,null,null,null,null,null,null,null,null,null,null,null,null,null,null,null,null,null,null,null,"2023-05-22"]
["PAS LICENCIE","BOUDERGUI","Karim","1972-04-05","DOJO BEAUCERON","2 Dan 29/03/02",28,{"$f":"IF(M491=\"\",\"\",\"OK\")","v":""},"",134,"OK",null,null,null,"F1 4/05/07","20/01/98 Senonches",31,null,"24/01/98 Chartres",26,null,"10/10/98 Bailleau le Pin",21,null,"13/12/98 Issoudun",17,null,"30/10/99 Chartres",24,null,"9/12/00 Bailleau Le Pin",15,null,null,null,null,null,null,null,null,null,null,null,null,null,null,null,null,"2023-05-22"]
["PAS LICENCIE","BOUDERGUI","Salim","1976-07-01","DOJO BEAUCERON","2 Dan 04/05/97",28,"","",0,"",null,null,null,null,null,null,null,null,null,null,null,null,null,null,null,null,null,null,null,null,null,null,null,null,null,null,null,null,null,null,null,null,null,null,null,null,null,"2023-05-22"]
["M26071982BOUDE01","BOUDERGUI","NOUAR","1982-07-26","DOJO BEAUCERON","2 Dan 04/03/2019",28,"","",20,"",null,null,null,null,"28/01/12 Orléans",20,null,null,null,null,null,null,null,null,null,null,null,null,null,null,null,null,null,null,null,null,null,null,null,null,null,null,null,null,null,null,null,"2023-05-22"]
["PAS LICENCIE","BOUDESOCQUE","Elsa","1987-04-09","BUDO CLUB SULLYLLOIS","CM",45,"",{"$f":"IF(N494=\"\",\"\",\"OK\")","v":""},{"$f":"Q494+T494+W494+Z494+AC494+AF494+AI494+AL494+AO494+AR494+AU494","v":114},{"$f":"IF(O494=\"\",\"\",\"OK\")","v":""},null,null,null,null,"07/06/15 Houlgate",17,null,"12/12/15 Angers",10,null,"03/04/16 Tours",10,null,"21/05/16 Limoges",30,null,"28/05/16 Issoudun",17,null,"11/11/17 Angers",10,null,"02/12/17 Angers",20,null,null,null,null,null,null,null,null,null,null,null,null,null,"2023-05-22"]
["PAS LICENCIE","BOUDET","Bruno","1970-06-01","ARTS MARTIAUX DE ST GEORGES","2 Dan 16/05/15",28,"OK","",0,"",null,"07/12/13 Tours",null,null,null,null,null,null,null,null,null,null,null,null,null,null,null,null,null,null,null,null,null,null,null,null,null,null,null,null,null,null,null,null,null,null,null,{"$f":"TODAY()","v":"2023-05-22"}]
["PAS LICENCIE","BOUDHAYE","Loic","1993-07-22","US ORLEANS LOIRET JUDO JUJITSU","CM",45,"","",5,"",null,null,null,null,"17/05/08 Orléans",5,null,null,null,null,null,null,null,null,null,null,null,null,null,null,null,null,null,null,null,null,null,null,null,null,null,null,null,null,null,null,null,"2023-05-22"]
["PAS LICENCIE","BOUDIN","Dominique","1969-09-14","ASS JUDO OLIVET","2 Dan 4/12/04  ",45,"OK","",0,"",null,"30/04/10 St Jean le Blanc",null,null,null,null,null,null,null,null,null,null,null,null,null,null,null,null,null,null,null,null,null,null,null,null,null,null,null,null,null,null,null,null,null,null,null,"2023-05-22"]
["PAS LICENCIE","BOUDIN","Marine","1992-07-11","AS GIEN JUDO","CM",45,"","",131,"OK",null,null,null,"13/10/07 Tours","1/04/06 Tours",10,null,"10/12/06 Tours",14,null,"13/01/07 Tours",10,null,"16/12/07 Tours",17,null,"6/07/08 Tours",7,null,"3/02/08 St Doulchard",10,null,"25/04/09 Tours",21,null,"7/06/09 Angers",42,null,null,null,null,null,null,null,null,null,null,"2023-05-22"]
["M08051967BOUDV01","BOUDVILLAIN","MARC","1967-05-08","USM SARAN","MA",45,{"$f":"IF(M499=\"\",\"\",\"OK\")","v":""},{"$f":"IF(N499=\"\",\"\",\"OK\")","v":"OK"},{"$f":"Q499+T499+W499+Z499+AC499+AF499+AI499+AL499+AO499+AR499+AU499","v":0},{"$f":"IF(O499=\"\",\"\",\"OK\")","v":""},null,null,"13/05/2023 TOURS"]
["PAS LICENCIE","BOUET","Maxime","1989-11-02","SPG CLUB AMBOISIEN","1 Dan 13/05/06 ",37,"","",52,"",null,null,null,null,"1/02/09 Issoudun",21,null,"21/03/09 Le Mans",7,null,"13/12/09 Nogent le Rotrou",10,null,"24/01/10 Tours",7,null,"7/03/10 Issoudun",7,null,null,null,null,null,null,null,null,null,null,null,null,null,null,null,null,null,null,null,"2023-05-22"]
["PAS LICENCIE","BOUGRIER","Maxence","1998-02-12","JC DESCARTES","1 Dan 08/06/13",37,"OK","",50,"",null,"01/06/2019 TOURS",null,null,"TEST EFFICACITE TOURS 15-12-19",50,"OUI",null,null,null,null,null,null,null,null,null,null,null,null,null,null,null,null,null,null,null,null,null,null,null,null,null,null,null,null,null,null,"2023-05-22"]
["PAS LICENCIE","BOUIN","Philippe","1980-08-25","AMIJ EPERNON","CM",28,"","",57,"",null,null,null,null,"06/11/16 Orléans",20,null,"21/10/17 Vendome",10,null,"08/04/18 Orléans",20,null,"22/04/18 Issoudun",7,null,null,null,null,null,null,null,null,null,null,null,null,null,null,null,null,null,null,null,null,null,null,"2023-05-22"]
["F06062001BOULA01","BOULAY","Marion","2001-06-06","JUDO CLUB VENDOME USV","1 Dan 05/02/17",41,"","",67,"OK",null,null,null,"13/02/11 Nogent le rotrou","21/03/10 St Georges/Eure",10,null,"19/03/11 Le Mans",10,null,"29/01/12 Orléans",20,null,"01/12/12 St Georges/eure",10,null,"31/03/13 Bourges",10,null,"26/05/13 Tours",7,null,null,null,null,null,null,null,null,null,null,null,null,null,null,null,null,"2023-05-22"]
["PAS LICENCIE","BOULLANGER","Jeremy","1997-09-06","DOJO DU COMBRAY","1 Dan 18/05/13",28,{"$f":"IF(M521=\"\",\"\",\"OK\")","v":""},{"$f":"IF(N521=\"\",\"\",\"OK\")","v":"OK"},{"$f":"Q521+T521+W521+Z521+AC521+AF521+AI521+AL521+AO521+AR521+AU521","v":10},{"$f":"IF(O521=\"\",\"\",\"OK\")","v":""},null,null,"12/03/2022 TOURS",null,"20/11/2022 Open cadets St Doulchard",10]
["PAS LICENCIE","BOURASSI","Anwar","2002-06-17","US ORLEANS LOIRET JUDO JUJITSU","CM 01/03/16",45,"","",20,"",null,null,null,null,"17/03/12 Tours",20,null,null,null,null,null,null,null,null,null,null,null,null,null,null,null,null,null,null,null,null,null,null,null,null,null,null,null,null,null,null,null,"2023-05-22"]
["PAS LICENCIE","BOURDEAUX DUMOULIN","Thomas","1984-08-09","BLOIS JUDO","2 Dan 13/03/05",41,"OK","",0,"",null,"12/03/10 Tours",null,null,null,null,null,null,null,null,null,null,null,null,null,null,null,null,null,null,null,null,null,null,null,null,null,null,null,null,null,null,null,null,null,null,null,"2023-05-22"]
["PAS LICENCIE","BOURGEOIS","Marc","1979-09-14","JC BELLEVILLE","CM",18,"OK","",30,"",null,"10/12/11 Tours",null,null,"13/05/12 Vendome",30,null,null,null,null,null,null,null,null,null,null,null,null,null,null,null,null,null,null,null,null,null,null,null,null,null,null,null,null,null,null,null,"2023-05-22"]
["F12092003BOURG02","BOURGOIN","Pascale","2003-09-12","JC ISSOLDUNOIS","1 DAN 03/02/2019",36,"","",127,"",null,null,null,null,"05/05/12 St Berthevin",40,null,"04/05/13 St Berthevin",37,null,"16/02/14 Issoudun",10,null,"03/10/15 Forges les eaux",40,null,null,null,null,null,null,null,null,null,null,null,null,null,null,null,null,null,null,null,null,null,null,"2023-05-22"]
["PAS LICENCIE","BOURREAU","Bertrand","1987-07-25","MJC BELLEGARDE JUDO","2 Dan  7/03/08  ",45,"OK","",0,"",null,"18/06/11 Orléans",null,null,null,null,null,null,null,null,null,null,null,null,null,null,null,null,null,null,null,null,null,null,null,null,null,null,null,null,null,null,null,null,null,null,null,"2023-05-22"]
["PAS LICENCIE","BOUTONNET","Adrien","1998-08-19","JC ISSOLDUNOIS","CM",36,{"$f":"IF(M560=\"\",\"\",\"OK\")","v":""},"",10,"",null,null,null,null,"4/04/09 Vierzon",10,null,null,null,null,null,null,null,null,null,null,null,null,null,null,null,null,null,null,null,null,null,null,null,null,null,null,null,null,null,null,null,"2023-05-22"]
["M31082003BOUVE01","BOUVET","Alban","2003-08-31","JUDO CLUB VENDOME USV","1 DAN 30/06/2021",41,"","",94,"",null,null,null,null,"26/05/13 Tours",10,null,"08/12/13 Orléans",10,null,"30/04/17 Orléans",20,null,"26/11/17 Paris",7,null,"08/04/18 Orléans",17,null,"03/03/2019 OPEN SENIOR Saint Georges sur Eure",30,null,null,null,null,null,null,null,null,null,null,null,null,null,null,null,null,"2023-05-22"]
["PAS LICENCIE","BOYER","Soraya","1993-02-28","JUDO CLUB TOURAINE","1 Dan  7/06/09   ",37,"","",20,"",null,null,null,null,"11/05/2019 CHAMPIONNAT REGIONAL INDIVIDUEL SENIOR 2DIV - VIERZON",10,null,"18_11_2022 St Doulchard Open",10,null,null,null,null,null,null,null,null,null,null,null,null,null,null,null,null,null,null,null,null,null,null,null,null,null,null,null,null,"2023-05-22"]
["PAS LICENCIE","BRAMI","Aurélie","1994-05-04","ES COULLONNAISE JUDO","1 Dan 07/05/11",45,"","",67,"",null,null,null,null,"05/02/17 St jean le blanc",17,null,"27/05/17 Issoudun",10,null,"26/03/17 Chatellerault",10,null,"04/02/18 Vendome",20,null,"27/05/18 Orléans",10,null,null,null,null,null,null,null,null,null,null,null,null,null,null,null,null,null,null,null,"2023-05-22"]
["M16031999BRANC01","BRANCON","Rémi","1999-03-16","JC ST GAULTIER","1 Dan 19/04/15",36,"OK","OK",0,"",null,"13/05/2023 TOURS","13/05/2023 TOURS",null,null,null,null,null,null,null,null,null,null,null,null,null,null,null,null,null,null,null,null,null,null,null,null,null,null,null,null,null,null,null,null,null,null,"2023-05-22"]
["F12011994BREIL01","BREIL","Eloise","1994-01-12","ESP SPORT DU BEFFROI JUDO","2 Dan 22/03/14",37,"","",0,"",null,null,null,null,null,null,null,null,null,null,null,null,null,null,null,null,null,null,null,null,null,null,null,null,null,null,null,null,null,null,null,null,null,null,null,null,null,"2023-05-22"]
["M23052006BRETG01","BRETGE-CHOU","ANTOINE","2006-05-23","CHANCEAUX JUDO","CM",37,"OK","OK",0,"",null,"12/03/10 Orléans","13/05/2023 TOURS",null,null,null,null,null,null,null,null,null,null,null,null,null,null,null,null,null,null,null,null,null,null,null,null,null,null,null,null,null,null,null,null,null,null,"2023-05-22"]
["PAS LICENCIE","BRIAND","Johan","1987-04-21","JUDO CLUB TOURAINE","2 Dan 26/03/06  ",37,"","",20,"OK",null,null,null,"13/04/13 Orléans","30/11/13 Orléans",20,null,null,null,null,null,null,null,null,null,null,null,null,null,null,null,null,null,null,null,null,null,null,null,null,null,null,null,null,null,null,null,"2023-05-22"]
["PAS LICENCIE","BRISSON","Damien","1988-05-11","ASL ST JEAN LE BLANC","CM",45,{"$f":"IF(M610=\"\",\"\",\"OK\")","v":"OK"},{"$f":"IF(N610=\"\",\"\",\"OK\")","v":""},{"$f":"Q610+T610+W610+Z610+AC610+AF610+AI610+AL610+AO610+AR610+AU610","v":0},{"$f":"IF(O610=\"\",\"\",\"OK\")","v":""},null,"11/02/2023 ORLEANS"]
["M02112006BRITO01","BRITO TAVARES","SHAN","2006-11-02","J 3 SPORT AMILLY","MA",45,{"$f":"IF(M613=\"\",\"\",\"OK\")","v":"OK"},{"$f":"IF(N613=\"\",\"\",\"OK\")","v":""},{"$f":"Q613+T613+W613+Z613+AC613+AF613+AI613+AL613+AO613+AR613+AU613","v":0},{"$f":"IF(O613=\"\",\"\",\"OK\")","v":""},null,"13/05/2023 TOURS"]
["PAS LICENCIE","BROCHERET","Cédric","1982-02-23","AVENIR J LIGNIERES","CM 24/06/97",18,"OK","",10,"OK",null,"10/05/14 Orléans",null,"10/05/14 St georges/eure","13-10-2019 - TEST EFFICACITE COMBAT A SAINT GEORGES/EURE",10,null,null,null,null,null,null,null,null,null,null,null,null,null,null,null,null,null,null,null,null,null,null,null,null,null,null,null,null,null,null,null,"2023-05-22"]
["PAS LICENCIE","BROSSE","Noemie","2000-01-22","AS GIEN JUDO","CM",45,"","",30,"",null,null,null,null,"OPEN SENIOR - LAMOTTE - 24-03-2019",30,null,null,null,null,null,null,null,null,null,null,null,null,null,null,null,null,null,null,null,null,null,null,null,null,null,null,null,null,null,null,null,"2023-05-22"]
["PAS LICENCIE","BROTIER","Maxime","1999-05-03","AS MONTS JUDO JUJITSU","CM 15/09/13",37,{"$f":"IF(M631=\"\",\"\",\"OK\")","v":""},"",30,"OK",null,null,null,"CJA Tours 19 07/04/12","05/02/17 St jean le blanc",20,null,"11/03/17 Issoudun",10,null,null,null,null,null,null,null,null,null,null,null,null,null,null,null,null,null,null,null,null,null,null,null,null,null,null,null,null,"2023-05-22"]
["F12101984BRUNE01","BRUNEAU","Cynthia","1984-10-12","SAINT MARTIN SPORTS","1 DAN ",41,"","",47,"",null,null,null,null,"21/12/03 Tours",20,null,"5/04/08 Tours",10,null,"25/04/09 Tours",17,null,null,null,null,null,null,null,null,null,null,null,null,null,null,null,null,null,null,null,null,null,null,null,null,null,"2023-05-22"]
["PAS LICENCIE","BRUNEAU","Blandine","1989-12-04","AVENIR J LIGNIERES","1 Dan  31/03/07  ",18,"","",27,"",null,null,null,null,"02/04/11 Orléans",20,null,"07/05/11 St Jean le Blanc",7,null,null,null,null,null,null,null,null,null,null,null,null,null,null,null,null,null,null,null,null,null,null,null,null,null,null,null,null,"2023-05-22"]
["M21061972BRUNE01","BRUNET","STEPHANE","1972-06-21","A.S.MONTS JUDO JUJITSU","1 DAN 12/06/2022",37,"","",50,"",null,null,null,null,"12/02/11 Laval",10,null,"07/05/11 St Berthevin",40,null,null,null,null,null,null,null,null,null,null,null,null,null,null,null,null,null,null,null,null,null,null,null,null,null,null,null,null,"2023-05-22"]
["PAS LICENCIE","BUFFEL","Blandine","2002-04-09","JC MEROIS","CM 05/01/17",41,"","",20,"",null,null,null,null,"13/03/16 Tours",20,null,null,null,null,null,null,null,null,null,null,null,null,null,null,null,null,null,null,null,null,null,null,null,null,null,null,null,null,null,null,null,"2023-05-22"]
["PAS LICENCIE","BULTEL","Cedric","1981-10-27","KOUSAI JUDO JUJITSU CHANBARA","CM 06/11/17",45,"OK","",10,"",null,"12/03/2022 TOURS",null,null,"25-01-2020 CHAMPIONNAT CADETS 1ERE DIVISION BASSIN SUD TOURS",10,null,null,null,null,null,null,null,null,null,null,null,null,null,null,null,null,null,null,null,null,null,null,null,null,null,null,null,null,null,null,null,"2023-05-22"]
["PAS LICENCIE","BURON","Pascal","1966-05-14","JUDO CLUB  MONTOIRE/S/LE LOIR","CM 09/09/11",41,"OK","",30,"OK",null,"10/05/14 Tours",null,"18/04/15 Chateauroux","11/01/15 Le Poinconnet",10,null,"06/03/16 Limoges",10,null,"09/10/16 Vierzon",10,null,null,null,null,null,null,null,null,null,null,null,null,null,null,null,null,null,null,null,null,null,null,null,null,null,"2023-05-22"]
["M06022003CACHE01","CACHERA","ROMAIN","2003-02-06","JUDO CLUB ARDENTES","MA",36,{"$f":"IF(M679=\"\",\"\",\"OK\")","v":"OK"},{"$f":"IF(N679=\"\",\"\",\"OK\")","v":"OK"},{"$f":"Q679+T679+W679+Z679+AC679+AF679+AI679+AL679+AO679+AR679+AU679","v":0},{"$f":"IF(O679=\"\",\"\",\"OK\")","v":""},null,"13/05/2023 TOURS","13/05/2023 TOURS"]
["PAS LICENCIE","CADOUX","Mathilde","1998-07-30","JC ISSOLDUNOIS","CM",36,"","",20,"",null,null,null,null,"27/02/16 Vierzon",20,null,null,null,null,null,null,null,null,null,null,null,null,null,null,null,null,null,null,null,null,null,null,null,null,null,null,null,null,null,null,null,"2023-05-22"]
["PAS LICENCIE","CAMARD","Solly","1996-12-01","JUDO CLUB CHATEAUNEUF","1 Dan 14/04/13",45,"","",10,"",null,null,null,null," 02-02-2019 Demie finale juniors Issoudun",10,null,null,null,null,null,null,null,null,null,null,null,null,null,null,null,null,null,null,null,null,null,null,null,null,null,null,null,null,null,null,null,"2023-05-22"]
["PAS LICENCIE","CAMISARD","Marine","1993-12-10","ST AVERTIN SPORTS","CM",37,"","",0,"",null,null,null,null,null,null,null,null,null,null,null,null,null,null,null,null,null,null,null,null,null,null,null,null,null,null,null,null,null,null,null,null,null,null,null,null,null,"2023-05-22"]
["M26072002CAPPO01","CAPPONI","ALESSANDRO","2002-07-26","C.S.M.S JUDO / JUJITSU","CM",45,"","",72,"",null,null,null,null,"27/11/10 Issoudun",14,null,"13/02/11 Vendome",31,null,"21/05/1 St Jean le Blanc",17,null,"26/11/11 Issoudun",10,null,null,null,null,null,null,null,null,null,null,null,null,null,null,null,null,null,null,null,null,null,null,"2023-05-22"]
["M19122003CARON01","CARON","Maxence","2003-12-19","AS MONTS JUDO JUJITSU","1 DAN 06/02/2019",37,"OK","",90,"",null,"02/12/17 Tours",null,null,"04/02/18 Vendome",30,null,"10/06/18 Houlgate",20,null,"04/11/18 Tours",20,null,"13-10-2019 - TEST EFFICACITE COMBAT A SAINT GEORGES/EURE",20,null,null,null,null,null,null,null,null,null,null,null,null,null,null,null,null,null,null,null,null,null,null,"2023-05-22"]
["M21091990CARRE01","CARRE","Martin","1990-09-21","UNION SPORT VERNOU","2 Dan 26/03/17",37,"","",109,"",null,null,null,null,"24/04/10 Orléans",28,null,"15/05/10 Tours",14,null,"30/01/11 Orléans",7,null,"13/02/11 Vendome",10,null,"21/05/11 St Jean le Blanc",40,null,"26/11/11 Issoudun",10,null,null,null,null,null,null,null,null,null,null,null,null,null,null,null,null,"2023-05-22"]
["PAS LICENCIE","CARRON","Donovan","1994-06-11","US ORLEANS LOIRET JUDO JUJITSU","1 Dan 24/10/09",45,{"$f":"IF(M721=\"\",\"\",\"OK\")","v":""},{"$f":"IF(N721=\"\",\"\",\"OK\")","v":""},{"$f":"Q721+T721+W721+Z721+AC721+AF721+AI721+AL721+AO721+AR721+AU721","v":40},{"$f":"IF(O721=\"\",\"\",\"OK\")","v":""},null,null,null,null,"20/11/2022 Open cadets St Doulchard",40]
["F05032004CASAN01","CASANOVE","LAURA","2004-03-05","JUDO CLUB CHALETTOIS","CM",45,{"$f":"IF(M729=\"\",\"\",\"OK\")","v":"OK"},{"$f":"IF(N729=\"\",\"\",\"OK\")","v":"OK"},{"$f":"Q729+T729+W729+Z729+AC729+AF729+AI729+AL729+AO729+AR729+AU729","v":40},{"$f":"IF(O729=\"\",\"\",\"OK\")","v":""},null,"12/06/2022 TOURS","12/06/2022 TOURS",null,"06/11/2022 SHIAI ISSOUDUN",40]
["F27052007CASIE01","CASIER","LENA","2007-05-27","AMICALE DE NEUVILLE","CM",45,"","",39,"",null,null,null,null,"13/03/10 Chatellerault",15,null,"30/01/11 Orléans",14,null,"01/12/13 Déols",10,null,null,null,null,null,null,null,null,null,null,null,null,null,null,null,null,null,null,null,null,null,null,null,null,null,"2023-05-22"]
["PAS LICENCIE","CAVALIER","Bruno","1972-04-24","ARTS MARTIAUX DE ST GEORGES","1 Dan 19/02/12",28,"","",10,"",null,null,null,null,"07/01/12 St Amand",10,null,null,null,null,null,null,null,null,null,null,null,null,null,null,null,null,null,null,null,null,null,null,null,null,null,null,null,null,null,null,null,"2023-05-22"]
["PAS LICENCIE","CAVROIS","Valentin","1992-02-02","J3 SPORTS AMILLY","2 Dan 30/01/10 ",45,"","",10,"",null,null,null,null,"13/06/09 Limoges",10,null,null,null,null,null,null,null,null,null,null,null,null,null,null,null,null,null,null,null,null,null,null,null,null,null,null,null,null,null,null,null,"2023-05-22"]
["PAS LICENCIE","CHABANNE","Clément","1991-08-26","JUDO CLUB TOURAINE","1 Dan 29/05/10",37,"","",10,"",null,null,null,null,"06/10/18 Tours",10,null,null,null,null,null,null,null,null,null,null,null,null,null,null,null,null,null,null,null,null,null,null,null,null,null,null,null,null,null,null,null,"2023-05-22"]
["M21082005CHABO01 ","CHABON","MARIN ","2005-08-21","US.ORLEANS LOIRET JUDO JUJITSU","1 DAN 08/07/2021",45,"OK","",0,"",null,"12/03/10 Tours",null,null,null,null,null,null,null,null,null,null,null,null,null,null,null,null,null,null,null,null,null,null,null,null,null,null,null,null,null,null,null,null,null,null,null,"2023-05-22"]
["PAS LICENCIE","CHALINE","Gabin","1996-04-22","BUDO CLUB SULLYLLOIS","1 Dan 18/06/11",45,"","",0,"",null,null,null,null,null,null,null,null,null,null,null,null,null,null,null,null,null,null,null,null,null,null,null,null,null,null,null,null,null,null,null,null,null,null,null,null,null,"2023-05-22"]
["M14072003CHAMB01 ","CHAMBARET","CLEMENT ","2003-07-14","A.S.CHANCEAUX JUDO","1 dan 21/10/2021",37,"","",10,"",null,null,null,null,"06/11/16 Orléans",10,null,null,null,null,null,null,null,null,null,null,null,null,null,null,null,null,null,null,null,null,null,null,null,null,null,null,null,null,null,null,null,"2023-05-22"]
["PAS LICENCIE","CHAMPENOIS","Hugues","1960-01-30","LE CENTRAL J JUDO ORLEANAIS","1 Dan 02/12/06  ",45,{"$f":"IF(M778=\"\",\"\",\"OK\")","v":""},"",7,"",null,null,null,null,"10/01/10 Tours",7,null,null,null,null,null,null,null,null,null,null,null,null,null,null,null,null,null,null,null,null,null,null,null,null,null,null,null,null,null,null,null,"2023-05-22"]
["PAS LICENCIE","CHAMPOIX","Fanny","2000-04-07","JUDO CLUB SANCOINS","1 Dan 17/05/15",18,"",{"$f":"IF(N781=\"\",\"\",\"OK\")","v":""},{"$f":"Q781+T781+W781+Z781+AC781+AF781+AI781+AL781+AO781+AR781+AU781","v":108},{"$f":"IF(O781=\"\",\"\",\"OK\")","v":"OK"},null,null,null,"F1 11/09/02","20 /03/04 Tours ",7,null,"27/02/05 Tours",7,null,"22/01/06 Orléans",7,null,"18/03/07 Orléans",15,null,"31/03/07 Gien",21,null,"8/03/08 Orléans",27,null,"4/04/09 Vierzon",24,null,null,null,null,null,null,null,null,null,null,null,null,null,"2023-05-22"]
["M08112004CHANT01","CHANTEUR","Elijah","2004-11-08","UNION SPORT VERNOU","1 DAN 01/02/2020",37,"","",0,"",null,null,null,null,null,null,null,null,null,null,null,null,null,null,null,null,null,null,null,null,null,null,null,null,null,null,null,null,null,null,null,null,null,null,null,null,null,"2023-05-22"]
["PAS LICENCIE","CHAPEAU","Léa","2001-02-05","US ORLEANS LOIRET JUDO JUJITSU","2 Dan 01/10/18",45,"","",40,"",null,null,null,null,"29/01/11 Orléans",30,null,"15/05/11 Lamotte Beuvron",10,null,null,null,null,null,null,null,null,null,null,null,null,null,null,null,null,null,null,null,null,null,null,null,null,null,null,null,null,"2023-05-22"]
["PAS LICENCIE","CHAPON","Victor","1995-04-19","JUDO ST CYR SUR LOIRE","CM",37,"","",30,"",null,null,null,null,"12/01/13 Orléans",30,null,null,null,null,null,null,null,null,null,null,null,null,null,null,null,null,null,null,null,null,null,null,null,null,null,null,null,null,null,null,null,"2023-05-22"]
["M07051996CHARO01","CHAROTTE","Logan","1996-05-07","JUDO CLUB GALLARDON","3 Dan 01/06/2019",28,"","",97,"",null,null,null,null,"16/11/13 St Georges/eure",50,"OK",null,null,null,"30/03/14 Tours",27,null,"17/05/14 Gien",10,null,"31/01/15 Orléans",10,null,null,null,null,null,null,null,null,null,null,null,null,null,null,null,null,null,null,null,"2023-05-22"]
["PAS LICENCIE","CHARPIGNY","Coralie","1996-12-25","CASL JUDO","1 Dan 08/06/13",41,"","",0,"",null,null,null,null,null,null,null,null,null,null,null,null,null,null,null,null,null,null,null,null,null,null,null,null,null,null,null,null,null,null,null,null,null,null,null,null,null,"2023-05-22"]
["F16081979CHASS01","CHASSAGNE","CELINE","1979-08-16","AST CHATEAUNEUF","1 DAN 22/06/2022",28,"","",50,"",null,null,null,null,"28/05/16 Issoudun",50,"OK",null,null,null,null,null,null,null,null,null,null,null,null,null,null,null,null,null,null,null,null,null,null,null,null,null,null,null,null,null,null,"2023-05-22"]
["PAS LICENCIE","CHAUSSE","Louis","1998-03-31","ARTS MARTIAUX DE ST GEORGES","1 Dan 16/06/13",28,"OK","",0,"",null,"02/03/2019 ORLEANS",null,null,null,null,null,null,null,null,null,null,null,null,null,null,null,null,null,null,null,null,null,null,null,null,null,null,null,null,null,null,null,null,null,null,null,"2023-05-22"]
["M25072000CHAUV01","CHAUVEAU","DYLAN","2000-07-25","JUDO JU-JITSU CHATILLON C.","CM",45,"","",80,"",null,null,null,null,"05/05/2019 - SHIAI GIEN",10,null,"13-10-2019 - TEST EFFICACITE COMBAT A SAINT GEORGES/EURE",20,null,"TEST EFFICACITE TOURS 15-12-19",20,null,"06/11/2022 SHIAI ISSOUDUN",30,null,null,null,null,null,null,null,null,null,null,null,null,null,null,null,null,null,null,null,null,null,null,"2023-05-22"]
["PAS LICENCIE","CHENAY","Gérard","1963-11-05","CSL GENDARMERIE LE BLANC","1 Dan 27/06/95",36,"","",0,"",null,null,null,null,null,null,null,null,null,null,null,null,null,null,null,null,null,null,null,null,null,null,null,null,null,null,null,null,null,null,null,null,null,null,null,null,null,"2023-05-22"]
["PAS LICENCIE","CHENEAU","Steeven","1998-03-30","DOJO BREZOLIEN","CM",28,"OK","",0,"OK",null,"07/12/13 Tours",null,"13/04/13 Tours",null,null,null,null,null,null,null,null,null,null,null,null,null,null,null,null,null,null,null,null,null,null,null,null,null,null,null,null,null,null,null,null,null,"2023-05-22"]
["M30082003CHERI01","CHERIF","Ryan","2003-08-30","J3 SPORTS AMILLY","1 DAN 04/06/2019",45,"","",10,"",null,null,null,null,"11/01/15 Le Poinconnet",10,null,null,null,null,null,null,null,null,null,null,null,null,null,null,null,null,null,null,null,null,null,null,null,null,null,null,null,null,null,null,null,"2023-05-22"]
["M24112004CHEVA01","CHEVALIER","GABIN","2004-11-24","C CHARTRES JUDO","CM",28,{"$f":"IF(M858=\"\",\"\",\"OK\")","v":""},{"$f":"IF(N858=\"\",\"\",\"OK\")","v":""},{"$f":"Q858+T858+W858+Z858+AC858+AF858+AI858+AL858+AO858+AR858+AU858","v":0},{"$f":"IF(O858=\"\",\"\",\"OK\")","v":""}]
["PAS LICENCIE","CHIGOT","Ophélie","1992-06-27","JUDO CLUB MEHUN","1 Dan 17/02/07  ",18,"","",20,"",null,null,null,null,"09/04/11 Tours",20,null,null,null,null,null,null,null,null,null,null,null,null,null,null,null,null,null,null,null,null,null,null,null,null,null,null,null,null,null,null,null,"2023-05-22"]
["PAS LICENCIE","CHOLLET","Guillaume","1998-02-03","SAINT AMAND JUDO","CM 12/06/12",18,{"$f":"IF(M868=\"\",\"\",\"OK\")","v":""},{"$f":"IF(N868=\"\",\"\",\"OK\")","v":""},{"$f":"Q868+T868+W868+Z868+AC868+AF868+AI868+AL868+AO868+AR868+AU868","v":20},{"$f":"IF(O868=\"\",\"\",\"OK\")","v":""},null,null,null,null,"20/11/2022 Open cadets St Doulchard",20]
["PAS LICENCIE","CHOUAI","Rabah","1993-10-15","SMOC ST JEAN DE BRAYE","1 Dan 21/05/11",45,"","",0,"",null,null,null,null,null,null,null,null,null,null,null,null,null,null,null,null,null,null,null,null,null,null,null,null,null,null,null,null,null,null,null,null,null,null,null,null,null,"2023-05-22"]
["PAS LICENCIE","CHRISTEN","Thibault","2000-12-01","ES MAINTENON PIERRES","CM 21/09/12",28,"","OK",20,"",null,null,"01/06/2019 TOURS",null,"OPEN SENIOR - LAMOTTE - 24-03-2019",20,null,null,null,null,null,null,null,null,null,null,null,null,null,null,null,null,null,null,null,null,null,null,null,null,null,null,null,null,null,null,null,"2023-05-22"]
["PAS LICENCIE","CLAUZEL","Anthony","1995-08-07","AVENIR JUDO CLUB COURTENAY","CM",45,"","",160,"",null,null,null,null,"27/10/18 Limoges",20,null,"17/11/18 Forges les eaux",10,null,"15/12/2018 - 1/2 finale Chpt de France Ile de France (Bretigny)",20,null,"13/01/2019 NE WAZA ORLEANS",10,null,"1/2 Finale Chpt de France Angers 23/02/2019",20,null,"RGC jujitsu DEC 2019",20,null,"12/01/2020 - 1/2 Finale Chpt de France Orleans",10,null,"29/02/2020 - 1/2 Finale Chpt de France Angers",20,null,"18/12/2022 JUJITSU ORLEANS",30,null,null,null,null,null,null,null,"2023-05-22"]
["PAS LICENCIE","CLEMENT ","Christophe","1974-07-17","JUDO CLUB DE VIERZON","2 Dan 07/04/01",18,"","",0,"",null,null,null,null,null,null,null,null,null,null,null,null,null,null,null,null,null,null,null,null,null,null,null,null,null,null,null,null,null,null,null,null,null,null,null,null,null,"2023-05-22"]
["F11041979CLUZE01","CLUZEAU","BLEUETTE","1979-04-11","CERCLE DU DOJO NOGENTAIS","CM",28,"OK","",0,"",null,"16/05/15 Tours",null,null,null,null,null,null,null,null,null,null,null,null,null,null,null,null,null,null,null,null,null,null,null,null,null,null,null,null,null,null,null,null,null,null,null,"2023-05-22"]
["M15112004COLAS01","COLAS","ANTOINE","2004-11-15","A.S.CHANCEAUX JUDO","CM",37,"","",10,"",null,null,null,null,"30/09/17 Orléans",10,null,null,null,null,null,null,null,null,null,null,null,null,null,null,null,null,null,null,null,null,null,null,null,null,null,null,null,null,null,null,null,"2023-05-22"]
["PAS LICENCIE","COLLOBERT","Thomas","1992-07-19","SAINT AVERTIN SPORTS","CM",37,"","",10,"",null,null,null,null,"28/11/09 Vendôme",10,null,null,null,null,null,null,null,null,null,null,null,null,null,null,null,null,null,null,null,null,null,null,null,null,null,null,null,null,null,null,null,"2023-05-22"]
["PAS LICENCIE","COLSON","Christian","1963-06-26","ES COULLONNAISE JUDO","2 Dan 22/01/11  ",45,{"$f":"IF(M918=\"\",\"\",\"OK\")","v":""},"",0,"",null,null,null,null,null,null,null,null,null,null,null,null,null,null,null,null,null,null,null,null,null,null,null,null,null,null,null,null,null,null,null,null,null,null,null,null,null,"2023-05-22"]
["PAS LICENCIE","CONREUR","Rémi","1989-12-20","ALERTE SP FONDETTES","2 Dan 12/06/10 ",37,"OK","",40,"OK",null,"16/02/13 Tours",null,"CJA 14,33 08/01/12","19/01/13 Tours",10,null,"07/06/15 Vierzon",30,null,null,null,null,null,null,null,null,null,null,null,null,null,null,null,null,null,null,null,null,null,null,null,null,null,null,null,null,{"$f":"TODAY()","v":"2023-05-22"}]
["PAS LICENCIE","CONREUR","Jerome","1996-03-22","ALERTE SP FONDETTES","CM",37,"","",47,"",null,null,null,null,"24/11/12 Limoges",20,null,"31/03/13 Bourges",10,null,"19/05/13 Thiais",17,null,null,null,null,null,null,null,null,null,null,null,null,null,null,null,null,null,null,null,null,null,null,null,null,null,"2023-05-22"]
["M11072002CORAN01","CORANCY","Arthur","2002-07-11","JUDO CLUB VILLEDIEU","CM 01/02/16",36,"","",17,"OK",null,null,null,"CJA Minime 15 Le Blanc 02/02/14","29/01/17 Tours",10,null,"30/09/17 Tours",7,null,null,null,null,null,null,null,null,null,null,null,null,null,null,null,null,null,null,null,null,null,null,null,null,null,null,null,null,"2023-05-22"]
["M15042004CORNI01","CORNIAUX","Mathis","2004-04-15","C CHARTRES JUDO","1 DAN 05/06/2019",28,"","",60,"",null,null,null,null,"09/12/12 Lorient",30,null,"01/02/15 Vendome",30,null,null,null,null,null,null,null,null,null,null,null,null,null,null,null,null,null,null,null,null,null,null,null,null,null,null,null,null,"2023-05-22"]
["PAS LICENCIE","CORNUAULT","Florent","1999-12-21","JUDO CLUB VILLEDIEU","CM 20/09/14",36,"","",90,"",null,null,null,null,"8/03/08 Orléans",60,null,"13/01/13 Orléans",10,null,"05/01/13 St Berthevin",20,null,null,null,null,null,null,null,null,null,null,null,null,null,null,null,null,null,null,null,null,null,null,null,null,null,"2023-05-22"]
["PAS LICENCIE","COSTENTIN","Jeremy","1992-09-26","JC MAGDUNOIS","CM 11/04/12",45,"","",27,"",null,null,null,null,"03/04/11 Tours",17,null,"18/12/11 Tours",10,null,null,null,null,null,null,null,null,null,null,null,null,null,null,null,null,null,null,null,null,null,null,null,null,null,null,null,null,"2023-05-22"]
["PAS LICENCIE","COUDRAT","Cyrille","1979-04-20","JC BELLEVILLE","1 Dan 19/05/96",18,"OK","",0,"",null,"12/06/09 St Georges/Eure",null,null,null,null,null,null,null,null,null,null,null,null,null,null,null,null,null,null,null,null,null,null,null,null,null,null,null,null,null,null,null,null,null,null,null,"2023-05-22"]
["M16032001COULE01","COULEON","ANTONIN","2001-03-16","CHANCEAUX JUDO","1 DAN 10/06/2017",37,"","",10,"",null,null,null,null,"11/01/15 Orléans",10,null,null,null,null,null,null,null,null,null,null,null,null,null,null,null,null,null,null,null,null,null,null,null,null,null,null,null,null,null,null,null,"2023-05-22"]
["PAS LICENCIE","COUPEAU","Hervé","1972-04-02","A JUDO CHATEAUROUX","1 Dan 03/06/89",36,"OK","",50,"OK",null,"03/12/16 Orléans",null,"13/05/17 Orléans","03/10/15 Orléans",10,null,"05/02/17 St jean le blanc",30,null,"27/05/17 Issoudun",10,null,null,null,null,null,null,null,null,null,null,null,null,null,null,null,null,null,null,null,null,null,null,null,null,null,"2023-05-22"]
["M15012002COURC01","COURCELLES","Matisse","2002-01-15","JUDO CLUB VILLEDIEU","CM 01/02/16",36,"","",10,"",null,null,null,null,"30 - 11 et 01 - 12 - TOURNOI NATIONAL INDIVIDUEL CADET-BOURGES",10,null,null,null,null,null,null,null,null,null,null,null,null,null,null,null,null,null,null,null,null,null,null,null,null,null,null,null,null,null,null,null,"2023-05-22"]
["PAS LICENCIE","COURTOIS","Mickael","1976-03-16","SMOC ST JEAN DE BRAYE","CM 01/10/16",45,"","",152,"",null,null,null,null,"8/12/07 Orléans",7,null,"3/02/08 St Doulchard",14,null,"8/03/08 Orléans",10,null,"17/05/08 Orléans",52,null,"31/05/08 Lamotte Beuvron",7,null,"22/03/09 Orléans",7,null,"25/04/09 Orléans",55,null,null,null,null,null,null,null,null,null,null,null,null,null,"2023-05-22"]
["PAS LICENCIE","COUSTOU","Alexandre","1997-12-01","ALLIANCE DE DREUX","1 Dan 18/05/13",28,"","",7,"",null,null,null,null,"11/10/09 Chateauroux",7,null,null,null,null,null,null,null,null,null,null,null,null,null,null,null,null,null,null,null,null,null,null,null,null,null,null,null,null,null,null,null,"2023-05-22"]
["PAS LICENCIE","COUVREUR","Cyril","1988-08-07","ENTENTE SPORTIVE JUDO AUNEAU","1 Dan 11/06/06",28,"","",10,"",null,null,null,null,"01/02/14 Tours",10,null,null,null,null,null,null,null,null,null,null,null,null,null,null,null,null,null,null,null,null,null,null,null,null,null,null,null,null,null,null,null,"2023-05-22"]
["PAS LICENCIE","CROCHARD","Ludovic","1996-02-27","MJ C BELLEGARDE JUDO","CM 20/10/13",45,"","",106,"",null,null,null,null,"09/10/10 Château Gontier",10,null,"07/05/11 St Berthevin",42,null,"29/05/11 Issoudun",30,null,"15/10/11 Paris",7,null,"12/02/12 Issoudun",17,null,null,null,null,null,null,null,null,null,null,null,null,null,null,null,null,null,null,null,"2023-05-22"]
["PAS LICENCIE","CUILLERDIER","Frederic","1981-11-03","JUDO CLUB CLOYSIEN","CM",28,{"$f":"IF(M1014=\"\",\"\",\"OK\")","v":""},{"$f":"IF(N1014=\"\",\"\",\"OK\")","v":""},{"$f":"Q1014+T1014+W1014+Z1014+AC1014+AF1014+AI1014+AL1014+AO1014+AR1014+AU1014","v":20},{"$f":"IF(O1014=\"\",\"\",\"OK\")","v":""},null,null,null,null,"06/11/2022 SHIAI ISSOUDUN",20]
["PAS LICENCIE","CUVELIER","Amandine","1987-04-20","UNION JUDO 37 TOURS","1 Dan 16/11/02",37,"","",27,"",null,null,null,null,"27/11/10 Issoudun",27,null,null,null,null,null,null,null,null,null,null,null,null,null,null,null,null,null,null,null,null,null,null,null,null,null,null,null,null,null,null,null,"2023-05-22"]
["PAS LICENCIE","DAGDOUG","Sabri","1998-04-26","L.E.S.S.C.A.L.E","1 Dan 16/11/13",28,"","",37,"",null,null,null,null,"04/11/18 Tours",37,null,null,null,null,null,null,null,null,null,null,null,null,null,null,null,null,null,null,null,null,null,null,null,null,null,null,null,null,null,null,null,"2023-05-22"]
["M26121972DAIGN01","DAIGNE","MARTIAL","1972-12-26","SAINT AMAND JUDO","3 Dan 29/05/16",18,"","",80,"",null,null,null,null,"25/03/18 Orléans",30,null,"06/10/18 Orléans",10,null,"19/05/2019 INDIVIDUEL CADETS \"ESPOIR\" - LA SOURCE MINOUFLET",30,null,"25 01 2020 CHAMPIONNAT CADETS-CADETTES 1ERE DIVISION BASSIN NORD TOURS",10,null,null,null,null,null,null,null,null,null,null,null,null,null,null,null,null,null,null,null,null,null,null,"2023-05-22"]
["PAS LICENCIE","DANIELOU","Kyllian","1998-10-26","SC LANGEAIS","CM",37,"","",79,"",null,null,null,null,"19/02/11 Vendome",20,null,"10/04/11 Amilly",10,null,"14/05/11 Vendome",29,null,"01/04/17 Issoudun",20,null,null,null,null,null,null,null,null,null,null,null,null,null,null,null,null,null,null,null,null,null,null,"2023-05-22"]
["PAS LICENCIE","DARGENT","Romain","1996-03-24","CCAM JUDO / JUJTSU LA CHAPELLE","CM",45,"","",44,"",null,null,null,null,"24/11/07 Vierzon",7,null,"14/12/08 Tours",30,null,"31/01/09 Issoudun",7,null,null,null,null,null,null,null,null,null,null,null,null,null,null,null,null,null,null,null,null,null,null,null,null,null,"2023-05-22"]
["PAS LICENCIE","DASSE","Benjamin","1994-08-09","STADE LOUPEEN JUDO","1 Dan 11/10/09",28,"OK","",0,"",null,"26/06/2021 ORLEANS",null,null,null,null,null,null,null,null,null,null,null,null,null,null,null,null,null,null,null,null,null,null,null,null,null,null,null,null,null,null,null,null,null,null,null,"2023-05-22"]
["M13042004DAVAA02 ","DAVAABAT","TOGOLDORSAIKHAN ","2004-04-13","A JUDO CHATEAUROUX","1 DAN 27/11/2021",36,"","",69,"",null,null,null,null,"20/10/07 Tours",10,null,"1/12/07 Vendôme",10,null,"16/12/07 Tours",7,null,"5/04/08 Tours",7,null,"23/01/11 Tours",25,null,"11/12/11 Tours",10,null,null,null,null,null,null,null,null,null,null,null,null,null,null,null,null,"2023-05-22"]
["F22062006DAVID02","DAVID","JEANNE","2006-06-22","S.M.O.C. ST JEAN DE BRAYE","CM",45,"","",50,"",null,null,null,null,"06/11/2022 SHIAI ISSOUDUN",40,null,"11/06/17 Houlgate",10,null,null,null,null,null,null,null,null,null,null,null,null,null,null,null,null,null,null,null,null,null,null,null,null,null,null,null,null,"2023-05-22"]
["PAS LICENCIE","DE GODOY","Rodolphe","1993-11-12","USM ST DENIS EN VAL","CM 15/05/07",45,"OK","",0,"OK",null,"12/03/17 Tours",null,"CJA Cadet Tours 19/03/16",null,null,null,null,null,null,null,null,null,null,null,null,null,null,null,null,null,null,null,null,null,null,null,null,null,null,null,null,null,null,null,null,null,"2023-05-22"]
["PAS LICENCIE","DE LA PIERRE","Arnaud","1996-11-05","CES TOURS","CM 09/02/15",37,"","",100,"",null,null,null,null,"27/05/18 Orléans",30,null,"01/12/18 Angers",10,null,"04/10/2020 - ISSOUDUN : TEC (SHIAI) REPORT TEST EFFICACITE COMBAT",30,null,"06/11/2022 SHIAI ISSOUDUN",30,null,null,null,null,null,null,null,null,null,null,null,null,null,null,null,null,null,null,null,null,null,null,"2023-05-22"]
["PAS LICENCIE","DE OLIVEIRA","Barbara","1985-04-26","CLUB OMNISPORTS VERNOUILLET","1 Dan 26/04/08  ",28,{"$f":"IF(M1077=\"\",\"\",\"OK\")","v":"OK"},{"$f":"IF(N1077=\"\",\"\",\"OK\")","v":"OK"},{"$f":"Q1077+T1077+W1077+Z1077+AC1077+AF1077+AI1077+AL1077+AO1077+AR1077+AU1077","v":10},{"$f":"IF(O1077=\"\",\"\",\"OK\")","v":""},null,"26/06/2021 ORLEANS","26/06/2021 ORLEANS",null,"06/11/2022 SHIAI ISSOUDUN",10]
["M25042006DEBRA01 ","DEBRAY ","ROMAIN ","2006-04-25","C CHARTRES JUDO","1 DAN 13/03/2022",28,{"$f":"IF(M1086=\"\",\"\",\"OK\")","v":"OK"},{"$f":"IF(N1086=\"\",\"\",\"OK\")","v":""},{"$f":"Q1086+T1086+W1086+Z1086+AC1086+AF1086+AI1086+AL1086+AO1086+AR1086+AU1086","v":20},{"$f":"IF(O1086=\"\",\"\",\"OK\")","v":""},null,"11/02/2023 ORLEANS",null,null,"18_11_2022 St Doulchard Open",20,null,null,null,null,null,null,null,null,null,null,null,null,null,null,null,null,null,null,null,null,null,null,null,null,null,null,null,null,null,null,null,"2023-05-22"]
["PAS LICENCIE","DEFORGE","Eric","1969-01-22","JUDO CLUB DE METTRAY","CM 15/04/96",37,"","",30,"",null,null,null,null,"07/06/15 Vierzon",10,null,"13/06/15 Limoges",20,null,null,null,null,null,null,null,null,null,null,null,null,null,null,null,null,null,null,null,null,null,null,null,null,null,null,null,null,"2023-05-22"]
["PAS LICENCIE","DEL PESO","David","1975-06-27","JUDO KODOKAN 28","1 Dan 12/06/94",28,"","",130,"OK",null,null,null,"02/02/14 St Georges/eure","02/06/13 Vendome",30,null,"01/02/15 Vendome",20,null,"08/03/15 Houlgate",40,null,"24/05/15 Ligue 77",10,null,"07/06/15 Houlgate",30,null,null,null,null,null,null,null,null,null,null,null,null,null,null,null,null,null,null,null,"2023-05-22"]
["M27062002DELAN02","DELANOUE","Louis","2002-06-27","ES BOURGUEIL","1 Dan 08/02/18",37,{"$f":"IF(M1104=\"\",\"\",\"OK\")","v":"OK"},{"$f":"IF(N1104=\"\",\"\",\"OK\")","v":""},{"$f":"Q1104+T1104+W1104+Z1104+AC1104+AF1104+AI1104+AL1104+AO1104+AR1104+AU1104","v":0},{"$f":"IF(O1104=\"\",\"\",\"OK\")","v":""},null,"12/03/2022 TOURS"]
["PAS LICENCIE","DELHOMME","Thierry","1965-11-13","US LA FERTE ST AUBIN","CM",45,"","",10,"",null,null,null,null,"05/04/14 Vendome",10,null,null,null,null,null,null,null,null,null,null,null,null,null,null,null,null,null,null,null,null,null,null,null,null,null,null,null,null,null,null,null,"2023-05-22"]
["M04082002DELOR01","DELORME","Alexis","2002-08-04","JUDO CLUB TOURAINE","1 Dan 08/10/17",37,"","",79,"OK",null,null,null,"F1 01/05/11","2/12/06 Lamotte Beuvron",17,null,"4/04/09 Vierzon",27,null,"6/06/09 St Jean le Blanc",35,"OK",null,null,null,null,null,null,null,null,null,null,null,null,null,null,null,null,null,null,null,null,null,null,null,null,"2023-05-22"]
["PAS LICENCIE","DELVINGT","Mathilde","1985-06-29","US ORLEANS JUDO JUJITSU","CM",45,"","",102,"",null,null,null,null,"1/03/08 St Georges/Eure",30,null,"22/03/08 St Gratien",10,null,"7/06/08 Orléans",28,null,"31/01/09 Issoudun",34,null,null,null,null,null,null,null,null,null,null,null,null,null,null,null,null,null,null,null,null,null,null,"2023-05-22"]
["M28082002DEMOU01","DEMOUSSIS","Léo","2002-08-28","CSMS JUDO/JUJITSU","1 Dan 28/08/17",45,"","",0,"",null,null,null,null,null,null,null,null,null,null,null,null,null,null,null,null,null,null,null,null,null,null,null,null,null,null,null,null,null,null,null,null,null,null,null,null,null,"2023-05-22"]
["PAS LICENCIE","DENQUIN","Sandra","1998-05-23","ES MAINTENON PIERRES","CM",28,{"$f":"IF(M1136=\"\",\"\",\"OK\")","v":""},{"$f":"IF(N1136=\"\",\"\",\"OK\")","v":""},{"$f":"Q1136+T1136+W1136+Z1136+AC1136+AF1136+AI1136+AL1136+AO1136+AR1136+AU1136","v":0},{"$f":"IF(O1136=\"\",\"\",\"OK\")","v":""}]
["PAS LICENCIE","DESBOURDES","Mathieu","1992-07-20","US ST PIERRE DES CORPS","1 Dan 13/02/11",37,"","",40,"",null,null,null,null,"06/11/16 Orléans",20,null,"20/11/16 St jean le blanc",10,null,"24/11/16 Orléans",10,null,null,null,null,null,null,null,null,null,null,null,null,null,null,null,null,null,null,null,null,null,null,null,null,null,"2023-05-22"]
["PAS LICENCIE","DESCHAMPS","Philippe","1965-06-21","JUDO CLUB D AUBIGNY SURNERE","1 Dan 04/12/11",18,"","",10,"",null,null,null,null,"17/12/11 Orléans",10,null,null,null,null,null,null,null,null,null,null,null,null,null,null,null,null,null,null,null,null,null,null,null,null,null,null,null,null,null,null,null,{"$f":"TODAY()","v":"2023-05-22"}]
["M19011977DESHO01","DESHOGUES","Olivier","1977-01-19","ES GATINAISE","3 Dan 01/10/17",45,"","",20,"",null,null,null,null,"03/02/2019 SHIAI TEST EFFICACITE - ISSOUDUN",10,null,"Vierzon 12-05-2019 OPEN SENIOR CEINTURE DE COULEUR",10,null,null,null,null,null,null,null,null,null,null,null,null,null,null,null,null,null,null,null,null,null,null,null,null,null,null,null,null,"2023-05-22"]
["M31052002DESPR01","DESPREZ","Samuel","2002-05-31","AVENIR SONZAY JUDO","1 Dan 02/12/17",37,"OK","OK",80,"",null,"26/06/2021 ORLEANS","23/10/2021 TOURS",null,"24/11/2019 OPEN CADETS ST GEORGES SUR EURE",30,null,"25-01-2020 CHAMPIONNAT CADETS 1ERE DIVISION BASSIN SUD TOURS",50,"OUI",null,null,null,null,null,null,null,null,null,null,null,null,null,null,null,null,null,null,null,null,null,null,null,null,null,null,null,"2023-05-22"]
["PAS LICENCIE","DESTOUCHES","Théo","2002-03-27","JUDO CLUB BAILLEAU LE PIN","CM 20/04/16",28,"","",40,"",null,null,null,null,"30/09/17 Tours",10,null,"28/01/18 Tours",10,null,"06/10/18 Tours",10,null,"Vierzon 12-05-2019 OPEN SENIOR CEINTURE DE COULEUR",10,null,null,null,null,null,null,null,null,null,null,null,null,null,null,null,null,null,null,null,null,null,null,"2023-05-22"]
["M31072001DEVUL01","DEVULDER","Jules","2001-07-31","US ORLEANS LOIRET JUDO JUJITSU","1 Dan 31/05/17",45,"","",10,"",null,null,null,null,"09/04/16 Orléans",10,null,null,null,null,null,null,null,null,null,null,null,null,null,null,null,null,null,null,null,null,null,null,null,null,null,null,null,null,null,null,null,"2023-05-22"]
["PAS LICENCIE","DI COLA","Sylvain","1982-08-31","JUDO CLUB MEHUN","1 Dan 25/05/08   ",18,"","",111,"",null,null,null,null,"15/10/16 Ceyrat",10,null,"01/10/16 Orléans",27,null,"29/01/17 Orléans",20,null,"18/02/17 Chatellerault",17,null,"05/03/17 Tours",37,null,null,null,null,null,null,null,null,null,null,null,null,null,null,null,null,null,null,null,"2023-05-22"]
["M10022003DIAZ-01","DIAZ JAMES","Joachim","2003-02-10","UNION JUDO TOURAINE METROPOLE 37","1DAN 01/06/2019",37,"","",74,"",null,null,null,null,"23/01/11 Tours",37,null,"13/03/11 Issoudun",17,null,"07/05/11 St Berthevin",10,null,"29/05/11 Issoudun",10,null,null,null,null,null,null,null,null,null,null,null,null,null,null,null,null,null,null,null,null,null,null,"2023-05-22"]
["PAS LICENCIE","DINET","Stanislas","1997-08-13","JC NOGENT LE ROTROU","CM",28,"","",107,"",null,null,null,null,"13/02/11 Orléans",27,null,"15/10/11 Paris",10,null,"11/03/12 Le Mans",30,null,"04/05/13 St Berthevin",40,null,null,null,null,null,null,null,null,null,null,null,null,null,null,null,null,null,null,null,null,null,null,"2023-05-22"]
["PAS LICENCIE","DJOUABER","Madjid","1992-06-19","USM SARAN","CM                   ",45,"","",0,"",null,null,null,null,null,null,null,null,null,null,null,null,null,null,null,null,null,null,null,null,null,null,null,null,null,null,null,null,null,null,null,null,null,null,null,null,null,"2023-05-22"]
["M15081977DOMIN01","DOMINE","DAMIEN","1977-08-15","JUDO CLUB FERTESIEN","MA",45,{"$f":"IF(M1203=\"\",\"\",\"OK\")","v":""},{"$f":"IF(N1203=\"\",\"\",\"OK\")","v":"OK"},{"$f":"Q1203+T1203+W1203+Z1203+AC1203+AF1203+AI1203+AL1203+AO1203+AR1203+AU1203","v":0},{"$f":"IF(O1203=\"\",\"\",\"OK\")","v":""},null,null,"13/05/2023 TOURS"]
["PAS LICENCIE","DOUART","Nicolas","2002-03-30","JC MEROIS","CM 05/01/17",41,"","",37,"",null,null,null,null,"13/01/07 Tours",27,null,"13/01/13 Orléans",10,null,null,null,null,null,null,null,null,null,null,null,null,null,null,null,null,null,null,null,null,null,null,null,null,null,null,null,null,"2023-05-22"]
["PAS LICENCIE","DOUCHIN","Baptiste","1995-04-29","JC PITHIVIERS","1 Dan 16/02/13",45,"","",10,"",null,null,null,null,"21/10/17 Vendome",10,null,null,null,null,null,null,null,null,null,null,null,null,null,null,null,null,null,null,null,null,null,null,null,null,null,null,null,null,null,null,null,"2023-05-22"]
["PAS LICENCIE","DRAPEAU","Baptiste","1994-04-17","US ORLEANS LOIRET JUDO JUJITSU","CM",45,"","",10,"",null,null,null,null,"27/02/16 St Georges/eure",10,null,null,null,null,null,null,null,null,null,null,null,null,null,null,null,null,null,null,null,null,null,null,null,null,null,null,null,null,null,null,null,"2023-05-22"]
["PAS LICENCIE","DRAPEAU","Louis","1997-05-11","US ORLEANS LOIRET JUDO JUJITSU","1 Dan 06/04/14",45,"","",20,"",null,null,null,null,"07/01/12 St Amand",10,null,"12/02/12 Issoudun",10,null,null,null,null,null,null,null,null,null,null,null,null,null,null,null,null,null,null,null,null,null,null,null,null,null,null,null,null,"2023-05-22"]
["M11061965DROUI01","DROUIN","ERIC","1965-06-11","JUDO CLUB CHAROLAIS",1,71,"","",22,"",null,null,null,null,"13/02/11 Nogent le rotrou",22,null,null,null,null,null,null,null,null,null,null,null,null,null,null,null,null,null,null,null,null,null,null,null,null,null,null,null,null,null,null,null,"2023-05-22"]
["PAS LICENCIE","DUBOIS","Anastazia","1992-07-21","JC DESCARTES","1 Dan 07/12/07  ",37,"","",50,"",null,null,null,null,"13/05/12 Vendome",50,"OK",null,null,null,null,null,null,null,null,null,null,null,null,null,null,null,null,null,null,null,null,null,null,null,null,null,null,null,null,null,null,"2023-05-22"]
["PAS LICENCIE","DUBOIS","Gaele","1998-01-03","JUDO CLUB CLERENCOIS","1 Dan 01/02/15",37,"","",167,"",null,null,null,null,"23/03/14 Limoges",17,null,"17/05/14 Gien",10,null,"10/01/15 Orléans",20,null,"31/01/15 Orléans",50,null,"OK",null,null,"22/02/15 Issoudun",20,null,"OPEN SENIOR - LAMOTTE - 24-03-2019",50,"OK",null,null,null,null,null,null,null,null,null,null,null,null,"2023-05-22"]
["PAS LICENCIE","DUCHANAUD","Alexandre","1993-06-28","ES MAINTENON PIERRES","CM 10/02/07",28,"","",115,"OK",null,null,null,"26/03/05 Tours","13/01/01 Tours",12,null,"4/02/01 Vendôme",7,null,"5/05/01 Tours",20,null,"4/05/02 Tours",32,null,"25/5/02 St Amand",27,null,"8/02/03 Tours",17,null,null,null,null,null,null,null,null,null,null,null,null,null,null,null,null,"2023-05-22"]
["PAS LICENCIE","DUCLAUX","Jean","1993-09-24","US ORLEANS LOIRET JUDO JUJITSU","1 Dan 13/06/08 ",45,"","",7,"",null,null,null,null,"26/01/14 Bourges",7,null,null,null,null,null,null,null,null,null,null,null,null,null,null,null,null,null,null,null,null,null,null,null,null,null,null,null,null,null,null,null,"2023-05-22"]
["PAS LICENCIE","DUCLOUS","Alexandre","1994-05-01","JUDO JUJITSU CHATILLON C,","CM 10/06/07",45,"","",10,"",null,null,null,null,"06/11/10 Angers",10,null,null,null,null,null,null,null,null,null,null,null,null,null,null,null,null,null,null,null,null,null,null,null,null,null,null,null,null,null,null,null,"2023-05-22"]
["M31072003DUFRE01","DUFRESNE","Noé","2003-07-31","AS MONTS JUDO JUJITSU","1 DAN 10/04/2019",37,"","",70,"",null,null,null,null,"02/12/12 Buxerolles",50,"OK",null,null,null,"03/02/13 Issoudun",10,null,"30/03/14 Tours",10,null,null,null,null,null,null,null,null,null,null,null,null,null,null,null,null,null,null,null,null,null,null,"2023-05-22"]
["PAS LICENCIE","DUGNE","Mickaël","1983-04-27","JUDO CHÂTEAU RENAULT","1 Dan 12/06/11",37,"","",127,"",null,null,null,null,"05/02/17 St jean le blanc",37,null,"01/04/17 Issoudun",10,null,"26/03/17 Chatellerault",30,null,"27/05/17 Issoudun",50,null,"OK",null,null,null,null,null,null,null,null,null,null,null,null,null,null,null,null,null,null,null,null,"2023-05-22"]
["F04022008DUPON01","DUPONT","Philippine","2008-02-04","UJTM 37","CM",37,"",{"$f":"IF(N1285=\"\",\"\",\"OK\")","v":""},{"$f":"Q1285+T1285+W1285+Z1285+AC1285+AF1285+AI1285+AL1285+AO1285+AR1285+AU1285","v":50},{"$f":"IF(O1285=\"\",\"\",\"OK\")","v":""},null,null,null,null,"13/12/15 Bretigny",50,"OK",null,null,null,null,null,null,null,null,null,null,null,null,null,null,null,null,null,null,null,null,null,null,null,null,null,null,null,null,null,null,"2023-05-22"]
["M28032003DUPUI01 ","DUPUIS","LOGAN ","2003-03-28","ESP.SP.DU BEFFROI KENDO","CM",37,"","",129,"",null,null,null,null,"19/05/01 Vineuil",17,null,"9/02/08 Vineuil",19,null,"31/05/08 Lamotte Beuvron",41,null,"30/11/08 St Georges/Eure",31,null,"21/03/09 Vineuil",21,null,null,null,null,null,null,null,null,null,null,null,null,null,null,null,null,null,null,null,"2023-05-22"]
["PAS LICENCIE","DURAND","Max-Denis","1967-10-05","JC BALGENTIEN","2 Dan 17/02/07  ",45,"OK","",0,"",null,"15/11/14 Orléans",null,null,null,null,null,null,null,null,null,null,null,null,null,null,null,null,null,null,null,null,null,null,null,null,null,null,null,null,null,null,null,null,null,null,null,"2023-05-22"]
["PAS LICENCIE","DURET","Philippe","1976-01-13","JC DE BAUGY","2 Dan 03/10/99",18,"OK","OK",100,"OK",null,"01/06/2018 TOURS","01/06/2018 TOURS","01/06/2019 ORLEANS","OPEN SENIOR - LAMOTTE - 24-03-2019",10,null,"12/5/2019 VIERZON",10,null,"02/6/2019 THIAIS",30,null,"08/06/2019 LOUDEAC",30,null,"16/06/2019 BRETIGNY",20,null,"13-10-2019 - TEST EFFICACITE COMBAT A SAINT GEORGES/EURE",0,null,null,null,null,null,null,null,null,null,null,null,null,null,null,null,null,"2023-05-22"]
["PAS LICENCIE","DUVAL","Manuela","1989-05-27","LE DOJO DU COMBRAY","1 Dan 04/04/09 ",28,"OK","",0,"",null,"03/12/16 Orléans",null,null,null,null,null,null,null,null,null,null,null,null,null,null,null,null,null,null,null,null,null,null,null,null,null,null,null,null,null,null,null,null,null,null,null,"2023-05-22"]
["M29072008DUVIV01","DUVIVIER","PORCHET Paul","2008-07-29","C CHARTRES JUDO","CM",28,"","",10,"",null,null,null,null,"01/10/16 Tours",10,null,null,null,null,null,null,null,null,null,null,null,null,null,null,null,null,null,null,null,null,null,null,null,null,null,null,null,null,null,null,null,"2023-05-22"]
["PAS LICENCIE","EDMOND","Alexandre","1997-11-15","US ORLEANS LOIRET JUDO JUJITSU","1 Dan 15/02/14",45,"","",20,"",null,null,null,null,"25 01 2020 CHAMPIONNAT CADETS-CADETTES 1ERE DIVISION BASSIN NORD TOURS",20,null,null,null,null,null,null,null,null,null,null,null,null,null,null,null,null,null,null,null,null,null,null,null,null,null,null,null,null,null,null,null,"2023-05-22"]
["M13012005EL*AA01","EL AAZAOUI","MOHAMED AMINE","2005-01-13","JC ST JEAN DE LA RUELLE","1 DAN 11/02/2023",45,"","",75,"",null,null,null,null,"13/01/01 Tours",10,null,"17/02/01 Tours",10,null,"31/03/01 Tours",30,null,"4/05/02 Tours",15,null,"12/12/15 Angers",10,null,null,null,null,null,null,null,null,null,null,null,null,null,null,null,null,null,null,null,"2023-05-22"]
["M271095EL*OU01","EL OUALI","Ayoub","1995-10-27","LE CENTRAL J JUDO ORLEANAIS","CM 05/10/18",45,"","",50,"",null,null,null,null,"13-10-2019 - TEST EFFICACITE COMBAT A SAINT GEORGES/EURE",10,null,"TEST EFFICACITE TOURS 15-12-19",10,null,"07-11-2021 SHIAI AMILLY",10,null,"06/11/2022 SHIAI ISSOUDUN",20,null,null,null,null,null,null,null,null,null,null,null,null,null,null,null,null,null,null,null,null,null,null,"2023-05-22"]
["PAS LICENCIE","ERDEVEN","Carole","1993-07-29","US ORLEANS LOIRET JUDO JUJITSU","2 Dan 03/12/11 ",45,"","",0,"",null,null,null,null,null,null,null,null,null,null,null,null,null,null,null,null,null,null,null,null,null,null,null,null,null,null,null,null,null,null,null,null,null,null,null,null,null,"2023-05-22"]
["PAS LICENCIE","ESCLAPEZ","Thomas","1993-02-01","SAINT AVERTIN SPORTS","1 Dan 28/04/10 ",37,"OK","",0,"OK",null,"04/06/16 Louviers",null,"CJA Cadets 23/03/15 Orléans 14,5",null,null,null,null,null,null,null,null,null,null,null,null,null,null,null,null,null,null,null,null,null,null,null,null,null,null,null,null,null,null,null,null,null,"2023-05-22"]
["PAS LICENCIE","ESPEISSE","Florent","1986-10-15","ES MAINTENON PIERRES","2 Dan 01/02/15",28,"",{"$f":"IF(N1352=\"\",\"\",\"OK\")","v":""},{"$f":"Q1352+T1352+W1352+Z1352+AC1352+AF1352+AI1352+AL1352+AO1352+AR1352+AU1352","v":10},{"$f":"IF(O1352=\"\",\"\",\"OK\")","v":""},null,null,null,null,"17/01/15 St amand",10,null,null,null,null,null,null,null,null,null,null,null,null,null,null,null,null,null,null,null,null,null,null,null,null,null,null,null,null,null,null,null,"2023-05-22"]
["M17012006EVENO01","EVENO","MATHEO","2006-01-17","C CHARTRES JUDO","CM",28,"OK","",0,"",null,"18/06/11 Tours",null,null,null,null,null,null,null,null,null,null,null,null,null,null,null,null,null,null,null,null,null,null,null,null,null,null,null,null,null,null,null,null,null,null,null,"2023-05-22"]
["PAS LICENCIE","EVRARD LECLERC","Quentin","1994-08-16","JUDO CLUB ST GEORGES/CHER","CM",41,"","",0,"",null,null,null,null,null,null,null,null,null,null,null,null,null,null,null,null,null,null,null,null,null,null,null,null,null,null,null,null,null,null,null,null,null,null,null,null,null,{"$f":"TODAY()","v":"2023-05-22"}]
["PAS LICENCIE","FAUCON ","Angélique","1994-04-15","US ORLEANS LOIRET JUDO JUJITSU","CM",45,"","",105,"",null,null,null,null,"10/12/06 Le Poinçonnet",17,null,"17/12/06 Issoudun ",17,null,"13/01/07 Tours",26,null,"31/03/07 Gien",15,null,"18/04/09 Amilly",30,null,"18/04/09 Amilly",null,null,null,null,null,null,null,null,null,null,null,null,null,null,null,null,null,"2023-05-22"]
["F09072002FAYOL01","FAYOL","Mathilde","2002-07-09","ALLIANCE JUDO 28","2 DAN 16/10/2019",28,{"$f":"IF(M1378=\"\",\"\",\"OK\")","v":""},{"$f":"IF(N1378=\"\",\"\",\"OK\")","v":""},{"$f":"Q1378+T1378+W1378+Z1378+AC1378+AF1378+AI1378+AL1378+AO1378+AR1378+AU1378","v":30},{"$f":"IF(O1378=\"\",\"\",\"OK\")","v":""},null,null,null,null,"03/12/2022 TOURNOI DE BOURGES",30]
["PAS LICENCIE","FELICIANO","Julien","1992-10-15","AS JUDO HANCHES","1 Dan 13/06/08  ",28,"","",27,"",null,null,null,null,"15/12/12 Orléans",7,null,"02/12/12 St Georges/eure",20,null,null,null,null,null,null,null,null,null,null,null,null,null,null,null,null,null,null,null,null,null,null,null,null,null,null,null,null,"2023-05-22"]
["PAS LICENCIE","FERRACCI","Adrien","1987-04-17","USP JC  POINCONNET","CM",36,"OK","",0,"OK",null,"23/01/16 Tours",null,"31/01/15 Vendome",null,null,null,null,null,null,null,null,null,null,null,null,null,null,null,null,null,null,null,null,null,null,null,null,null,null,null,null,null,null,null,null,null,"2023-05-22"]
["F30121995FERRE01","FERREIRA","Juliana","1995-12-30","US ORLEANS LOIRET JUDO JUJITSU","3 Dan 03/04/2021",45,"","",50,"",null,null,null,null,"21/10/12 St jean le blanc",50,"OK",null,null,null,null,null,null,null,null,null,null,null,null,null,null,null,null,null,null,null,null,null,null,null,null,null,null,null,null,null,null,"2023-05-22"]
["F15021998FERRE01","FERREIRA","Jennifer","1998-02-15","JC ARTENAY","2 Dan 24/03/18",45,"","",10,"",null,null,null,null,"27/05/18 Orléans",10,null,null,null,null,null,null,null,null,null,null,null,null,null,null,null,null,null,null,null,null,null,null,null,null,null,null,null,null,null,null,null,"2023-05-22"]
["M18082004FERTE01","FERTER","Enzo","2004-08-18","AS MONTLOUIS JUDO","CM 11/06/18",37,"","",100,"OK",null,null,null,"CJA Cadet 14,70 Reuilly 02/12/12","25/09/11 Déols",10,null,"15/01/12 Lamotte Beuvron",30,null,"03/03/12 Limoges",20,null,"19/05/12 Amilly",10,null,"15/12/12 Orléans",30,null,null,null,null,null,null,null,null,null,null,null,null,null,null,null,null,null,null,null,"2023-05-22"]
["M11042006FEYDR01","FEYDRI","AUXENCE","2006-04-11","S.M.O.C. ST JEAN DE BRAYE","1 DAN 20/11/2022",45,"","",100,"",null,null,null,null,"11/12/11 Tours",20,null,"17/03/12 Tours",10,null,"15/04/12 Tours",10,null,"29/11/15 Tours",10,null,"12/12/15 Angers",20,null,"20/03/16 Tours",30,null,null,null,null,null,null,null,null,null,null,null,null,null,null,null,null,"2023-05-22"]
["F19062005FILLI01 ","FILLIATRE","FLAVIE ","2005-06-19","UNION JUDO TOURAINE METROPOLE","CM",37,"","",105,"",null,null,null,null,"3/12/06 Joigny",10,null,"25/02/07 Le Mans",41,"OK","12/02/12 Issoudun",30,null,"01/04/12 Orléans",24,null,null,null,null,null,null,null,null,null,null,null,null,null,null,null,null,null,null,null,null,null,null,"2023-05-22"]
["F29031994FIORE01","FIORETTI","ALICE","1994-03-29",null,"2 DAN",null,"","",100,"",null,null,null,null,"04/12/11 St Georges/Eure",20,null,"11/02/12 Issoudun",10,null,"03/03/12 Limoges",10,null,"15/12/12 Orléans",30,null,"02/02/13 Issoudun",20,null,"15/02/14 Issoudun",10,null,null,null,null,null,null,null,null,null,null,null,null,null,null,null,null,"2023-05-22"]
["PAS LICENCIE","FLOQUET","Lucas","2000-12-19","JC CASTELMEILLANTAIS","CM 06/02/15",18,"",{"$f":"IF(N1431=\"\",\"\",\"OK\")","v":""},{"$f":"Q1431+T1431+W1431+Z1431+AC1431+AF1431+AI1431+AL1431+AO1431+AR1431+AU1431","v":0},{"$f":"IF(O1431=\"\",\"\",\"OK\")","v":""},null,null,null,null,null,null,null,null,null,null,null,null,null,null,null,null,null,null,null,null,null,null,null,null,null,null,null,null,null,null,null,null,null,null,null,null,null,"2023-05-22"]
["PAS LICENCIE","FONTAINE","Marylène","1990-07-25","CERCLE BUDO BOURGES JUDO","1 Dan 02/12/06  ",18,"","",52,"",null,null,null,null,"13/03/11 Issoudun",32,null,"29/01/12 Orléans",10,null,"12/02/12 Issoudun",10,null,null,null,null,null,null,null,null,null,null,null,null,null,null,null,null,null,null,null,null,null,null,null,null,null,{"$f":"TODAY()","v":"2023-05-22"}]
["PAS LICENCIE","FORTAT","Cyrille","1971-08-11","JC D'AVARAY","1 Dan 07/05/05 ",41,"","",15,"",null,null,null,null,"27/11/10 Issoudun",15,null,null,null,null,null,null,null,null,null,null,null,null,null,null,null,null,null,null,null,null,null,null,null,null,null,null,null,null,null,null,null,"2023-05-22"]
["PAS LICENCIE","FOSSET","Olivier",null,"CSMS JUDO JUJITSU","CM",45,"","",40,"",null,null,null,null,"12/03/11 Issoudun",10,null,"03/04/11 Nogent le rotrou",10,null,"15/05/11 Lamotte Beuvron",10,null,"04/12/11 St Georges/Eure",10,null,null,null,null,null,null,null,null,null,null,null,null,null,null,null,null,null,null,null,null,null,null,"2023-05-22"]
["PAS LICENCIE","FOULATIER","Jérôme","1982-12-16","JUDO ST CYR SUR LOIRE","1 Dan 04/06/05",37,"OK","",0,"",null,"10/05/14 Tours",null,null,null,null,null,null,null,null,null,null,null,null,null,null,null,null,null,null,null,null,null,null,null,null,null,null,null,null,null,null,null,null,null,null,null,"2023-05-22"]
["PAS LICENCIE","FOULON","Anthony","1999-09-25","JC ST GAULTIER","CM",36,"","",10,"",null,null,null,null,"20/04/14 Tours",10,null,null,null,null,null,null,null,null,null,null,null,null,null,null,null,null,null,null,null,null,null,null,null,null,null,null,null,null,null,null,null,"2023-05-22"]
["F26062004FOURM01","FOURMY","Léa","2004-06-26","JC RICHELAIS","1 dan 20/11/2021",37,"","",20,"",null,null,null,null,"02/04/11 Orléans",10,null,"07/05/11 St Jean le Blanc",10,null,null,null,null,null,null,null,null,null,null,null,null,null,null,null,null,null,null,null,null,null,null,null,null,null,null,null,null,"2023-05-22"]
["PAS LICENCIE","FOURNIER","Morgan","1994-06-16","J3 SPORTS AMILLY","1 Dan 12/06/09  ",45,"","",48,"OK",null,null,null,"15/05/10 Tours Arbitre Départemental","10/01/10 Tours",20,null,"13/03/10 Chatellerault",21,null,"15/05/10 Tours",7,null,null,null,null,null,null,null,null,null,null,null,null,null,null,null,null,null,null,null,null,null,null,null,null,null,"2023-05-22"]
["PAS LICENCIE","FRAMBOURT","Corentin","1996-05-26","SAINT AMAND JUDO","1 Dan 18/03/12",18,"","",74,"OK",null,null,null,"15/01/17 Tours","04/03/17 Angers",24,null,"26/03/17 Chatellerault",50,"OK",null,null,null,null,null,null,null,null,null,null,null,null,null,null,null,null,null,null,null,null,null,null,null,null,null,null,null,"2023-05-22"]
["PAS LICENCIE","FREIDA","Vincent","1973-03-19","J3 SPORTS AMILLY","CM",45,{"$f":"IF(M1490=\"\",\"\",\"OK\")","v":""},{"$f":"IF(N1490=\"\",\"\",\"OK\")","v":"OK"},{"$f":"Q1490+T1490+W1490+Z1490+AC1490+AF1490+AI1490+AL1490+AO1490+AR1490+AU1490","v":0},{"$f":"IF(O1490=\"\",\"\",\"OK\")","v":""},null,null,"12/03/2022 TOURS"]
["PAS LICENCIE","FUHRMAN","Joseph","1997-02-16","ENTENTE SPORTIVE JUDO AUNEAU","CM",28,"","",97,"",null,null,null,null,"28/11/09 Vendôme",7,null,"5/06/10 St Jean le Blanc",20,null,"27/11/10 Issoudun",30,null,"13/02/11 Vendome",40,null,null,null,null,null,null,null,null,null,null,null,null,null,null,null,null,null,null,null,null,null,null,"2023-05-22"]
["PAS LICENCIE","FURCY","Julien","1982-02-08","INGRE JUDO CLUB","1 Dan 30/01/10  ",45,"OK","",27,"OK",null,"12/06/10 Tours",null,41601,"01/02/15 Vendome",27,null,null,null,null,null,null,null,null,null,null,null,null,null,null,null,null,null,null,null,null,null,null,null,null,null,null,null,null,null,null,null,"2023-05-22"]
["PAS LICENCIE","GAILLARD","Arnaud","1990-12-08","SMOC ST JEAN DE BRAYE","2 Dan 28/01/12",45,"","",124,"",null,null,null,null,"17/02/18 Orléans",10,null,"29/09/18 Orléans",20,null,"02-02-2019 Demie finale juniors Issoudun",40,null,"17/03/2019 1/4 DE FINALE SENIORS G ET F 1ERE DIV N°1 - dojo J C Rousseau - ORLEANS",27,null,"11/05/2019 CHAMPIONNAT REGIONAL INDIVIDUEL SENIOR 2DIV - VIERZON",27,null,null,null,null,null,null,null,null,null,null,null,null,null,null,null,null,null,null,null,"2023-05-22"]
["M26102001GAILL01","GAILLARD","Julien","2001-10-26","A JUDO CHATEAUROUX","1 Dan 18/02/17",36,"OK","OK",27,"",null,"10/10/2020 TOURS","10/10/2020 TOURS",null,"25 01 2020 CHAMPIONNAT CADETS-CADETTES 1ERE DIVISION BASSIN NORD TOURS",10,null,"07-11-2021 SHIAI AMILLY",17,null,null,null,null,null,null,null,null,null,null,null,null,null,null,null,null,null,null,null,null,null,null,null,null,null,null,null,null,"2023-05-22"]
["M15052008GALLA01","GALLAIS","SAMUEL","2008-05-15","ARTS MARTIAUX DE ST GEORGES","MA",28,{"$f":"IF(M1520=\"\",\"\",\"OK\")","v":""},{"$f":"IF(N1520=\"\",\"\",\"OK\")","v":"OK"},{"$f":"Q1520+T1520+W1520+Z1520+AC1520+AF1520+AI1520+AL1520+AO1520+AR1520+AU1520","v":0},{"$f":"IF(O1520=\"\",\"\",\"OK\")","v":""},null,null,"13/05/2023 TOURS"]
["PAS LICENCIE","GALLIER ","Yoann","1985-07-13","SAINT DOULCHARD JUDO CLUB","2 Dan 06/06/03",18,"","",0,"",null,null,null,null,null,null,null,null,null,null,null,null,null,null,null,null,null,null,null,null,null,null,null,null,null,null,null,null,null,null,null,null,null,null,null,null,null,"2023-05-22"]
["M07081998GANKH01","GANKHUU","Temuulen","1998-08-07","UNION JUDO TOURAINE METROPOLE 37","1 Dan 19/04/15",37,"","",127,"",null,null,null,null,"20/03/16 Orléans",7,null,"10/04/16 Orléans",10,null,"29/05/16 Issoudun",10,null,"06/11/16 Orléans",10,null,"20/11/16 St jean leblanc",20,null,"03/12/16 Nantes",20,null,"21/10/17 Vendome",30,null,"17/03/2019 1/4 DE FINALE SENIORS G ET F 1ERE DIV N°1 - dojo J C Rousseau - ORLEANS",20,null,null,null,null,null,null,null,null,null,null,"2023-05-22"]
["F17092001GARCI01","GARCIA","Krystal","2001-09-17","US ORLEANS LOIRET JUDO JUJITSU","1 Dan 10/06/17",45,"OK","",0,"",null,"02/03/2019 ORLEANS",null,null,null,null,null,null,null,null,null,null,null,null,null,null,null,null,null,null,null,null,null,null,null,null,null,null,null,null,null,null,null,null,null,null,null,"2023-05-22"]
["PAS LICENCIE","GARNIER","Jérémie","1985-11-02","JUDO CLUB TOURAINE","CM 05/05/09",37,"","",27,"",null,null,null,null,"05/06/10 St Jean le Blanc",27,null,null,null,null,null,null,null,null,null,null,null,null,null,null,null,null,null,null,null,null,null,null,null,null,null,null,null,null,null,null,null,"2023-05-22"]
["PAS LICENCIE","GASCOIN","Olivier","1972-05-16","JC BRISSARD ABONDANT","1 Dan 05/04/15",28,"","",7,"",null,null,null,null,"06/10/18 Orléans",7,null,null,null,null,null,null,null,null,null,null,null,null,null,null,null,null,null,null,null,null,null,null,null,null,null,null,null,null,null,null,null,"2023-05-22"]
["PAS LICENCIE","GAUCHER","Paul","1993-05-19","SPG CLUB AMBOISIEN","1 Dan  21/10/09 ",37,"","",20,"",null,null,null,null,"28/11/09 Vendôme",20,null,null,null,null,null,null,null,null,null,null,null,null,null,null,null,null,null,null,null,null,null,null,null,null,null,null,null,null,null,null,null,"2023-05-22"]
["PAS LICENCIE","GAULTIER","Anais","2000-03-22","JUDO CLUB CLERENCOIS","CM",37,"","",20,"",null,null,null,null,"01/12/12 Orléans",20,null,null,null,null,null,null,null,null,null,null,null,null,null,null,null,null,null,null,null,null,null,null,null,null,null,null,null,null,null,null,null,"2023-05-22"]
["PAS LICENCIE","GAUTHIER","Fabien","1998-11-11","SC LANGEAIS","1 Dan 29/11/15",37,"OK","OK",0,"",null,"02/03/2019 ORLEANS","02/03/2019  ORLEANS",null,null,null,null,null,null,null,null,null,null,null,null,null,null,null,null,null,null,null,null,null,null,null,null,null,null,null,null,null,null,null,null,null,null,"2023-05-22"]
["PAS LICENCIE","GENDRAUD","Bastien","1994-07-17","SMOC ST JEAN DE BRAYE","CM",45,"","",10,"OK",null,null,null,"27/06/13 Olivet","17/05/14 Gien",10,null,null,null,null,null,null,null,null,null,null,null,null,null,null,null,null,null,null,null,null,null,null,null,null,null,null,null,null,null,null,null,"2023-05-22"]
["PAS LICENCIE","GEORGES","Aymeric","1991-06-07","µµµµ","1 Dan 25/11/06  ",18,"","",0,"",null,null,null,null,null,null,null,null,null,null,null,null,null,null,null,null,null,null,null,null,null,null,null,null,null,null,null,null,null,null,null,null,null,null,null,null,null,"2023-05-22"]
["PAS LICENCIE","GERGEAUX","Pierre","1994-09-14","US CHAMBRAY JUDO","1 Dan 12/06/10   ",37,"OK","",20,"OK",null,"19/03/11 Châteauroux",null,"15/01/11 St Amand","5/12/09 St Amand",10,null,"15/01/11 St Amand",10,null,null,null,null,null,null,null,null,null,null,null,null,null,null,null,null,null,null,null,null,null,null,null,null,null,null,null,null,"2023-05-22"]
["PAS LICENCIE","GERVAIS","Guillaume","1986-07-12","JC BREZOLLIEN","1 Dan 20/01/08  ",28,"OK","",30,"OK",null,"08/06/13 Tours",null,"13/04/13 Tours","13/01/13 Orléans",10,null,"01/06/13 Vendome",20,null,null,null,null,null,null,null,null,null,null,null,null,null,null,null,null,null,null,null,null,null,null,null,null,null,null,null,null,"2023-05-22"]
["PAS LICENCIE","GHODBANE","Farid","1978-07-21","JUDO CLUB DE VIERZON","CM 26/06/09",18,{"$f":"IF(M1600=\"\",\"\",\"OK\")","v":"OK"},{"$f":"IF(N1600=\"\",\"\",\"OK\")","v":"OK"},{"$f":"Q1600+T1600+W1600+Z1600+AC1600+AF1600+AI1600+AL1600+AO1600+AR1600+AU1600","v":10},{"$f":"IF(O1600=\"\",\"\",\"OK\")","v":""},null,"26/06/2021 ORLEANS","12/03/2022 TOURS",null,"07-11-2021 SHIAI AMILLY",10]
["PAS LICENCIE","GIGAULT","Laurent","1981-05-30","JC PITHIVIERS","2 Dan 28/01/12",45,"","",20,"",null,null,null,null,"6/06/09 St Jean de la Ruelle",20,null,null,null,null,null,null,null,null,null,null,null,null,null,null,null,null,null,null,null,null,null,null,null,null,null,null,null,null,null,null,null,"2023-05-22"]
["PAS LICENCIE","GIL","Maxime","1989-08-01","JC ISSOLDUNOIS","1 Dan 06/06/09",36,"","",40,"",null,null,null,null,"30/09/17 Tours",40,null,null,null,null,null,null,null,null,null,null,null,null,null,null,null,null,null,null,null,null,null,null,null,null,null,null,null,null,null,null,null,"2023-05-22"]
["PAS LICENCIE","GILLET","Remy","1994-01-12","CCAM JUDO /JUJITSU LA CHAPELLE","CM 24/06/07",45,"","",75,"",null,null,null,null,"1/12/07 Vendôme",30,null,"7/11/09 Angers",7,null,"28/11/09 Vendôme",28,null,"10/12/11 Angers",10,null,null,null,null,null,null,null,null,null,null,null,null,null,null,null,null,null,null,null,null,null,null,"2023-05-22"]
["M16102008GINER01","GINER","RONAN","2008-10-16","ARTS MARTIAUX DE ST GEORGES","CM",28,"","",10,"",null,null,null,null,"26/11/2018 – SHIAI ANGERS",10,null,null,null,null,null,null,null,null,null,null,null,null,null,null,null,null,null,null,null,null,null,null,null,null,null,null,null,null,null,null,null,"2023-05-22"]
["M29111974GIRAR01","GIRARD","ARNAUD","1974-11-29","ES GATINAISE","1 Dan 22/01/17",45,{"$f":"IF(M1630=\"\",\"\",\"OK\")","v":""},{"$f":"IF(N1630=\"\",\"\",\"OK\")","v":"OK"},{"$f":"Q1630+T1630+W1630+Z1630+AC1630+AF1630+AI1630+AL1630+AO1630+AR1630+AU1630","v":0},{"$f":"IF(O1630=\"\",\"\",\"OK\")","v":""},null,null,"12/03/2022 TOURS"]
["PAS LICENCIE","GIRAUDIER","Jacques","1968-05-30","US FERTESIENNE ","2 Dan 22/05/05  ",45,"","",40,"OK",null,null,null,"F1 05/04/14 Vendome","12/01/13 Orléans",10,null,"02/06/13 Vendome",20,null,"21/12/13 Vendome",10,null,null,null,null,null,null,null,null,null,null,null,null,null,null,null,null,null,null,null,null,null,null,null,null,null,"2023-05-22"]
["PAS LICENCIE","GODET","Rémy","1992-03-25","USM ST DENIS EN VAL","CM",45,"OK","",47,"OK",null,"05/02/05 Castelnaul le lez",null,"11/12/04 Rodilhan","06/02/05 Castelnaul le lez",47,"OK",null,null,null,null,null,null,null,null,null,null,null,null,null,null,null,null,null,null,null,null,null,null,null,null,null,null,null,null,null,null,"2023-05-22"]
["PAS LICENCIE","GOGNAT","Julien","1977-11-07","JC DUNOIS CHATEAUDUN","1 Dan 16/12/07  ",28,"OK","",30,"OK",null,"23/01/16 Tours",null,"18/04/15 Chateauroux","27/02/16 Vierzon",20,null,"06/03/16 Limoges",10,null,null,null,null,null,null,null,null,null,null,null,null,null,null,null,null,null,null,null,null,null,null,null,null,null,null,null,null,"2023-05-22"]
["M27082003GOILA01","GOILARD","Tomy","2003-08-27","BALLAN JUDO CLUB","1 DAN 16/10/2020",37,"OK","",55,"",null,"13/06/09 Houlgate",null,null,"2/05/09 St Doulchard",25,null,"14/06/09 Houlgate",30,null,0,null,null,null,null,null,null,null,null,null,null,null,null,null,null,null,null,null,null,null,null,null,null,null,null,null,null,"2023-05-22"]
["PAS LICENCIE","GONCALVES","Hugo","1995-07-02","ARTS MARTIAUX DE ST GEORGES","1 Dan 06/03/10  ",28,"","",21,"",null,null,null,null,"06/11/2022 SHIAI ISSOUDUN",21,null,null,null,null,null,null,null,null,null,null,null,null,null,null,null,null,null,null,null,null,null,null,null,null,null,null,null,null,null,null,null,"2023-05-22"]
["PAS LICENCIE","GOUAULT","Mathieu","1998-03-17","US ORLEANS LOIRET JUDO JUJITSU","1 Dan 05/06/13",45,"OK","",0,"",null,"18/06/11 St Georges/Eure",null,null,null,null,null,null,null,null,"X 0",null,null,null,null,null,null,null,null,null,null,null,null,null,null,null,null,null,null,null,null,null,null,null,null,null,null,"2023-05-22"]
["PAS LICENCIE","GOUIN","Arthur","2001-10-25","ES BOURGUEIL","1 Dan 11/11/17",37,"","",0,"",null,null,null,null,null,null,null,null,null,null,null,null,null,null,null,null,null,null,null,null,null,null,null,null,null,null,null,null,null,null,null,null,null,null,null,null,null,"2023-05-22"]
["PAS LICENCIE","GOULET","Sylvain","1990-01-03","UNION JUDO 37 TOURS","2 Dan  24/05/09  ",37,"","",21,"",null,null,null,null,"7/02/10 St Georges/Eure",14,null,"7/03/10 Issoudun",7,null,"10 -0 / 00-0",null,null,null,null,null,null,null,null,null,null,null,null,null,null,null,null,null,null,null,null,null,null,null,null,null,null,"2023-05-22"]
["PAS LICENCIE","GOUSSARD","Pierre","1993-04-18","JUDO CLUB MEHUN","2 Dan 11/12/10  ",18,"","",0,"",null,null,null,null,null,null,null,null,null,null,null,null,null,null,null,null,null,null,null,null,null,null,null,null,null,null,null,null,null,null,null,null,null,null,null,null,null,"2023-05-22"]
["PAS LICENCIE","GREINSCHGL","Alice","1995-10-14","US ST CYR EN VAL","1 Dan 18/06/11",45,"","",20,"",null,null,null,null,"06/11/2022 SHIAI ISSOUDUN",20,null,null,null,null,null,null,null,null,null,null,null,null,null,null,null,null,null,null,null,null,null,null,null,null,null,null,null,null,null,null,null,"2023-05-22"]
["M01112003GREZA01","GREZANLE","Gabin","2003-11-01","ARTS MARTIAUX DE ST GEORGES","1 DAN 30/03/2019",28,"","",10,"",null,null,null,null,"13-10-2019 - TEST EFFICACITE COMBAT A SAINT GEORGES/EURE",0,null,"13-10-2019 - TEST EFFICACITE COMBAT A SAINT GEORGES/EURE RATTRAPAGE 2",10,null,"OBLIGIS Sarah F17092005OBLIG01 CB",null,null,null,null,null,null,null,null,null,null,null,null,null,null,null,null,null,null,null,null,null,null,null,null,null,null,"2023-05-22"]
["PAS LICENCIE","GRILLON","Vincent","1992-02-20","UNION SPORT VERNOU","CM 23/05/07",37,"","",60,"",null,null,null,null,"29/09/18 Orléans",30,null,"17/03/2019 1/4 DE FINALE SENIORS G ET F 1ERE DIV N°1 - dojo J C Rousseau - ORLEANS",10,null,"10 -0 / 00-0",20,null,null,null,null,null,null,null,null,null,null,null,null,null,null,null,null,null,null,null,null,null,null,null,null,null,"2023-05-22"]
["PAS LICENCIE","GRIMAUD","Clement","1999-11-22","US ORLEANS LOIRET JUDO JUJITSU","1 Dan 01/06/14",45,"","",107,"",null,null,null,null,"28/01/01 Orléans",40,null,"11/03/01 St Amand",27,null,"TOURNOI NATIONAL INDIVIDUEL CADET - CREPS DE BOURGES -",20,null,"29/09/01 Marseille",20,null,null,null,null,null,null,null,null,null,null,null,null,null,null,null,null,null,null,null,null,null,null,"2023-05-22"]
["PAS LICENCIE","GROSSETETE","Erwan","1997-12-03","L.E.S.S.C.A.L.E","1 Dan 03/11/12",28,"","",10,"",null,null,null,null,"26/04/15 Tours",10,null,null,null,null,null,null,null,null,null,null,null,null,null,null,null,null,null,null,null,null,null,null,null,null,null,null,null,null,null,null,null,"2023-05-22"]
["M02112001GUEDO02","GUEDON","MATTHIEU","2001-11-02","AVIONNETTE PARCAY-MESLAY","CM",37,{"$f":"IF(M1726=\"\",\"\",\"OK\")","v":""},{"$f":"IF(N1726=\"\",\"\",\"OK\")","v":""},{"$f":"Q1726+T1726+W1726+Z1726+AC1726+AF1726+AI1726+AL1726+AO1726+AR1726+AU1726","v":40},{"$f":"IF(O1726=\"\",\"\",\"OK\")","v":""},null,null,null,null,"06/11/2022 SHIAI ISSOUDUN",40]
["PAS LICENCIE","GUEHO","Thierry","1965-06-14","JUDO CLUB JOCONDIEN","1 Dan 22/01/06",37,"","",30,"OK",null,null,null,"31/01/15 Orléans","27/11/10 Issoudun",30,null,null,null,null,null,null,null,null,null,null,null,null,null,null,null,null,null,null,null,null,null,null,null,null,null,null,null,null,null,null,null,"2023-05-22"]
["M06082003GUERE01","GUERET","Nicolas","2000-05-07","C'CHARTRES JUDO HORIZON 28","2 Dan 20/10/18",28,"","",10,"",null,null,null,null,"18_11_2022 St Doulchard Open",10,null,null,null,null,null,null,null,null,null,null,null,null,null,null,null,null,null,null,null,null,null,null,null,null,null,null,null,null,null,null,null,"2023-05-22"]
["PAS LICENCIE","GUERIN","Stéphane","1976-03-02","AJ CHATEAUROUX","CM 22/11/96",36,"","",14,"",null,null,null,null,"19/01/08 Bourges",7,null,"16/01/10 Vierzon",7,null,null,null,null,null,null,null,null,null,null,null,null,null,null,null,null,null,null,null,null,null,null,null,null,null,null,null,null,"2023-05-22"]
["PAS LICENCIE","GUERRIAU","Gaeven","1993-08-25","LE DOJO DU COMBRAY","1 Dan 21/03/10   ",28,{"$f":"IF(M1748=\"\",\"\",\"OK\")","v":""},{"$f":"IF(N1748=\"\",\"\",\"OK\")","v":""},{"$f":"Q1748+T1748+W1748+Z1748+AC1748+AF1748+AI1748+AL1748+AO1748+AR1748+AU1748","v":0},{"$f":"IF(O1748=\"\",\"\",\"OK\")","v":""}]
["PAS LICENCIE","GUESNY","Minh","1977-10-09","JC DUNOIS CHATEAUDUN","CM",28,"","",60,"",null,null,null,null,"30/11/13 Orléans",20,null,"01/06/14 Ceyrat",10,null,"10/01/15 Orléans",10,null,"22/02/15 Issoudun",20,null,null,null,null,null,null,null,null,null,null,null,null,null,null,null,null,null,null,null,null,null,null,"2023-05-22"]
["M11121981GUIBO01","GUIBOU","RENAUD","1981-12-11","LE CENTRAL J.JUDO ORLEANAIS","CM 04/10/2018",45,"","",0,"",null,null,null,null,null,null,null,null,null,null,null,null,null,null,null,null,null,null,null,null,null,null,null,null,null,null,null,null,null,null,null,null,null,null,null,null,null,"2023-05-22"]
["PAS LICENCIE","GUILLAUME","Benjamin","1991-01-07","JUDO JUJITSU CHATILLON C,","CM",45,"","",10,"",null,null,null,null,"01/02/14 Tours",10,null,null,null,null,null,null,null,null,null,null,null,null,null,null,null,null,null,null,null,null,null,null,null,null,null,null,null,null,null,null,null,"2023-05-22"]
["M08072001GUILL02","GUILLET","Bastien","2001-07-08","C'CHARTRES JUDO HORIZON 28","1 Dan 01/04/17",28,"","",0,"",null,null,null,null,null,null,null,null,null,null,null,null,null,null,null,null,null,null,null,null,null,null,null,null,null,null,null,null,null,null,null,null,null,null,null,null,null,"2023-05-22"]
["PAS LICENCIE","GUILLIER","Morgan","1991-01-06","US ST CYR EN VAL","CM 29/04/05",45,"OK","",120,"",null,"11/02/2023 ORLEANS",null,null,"11/01/15 Tours",10,null,"21/02/15 Nantes",20,null,"13/03/16 Tours",50,"OK","17/03/2019 1/4 DE FINALE SENIORS G ET F 1ERE DIV N°1 - dojo J C Rousseau - ORLEANS",10,null,"09/04/16 Orléans",10,null,"28/05/17 Issoudun",10,null,"16-02-2020 – 1/4 DE FINALE SENIOR 1ERE DIVISION BASSIN SUD -  TOURS",10,null,null,null,null,null,null,null,null,null,null,null,null,null,"2023-05-22"]
["M26052006GUINO01","GUINOT","ROBIN","2006-05-26","JUDO CLUB FERTESIEN","1 DAN 5/12/2021",45,{"$f":"IF(M1789=\"\",\"\",\"OK\")","v":""},{"$f":"IF(N1789=\"\",\"\",\"OK\")","v":""},{"$f":"Q1789+T1789+W1789+Z1789+AC1789+AF1789+AI1789+AL1789+AO1789+AR1789+AU1789","v":20},{"$f":"IF(O1789=\"\",\"\",\"OK\")","v":""},null,null,null,null,"06/11/2022 SHIAI ISSOUDUN",20]
["PAS LICENCIE","GUY ","Alarick","2000-06-07","SAINT MARTIN SPORTS","CM",41,"","",30,"",null,null,null,null,"27/03/10 Gien",10,null,"02/04/11 Saint Doulchard",10,null,"07/05/11 St Jean le Blanc",10,null,null,null,null,null,null,null,null,null,null,null,null,null,null,null,null,null,null,null,null,null,null,null,null,null,"2023-05-22"]
["PAS LICENCIE","HABBOUCHI","Mouloud","1960-10-26","ALLIANCE DE DREUX","1 Dan  06/06/09  ",28,"OK","",17,"",null,"12/06/10 St Georges/Eure",null,null,"16/04/11 Illiers Combray",7,null,"26/11/11 Issoudun",10,null,null,null,null,null,null,null,null,null,null,null,null,null,null,null,null,null,null,null,null,null,null,null,null,null,null,null,null,"2023-05-22"]
["F27032002HAGUE01","HAGUET","JOTIA","2002-03-27","SAINT MARTIN SPORTS","1 DAN 15/12/2019",41,"","",10,"",null,null,null,null,"11/01/14 Le Poinconnet",10,null,null,null,null,null,null,null,null,null,null,null,null,null,null,null,null,null,null,null,null,null,null,null,null,null,null,null,null,null,null,null,"2023-05-22"]
["21031999HAKOB01","HAKOBYAN","Arsen","1999-03-21","BOURGES JUDO","1 Dan 05/02/17",18,"","",20,"",null,null,null,null,"24/02/13 Angers",20,null,null,null,null,null,null,null,null,null,null,null,null,null,null,null,null,null,null,null,null,null,null,null,null,null,null,null,null,null,null,null,"2023-05-22"]
["PAS LICENCIE","HAMPARYAN","Quentin","1990-01-11","JUDO CLUB BUZANCAIS","CM 02/06/04",36,"","",80,"OK",null,null,null,"16/11/11 Orléans","30/01/11 Orléans",30,null,"28/01/12 Orléans",30,null,"12/02/12 Issoudun",10,null,"01/04/12 Orléans",10,null,null,null,null,null,null,null,null,null,null,null,null,null,null,null,null,null,null,null,null,null,null,"2023-05-22"]
["PAS LICENCIE","HARTMANN","Christophe","1979-01-20","ST AVERTIN SPORTS","2 Dan 12/05/00",37,"OK","",50,"",null,"15/05/09  Tours",null,null,"12/10/08 Clermont Ferrant",20,null,"21/03/09 Le Mans",20,null,"24/10/09 Limoges",10,null,null,null,null,null,null,null,null,null,null,null,null,null,null,null,null,null,null,null,null,null,null,null,null,null,"2023-05-22"]
["PAS LICENCIE","HAUTEFORT","Alexandre","1995-11-29","J3 SPORTS AMILLY","1 Dan 29/01/11",45,"OK","",0,"",null,"18/06/11 Orléans",null,null,null,null,null,null,null,null,null,null,null,null,null,null,null,null,null,null,null,null,null,null,null,null,null,null,null,null,null,null,null,null,null,null,null,"2023-05-22"]
["M23021980HEAU*01","HEAU","JULIEN","1980-02-23","JUDO CLUB LORRIS","CM",45,"","",127,"",null,null,null,null,"04/12/04 Vendôme",20,null,"26/03/06 Orléans",21,null,"20/05/06 Orléans",7,null,"18/03/07 Orléans",7,null,"1/04/07 Gien",5,null,"10/06/07 Vendôme",55,"OK","01/05/11 Orléans",12,null,null,null,null,null,null,null,null,null,null,null,null,null,"2023-05-22"]
["M28032008HENRI01","HENRI","ALEXIS","2008-03-28","JUDO CLUB LUISANTAIS","1 DAN 28/03/2023",28,"","",10,"",null,null,null,null,"21/05/11 St Jean le Blanc",10,null,null,null,null,null,null,null,null,null,null,null,null,null,null,null,null,null,null,null,null,null,null,null,null,null,null,null,null,null,null,null,"2023-05-22"]
["PAS LICENCIE","HENRY","Fabien","1972-04-21","JC BRISSARD ABONDANT","1 Dan 06/04/91",28,"","",118,"",null,null,null,null,"26/04/08 Tours",20,null,"31/01/09 Issoudun",10,null,"5/12/09 St Amand",7,null,"16/01/10 Vierzon",14,null,"24/01/10 Tours",27,null,"20/03/10 Le Mans",10,null,"07/06/15 Vierzon",20,null,"11/05/2019 CHAMPIONNAT REGIONAL INDIVIDUEL SENIOR 2DIV - VIERZON",10,null,null,null,null,null,null,null,null,null,null,"2023-05-22"]
["PAS LICENCIE","HERBELET","Kevin","1998-01-29","SMOC ST JEAN DE BRAYE","1 Dan 01/02/15",45,{"$f":"IF(M1855=\"\",\"\",\"OK\")","v":""},{"$f":"IF(N1855=\"\",\"\",\"OK\")","v":""},{"$f":"Q1855+T1855+W1855+Z1855+AC1855+AF1855+AI1855+AL1855+AO1855+AR1855+AU1855","v":30},{"$f":"IF(O1855=\"\",\"\",\"OK\")","v":""},null,null,null,null,"20/11/2022 Open cadets St Doulchard",30]
["PAS LICENCIE","HERBERT","Hugo","2001-04-01","JUDO CLUB DE SAVONNIERES","1 Dan 01/10/16",37,"","",0,"",null,null,null,null,null,null,null,null,null,null,null,null,null,null,null,null,null,null,null,null,null,null,null,null,null,null,null,null,null,null,null,null,null,null,null,null,null,"2023-05-22"]
["PAS LICENCIE","HERMELIN","Thomas","1991-07-23","JUDO CLUB VENDOME USV","1 Dan 07/03/08 ",41,"","",10,"",null,null,null,null,"27/11/16 St Yorre",10,null,null,null,null,null,null,null,null,null,null,null,null,null,null,null,null,null,null,null,null,null,null,null,null,null,null,null,null,null,null,null,"2023-05-22"]
["PAS LICENCIE","HEURTEL","Yohan","1986-11-26","JUDO CLUB CHATEAUNEUF","1 Dan 18/12/10",45,"","",0,"",null,null,null,null,null,null,null,null,null,null,null,null,null,null,null,null,null,null,null,null,null,null,null,null,null,null,null,null,null,null,null,null,null,null,null,null,null,"2023-05-22"]
["PAS LICENCIE","HOLZER","Julien","1986-04-16","BLOIS JUDO","1 Dan 01/02/03",41,"","OK",0,"",null,null,"23/10/2021 TOURS",null,null,null,null,null,null,null,null,null,null,null,null,null,null,null,null,null,null,null,null,null,null,null,null,null,null,null,null,null,null,null,null,null,null,"2023-05-22"]
["PAS LICENCIE","HOULLIER","Julie","2001-07-18","ARTS MARTIAUX DE ST GEORGES","1 Dan 05/02/17",28,"","",10,"",null,null,null,null,"27/02/16 Vierzon",10,null,null,null,null,null,null,null,null,null,null,null,null,null,null,null,null,null,null,null,null,null,null,null,null,null,null,null,null,null,null,null,"2023-05-22"]
["PAS LICENCIE","HUBERT","Tony","1974-10-03","JC ST JEAN DE LA RUELLE","1 Dan 05/06/10",45,"","",10,"",null,null,null,null,"11/01/15 Le Poinconnet",10,null,null,null,null,null,null,null,null,null,null,null,null,null,null,null,null,null,null,null,null,null,null,null,null,null,null,null,null,null,null,null,"2023-05-22"]
["M20091993HUEBE01","HUEBER","BAPTISTE","1993-09-20","JUDO CLUB VALLEE D AVRE","2 DAN 07/07/2019",28,"OK","",17,"",null,"13/06/08 Le Poinçonnet",null,null,"29/11/08 St Georges/Eure",7,null,"6/06/09 St Jean le Blanc",10,null,null,null,null,null,null,null,null,null,null,null,null,null,null,null,null,null,null,null,null,null,null,null,null,null,null,null,null,"2023-05-22"]
["PAS LICENCIE","HURMANE","Rémi","1991-10-15","SAINT AVERTIN SPORTS","1 Dan 13/06/08  ",37,"","",12,"",null,null,null,null,"6/03/10 Issoudun",7,null,"27/11/10 issoudun",5,null,null,null,null,null,null,null,null,null,null,null,null,null,null,null,null,null,null,null,null,null,null,null,null,null,null,null,null,"2023-05-22"]
["M23062004ISOUA01","ISOUARD","NICOLAS","2004-06-23","C O SOLOGNOT","MA 21/09/2018",45,"","",112,"",null,null,null,null,"31/05/03 Vierzon",30,null,"6/12/03 Tours",17,null,"25/01/04 Orléans",27,null,"14/02/04 Tours",14,null,"11/12/04 Tours",24,null,null,null,null,null,null,null,null,null,null,null,null,null,null,null,null,null,null,null,"2023-05-22"]
["PAS LICENCIE","JABALY","Nicolas","1997-05-01","DOJO LUISANTAIS","CM",28,"","",0,"",null,null,null,null,null,null,null,null,null,null,null,null,null,null,null,null,null,null,null,null,null,null,null,null,null,null,null,null,null,null,null,null,null,null,null,null,null,"2023-05-22"]
["PAS LICENCIE","JACQUIN","Christian","1949-11-06","JUDO CLUB SELLOIS","1 Dan 20/06/10",41,"OK","",0,"",null,"12/05/18 Tours",null,null,null,null,null,null,null,null,null,null,null,null,null,null,null,null,null,null,null,null,null,null,null,null,null,null,null,null,null,null,null,null,null,null,null,"2023-05-22"]
["M27121971JACQU01","JACQUIN","Yannick","1971-12-27","UNION SPORTIVE ST MAUR JUDO","3 Dan 23/04/19",36,"","",30,"",null,null,null,null,"01/06/13 Vendome",30,null,null,null,null,null,null,null,null,null,null,null,null,null,null,null,null,null,null,null,null,null,null,null,null,null,null,null,null,null,null,null,"2023-05-22"]
["PAS LICENCIE","JAMET","Guillaume","1996-09-20","JC ISSOLDUNOIS ","1 Dan 10/05/14",36,"","",10,"",null,null,null,null,"15-02-2020 - 1/2 FINALE CADETS - Tours",10,null,null,null,null,null,null,null,null,null,null,null,null,null,null,null,null,null,null,null,null,null,null,null,null,null,null,null,null,null,null,null,"2023-05-22"]
["F26082008JAROS01","JAROS","Laly","2008-08-26","JUDO KODOKAN CLUB DU BERRY","CM",18,"","",29,"",null,null,null,null,"1/06/08 Lamotte Beuvron",10,null,"30/01/11 Orléans",5,null,"15/01/11 St Amand",14,null,null,null,null,null,null,null,null,null,null,null,null,null,null,null,null,null,null,null,null,null,null,null,null,null,{"$f":"TODAY()","v":"2023-05-22"}]
["PAS LICENCIE","JAUFFRION","Quentin","1988-09-29","AS ROCHECORBON","1 Dan 09/04/06",37,"","",17,"",null,null,null,null,"10/03/13 St jean le blanc",17,null,null,null,null,null,null,null,null,null,null,null,null,null,null,null,null,null,null,null,null,null,null,null,null,null,null,null,null,null,null,null,"2023-05-22"]
["F27022003JEANN01","JEANNE","Elyse","2003-02-27","LE DOJO DU COMBRAY","CM 01/03/17",28,"","",21,"",null,null,null,null,"7/02/10 St Georges/Eure",14,null,"3/04/10 St Georges/Eure",7,null,null,null,null,null,null,null,null,null,null,null,null,null,null,null,null,null,null,null,null,null,null,null,null,null,null,null,null,"2023-05-22"]
["PAS LICENCIE","JEANNIN","Antoine","1984-08-11","US ORLEANS LOIRET JUDO JUJITSU","2 Dan 22/09/13",45,"","",14,"",null,null,null,null,"21/03/09 Vineuil",14,null,null,null,null,null,null,null,null,null,null,null,null,null,null,null,null,null,null,null,null,null,null,null,null,null,null,null,null,null,null,null,"2023-05-22"]
["PAS LICENCIE","JEZEQUEL","Olivier","1980-03-05","JC BELLEVILLE","1 Dan 21/06/98",18,"OK","",90,"OK",null,"16/05/15 Orléans",null,"18/04/15 Chateauroux","07/06/15 Vierzon",40,null,"29/11/15 Limoges",50,"OK",null,null,null,null,null,null,null,null,null,null,null,null,null,null,null,null,null,null,null,null,null,null,null,null,null,null,null,"2023-05-22"]
["PAS LICENCIE","JOLIVOT","Alexandre","1976-03-11","JUDO CLUB LUCAY LE MALE","CM 01/06/91",36,"OK","",47,"",null,"16/05/15 Orléans",null,null,"13/03/16 Tours",27,null,"28/05/16 Issoudun",10,null,"OPEN SENIOR - LAMOTTE - 24-03-2019",10,null,null,null,null,null,null,null,null,null,null,null,null,null,null,null,null,null,null,null,null,null,null,null,null,null,"2023-05-22"]
["PAS LICENCIE","JOLY","Joris","1993-05-07","JUDO CLUB SANCERROIS","1 Dan 01/04/12",18,"","",20,"",null,null,null,null,"11/10/09 St Georges/Eure",20,null,null,null,null,null,null,null,null,null,null,null,null,null,null,null,null,null,null,null,null,null,null,null,null,null,null,null,null,null,null,null,"2023-05-22"]
["PAS LICENCIE","JOSEPH","Maxime","1997-03-22","US ST CYR EN VAL",null,45,"","",115,"",null,null,null,null,"13/12/09 Nogent le Rotrou",17,null,"24/01/10 Tours",20,null,"30/01/11 Orléans",7,null,"13/02/11 Nogent le rotrou",7,null,"03/04/11 Nogent le Rotrou",27,null,"29/01/12 Orléans",20,null,"11/03/12 Le Mans",17,null,null,null,null,null,null,null,null,null,null,null,null,null,"2023-05-22"]
["PAS LICENCIE","JOUBERT","Louis","1995-09-24","UNION JUDO 37 TOURS","1 Dan 23/01/10  ",37,"","",64,"",null,null,null,null,"04/03/17 Angers",17,null,"26/03/17 Chatellerault",30,null,"11/11/17 Angers",17,null,null,null,null,null,null,null,null,null,null,null,null,null,null,null,null,null,null,null,null,null,null,null,null,null,"2023-05-22"]
["PAS LICENCIE","JOUET","David","1984-03-28","SC LANGEAIS","2 Dan 05/11/16",37,"","",107,"",null,null,null,null,"06/04/14 Vendome",40,null,"04/04/15 Limoges",27,null,"07/06/15 Vierzon",30,null,"27/02/16 Vierzon",10,null,null,null,null,null,null,null,null,null,null,null,null,null,null,null,null,null,null,null,null,null,null,"2023-05-22"]
["PAS LICENCIE","JOUVE","Bruce","1995-05-30","BOURGES JUDO","CM",18,"OK",{"$f":"IF(N2002=\"\",\"\",\"OK\")","v":"OK"},{"$f":"Q2002+T2002+W2002+Z2002+AC2002+AF2002+AI2002+AL2002+AO2002+AR2002+AU2002","v":0},{"$f":"IF(O2002=\"\",\"\",\"OK\")","v":""},null,"01/06/2019 TOURS","01/06/2019 TOURS",null,null,null,null,null,null,null,null,null,null,null,null,null,null,null,null,null,null,null,null,null,null,null,null,null,null,null,null,null,null,null,null,null,null,"2023-05-22"]
["PAS LICENCIE","JULLIEN","Mathieu","1993-12-13","JC MISTRAL","1 Dan 28/11/09  ",37,"OK","",0,"OK",null,"10/12/11 Tours",null,"14/04/12 Châteauroux",null,null,null,null,null,null,null,null,null,null,null,null,null,null,null,null,null,null,null,null,null,null,null,null,null,null,null,null,null,null,null,null,null,"2023-05-22"]
["M15101997KALEZ01","KALEZI","Tigana steve","1997-10-15","AS GIEN JUDO","CM 10/09/11",45,"","",10,"",null,null,null,null,"26/01/2019 CHAMPIONNAT CADETS CADETTES 1ERE DIV BASIN NORD",10,null,null,null,null,null,null,null,null,null,null,null,null,null,null,null,null,null,null,null,null,null,null,null,null,null,null,null,null,null,null,null,"2023-05-22"]
["PAS LICENCIE","KASSIMOV","Magomed","1995-12-13","AS GIEN JUDO","CM",45,"","",120,"",null,null,null,null,"11/01/15 Tours",20,null,"31/01/15 Tours",20,null,"07/11/15 Vierzon",10,null,"29/11/15 Tours",30,null,"20/03/16 Tours",40,null,null,null,null,null,null,null,null,null,null,null,null,null,null,null,null,null,null,null,"2023-05-22"]
["M25041974KAWAY01","KAWAYA","YVES","1974-04-25","BLERE VAL DE CHER JUDO","MA",37,{"$f":"IF(M2026=\"\",\"\",\"OK\")","v":"OK"},{"$f":"IF(N2026=\"\",\"\",\"OK\")","v":"OK"},{"$f":"Q2026+T2026+W2026+Z2026+AC2026+AF2026+AI2026+AL2026+AO2026+AR2026+AU2026","v":0},{"$f":"IF(O2026=\"\",\"\",\"OK\")","v":""},null,"13/05/2023 TOURS","13/05/2023 TOURS"]
["M21111996KHALI01","KHALIS","Nacim","1996-11-21","AS GIEN JUDO","2 Dan 30/04/16",45,"","",10,"",null,null,null,null,"25/04/09 Orléans",10,null,null,null,null,null,null,null,null,null,null,null,null,null,null,null,null,null,null,null,null,null,null,null,null,null,null,null,null,null,null,null,"2023-05-22"]
["PAS LICENCIE","KUEHM","Julien","1994-02-10","USM SARAN","1 Dan 16/04/11",45,{"$f":"IF(M2043=\"\",\"\",\"OK\")","v":"OK"},{"$f":"IF(N2043=\"\",\"\",\"OK\")","v":""},{"$f":"Q2043+T2043+W2043+Z2043+AC2043+AF2043+AI2043+AL2043+AO2043+AR2043+AU2043","v":40},{"$f":"IF(O2043=\"\",\"\",\"OK\")","v":""},null,"26/11/2022 ORLEANS",null,null,"07-11-2021 SHIAI AMILLY",40]
["M02051999KUIPE01","KUIPERS","NATHAN","1999-05-02","AVENIR SONZAY JUDO","1 DAN 14/11/2015",37,"","",0,"",null,null,null,null,null,null,null,null,null,null,null,null,null,null,null,null,null,null,null,null,null,null,null,null,null,null,null,null,null,null,null,null,null,null,null,null,null,"2023-05-22"]
["M06071973LABES01","LABESSE","Jerome","1973-07-06","A JUDO CHATEAUROUX","1 Dan 25/11/18",36,"","",20,"OK",null,null,null,"05/02/11 Sancoins","15/01/11 St Amand",10,null,"12/03/11 Issoudun",10,null,null,null,null,null,null,null,null,null,null,null,null,null,null,null,null,null,null,null,null,null,null,null,null,null,null,null,null,"2023-05-22"]
["PAS LICENCIE","LABRACHERIE","Florence","1966-02-18","JC DESCARTES","1 Dan 24/02/13",37,"","",0,"",null,null,null,null,null,null,null,null,null,null,null,null,null,null,null,null,null,null,null,null,null,null,null,null,null,null,null,null,null,null,null,null,null,null,null,null,null,"2023-05-22"]
["PAS LICENCIE","LACOUA","Samuel","2001-05-31","JC MAGDUNOIS","CM 22/06/15",45,"","",40,"",null,null,null,null,"02/12/12 St Georges/eure",10,null,"02/02/14 St georges/eure",20,null,"05/04/14 Illiers combray",10,null,null,null,null,null,null,null,null,null,null,null,null,null,null,null,null,null,null,null,null,null,null,null,null,null,"2023-05-22"]
["PAS LICENCIE","LAGARDE","Maxime","1997-12-03","ES MAINTENON PIERRES","CM",28,"",{"$f":"IF(N2073=\"\",\"\",\"OK\")","v":""},{"$f":"Q2073+T2073+W2073+Z2073+AC2073+AF2073+AI2073+AL2073+AO2073+AR2073+AU2073","v":20},{"$f":"IF(O2073=\"\",\"\",\"OK\")","v":""},null,null,null,null,"22/04/18 Issoudun",10,null,"18/12/2022 JUJITSU ORLEANS",10,null,null,null,null,null,null,null,null,null,null,null,null,null,null,null,null,null,null,null,null,null,null,null,null,null,null,null,null,"2023-05-22"]
["PAS LICENCIE","LAINELLE","Hugo","2000-02-10","AS CHANCEAUX JUDO","CM",37,"","",104,"",null,null,null,null,"11/12/11 Tours",20,null,"28/01/12 Orléans",37,null,"17/03/12 Tours",10,null,"06/06/09 St Jean le Blanc",20,null,"13/05/12 Vendome",7,null,"12/01/13 Orléans",10,null,null,null,null,null,null,null,null,null,null,null,null,null,null,null,null,"2023-05-22"]
["M03071971LAKAH01","LAKAHAL","RACHID","1971-07-03","DOJOS CLERY BETZ OUANNE","2 DAN 04/04/2022",45,"","",0,"",null,null,null,null,null,null,null,null,null,null,null,null,null,null,null,null,null,null,null,null,null,null,null,null,null,null,null,null,null,null,null,null,null,null,null,null,null,{"$f":"TODAY()","v":"2023-05-22"}]
["M21041999LAMBE01","LAMBEL","Valerian","1999-04-21","JC DESCARTES","1 Dan 25/01/14",37,"","",0,"",null,null,null,null,null,null,null,null,null,null,null,null,null,null,null,null,null,null,null,null,null,null,null,null,null,null,null,null,null,null,null,null,null,null,null,null,null,"2023-05-22"]
["PAS LICENCIE","LAMIRAULT","Arthur","1998-05-18","ESP SPORT DU BEFFROI JUDO","1 Dan 16/11/13",37,"","",30,"",null,null,null,null,"04/11/18 Tours",30,null,null,null,null,null,null,null,null,null,null,null,null,null,null,null,null,null,null,null,null,null,null,null,null,null,null,null,null,null,null,null,"2023-05-22"]
["PAS LICENCIE","LAMOTTE","Pascal","1970-07-14","ALERTE SP FONDETTES","1 Dan  07/11/09  ",37,"OK","",30,"OK",null,"12/06/10 Tours",null,"28/04/10 Tours","06/11/2010 angers",10,null,"26/11/11 Issoudun",10,null,"23/01/11 Chatellerault",10,null,null,null,null,null,null,null,null,null,null,null,null,null,null,null,null,null,null,null,null,null,null,null,null,null,"2023-05-22"]
["PAS LICENCIE","LANCEL","Edwin","1990-10-21","ASS SPORT LAMOTTOISE","1 Dan  15/03/08  ",41,"","",47,"",null,null,null,null,"21/12/13 Vendome",7,null,"05/04/14 Vendome",40,null,null,null,null,null,null,null,null,null,null,null,null,null,null,null,null,null,null,null,null,null,null,null,null,null,null,null,null,"2023-05-22"]
["PAS LICENCIE","LANGE","Quentin","1992-02-13","ASL ST PRIVE ST MESMAIN","CM",45,{"$f":"IF(M2113=\"\",\"\",\"OK\")","v":""},{"$f":"IF(N2113=\"\",\"\",\"OK\")","v":"OK"},{"$f":"Q2113+T2113+W2113+Z2113+AC2113+AF2113+AI2113+AL2113+AO2113+AR2113+AU2113","v":0},{"$f":"IF(O2113=\"\",\"\",\"OK\")","v":""},null,null,"28/11/2021 ORLEANS"]
["M13121989LAPEN01","LAPENDRY","NICOLAS","1989-12-13","JC MEROIS","MA",41,{"$f":"IF(M2122=\"\",\"\",\"OK\")","v":""},{"$f":"IF(N2122=\"\",\"\",\"OK\")","v":"OK"},{"$f":"Q2122+T2122+W2122+Z2122+AC2122+AF2122+AI2122+AL2122+AO2122+AR2122+AU2122","v":0},{"$f":"IF(O2122=\"\",\"\",\"OK\")","v":""},null,null,"13/05/2023 TOURS"]
["PAS LICENCIE","LARCHER","Antoine","1972-08-19","ARTS MARTIAUX DE ST GEORGES","1 Dan 19/02/12",28,"","",77,"",null,null,null,null,"13/02/11 Vendome",10,null,"14/05/11 Vendome",7,null,"26/11/11 Issoudun",40,null,"11/01/15 Vendome",20,null,null,null,null,null,null,null,null,null,null,null,null,null,null,null,null,null,null,null,null,null,null,"2023-05-22"]
["M10012005LARSO01","LARSON-DALLOYAU","VALENTIN","2005-01-10","A.S.T.CHATEAUNEUF","MA 21/01/2020",28,"","",102,"",null,null,null,null,"21/12/03 Tours",20,null,"3/04/04 Vierzon",14,null,"12/12/04 Vierzon",21,null,"27/02/05 Tours",7,null,"08/12/13 Orléans",20,null,"25/01/14 Bourges",20,null,null,null,null,null,null,null,null,null,null,null,null,null,null,null,null,"2023-05-22"]
["PAS LICENCIE","LAUBRY","Jeanne","1998-07-14","JC ISSOLDUNOIS","CM",36,"","",30,"",null,null,null,null,"04/12/11 St Georges/Eure",10,null,"21/02/15 Issoudun",20,null,null,null,null,null,null,null,null,null,null,null,null,null,null,null,null,null,null,null,null,null,null,null,null,null,null,null,null,"2023-05-22"]
["PAS LICENCIE","LAUFRAY","Tanguy","1995-06-11","JUDO CLUB THIRONNAIS","CM",28,"","",7,"",null,null,null,null,"13/06/10 Parthenay",7,null,null,null,null,null,null,null,null,null,null,null,null,null,null,null,null,null,null,null,null,null,null,null,null,null,null,null,null,null,null,null,"2023-05-22"]
["PAS LICENCIE","LAUTRAITE","Romain","2002-04-23","US ORLEANS LOIRET JUDO JUJITSU","CM 01/03/16",45,"","",100,"",null,null,null,null,"03/02/13 Issoudun",30,null,"31/03/13 Bourges",20,null,"26/05/13 Tours",10,null,"09/11/13 Orléans",20,null,"08/12/13 Orléans",20,null,null,null,null,null,null,null,null,null,null,null,null,null,null,null,null,null,null,null,"2023-05-22"]
["PAS LICENCIE","LAVOIE","Lionel","1998-09-08","US ORLEANS LOIRET JUDO JUJITSU","1 Dan 11/10/15",45,"","",17,"",null,null,null,null,"08/10/17 St Georges/eure",17,null,null,null,null,null,null,null,null,null,null,null,null,null,null,null,null,null,null,null,null,null,null,null,null,null,null,null,null,null,null,null,"2023-05-22"]
["M03041964LE*FL03","LE FLOC H","PHILIPPE","1964-04-03","ES GATINAISE","1 Dan 10/06/07  ",45,"OK","",0,"",null,"10/12/11 Tours",null,null,null,null,null,null,null,null,null,null,null,null,null,null,null,null,null,null,null,null,null,null,null,null,null,null,null,null,null,null,null,null,null,null,null,"2023-05-22"]
["PAS LICENCIE","LE GOANVIC","Maxime","1988-03-23","UJ 37 TOURS","4 Dan 31/03/2021",37,"","",100,"OK",null,null,null,"F1 01/06/13","02/06/13 Vendome",40,null,"12/10/13 Issoudun",10,null,"16/11/13 St Georges/eure",40,null,"25/01/14 Bourges",10,null,null,null,null,null,null,null,null,null,null,null,null,null,null,null,null,null,null,null,null,null,null,"2023-05-22"]
["M23061986LE*HA02","LE HALPER","DAVID","1986-06-23","CS OUCQUOIS","1 DAN 3/12/2019",41,{"$f":"IF(M2179=\"\",\"\",\"OK\")","v":"OK"},{"$f":"IF(N2179=\"\",\"\",\"OK\")","v":"OK"},{"$f":"Q2179+T2179+W2179+Z2179+AC2179+AF2179+AI2179+AL2179+AO2179+AR2179+AU2179","v":0},{"$f":"IF(O2179=\"\",\"\",\"OK\")","v":""},null,"11/02/2023 ORLEANS","26/11/2022 ORLEANS"]
["M12122001LE*MO01","LE MOUEL","Malo","2001-12-12","US ST PIERRE CORPS","1 Dan 05/02/18",37,"","",60,"",null,null,null,null,"22/02/15 Issoudun",20,null,"02/04/17 Angers",10,null,"11/03/17 Issoudun",30,null,null,null,null,null,null,null,null,null,null,null,null,null,null,null,null,null,null,null,null,null,null,null,null,null,"2023-05-22"]
["PAS LICENCIE","LEBAS","Christophe","1973-01-26","JUDO CLUB TOURAINE","CM 26/05/10",37,"","",0,"",null,null,null,null,null,null,null,null,null,null,null,null,null,null,null,null,null,null,null,null,null,null,null,null,null,null,null,null,null,null,null,null,null,null,null,null,null,"2023-05-22"]
["M03061988LEBAU02","LEBAUPIN","HUGO","1988-06-03","ALERTE SP FONDETTES","4 DAN 31/03/2021",37,"","",113,"",null,null,null,null,"11/10/09 St Georges/Eure",10,null,"13/12/09 Amilly",21,null,"23/01/10 Tours",17,null,"13/03/10 Chatellerault",20,null,"24/04/10 Orléans",31,null,"15/05/10 Tours",14,null,null,null,null,null,null,null,null,null,null,null,null,null,null,null,null,"2023-05-22"]
["PAS LICENCIE","LEBOURLES","Mathieu","1981-11-14","JUDO CLUB VENDOME USV","1 Dan 17/06/07 ",41,"OK","",50,"",null,"24/03/18 Orléans",null,null,"13/03/16 Tours",40,null,"27/05/18 Orléans",10,null,null,null,null,null,null,null,null,null,null,null,null,null,null,null,null,null,null,null,null,null,null,null,null,null,null,null,null,"2023-05-22"]
["M22032006LECHE01","LECHEVALIER","JOSHUA","2006-03-22","CHAMPHOL JUDO","CM",28,"","",10,"",null,null,null,null,"14/03/15  Nogent/seine",10,null,null,null,null,null,null,null,null,null,null,null,null,null,null,null,null,null,null,null,null,null,null,null,null,null,null,null,null,null,null,null,"2023-05-22"]
["F11102002LECLO02","LECLOUX","LEA","2002-10-11","BALLAN JUDO CLUB","1 DAN 26/11/2022",37,"","",40,"",null,null,null,null,"15/01/11 Vendôme",10,null,"02/04/11 Lamotte Beuvron",30,null,null,null,null,null,null,null,null,null,null,null,null,null,null,null,null,null,null,null,null,null,null,null,null,null,null,null,null,"2023-05-22"]
["PAS LICENCIE","LEDOUX","Jérémy","1984-05-19","JUDO CLUB DE VIERZON","CM",18,"","",10,"",null,null,null,null,"11/05/2019 CHAMPIONNAT REGIONAL INDIVIDUEL SENIOR 2DIV - VIERZON",10,null,null,null,null,null,null,null,null,null,null,null,null,null,null,null,null,null,null,null,null,null,null,null,null,null,null,null,null,null,null,null,"2023-05-22"]
["PAS LICENCIE","LEDUC","Thomas","1988-12-04","AS MONTS JUDO JUJITSU","CM",37,"","",10,"",null,null,null,null,"01/12/12 Orléans",10,null,null,null,null,null,null,null,null,null,null,null,null,null,null,null,null,null,null,null,null,null,null,null,null,null,null,null,null,null,null,null,"2023-05-22"]
["PAS LICENCIE","LEFEBVRE","Fabrice","1971-02-17","US ORLEANS LOIRET JUDO JUJITSU","CM",45,"","",14,"",null,null,null,null,"30/01/11 Orléans",14,null,null,null,null,null,null,null,null,null,null,null,null,null,null,null,null,null,null,null,null,null,null,null,null,null,null,null,null,null,null,null,"2023-05-22"]
["M23041979LEGAV01","LEGAVE","Franck","1979-04-23","ESP SPORT DU BEFFROI JUDO","2 DAN 13/03/2022",37,"","",60,"",null,null,null,null,"06/10/18 Orléans",10,null,"20/10/18 Ceyrat",10,null,"16-02-2019 - Demi final Championnat de France Cadet(te)s - Tours",20,null,"16-02-2020 – 1/4 DE FINALE SENIOR 1ERE DIVISION BASSIN SUD -  TOURS",20,null,null,null,null,null,null,null,null,null,null,null,null,null,null,null,null,null,null,null,null,null,null,"2023-05-22"]
["M23092002LEGAY01","LEGAYIC","Maevarau","2002-09-23","US ORLEANS LOIRET JUDO JUJITSU","1 Dan 30/05/18",45,"","",34,"",null,null,null,null,"23/01/11 Chatellerault",10,null,"20/03/11 Tours",14,null,"15/05/11 Lamotte Beuvron",10,null,null,null,null,null,null,null,null,null,null,null,null,null,null,null,null,null,null,null,null,null,null,null,null,null,"2023-05-22"]
["PAS LICENCIE","LEGRAND","Hugo","1992-04-01","JUDO CLUB ST GEORGES/CHER","CM",41,"","",70,"",null,null,null,null,"05/02/17 St jean le blanc",30,null,"26/03/17 Chatellerault",30,null,"27/05/17 Issoudun",10,null,null,null,null,null,null,null,null,null,null,null,null,null,null,null,null,null,null,null,null,null,null,null,null,null,"2023-05-22"]
["PAS LICENCIE","LEJOT","Florian","1995-06-24","AVENIR J LIGNIERES","CM",18,"","",10,"",null,null,null,null,"02/02/14 St georges/eure",10,null,null,null,null,null,null,null,null,null,null,null,null,null,null,null,null,null,null,null,null,null,null,null,null,null,null,null,null,null,null,null,"2023-05-22"]
["PAS LICENCIE","LELOARER","Baptiste","1997-06-01","ALLIANCE DE DREUX","CM",28,"","",132,"OK",null,null,null,"Arbitre Départemental 13/05/06 ","8/04/06 Vineuil",7,null,"3/02/08 St Doulchard",33,null,"9/02/08 Vineuil",26,null,"31/05/08 Lamotte Beuvron",26,null,"14/02/09 Vierzon",40,null,null,null,null,null,null,null,null,null,null,null,null,null,null,null,null,null,null,null,"2023-05-22"]
["M18022002LEMOI01","LEMOINE","Patrice","2002-02-18","CERCLE DU DOJO NOGENTAIS","1 Dan 04/06/17",28,"OK","",0,"OK",null,"23/04/16 Orléans",null,"18/05/13 St George/eure",null,null,null,null,null,null,null,null,null,null,null,null,null,null,null,null,null,null,null,null,null,null,null,null,null,null,null,null,null,null,null,null,null,"2023-05-22"]
["PAS LICENCIE","LENOIR","Miriti","1994-02-07","US ORLEANS LOIRET JUDO JUJITSU","CM",45,"","",10,"",null,null,null,null,"20/03/11 Tours",10,null,null,null,null,null,null,null,null,null,null,null,null,null,null,null,null,null,null,null,null,null,null,null,null,null,null,null,null,null,null,null,"2023-05-22"]
["PAS LICENCIE","LENORMAND","François","1996-07-20","AS CHANCEAUX JUDO","1 Dan 18/06/11",37,{"$f":"IF(M2282=\"\",\"\",\"OK\")","v":""},"",107,"",null,null,null,null,"15/02/14 Issoudun",10,null,"31/05/14 Ceyrat",20,null,"14/03/15 Chatellerault",7,null,"07/06/15 Vierzon",40,null,"13/06/15 Limoges",20,null,"27/02/16 Vierzon",10,null,null,null,null,null,null,null,null,null,null,null,null,null,null,null,null,"2023-05-22"]
["M05012005LEPAI01 ","LEPAIN","THOMAS","2005-12-05","A.S.MONTS JUDO JUJITSU","1 DAN 30/08/2022",37,"","",119,"",null,null,null,null,"21/02/04 Vineuil",14,null,"22/01/05 Vineuil",7,null,"30/04/05 Vineuil",7,null,"11/12/05 Vendôme",10,null,"21/01/06 Vendôme",20,null,"8/04/06 Vineuil",14,null,"3/12/06 Lamotte Beuvron",10,null,"25/04/09 Avaray",17,null,"29/11/09 Vendôme",20,null,null,null,null,null,null,null,"2023-05-22"]
["PAS LICENCIE","LEPICIER","Florian","2001-07-25","JUDO CLUB STE MAURE","1 Dan 25/07/16",37,"OK","OK",0,"",null,"0/06/2019 TOURS","01/06/209 TOURS",null,null,null,null,null,null,null,null,null,null,null,null,null,null,null,null,null,null,null,null,null,null,null,null,null,null,null,null,null,null,null,null,null,null,"2023-05-22"]
["PAS LICENCIE","LEROY","Philippe","1961-03-04","USP JC POINCONNET","CM",36,"","",80,"",null,null,null,null,"13/01/2019 ST GEORGES SUR EURE",10,null,"OPEN SENIOR - LAMOTTE - 24-03-2019",40,null,"Vierzon 12-05-2019 OPEN SENIOR CEINTURE DE COULEUR",30,null,null,null,null,null,null,null,null,null,null,null,null,null,null,null,null,null,null,null,null,null,null,null,null,null,"2023-05-22"]
["PAS LICENCIE","LESTRINGAND","Jean Michel","1961-12-21","JUDO CLUB VEIGNE","1 Dan 02/04/06  ",37,"","",0,"",null,null,null,null,null,null,null,null,null,null,null,null,null,null,null,null,null,null,null,null,null,null,null,null,null,null,null,null,null,null,null,null,null,null,null,null,null,"2023-05-22"]
["PAS LICENCIE","LEVAYER","Sandra","1999-12-07","JC BALGENTIEN","CM 28/09/11",45,"","",47,"",null,null,null,null,"21/10/18 Ceyrat",7,null,"19/05/2019 INDIVIDUEL CADETS \"ESPOIR\" - LA SOURCE MINOUFLET",40,null,null,null,null,null,null,null,null,null,null,null,null,null,null,null,null,null,null,null,null,null,null,null,null,null,null,null,null,"2023-05-22"]
["PAS LICENCIE","LHEURE","Xavier","1979-09-24","ES GATINAISE","1 Dan ET 16/01/05  ",45,"","",0,"",null,null,null,null,null,null,null,null,null,null,null,null,null,null,null,null,null,null,null,null,null,null,null,null,null,null,null,null,null,null,null,null,null,null,null,null,null,"2023-05-22"]
["PAS LICENCIE","LIGNIER","Sanaa","1998-02-01","A JUDO CHATEAUROUX","CM",36,"","",0,"",null,null,null,null,null,null,null,null,null,null,null,null,null,null,null,null,null,null,null,null,null,null,null,null,null,null,null,null,null,null,null,null,null,null,null,null,null,"2023-05-22"]
["PAS LICENCIE","LIMOUZIN","Gabrielle","1998-08-23","AS MONTS JUDO JUJITSU","CM 10/06/14",37,"OK","",0,"OK",null,"28/01/17 Tours",null,"04/06/16 Parcay meslay",null,null,null,null,null,null,null,null,null,null,null,null,null,null,null,null,null,null,null,null,null,null,null,null,null,null,null,null,null,null,null,null,null,"2023-05-22"]
["M03092003LIRAU01 ","LIRAUD","HUGO","2003-09-03","JUDO CLUB ARDENTES","1 DAN 05/03/2022",36,"","",10,"",null,null,null,null,"06/10/18 Orléans",10,null,null,null,null,null,null,null,null,null,null,null,null,null,null,null,null,null,null,null,null,null,null,null,null,null,null,null,null,null,null,null,"2023-05-22"]
["M14072002LITAL02","LITALIEN","Roman","2002-07-14","ESVRES JUDO CLUB","CM ",37,"","",107,"",null,null,null,null,"30/11/13 Orléans",30,null,"15/02/14 Issoudun",30,null,"23/03/14 Mur de bretagne",27,null,"31/01/15 Orléans",20,null,null,null,null,null,null,null,null,null,null,null,null,null,null,null,null,null,null,null,null,null,null,"2023-05-22"]
["PAS LICENCIE","LOISEAU ","Alexandre","1986-01-08","INGRE JUDO CLUB","1 Dan 28/03/04  ",45,"","",90,"",null,null,null,null,"28/01/18 Orléans",10,null,"26/01/2019 CHAMPIONNAT CADETS CADETTES 1ERE DIV BASIN NORD",40,null,"03/03/2019 OPEN SENIOR Saint Georges sur Eure",10,null,"OPEN SENIOR - LAMOTTE - 24-03-2019",10,null,"Vierzon 12-05-2019 OPEN SENIOR CEINTURE DE COULEUR",20,null,null,null,null,null,null,null,null,null,null,null,null,null,null,null,null,null,null,null,"2023-05-22"]
["M12022004LOPES01","LOPES","Lucas","2004-02-12","CLAP JUDO PATAY","1 DAN 01/06/2019",45,"","",20,"",null,null,null,null,"16/11/13 St Georges/eure",20,null,null,null,null,null,null,null,null,null,null,null,null,null,null,null,null,null,null,null,null,null,null,null,null,null,null,null,null,null,null,null,"2023-05-22"]
["PAS LICENCIE","LOPES","Marion","1994-05-09","ESP SPORT DU BEFFROI JUDO","CM",37,"","",10,"OK",null,null,null,"23/04/16 St georges/eure","10/01/15 St Georges/eure",10,null,null,null,null,null,null,null,null,null,null,null,null,null,null,null,null,null,null,null,null,null,null,null,null,null,null,null,null,null,null,null,"2023-05-22"]
["PAS LICENCIE","LOUISY","Simon","1991-06-30","ASS JUDO OLIVET","1 Dan 01/06/08  ",45,"","",84,"",null,null,null,null,"03/04/11 Nogent le Rotrou",17,null,"15/05/11 Lamotte Beuvron",7,null,"04/12/11 St Georges/Eure",20,null,"29/01/12 Orléans",10,null,"01/12/12 St Georges/eure",10,null,"26/04/15 Tours",20,null,null,null,null,null,null,null,null,null,null,null,null,null,null,null,null,"2023-05-22"]
["PAS LICENCIE","LUDENA","Allison","1996-01-17","BALLAN JUDO CLUB","1 Dan 11/02/12",37,"OK","OK",10,"",null,"02/06/2021 ORLEANS","26/06/2021 ORLEANS",null,"18/12/2022 JUJITSU ORLEANS",10,null,null,null,null,null,null,null,null,null,null,null,null,null,null,null,null,null,null,null,null,null,null,null,null,null,null,null,null,null,null,null,"2023-05-22"]
["PAS LICENCIE","LUTTON","Aude Line","2000-03-26","JC PITHIVIERS","1 Dan 12/03/16",45,"","",40,"OK",null,null,null,"08/10/11 Tours","12/02/12 Issoudun",20,null,"25/05/14 Tours",20,null,null,null,null,null,null,null,null,null,null,null,null,null,null,null,null,null,null,null,null,null,null,null,null,null,null,null,null,"2023-05-22"]
["PAS LICENCIE","MACLENNAN","Alexander","1997-02-06","JUDO ST CYR SUR LOIRE","1 Dan 22/02/14",37,"","",57,"",null,null,null,null,"13/01/13 Orléans",40,null,"08/12/13 Orléans",17,null,null,null,null,null,null,null,null,null,null,null,null,null,null,null,null,null,null,null,null,null,null,null,null,null,null,null,null,"2023-05-22"]
["PAS LICENCIE","MAGNOUX","Andy","1987-09-14","JUDO CLUB DEOLS","CM",36,"","",0,"",null,null,null,null,null,null,null,null,null,null,null,null,null,null,null,null,null,null,null,null,null,null,null,null,null,null,null,null,null,null,null,null,null,null,null,null,null,"2023-05-22"]
["M02032004MAILL01","MAILLET","ALEXIS","2004-03-02","C O SOLOGNOT","1 DAN 17/05/2022",45,"","",80,"",null,null,null,null,"11/01/09 Poitiers",30,null,"28/11/09 Vendôme ",50,"OK",null,null,null,null,null,null,null,null,null,null,null,null,null,null,null,null,null,null,null,null,null,null,null,null,null,null,null,"2023-05-22"]
["PAS LICENCIE","MALEK ","Fahed Idriss","1978-09-24","US CHAMBRAY JUDO","2 Dan 15/07/03",37,"","",57,"",null,null,null,null,"13/03/16 Tours",20,null,"05/02/17 St jean le blanc",27,null,"01/04/17 Issoudun",10,null,null,null,null,null,null,null,null,null,null,null,null,null,null,null,null,null,null,null,null,null,null,null,null,null,"2023-05-22"]
["F17102006MALGO02","MALGOUYRES","MELANIE","2006-10-17","JUDO CLUB LARCAY VERETZ","MA",37,{"$f":"IF(M2409=\"\",\"\",\"OK\")","v":""},{"$f":"IF(N2409=\"\",\"\",\"OK\")","v":"OK"},{"$f":"Q2409+T2409+W2409+Z2409+AC2409+AF2409+AI2409+AL2409+AO2409+AR2409+AU2409","v":0},{"$f":"IF(O2409=\"\",\"\",\"OK\")","v":""},null,null,"13/05/2023 TOURS"]
["PAS LICENCIE","MALPEYRE","Laurent","1977-06-25","SMOC ST JEAN DE BRAYE","1 Dan 07/03/98",45,{"$f":"IF(M2418=\"\",\"\",\"OK\")","v":""},{"$f":"IF(N2418=\"\",\"\",\"OK\")","v":""},{"$f":"Q2418+T2418+W2418+Z2418+AC2418+AF2418+AI2418+AL2418+AO2418+AR2418+AU2418","v":30},{"$f":"IF(O2418=\"\",\"\",\"OK\")","v":""},null,null,null,null,"06/11/2022 SHIAI ISSOUDUN",30]
["PAS LICENCIE","MANJAOUI","Youness","1995-11-12","JUDO CLUB VENDOME USV","1 Dan 12/02/11",41,"","OK",0,"",null,null,"26/06/2021 ORLEANS",null,"TEST EFFICACITE TOURS 15-12-19",0,null,null,null,null,null,null,null,null,null,null,null,null,null,null,null,null,null,null,null,null,null,null,null,null,null,null,null,null,null,null,null,"2023-05-22"]
["M14061993MANSO01","MANSOURI","TIDJANI","1993-06-14","S.M.O.C. ST JEAN DE BRAYE","MA 11/09/2020",45,"","",51,"",null,null,null,null,"16/03/13 Vendome",21,null,"06/04/14 Vendome",30,null,null,null,null,null,null,null,null,null,null,null,null,null,null,null,null,null,null,null,null,null,null,null,null,null,null,null,null,"2023-05-22"]
["PAS LICENCIE","MARCADET","Olivier","1985-09-02","ASL ST JEAN LE BLANC","1 Dan 08/04/06   ",45,"","",107,"",null,null,null,null,"06/04/14 Vendome",37,null,"01/02/15 Vendome",30,null,"08/03/15 Angers",40,null,null,null,null,null,null,null,null,null,null,null,null,null,null,null,null,null,null,null,null,null,null,null,null,null,"2023-05-22"]
["M19101977MAREU01","MAREUIL","Cedric","1977-10-19","JUDO CLUB DE METTRAY","1 DAN 17/12/2021",37,"","",20,"",null,null,null,null,"18/11/18 Deauville",20,null,null,null,null,null,null,null,null,null,null,null,null,null,null,null,null,null,null,null,null,null,null,null,null,null,null,null,null,null,null,null,"2023-05-22"]
["M14011984MARIA01","MARIAU","VINCENT","1984-01-14","JUDO CLUB RIDELLOIS","MA",37,{"$f":"IF(M2450=\"\",\"\",\"OK\")","v":"OK"},{"$f":"IF(N2450=\"\",\"\",\"OK\")","v":""},{"$f":"Q2450+T2450+W2450+Z2450+AC2450+AF2450+AI2450+AL2450+AO2450+AR2450+AU2450","v":0},{"$f":"IF(O2450=\"\",\"\",\"OK\")","v":""},null,"26/11/2022 ORLEANS"]
["PAS LICENCIE","MARIEN","Charlotte","2001-07-31","JUDO CLUB SANCOINS","CM 15/12/15",18,"","",76,"",null,null,null,null,"7/02/10 St Georges/Eure",7,null,"7/03/10 Issoudun",7,null,"16/05/10 Tours",22,null,"13/02/11 Nogent le rotrou",20,null,"03/04/11 Nogent le Rotrou",20,null,null,null,null,null,null,null,null,null,null,null,null,null,null,null,null,null,null,null,"2023-05-22"]
["F10012005MARIN01","MARINE","Shineys","10/01/2005","BLOIS JUDO","CM",41,{"$f":"IF(M2460=\"\",\"\",\"OK\")","v":"OK"},{"$f":"IF(N2460=\"\",\"\",\"OK\")","v":""},{"$f":"Q2460+T2460+W2460+Z2460+AC2460+AF2460+AI2460+AL2460+AO2460+AR2460+AU2460","v":0},{"$f":"IF(O2460=\"\",\"\",\"OK\")","v":""},null,"12/03/2022 TOURS"]
["PAS LICENCIE","MARQUENET","Justine","1990-09-14","JC CHATILLONNAIS","1 Dan 12/11/05  ",36,"","",7,"",null,null,null,null,"06/10/18 Orléans",7,null,null,null,null,null,null,null,null,null,null,null,null,null,null,null,null,null,null,null,null,null,null,null,null,null,null,null,null,null,null,null,"2023-05-22"]
["PAS LICENCIE","MARTIN","Jean Louis","1960-09-22","US ST PIERRE DES CORPS","3 Dan 28/05/86",37,"OK","",0,"",null,"23/01/16 Tours",null,null,null,null,null,null,null,null,null,null,null,null,null,null,null,null,null,null,null,null,null,null,null,null,null,null,null,null,null,null,null,null,null,null,null,"2023-05-22"]
["PAS LICENCIE","MARTIN","Alexis","1991-05-11","JUDO CLUB TOURAINE","2  Dan 12/06/09",37,"","",107,"",null,null,null,null,"27/02/10 Orléans",40,null,"28/01/12 Orléans",40,null,"12/02/12 Issoudun",27,null,null,null,null,null,null,null,null,null,null,null,null,null,null,null,null,null,null,null,null,null,null,null,null,null,"2023-05-22"]
["M13042007MARTI02","MARTIN","GATIEN","2007-04-13","A.S.MONTS JUDO JUJITSU","CM",37,{"$f":"IF(M2487=\"\",\"\",\"OK\")","v":"OK"},{"$f":"IF(N2487=\"\",\"\",\"OK\")","v":""},{"$f":"Q2487+T2487+W2487+Z2487+AC2487+AF2487+AI2487+AL2487+AO2487+AR2487+AU2487","v":0},{"$f":"IF(O2487=\"\",\"\",\"OK\")","v":""},null,"13/05/2023 TOURS"]
["M20071998MARTI02","MARTINEZ","Pedro","1998-07-20","JUDO CLUB MONTOIRE/S/LE LOIR","1 Dan 20/11/16",41,"","",33,"",null,null,null,null,"29/11/08 St Georges/Eure",19,null,"11/01/09 Poitiers",14,null,null,null,null,null,null,null,null,null,null,null,null,null,null,null,null,null,null,null,null,null,null,null,null,null,null,null,null,"2023-05-22"]
["PAS LICENCIE","MARVILLE","Arnaud","2001-05-30","JUDO CLUB VENDOME USV","1 Dan 27/05/17",41,"","",0,"",null,null,null,null,null,null,null,null,null,null,null,null,null,null,null,null,null,null,null,null,null,null,null,null,null,null,null,null,null,null,null,null,null,null,null,null,null,"2023-05-22"]
["M11041999MASSE01","MASSE ","Léo  ","1999-04-11","UNION JUDO TOURAINE METROPOLE 37","1 Dan 23/03/14",37,"OK","",70,"",null,"06/06/12 Orléans",null,null,"03/12/11 Nantes",20,null,"29/01/12 Orléans",10,null,"11/03/12 Le Mans",10,null,"16/03/13 La flèche",20,null,"26/01/14 Bourges",10,null,null,null,null,null,null,null,null,null,null,null,null,null,null,null,null,null,null,null,"2023-05-22"]
["PAS LICENCIE","MASSON","Bastien","1996-04-21","J3 SPORTS AMILLY","CM",45,"","",10,"",null,null,null,null,"13/03/16 Tours",10,null,null,null,null,null,null,null,null,null,null,null,null,null,null,null,null,null,null,null,null,null,null,null,null,null,null,null,null,null,null,null,"2023-05-22"]
["PAS LICENCIE","MATHIOU","Marie","1995-02-17","AVENIR J LIGNIERES","1 Dan 12/03/2011",18,"","",100,"OK",null,null,null,"21/10/09 Tours","05/02/17 St jean le blanc",10,null,"04/03/17 Angers",20,null,"26/03/17 Chatellerault",40,null,"27/05/17 Issoudun",30,null,null,null,null,null,null,null,null,null,null,null,null,null,null,null,null,null,null,null,null,null,null,"2023-05-22"]
["M02012002MAUNE01","MAUNET","Nathan","2002-01-02","UNION JUDO TOURAINE METROPOLE 37","2 DAN 22/11/2021",37,"","",20,"",null,null,null,null,"30/01/11 Orléans",10,null,"03/04/11 Tours",10,null,null,null,null,null,null,null,null,null,null,null,null,null,null,null,null,null,null,null,null,null,null,null,null,null,null,null,null,"2023-05-22"]
["PAS LICENCIE","MAVRE","Alexandre","1994-01-12","ALLIANCE DE DREUX","1 Dan 12/06/10  ",28,"","",218,"OK",null,null,null,"01/05/18 Tours","02/04/17 Issoudun",30,null,"11/03/17 Issoudun",40,null,"21/10/17 Vendome",20,null,"17/02/18 Orléans",37,null,"13/01/2019 ST GEORGES SUR EURE",27,null,"02-02-2019 Demie finale juniors Issoudun",27,null,"17/03/2019 1/4 DE FINALE SENIORS G ET F 1ERE DIV N°1 - dojo J C Rousseau - ORLEANS",27,null,"24/10/2021 CHAMPIONNAT REGIONAL INDIVIDUEL SENIOR 1ERE DIVISION",10,null,null,null,null,null,null,null,null,null,null,"2023-05-22"]
["F26121992MAZUR01","MAZURIER","Justine","1992-12-26","BOURGES JUDO","1 Dan 15/06/07",18,"","",100,"",null,null,null,null,"03/04/11 Nogent le Rotrou",30,null,"10/04/11 Amilly",25,null,"21/05/11 St Jean le Blanc",45,null,null,null,null,null,null,null,null,null,null,null,null,null,null,null,null,null,null,null,null,null,null,null,null,null,"2023-05-22"]
["PAS LICENCIE","MECHIN","Tristan","1997-12-13","SMOC ST JEAN DE BRAYE","2 Dan 11/04/15",45,{"$f":"IF(M2540=\"\",\"\",\"OK\")","v":""},{"$f":"IF(N2540=\"\",\"\",\"OK\")","v":""},{"$f":"Q2540+T2540+W2540+Z2540+AC2540+AF2540+AI2540+AL2540+AO2540+AR2540+AU2540","v":10},{"$f":"IF(O2540=\"\",\"\",\"OK\")","v":""},null,null,null,null,"20/11/2022 Open cadets St Doulchard",10]
["F15061982MELE*01","MELE","LAURIE","1982-06-15","S.M.O.C. ST JEAN DE BRAYE","3 DAN 31/03/2012",null,"","OK",0,"",null,null,"11/02/2023 ORLEANS",null,null,null,null,null,null,null,null,null,null,null,null,null,null,null,null,null,null,null,null,null,null,null,null,null,null,null,null,null,null,null,null,null,null,"2023-05-22"]
["PAS LICENCIE","MENDES","Gilbert","1963-09-16","ESVRES JUDO CLUB","CM 12/06/04",37,"","",7,"",null,null,null,null,"27/05/17 Issoudun",7,null,null,null,null,null,null,null,null,null,null,null,null,null,null,null,null,null,null,null,null,null,null,null,null,null,null,null,null,null,null,null,"2023-05-22"]
["PAS LICENCIE","MENNEGUERRE","Alexis","1994-11-10","CLAP JUDO PATAY","CM",45,"","",100,"OK",null,null,null,"02/04/16 Orléans","03/12/11 Nantes",30,null,"28/01/12 Orléans",30,null,"12/02/12 Issoudun",10,null,"05/05/12 St Berthevin",30,null,null,null,null,null,null,null,null,null,null,null,null,null,null,null,null,null,null,null,null,null,null,"2023-05-22"]
["M06112000MERCI01","MERCIER","Hugo","2000-11-06","SMOC ST JEAN DE BRAYE","CM 14/03/14",45,{"$f":"IF(M2566=\"\",\"\",\"OK\")","v":""},{"$f":"IF(N2566=\"\",\"\",\"OK\")","v":""},{"$f":"Q2566+T2566+W2566+Z2566+AC2566+AF2566+AI2566+AL2566+AO2566+AR2566+AU2566","v":7},{"$f":"IF(O2566=\"\",\"\",\"OK\")","v":""},null,null,null,null,"20/11/2022 Open cadets St Doulchard",7]
["PAS LICENCIE","MERRIEN","Steve ","1997-04-23","JUDO CLUB METTRAY","1 Dan 07/06/14",37,"","",49,"OK",null,null,null,"7/12/08 Orléans","8/03/08 Orléans",15,null,"11/04/09 Orléans",24,null,"10/01/10 Orléans",10,null,null,null,null,null,null,null,null,null,null,null,null,null,null,null,null,null,null,null,null,null,null,null,null,null,"2023-05-22"]
["PAS LICENCIE","MESLAY","Didier","1971-08-29","CERCLE DU DOJO NOGENTAIS","CM",28,"","",10,"",null,null,null,null,"30/09/17 Tours",10,null,null,null,null,null,null,null,null,null,null,null,null,null,null,null,null,null,null,null,null,null,null,null,null,null,null,null,null,null,null,null,"2023-05-22"]
["PAS LICENCIE","METAIS","Pascal","1955-03-26","LE DOJO DU COMBRAY","CM",28,"","",100,"",null,null,null,null,"16/03/14 Angers",20,null,"01/02/15 Vendome",10,null,"29/11/15 Angers",20,null,"19/04/15 Parthenay",10,null,"12/03/16 Angers",40,null,null,null,null,null,null,null,null,null,null,null,null,null,null,null,null,null,null,null,"2023-05-22"]
["M15061983METAI01","METAIS","THIBAUT","1983-06-15","JUDO CLUB CHINON","MA",37,{"$f":"IF(M2589=\"\",\"\",\"OK\")","v":""},{"$f":"IF(N2589=\"\",\"\",\"OK\")","v":"OK"},{"$f":"Q2589+T2589+W2589+Z2589+AC2589+AF2589+AI2589+AL2589+AO2589+AR2589+AU2589","v":0},{"$f":"IF(O2589=\"\",\"\",\"OK\")","v":""},null,null,"13/05/2023 TOURS"]
["PAS LICENCIE","MEUNIER","Fanny","1991-04-13","ALERTE SP FONDETTES","CM 03/05/08",37,"OK","",30,"",null,"01/12/18 Orléans",null,null,"06/10/18 Orléans",30,null,null,null,null,null,null,null,null,null,null,null,null,null,null,null,null,null,null,null,null,null,null,null,null,null,null,null,null,null,null,null,"2023-05-22"]
["PAS LICENCIE","MICHEL","Alexandre","1993-03-16","US ORLEANS LOIRET JUDO JUJITSU","1 Dan 05/04/09   ",45,"","",64,"",null,null,null,null,"5/04/08 Gien",5,null,"1/06/08 Lamotte Beuvron",5,null,"4/04/09 Vierzon",7,null,"27/06/09 INJ Paris",17,null,"28/11/09 Vendôme",10,null,"11/04/10 Varennes Vauzelles",3,null,"17/04/10 INJ Paris",10,null,"18/03/12 Houlgate",7,null,null,null,null,null,null,null,null,null,null,"2023-05-22"]
["PAS LICENCIE","MILET","Damien","1994-10-20","ASL ST JEAN LE BLANC","1 Dan 10/06/16",45,"","",0,"",null,null,null,null,null,null,null,null,null,null,null,null,null,null,null,null,null,null,null,null,null,null,null,null,null,null,null,null,null,null,null,null,null,null,null,null,null,"2023-05-22"]
["M01012005MILLE02 ","MILLET","MATTHIAS ","2005-01-01","ALLIANCE JJ VAL DE VIENNE","CM",37,"","",27,"",null,null,null,null,"25/11/06 Limoges",10,null,"24/03/07  Limoges",10,null,"12/06/11 La Crau",7,null,null,null,null,null,null,null,null,null,null,null,null,null,null,null,null,null,null,null,null,null,null,null,null,null,"2023-05-22"]
["M17102003MIS**01","MIS","Alexandre","2003-10-17","JUDO CLUB DE SAVONNIERES","CM",37,{"$f":"IF(M2625=\"\",\"\",\"OK\")","v":"OK"},{"$f":"IF(N2625=\"\",\"\",\"OK\")","v":"OK"},{"$f":"Q2625+T2625+W2625+Z2625+AC2625+AF2625+AI2625+AL2625+AO2625+AR2625+AU2625","v":0},{"$f":"IF(O2625=\"\",\"\",\"OK\")","v":""},null,"11/02/2023 ORLEANS","11/02/2023 ORLEANS"]
["M11102007MITNI01","MITNIK","CLEMENT","2007-10-11","JUDO CLUB TOURAINE","MA",37,"","",100,"",null,null,null,null,"01/02/15 Vendome",50,"OK",null,null,null,"31/01/15 Vendome",10,null,"28/03/15 Concarneau",40,null,null,null,null,null,null,null,null,null,null,null,null,null,null,null,null,null,null,null,null,null,null,"2023-05-22"]
["PAS LICENCIE","MOINDROT","Mylène","1998-11-02","JUDO CLUB DE VIERZON","CM",18,{"$f":"IF(M2636=\"\",\"\",\"OK\")","v":""},"",197,"",null,null,null,null,"25/11/01 Toulouse",20,null,"14/12/02 Orléans",35,null,"12/01/03 Vierzon",40,null,"6/12/03 Orléans",15,null,"17/03/2019 1/4 DE FINALE SENIORS G ET F 1ERE DIV N°1 - dojo J C Rousseau - ORLEANS",10,null,"11/05/2019 CHAMPIONNAT REGIONAL INDIVIDUEL SENIOR 2DIV - VIERZON",17,null,"16-02-2020 – 1/4 DE FINALE SENIOR 1ERE DIVISION BASSIN SUD -  TOURS",30,null,"24/10/2021 CHAMPIONNAT REGIONAL INDIVIDUEL SENIOR 1ERE DIVISION",30,null,null,null,null,null,null,null,null,null,null,"2023-05-22"]
["M05122003MOLET01","MOLET","Jules","2003-12-05","JC DESCARTES","CB",37,{"$f":"IF(M2639=\"\",\"\",\"OK\")","v":"OK"},{"$f":"IF(N2639=\"\",\"\",\"OK\")","v":"OK"},{"$f":"Q2639+T2639+W2639+Z2639+AC2639+AF2639+AI2639+AL2639+AO2639+AR2639+AU2639","v":0},{"$f":"IF(O2639=\"\",\"\",\"OK\")","v":""},null,"26/06/2021 ORLEANS","26/11/2022 ORLEANS"]
["M22111966MONFO01","MONFORT","Christophe","1966-11-22","JUDO KODOKAN 28","1 DAN 13/10/2019",28,"","OK",37,"",null,null,"01/12/18 Orléans",null,"04/11/18 Tours",10,null,"03/02/2019 SHIAI TEST EFFICACITE - ISSOUDUN",7,null,"26/01/2019 CHAMPIONNAT CADETS/CADETTES 1ERE DIVISION BASSIN SUD - TOURS",10,null,"26/11/2018 – SHIAI ANGERS",10,null,null,null,null,null,null,null,null,null,null,null,null,null,null,null,null,null,null,null,null,null,null,"2023-05-22"]
["F02072002MONNI01","MONNIEZ","Amandine","2002-07-02","AVORD JUDO CLUB","1 Dan 26/05/18",18,"","",30,"",null,null,null,null,"04/03/17 Angers",30,null,null,null,null,null,null,null,null,null,null,null,null,null,null,null,null,null,null,null,null,null,null,null,null,null,null,null,null,null,null,null,{"$f":"TODAY()","v":"2023-05-22"}]
["PAS LICENCIE","MONTEIRO","Yannick","1972-10-30","AS MONTS JUDO JUJITSU","1 Dan 14/12/14",37,"","",10,"",null,null,null,null,"24/01/10 Tours",10,null,null,null,null,null,null,null,null,null,null,null,null,null,null,null,null,null,null,null,null,null,null,null,null,null,null,null,null,null,null,null,"2023-05-22"]
["F05092000MORDA01","MORDANT","Lisie","2000-09-05","JUDO CLUB JOCONDIEN","1 Dan 27/05/18",37,"","",0,"",null,null,null,null,null,null,null,null,null,null,null,null,null,null,null,null,null,null,null,null,null,null,null,null,null,null,null,null,null,null,null,null,null,null,null,null,null,"2023-05-22"]
["PAS LICENCIE","MOREAU","Simon","2001-06-22","SPG CLUB AMBOISIEN","CM 03/06/15",37,"OK","",0,"",null,"18/06/11 St Georges/Eure",null,null,null,null,null,null,null,null,null,null,null,null,null,null,null,null,null,null,null,null,null,null,null,null,null,null,null,null,null,null,null,null,null,null,null,"2023-05-22"]
["PAS LICENCIE","MOREAU","Simon","1995-09-26","JC DU PERCHE SENONCHOIS","CM",28,"","",10,"OK",null,null,null,"07/05/13 Tours","30/01/16 Tours",10,null,null,null,null,null,null,null,null,null,null,null,null,null,null,null,null,null,null,null,null,null,null,null,null,null,null,null,null,null,null,null,"2023-05-22"]
["PAS LICENCIE","MOREL","Julien","1991-02-26","UNION JUDO 37 TOURS","2 Dan 13/01/11",37,"","",104,"",null,null,null,null,"26/04/15 Tours",7,null,"07/11/15 Vierzon",40,null,"29/11/15 Tours",30,null,"13/12/15 Boe",7,null,"27/02/16 Vierzon",20,null,null,null,null,null,null,null,null,null,null,null,null,null,null,null,null,null,null,null,"2023-05-22"]
["PAS LICENCIE","MORIN","Nicolas","1996-02-19","BLOIS JUDO","2 Dan 10/05/14",41,"","",10,"",null,null,null,null,"02/12/12 Reuilly",10,null,null,null,null,null,null,null,null,null,null,null,null,null,null,null,null,null,null,null,null,null,null,null,null,null,null,null,null,null,null,null,"2023-05-22"]
["PAS LICENCIE","MOSNIER","Fabien","1995-07-11","US ORLEANS LOIRET JUDO JUJITSU","CM",45,"","",27,"",null,null,null,null,"21/10/17 Vendome",27,null,null,null,null,null,null,null,null,null,null,null,null,null,null,null,null,null,null,null,null,null,null,null,null,null,null,null,null,null,null,null,"2023-05-22"]
["PAS LICENCIE","MOUMADOV","RAMAZAN","1990-05-26","LE CENTRAL J JUDO ORLEANAIS","CM 03/01/2019",45,"","",20,"",null,null,null,null,"25-10-2020 RGC - CREPS DE LA REGION CENTRE",20,null,null,null,null,null,null,null,null,null,null,null,null,null,null,null,null,null,null,null,null,null,null,null,null,null,null,null,null,null,null,null,"2023-05-22"]
["M18022002MOURE01","MOURET","Romain","2002-02-18","JC ARGENTONNAIS","1 Dan 25/11/18",36,"OK",{"$f":"IF(N2708=\"\",\"\",\"OK\")","v":""},{"$f":"Q2708+T2708+W2708+Z2708+AC2708+AF2708+AI2708+AL2708+AO2708+AR2708+AU2708","v":0},{"$f":"IF(O2708=\"\",\"\",\"OK\")","v":"OK"},null,"22/03/14 Orléans",null,"12/01/14 Bourges",null,null,null,null,null,null,null,null,null,null,null,null,null,null,null,null,null,null,null,null,null,null,null,null,null,null,null,null,null,null,null,null,null,"2023-05-22"]
["PAS LICENCIE","MOUSSOUNI","Sidi","1971-10-13","JC ISSOLDUNOIS","CM",36,"","",20,"",null,null,null,null,"16/02/14 Issoudun",20,null,null,null,null,null,null,null,null,null,null,null,null,null,null,null,null,null,null,null,null,null,null,null,null,null,null,null,null,null,null,null,"2023-05-22"]
["PAS LICENCIE","MOYER","Alice","1996-09-01","JUDO CLUB VENDOME USV","CM",41,"","",90,"",null,null,null,null,"01/04/17 Issoudun",50,"OK",null,null,null,"17/02/18 Orléans",10,null,"21/04/18 Issoudun",30,null,null,null,null,null,null,null,null,null,null,null,null,null,null,null,null,null,null,null,null,null,null,"2023-05-22"]
["PAS LICENCIE","MULOCHER","Guillaume","1991-06-25","J3 SPORTS AMILLY","1 Dan  26/04/08  ",45,"","",27,"OK",null,null,null,"18/04/15 St Georges/eure","02/12/12 St Georges/eure",17,null,"06/04/13 Illiers combray",10,null,null,null,null,null,null,null,null,null,null,null,null,null,null,null,null,null,null,null,null,null,null,null,null,null,null,null,null,"2023-05-22"]
["PAS LICENCIE","MUZARD","Sebastien","1979-06-29","JC ISSOLDUNOIS","CM",36,"","",20,"",null,null,null,null,"15/01/12 Tours",10,null,"17/12/11 Orléans",10,null,null,null,null,null,null,null,null,null,null,null,null,null,null,null,null,null,null,null,null,null,null,null,null,null,null,null,null,"2023-05-22"]
["PAS LICENCIE","NAGAEV","Islam","1995-07-09","US ORLEANS LOIRET JUDO JUJITSU","CM ",45,"","",130,"",null,null,null,null,"30/11/13 Orléans",10,null,"23/03/14 Limoges",40,null,"17/05/14 Gien",30,null,"10/01/15 Orléans",10,null,"14/03/15 Chatellerault",40,null,null,null,null,null,null,null,null,null,null,null,null,null,null,null,null,null,null,null,"2023-05-22"]
["PAS LICENCIE","NARDY","Charles Nicolas","1997-11-05","US ORLEANS LOIRET JUDO JUJITSU","1 Dan 20/05/13",45,"","",10,"",null,null,null,null,"28/01/18 Tours",10,null,null,null,null,null,null,null,null,null,null,null,null,null,null,null,null,null,null,null,null,null,null,null,null,null,null,null,null,null,null,null,"2023-05-22"]
["PAS LICENCIE","NESSIOUI","Nassim","1990-06-20","US ORLEANS LOIRET JUDO JUJITSU","1 Dan 13/06/08   ",45,"","",20,"",null,null,null,null,"30/01/16 Orléans",10,null,"27/05/17 Issoudun",10,null,null,null,null,null,null,null,null,null,null,null,null,null,null,null,null,null,null,null,null,null,null,null,null,null,null,null,null,"2023-05-22"]
["M08031980NIVAU01","NIVAULT","FABIEN","1980-03-08","JUDO CLUB VENDOME USV","1 DAN 02/03/2019",41,"OK","",94,"OK",null,"18/06/11 Tours",null,"11/05/11 Tours","26/11/11 Issoudun",10,null,"13/05/12 Vendome",7,null,"24/02/13 Angers",17,null,"02/06/13 Vendome",10,null,"03/11/13 Angers",20,null,"25/01/14 Bourges",10,null,"16/03/14 Angers",10,null,"05/04/14 Vendome",10,null,null,null,null,null,null,null,null,null,null,"2023-05-22"]
["PAS LICENCIE","NOEL","Elisa","1996-05-23","JC DESCARTES","CM",37,"","",20,"",null,null,null,null,"13-10-2019 - TEST EFFICACITE COMBAT A SAINT GEORGES/EURE",20,null,null,null,null,null,null,null,null,null,null,null,null,null,null,null,null,null,null,null,null,null,null,null,null,null,null,null,null,null,null,null,"2023-05-22"]
["M22082003NONET01","NONET","Clement","2003-08-22","JUDO CLUB DE DUN","CM 17/02/17",18,"","",47,"",null,null,null,null,"18/10/08 Tours",10,null,"22/11/08 Lignières",10,null,"1/02/09 Issoudun",20,null,"9/05/09 Vendôme",7,null,null,null,null,null,null,null,null,null,null,null,null,null,null,null,null,null,null,null,null,null,null,"2023-05-22"]
["PAS LICENCIE","NORGUET","Audrey","1994-03-25","BLOIS JUDO","CM",41,"","",57,"OK",null,null,null,"18/04/15 St Georges/eure","02/02/14 St georges/eure",30,null,"05/04/14 Illiers combray",7,null,"10/01/15 St Georges/eure",20,null,null,null,null,null,null,null,null,null,null,null,null,null,null,null,null,null,null,null,null,null,null,null,null,null,"2023-05-22"]
["PAS LICENCIE","OIZON","Kévin","1990-06-02","DOJO BREZOLIEN","CM",28,"OK","",50,"",null,"30/05/18 Orléans",null,null,"30/09/17 Orléans",20,null,"05/05/2019 - SHIAI GIEN",30,null,null,null,null,null,null,null,null,null,null,null,null,null,null,null,null,null,null,null,null,null,null,null,null,null,null,null,null,"2023-05-22"]
["M25052002OLIER01","OLIER","Quentin","2002-05-25","SMOC ST JEAN DE BRAYE","1 Dan 25/11/18",45,"","",10,"",null,null,null,null,"19/10/2020 - Championnat de France",10,null,null,null,null,null,null,null,null,null,null,null,null,null,null,null,null,null,null,null,null,null,null,null,null,null,null,null,null,null,null,null,"2023-05-22"]
["PAS LICENCIE","OPPAB","Aziz","1982-02-17","CSMS JUDO JUJITSU","CM",45,"","",100,"",null,null,null,null,"08/12/13 Orléans",20,null,"16/02/14 Issoudun",30,null,"25/05/14 Tours",30,null,"17/01/15 St amand",20,null,null,null,null,null,null,null,null,null,null,null,null,null,null,null,null,null,null,null,null,null,null,"2023-05-22"]
["PAS LICENCIE","OULMA","Melvin","2000-04-03","US ORLEANS LOIRET JUDO JUJITSU","1 Dan 30/04/16",45,"","",10,"",null,null,null,null,"13/01/2019 ST GEORGES SUR EURE",10,null,null,null,null,null,null,null,null,null,null,null,null,null,null,null,null,null,null,null,null,null,null,null,null,null,null,null,null,null,null,null,"2023-05-22"]
["PAS LICENCIE","PACCOU","Raphaelle","1996-08-29","JC BRACILIEN","1 Dan 16/11/13",41,"OK","",60,"",null,"03/12/16 Orléans",null,null,"12/01/14 Bourges",20,null,"17/01/15 St amand",10,null,"05/02/17 St jean le blanc",30,null,null,null,null,null,null,null,null,null,null,null,null,null,null,null,null,null,null,null,null,null,null,null,null,null,"2023-05-22"]
["M09032004PAILL01","PAILLARD","ELOUAN","2004-03-09","JC LEVETOIS","CM",18,"","",20,"",null,null,null,null,"26/11/2018 – SHIAI ANGERS",20,null,null,null,null,null,null,null,null,null,null,null,null,null,null,null,null,null,null,null,null,null,null,null,null,null,null,null,null,null,null,null,"2023-05-22"]
["M17021985PAPIL01","PAPILLON","ANTHONY","1985-02-17","ALLIANCE DE DREUX","1 DAN",28,"","",0,"",null,null,null,null,null,null,null,null,null,null,null,null,null,null,null,null,null,null,null,null,null,null,null,null,null,null,null,null,null,null,null,null,null,null,null,null,null,"2023-05-22"]
["M15101998PAQUE01","PAQUEREAU","Mathis","1998-10-15","SAINT AVERTIN SPORTS","1 DAN 05/09/2018",37,"","",10,"",null,null,null,null,"05/04/14 Vendome",10,null,null,null,null,null,null,null,null,null,null,null,null,null,null,null,null,null,null,null,null,null,null,null,null,null,null,null,null,null,null,null,"2023-05-22"]
["PAS LICENCIE","PASQUIER","Adrien","1993-02-18","JUDO CLUB VENDOME USV","1 Dan 12/12/09  ",41,"OK","",10,"",null,"23/01/16 Tours",null,null,"02/02/14 St georges/eure",10,null,null,null,null,null,null,null,null,null,null,null,null,null,null,null,null,null,null,null,null,null,null,null,null,null,null,null,null,null,null,null,"2023-05-22"]
["PAS LICENCIE","PATURAL","Paul","1996-01-26","BOURGES JUDO","1 Dan 06/06/12",18,{"$f":"IF(M2841=\"\",\"\",\"OK\")","v":""},"",20,"",null,null,null,null,"20/05/12 Amilly",10,null,"02/06/12 Ceyrat",10,null,null,null,null,null,null,null,null,null,null,null,null,null,null,null,null,null,null,null,null,null,null,null,null,null,null,null,null,"2023-05-22"]
["F11121996PAVIO01","PAVIOT","Lucile","1996-12-11","JUDO CLUB SANCOINS","CM",18,{"$f":"IF(M2846=\"\",\"\",\"OK\")","v":""},{"$f":"IF(N2846=\"\",\"\",\"OK\")","v":"OK"},{"$f":"Q2846+T2846+W2846+Z2846+AC2846+AF2846+AI2846+AL2846+AO2846+AR2846+AU2846","v":0},{"$f":"IF(O2846=\"\",\"\",\"OK\")","v":""},null,null,"11/02/2023 ORLEANS"]
["PAS LICENCIE","PEDROSA","Valentin","1999-03-21","SAINT DOULCHARD JUDO CLUB","CM",18,"","",15,"",null,null,null,null,"13/01/01 Bourges",15,null,null,null,null,null,null,null,null,null,null,null,null,null,null,null,null,null,null,null,null,null,null,null,null,null,null,null,null,null,null,null,"2023-05-22"]
["F12092004PELLE01","PELLETIER","Lisa","2004-09-12","CSMS JUDO JUJITSU","1 DAN 01/02/2020",45,"","",10,"",null,null,null,null,"11/05/2019 CHAMPIONNAT REGIONAL INDIVIDUEL SENIOR 2DIV - VIERZON",10,null,null,null,null,null,null,null,null,null,null,null,null,null,null,null,null,null,null,null,null,null,null,null,null,null,null,null,null,null,null,null,"2023-05-22"]
["PAS LICENCIE","PELLETIER","Lucas","1994-01-13","JUDO CLUB CHATEAUNEUF","CM 01/06/10",45,{"$f":"IF(M2864=\"\",\"\",\"OK\")","v":"OK"},{"$f":"IF(N2864=\"\",\"\",\"OK\")","v":"OK"},{"$f":"Q2864+T2864+W2864+Z2864+AC2864+AF2864+AI2864+AL2864+AO2864+AR2864+AU2864","v":0},{"$f":"IF(O2864=\"\",\"\",\"OK\")","v":""},null,"12/06/2022 TOURS","11/02/2023 ORLEANS"]
["PAS LICENCIE","PERCHERON","Mélanie","1983-07-06","US ORLEANS LOIRET JUDO JUJITSU","3 Dan 18/03/10  ",45,"","",63,"",null,null,null,null,"29/01/11 Orléans",21,null,"12/03/11 Issoudun",15,null,"03/04/11 Nogent le Rotrou",7,null,"12/02/12 Issoudun",10,null,"03/02/13 Issoudun",10,null,null,null,null,null,null,null,null,null,null,null,null,null,null,null,null,null,null,null,"2023-05-22"]
["F14111981PEREA01","PEREA  BOUHIER BESOULE","Aurore","1981-11-14","J3 SPORTS AMILLY","5 DAN 31/03/2019",45,"","",70,"",null,null,null,null,"4/04/09 Vierzon",30,null,"28/11/09 Vendôme",10,null,"5/06/10 St Jean le Blanc",30,null,null,null,null,null,null,null,null,null,null,null,null,null,null,null,null,null,null,null,null,null,null,null,null,null,"2023-05-22"]
["PAS LICENCIE","PERREAUX","Jérôme","1975-06-16","DREUX AC JUDO","1 Dan 25/01/92",28,"","",50,"",null,null,null,null,"15/01/12 Lamotte Beuvron",10,null,"21/10/12 St jean le blanc",40,null,null,null,null,null,null,null,null,null,null,null,null,null,null,null,null,null,null,null,null,null,null,null,null,null,null,null,null,"2023-05-22"]
["M12042005PERRI01","PERRIOT","ELLIOT","2005-04-12","C CHARTRES JUDO","MA",28,{"$f":"IF(M2891=\"\",\"\",\"OK\")","v":""},{"$f":"IF(N2891=\"\",\"\",\"OK\")","v":"OK"},{"$f":"Q2891+T2891+W2891+Z2891+AC2891+AF2891+AI2891+AL2891+AO2891+AR2891+AU2891","v":0},{"$f":"IF(O2891=\"\",\"\",\"OK\")","v":""},null,null,"13/05/2023 TOURS"]
["PAS LICENCIE","PERROTEAU","Antonin","1999-10-05","JC VEIGNE","CM",37,"","",0,"",null,null,null,null,"26/11/2018 SHIAI ANGERS",null,null,null,null,null,null,null,null,null,null,null,null,null,null,null,null,null,null,null,null,null,null,null,null,null,null,null,null,null,null,null,null,"2023-05-22"]
["PAS LICENCIE","PETRAULT","Mathilde","2001-11-08","AS MONTLOUIS JUDO","CM 10/06/14",37,"","",126,"",null,null,null,null,"5/04/08 Gien",20,null,"29/11/08 St Georges/Eure",39,null,"19/04/09 Amilly",36,null,"3/04/10 St Georges/Eure",7,null,"16/05/10 Tours",24,null,null,null,null,null,null,null,null,null,null,null,null,null,null,null,null,null,null,null,"2023-05-22"]
["PAS LICENCIE","PHILIPPEAU","Baptiste","1996-04-04","JC DUNOIS CHATEAUDUN","1 Dan 18/06/11",28,"","",57,"",null,null,null,null,"21/10/12 St jean le blanc",37,null,"02/06/13 Vendome",20,null,null,null,null,null,null,null,null,null,null,null,null,null,null,null,null,null,null,null,null,null,null,null,null,null,null,null,null,"2023-05-22"]
["PAS LICENCIE","PIERRE","Baptiste","1995-08-17","UNION JUDO 37 TOURS","1 Dan 12/12/09  ",37,"OK","",0,"",null,"03/12/16 Orléans",null,null,null,null,null,null,null,null,null,null,null,null,null,null,null,null,null,null,null,null,null,null,null,null,null,null,null,null,null,null,null,null,null,null,null,"2023-05-22"]
["M19122000PINCH01","PINCHARD","Ruddy","2000-12-19","US ORLEANS LOIRET JUDO JUJITSU","1 Dan 29/11/15",45,"","",30,"",null,null,null,null,"27/05/18 Orléans",20,null,"06/10/18 Orléans",10,null,null,null,null,null,null,null,null,null,null,null,null,null,null,null,null,null,null,null,null,null,null,null,null,null,null,null,null,"2023-05-22"]
["PAS LICENCIE","PINAULT","Remi","2001-03-25","JUDO CLUB LOURY","1 Dan 30/09/17",45,"","",66,"",null,null,null,null,"17/01/10 Vendôme",21,null,"15/01/11 Vendôme",14,null,"14/05/11 Vendome",21,null,"29/05/11 Issoudun",10,null,null,null,null,null,null,null,null,null,null,null,null,null,null,null,null,null,null,null,null,null,null,"2023-05-22"]
["PAS LICENCIE","PINON","Harry","1991-06-18","CA OUZOUER LE MARCHE","CM",41,"","",74,"OK",null,null,null,"CJA 17,92 10/04/11","01/12/12 Tours",10,null,"15/12/12 Orléans",7,null,"10/01/15 Tours",17,null,"22/02/15 Issoudun",20,null,"11/10/15 Tours",20,null,null,null,null,null,null,null,null,null,null,null,null,null,null,null,null,null,null,null,"2023-05-22"]
["PAS LICENCIE","PINSON","Jade","2000-02-16","AS DE ROCHECORBON","CM 21/04/14",37,"","",120,"",null,null,null,null,"26/02/12 Angers",30,null,"06/04/14 Vendome",30,null,"01/02/15 Vendome",10,null,"08/03/15 Angers",30,null,"11/10/15 Vendome",10,null,"13/03/16 Tours",10,null,null,null,null,null,null,null,null,null,null,null,null,null,null,null,null,"2023-05-22"]
["30012001PIQUE01","PIQUERAS","Hugo","2001-01-30","SAINT DOULCHARD JUDO CLUB","1 Dan ET 27/05/18",18,"","",0,"",null,null,null,null,null,null,null,null,null,null,null,null,null,null,null,null,null,null,null,null,null,null,null,null,null,null,null,null,null,null,null,null,null,null,null,null,null,"2023-05-22"]
["PAS LICENCIE","PLAGNOL","Frederic","1968-12-01","ENTENTE SPORTIVE JUDO AUNEAU","1 Dan 25/06/11",28,"","",20,"",null,null,null,null,"13/02/11 Vendome",20,null,null,null,null,null,null,null,null,null,null,null,null,null,null,null,null,null,null,null,null,null,null,null,null,null,null,null,null,null,null,null,"2023-05-22"]
["M08121980PLAYE01","PLAYE","MICHAEL","1980-12-08","C.S.M.S JUDO / JUJITSU","CM",45,"OK","",51,"",null,"01/12/18 Orléans",null,null,"05/02/17 St jean le blanc",20,null,"03/02/2019 SHIAI TEST EFFICACITE - ISSOUDUN",10,null,"05/05/2019 - SHIAI GIEN",21,null,null,null,null,null,null,null,null,null,null,null,null,null,null,null,null,null,null,null,null,null,null,null,null,null,"2023-05-22"]
["PAS LICENCIE","PLEHIERS","Thomas","1993-03-06","AS VENNECY","CM 01/01/08",45,"","",20,"",null,null,null,null,"29/01/12 Orléans",20,null,null,null,null,null,null,null,null,null,null,null,null,null,null,null,null,null,null,null,null,null,null,null,null,null,null,null,null,null,null,null,"2023-05-22"]
["PAS LICENCIE","POINTAL","Olivier","1986-02-26","BLOIS JUDO","2 Dan 04/04/09 ",41,"OK","",95,"OK",null,"18/06/11 Chateauroux",null,"CJA Cadets 15,8  15/12/07 St Amand","16/12/07 St Amand",10,null,"5/12/09 St Amand",10,null,"16/01/10 Vierzon",20,null,"15/01/11 St Amand",35,null,"07/05/11 St Jean le Blanc",20,null,null,null,null,null,null,null,null,null,null,null,null,null,null,null,null,null,null,null,"2023-05-22"]
["PAS LICENCIE","POINTARD","Chloé","1993-08-18","DOJO VIERZONNAIS","CM 01/06/07",18,"","",40,"",null,null,null,null,"28/02/10 Tours",20,null,"27/03/10 Gien",20,null,null,null,null,null,null,null,null,null,null,null,null,null,null,null,null,null,null,null,null,null,null,null,null,null,null,null,null,"2023-05-22"]
["F03092004POLID01","POLIDOR","Laureline","2004-09-03","CO SOLOGNOT","1 DAN 26/06/2021",45,{"$f":"IF(M2983=\"\",\"\",\"OK\")","v":""},{"$f":"IF(N2983=\"\",\"\",\"OK\")","v":""},{"$f":"Q2983+T2983+W2983+Z2983+AC2983+AF2983+AI2983+AL2983+AO2983+AR2983+AU2983","v":0},{"$f":"IF(O2983=\"\",\"\",\"OK\")","v":""}]
["M20032005POMMI01","POMMIER","VICTORIEN","2005-03-20","AVENIR SONZAY JUDO","CM 10/01/2019",37,{"$f":"IF(M2990=\"\",\"\",\"OK\")","v":"OK"},{"$f":"IF(N2990=\"\",\"\",\"OK\")","v":""},{"$f":"Q2990+T2990+W2990+Z2990+AC2990+AF2990+AI2990+AL2990+AO2990+AR2990+AU2990","v":0},{"$f":"IF(O2990=\"\",\"\",\"OK\")","v":""},null,"12/06/2022 TOURS"]
["M29032006PONCE01","PONCELET","Tony","2006-03-29","A JUDO CHATEAUROUX","CM",36,"","",84,"",null,null,null,null,"07/11/15 Vierzon",27,null,"27/02/16 St Geoges/eure",20,null,"10/04/16 Orléans",27,null,"06/11/16 Orléans",10,null,null,null,null,null,null,null,null,null,null,null,null,null,null,null,null,null,null,null,null,null,null,"2023-05-22"]
["PAS LICENCIE","POTIER","Amandine","1999-06-10","JC BALGENTIEN","CM 10/04/13",45,"","",10,"",null,null,null,null,"18/12/11 Tours",10,null,null,null,null,null,null,null,null,null,null,null,null,null,null,null,null,null,null,null,null,null,null,null,null,null,null,null,null,null,null,null,"2023-05-22"]
["PAS LICENCIE","POULET","Baptiste","1995-03-31","JUDO CLUB SANCOINS","CM",18,"","",30,"",null,null,null,null,"12/02/12 Issoudun",30,null,null,null,null,null,null,null,null,null,null,null,null,null,null,null,null,null,null,null,null,null,null,null,null,null,null,null,null,null,null,null,"2023-05-22"]
["M17042000POULL01","POULLAIN","GUSTAVE","2000-04-17","US.ORLEANS LOIRET JUDO JUJITSU","CM",45,"","",30,"",null,null,null,null,"22/03/09 Tours",30,null,null,null,null,null,null,null,null,null,null,null,null,null,null,null,null,null,null,null,null,null,null,null,null,null,null,null,null,null,null,null,"2023-05-22"]
["M08061994PRAUD01","PRAUD","NICOLAS","1994-06-08","JUDO JU-JITSU CHATILLON C.","CM",45,"","",40,"",null,null,null,null,"06/11/16 Orléans",30,null,"01/04/17 Issoudun",10,null,null,null,null,null,null,null,null,null,null,null,null,null,null,null,null,null,null,null,null,null,null,null,null,null,null,null,null,"2023-05-22"]
["PAS LICENCIE","PREUMONT","Sylvain","1969-08-31","JC RICHELAIS","CM 15/10/07",37,"OK","",0,"",null,"18/06/11 Tours",null,null,null,null,null,null,null,null,null,null,null,null,null,null,null,null,null,null,null,null,null,null,null,null,null,null,null,null,null,null,null,null,null,null,null,"2023-05-22"]
["M24062007PRIMA01","PRIMAULT","MATTHIEU","2007-06-24","AVENIR SONZAY JUDO","MA",37,{"$f":"IF(M3032=\"\",\"\",\"OK\")","v":"OK"},{"$f":"IF(N3032=\"\",\"\",\"OK\")","v":""},{"$f":"Q3032+T3032+W3032+Z3032+AC3032+AF3032+AI3032+AL3032+AO3032+AR3032+AU3032","v":0},{"$f":"IF(O3032=\"\",\"\",\"OK\")","v":""},null,"13/05/2023 TOURS"]
["PAS LICENCIE","PRUNOTTO","Enzo","2002-01-31","JC NOGENT LE ROTROU","CM 24/06/16",28,"","",100,"",null,null,null,null,"14/03/15 Chatellerault",10,null,"27/02/16 Vierzon",20,null,"03/12/16 Limoges",50,"OK",null,null,null,"02/04/17 Issoudun",10,null,"11/03/17 Issoudun",10,null,null,null,null,null,null,null,null,null,null,null,null,null,null,null,null,"2023-05-22"]
["F21102004PRYET01","PRYET","AMANDINE","2004-10-21","AMICALE DE NEUVILLE","1 DAN 24/06/2022",45,{"$f":"IF(M3043=\"\",\"\",\"OK\")","v":""},{"$f":"IF(N3043=\"\",\"\",\"OK\")","v":"OK"},{"$f":"Q3043+T3043+W3043+Z3043+AC3043+AF3043+AI3043+AL3043+AO3043+AR3043+AU3043","v":20},{"$f":"IF(O3043=\"\",\"\",\"OK\")","v":""},null,null,"12/03/2022 TOURS",null,"06/11/2022 SHIAI ISSOUDUN",20]
["PAS LICENCIE","QUENTIN","Jordy","1994-12-06","L.E.S.S.C.A.L.E","1 Dan 03/04/11",28,"OK","",0,"",null,"12/03/17 Tours KIME/GONO",null,null,null,null,null,null,null,null,null,null,null,null,null,null,null,null,null,null,null,null,null,null,null,null,null,null,null,null,null,null,null,null,null,null,null,"2023-05-22"]
["PAS LICENCIE","RAFFIN","Simon","1993-02-08","JC MISTRAL","1 Dan 12/06/09 ",37,"","",10,"",null,null,null,null,"06/10/18 Tours",10,null,null,null,null,null,null,null,null,null,null,null,null,null,null,null,null,null,null,null,null,null,null,null,null,null,null,null,null,null,null,null,"2023-05-22"]
["PAS LICENCIE","RAGUENEAU","Karine","1967-06-18","CLUB OMNISPORTS VERNOUILLET","CM",28,"","",167,"OK",null,null,null,"1/03/08 St Georges/Eure","30/01/05 Orléans",28,null,"5/03/05 Tours",14,null,"26/11/05 Illiers Combray",24,null,"10/12/05 Vendôme",10,null,"5/02/06 Orléans",14,null,"1/12/07 Vendôme",27,null,"13/12/2015 Bretigny",50,null,null,null,null,null,null,null,null,null,null,null,null,null,"2023-05-22"]
["PAS LICENCIE","RAMDHANI","Hakim","1995-07-28","SMOC ST JEAN DE BRAYE","1 Dan 17/12/11",45,"","",10,"",null,null,null,null,"03/02/18 Gonfreville",10,null,null,null,null,null,null,null,null,null,null,null,null,null,null,null,null,null,null,null,null,null,null,null,null,null,null,null,null,null,null,null,"2023-05-22"]
["M10061967RANDR01","RANDRIANJOHANY","Ivan","1967-06-10","L.E.S.S.C.A.L.E","1 Dan 18/05/13",28,"","",30,"",null,null,null,null,"06/04/13 Illiers combray",10,null,"01/06/14 Ceyrat",20,null,null,null,null,null,null,null,null,null,null,null,null,null,null,null,null,null,null,null,null,null,null,null,null,null,null,null,null,"2023-05-22"]
["PAS LICENCIE","RATISSEAU","Yann","1996-04-14","AS VENNECY","CM",45,"","",0,"",null,null,null,null,null,null,null,null,null,null,null,null,null,null,null,null,null,null,null,null,null,null,null,null,null,null,null,null,null,null,null,null,null,null,null,null,null,"2023-05-22"]
["PAS LICENCIE","REBILLARD","Loic ","1996-12-20","JUDO CLUB ECUEILLOIS","CM",36,"OK","OK",30,"",null,"01/12/18 Orléans","01/12/18 Orléans",null,"03/02/2019 SHIAI TEST EFFICACITE - ISSOUDUN",10,null,"05/05/2019 - SHIAI GIEN",20,null,null,null,null,null,null,null,null,null,null,null,null,null,null,null,null,null,null,null,null,null,null,null,null,null,null,null,null,"2023-05-22"]
["PAS LICENCIE","REBY","Nelly","1989-12-14","UNION JUDO 37 TOURS","1 Dan 11/04/07  ",37,"","",14,"",null,null,null,null,"19/12/10 Tours",14,null,null,null,null,null,null,null,null,null,null,null,null,null,null,null,null,null,null,null,null,null,null,null,null,null,null,null,null,null,null,null,"2023-05-22"]
["PAS LICENCIE","REMOND","Amandine","1996-02-17","JUDO CLUB JOCONDIEN","CM",37,"OK","",64,"OK",null,"13/06/08 Tours",null,"CJA  Cadets 15,07  20/01/08 Tours","29/11/08 St Georges/Eure",27,null,"4/04/09 Vierzon",7,null,"9/05/09 Vendôme",10,null,"6/06/09 St Jean le Blanc",20,null,null,null,null,null,null,null,null,null,null,null,null,null,null,null,null,null,null,null,null,null,null,"2023-05-22"]
["M04011998RENAU01","RENAUD ","Corentin","1998-01-04","JUDO CLUB VENDOME USV","2 Dan 17/02/18",41,"OK","",110,"",null,"02/12/17 Tours",null,null,"11/01/15 Le Poinconnet",10,null,"22/02/15 Issoudun",10,null,"11/10/15 Vendome",40,null,"07/11/15 Vierzon",10,null,"27/02/16 Vierzon",10,null,"20/03/16 Tours",30,null,null,null,null,null,null,null,null,null,null,null,null,null,null,null,null,"2023-05-22"]
["M12041974RENAU01","RENAULT","DAVID","1974-04-12","JUDO CLUB VENDOME USV","MA",41,{"$f":"IF(M3112=\"\",\"\",\"OK\")","v":""},{"$f":"IF(N3112=\"\",\"\",\"OK\")","v":"OK"},{"$f":"Q3112+T3112+W3112+Z3112+AC3112+AF3112+AI3112+AL3112+AO3112+AR3112+AU3112","v":0},{"$f":"IF(O3112=\"\",\"\",\"OK\")","v":""},null,null,"13/05/2023 TOURS"]
["PAS LICENCIE","RESCH","Adrien","1996-02-03","JUDO CLUB LUCAY LE MALE","CM",36,"","",30,"",null,null,null,null,"03/02/13 Issoudun",20,null,"16/03/13 La flèche",10,null,null,null,null,null,null,null,null,null,null,null,null,null,null,null,null,null,null,null,null,null,null,null,null,null,null,null,null,"2023-05-22"]
["PAS LICENCIE","REVERT","Jennifer","1991-01-13","ARTS MARTIAUX DE ST GEORGES","1 Dan  25/05/08  ",28,"OK","",111,"",null,"23/04/16 Tours",null,null,"20/03/11 Issoudun",20,null,"07/05/11 St Jean le Blanc",7,null,"12/02/12 Issoudun",17,null,"01/04/12 Orléans",10,null,"21/05/16 Limoges",30,null,"09/10/16 Vierzon",7,null,"Vierzon 12-05-2019 OPEN SENIOR CEINTURE DE COULEUR",20,null,null,null,null,null,null,null,null,null,null,null,null,null,"2023-05-22"]
["PAS LICENCIE","RICHARD","Valentin","1991-08-01","US LA FERTE ST AUBIN","CM",45,"",{"$f":"IF(N3133=\"\",\"\",\"OK\")","v":""},{"$f":"Q3133+T3133+W3133+Z3133+AC3133+AF3133+AI3133+AL3133+AO3133+AR3133+AU3133","v":10},{"$f":"IF(O3133=\"\",\"\",\"OK\")","v":""},null,null,null,null,"01/06/13 Vendome",10,null,null,null,null,null,null,null,null,null,null,null,null,null,null,null,null,null,null,null,null,null,null,null,null,null,null,null,null,null,null,null,"2023-05-22"]
["M05042004RICHA01","RICHARD","NATHAN","2004-04-05","ALERTE SP.FONDETTES","1 DAN 15/12/2019",37,"OK","",64,"OK",null,"25/03/05 Lucé",null,"24/09/05 Nogent le Rotrou ","22/05/05 Vierzon",27,null,"10/12/05 Vendôme",7,null,"4/02/06 Orléans",10,null,"17/02/07 Bourges",10,null,"16/11/13 St Georges/eure",10,null,null,null,null,null,null,null,null,null,null,null,null,null,null,null,null,null,null,null,"2023-05-22"]
["M01102007RIFFA01","RIFFAUD","JULES","2007-10-01","JUDO CLUB TOURAINE","CM",37,"","",100,"OK",null,null,null,"07/05/13 Tours","22/02/15 Issoudun",20,null,"14/03/15 Chatellerault",10,null,"11/10/15 Tours",30,null,"12/03/16 Tours",40,null,null,null,null,null,null,null,null,null,null,null,null,null,null,null,null,null,null,null,null,null,null,"2023-05-22"]
["PAS LICENCIE","RION","Laurine","1995-02-07","UNION JUDO 37 TOURS","1 Dan 19/05/10 ",37,"OK","",0,"OK",null,"22/03/14 Orléans",null,"10/05/14 St georges/eure","01/02/15 Poitiers UV4",null,null,null,null,null,null,null,null,null,null,null,null,null,null,null,null,null,null,null,null,null,null,null,null,null,null,null,null,null,null,null,null,"2023-05-22"]
["PAS LICENCIE","RIVIERE","Benjamin","1994-11-22","CLAP JUDO PATAY","1 Dan 24/04/12",45,{"$f":"IF(M3158=\"\",\"\",\"OK\")","v":"OK"},{"$f":"IF(N3158=\"\",\"\",\"OK\")","v":""},{"$f":"Q3158+T3158+W3158+Z3158+AC3158+AF3158+AI3158+AL3158+AO3158+AR3158+AU3158","v":20},{"$f":"IF(O3158=\"\",\"\",\"OK\")","v":""},null,"12/03/2022 TOURS",null,null,"06/11/2022 SHIAI ISSOUDUN",20]
["PAS LICENCIE","ROBERT","Benjamin","1992-07-07","JUDO CLUB VILLEDIEU","CM",36,{"$f":"IF(M3163=\"\",\"\",\"OK\")","v":""},{"$f":"IF(N3163=\"\",\"\",\"OK\")","v":""},{"$f":"Q3163+T3163+W3163+Z3163+AC3163+AF3163+AI3163+AL3163+AO3163+AR3163+AU3163","v":20},{"$f":"IF(O3163=\"\",\"\",\"OK\")","v":""},null,null,null,null,"03/12/2022 TOURNOI DE BOURGES",20]
["PAS LICENCIE","ROBLIN","Eric","1969-12-27","JC DESCARTES","1 Dan 18/12/11",37,"","",101,"",null,null,null,null,"25/01/14 Bourges",10,null,"07/06/14 Nantes",10,null,"15/12/14 Roullet",17,null,"04/04/15 Limoges",27,null,"26/04/15 Tours",10,null,"29/11/15 Angers",10,null,"27/02/16 Vierzon",10,null,"20/03/16 Tours",7,null,null,null,null,null,null,null,null,null,null,"2023-05-22"]
["PAS LICENCIE","ROCHEREAU","Benoît","1991-09-13","JUDO CLUB  MONTOIRE/S/LE LOIR","CM",41,"","",114,"",null,null,null,null,"12/03/16 Angers",34,null,"13/03/16 Tours",20,null,"04/06/16 Angers",20,null,"04/02/18 Vendome",40,null,null,null,null,null,null,null,null,null,null,null,null,null,null,null,null,null,null,null,null,null,null,"2023-05-22"]
["M07112000ROGER01","ROGER","Antonin","2000-11-07","AS JUDO HANCHES","2 DAN 29/02/2020",28,"","",55,"",null,null,null,null,"14/03/09 Le Mans",10,null,"28/11/09 Vendôme",10,null,"13/02/11 Vendome",35,null,null,null,null,null,null,null,null,null,null,null,null,null,null,null,null,null,null,null,null,null,null,null,null,null,"2023-05-22"]
["PAS LICENCIE","ROLLIN","Benjamin","1990-05-12","SMOC ST JEAN DE BRAYE","1 Dan 19/03/11",45,"","",40,"OK",null,null,null,"F1 11/03/17 St georges/eure","08/10/17 St Georges/eure",20,null,"11/11/17 Angers",20,null,null,null,null,null,null,null,null,null,null,null,null,null,null,null,null,null,null,null,null,null,null,null,null,null,null,null,null,"2023-05-22"]
["M27092002RONCI01","RONCIER","Luckas","2002-09-27","ESP SPORT DU BEFFROI JUDO","CM 23/12/17",37,"","",10,"",null,null,null,null,"15/01/11 St Amand",10,null,null,null,null,null,null,null,null,null,null,null,null,null,null,null,null,null,null,null,null,null,null,null,null,null,null,null,null,null,null,null,"2023-05-22"]
["M19031983ROOSE01","ROOSEN","Marc","1983-03-19","ASL ST JEAN LE BLANC","1 Dan 19/01/13",45,"","",67,"",null,null,null,null,"7/06/08 Orléans",10,null,"18/10/08 Tours",10,null,"22/11/08 Lignières",10,null,"14/12/08 Tours",10,null,"2/05/10 Tours",10,null,"09/04/11 Tours",17,null,null,null,null,null,null,null,null,null,null,null,null,null,null,null,null,"2023-05-22"]
["PAS LICENCIE","ROSEL","Jean Pascal","1967-08-30","JC NOGENT LE ROTROU","CM",28,{"$f":"IF(M3208=\"\",\"\",\"OK\")","v":""},{"$f":"IF(N3208=\"\",\"\",\"OK\")","v":"OK"},{"$f":"Q3208+T3208+W3208+Z3208+AC3208+AF3208+AI3208+AL3208+AO3208+AR3208+AU3208","v":50},{"$f":"IF(O3208=\"\",\"\",\"OK\")","v":""},null,null,"12/03/2022 TOURS",null,"20/11/2022 Open cadets St Doulchard",20,null,"03/12/2022 TOURNOI DE BOURGES",30]
["PAS LICENCIE","ROSSI","Marie Hélène","1964-08-05","BOURGES JUDO","CM",18,"","",109,"",null,null,null,null,"27/11/10 Issoudun",30,null,"15/01/11 St Amand",32,null,"13/02/11 Vendome",47,null,null,null,null,null,null,null,null,null,null,null,null,null,null,null,null,null,null,null,null,null,null,null,null,null,"2023-05-22"]
["PAS LICENCIE","ROUANNE","Charlie","1998-09-04","ASS JUDO OLIVET","CM",45,"","",10,"",null,null,null,null,"17/12/11 Orléans",10,null,null,null,null,null,null,null,null,null,null,null,null,null,null,null,null,null,null,null,null,null,null,null,null,null,null,null,null,null,null,null,"2023-05-22"]
["PAS LICENCIE","ROUSSEAU","Astrid","1978-04-21","JUDO CLUB TOURAINE","2 Dan 12/05/00",37,"","",124,"",null,null,null,null,"15/04/06 Vendôme",20,null,"9/06/07 Issoudun",17,null,"4/05/08 Le Poinçonnet",15,null,"7/12/08 Issoudun",32,null,"8/03/09 Reuilly",10,null,"22/03/09 Issoudun",30,null,null,null,null,null,null,null,null,null,null,null,null,null,null,null,null,"2023-05-22"]
["PAS LICENCIE","ROUSSELET","Anthony","1990-04-25","BLOIS JUDO","CM",41,"","",10,"",null,null,null,null,"03/03/12 Limoges",10,null,null,null,null,null,null,null,null,null,null,null,null,null,null,null,null,null,null,null,null,null,null,null,null,null,null,null,null,null,null,null,"2023-05-22"]
["PAS LICENCIE","ROUX","Sophie","1992-05-04","JC PITHIVIERS","1 Dan 31/01/09  ",45,"","",85,"",null,null,null,null,"15/10/16 Ceyrat",10,null,"20/11/16 St jean le blanc",10,null,"03/12/16 Nantes",24,null,"11/03/17 St georges/eure",14,null,"02/04/17 Issoudun",27,null,null,null,null,null,null,null,null,null,null,null,null,null,null,null,null,null,null,null,"2023-05-22"]
["PAS LICENCIE","ROUYERAS","Alexandre","1997-11-04","AS GIEN JUDO","CM",45,"","",104,"",null,null,null,null,"9/06/07 Issoudun",20,null,"13/12/08 Orléans",28,null,"25/04/09 Orléans",17,null,"10/05/09 Vendôme",10,null,"18/04/10 Orléans",29,null,null,null,null,null,null,null,null,null,null,null,null,null,null,null,null,null,null,null,"2023-05-22"]
["PAS LICENCIE","RUIZ","Delphine","1971-09-20","JC HENRICHEMONT","1 Dan 17/01/10",18,"OK","",20,"OK",null,"15/11/14 Orléans",null,"13/10/12 Orléans","07/12/14 Arnay le duc",20,null,null,null,null,null,null,null,null,null,null,null,null,null,null,null,null,null,null,null,null,null,null,null,null,null,null,null,null,null,null,null,"2023-05-22"]
["PAS LICENCIE","SADORGE","Antoine","1998-10-09","JUDO KODOKAN 28","CM 08/06/13",28,{"$f":"IF(M3253=\"\",\"\",\"OK\")","v":"OK"},{"$f":"IF(N3253=\"\",\"\",\"OK\")","v":"OK"},{"$f":"Q3253+T3253+W3253+Z3253+AC3253+AF3253+AI3253+AL3253+AO3253+AR3253+AU3253","v":0},{"$f":"IF(O3253=\"\",\"\",\"OK\")","v":""},null,"12/06/2022 TOURS","12/06/2022 TOURS"]
["PAS LICENCIE","SAGOT","Yann","1980-04-20","JC ST GERMAIN PUY","1 Dan 28/11/98",18,"","",84,"",null,null,null,null,"15/01/11 Vendôme",17,null,"19/02/11 Vendome",7,null,"13/03/11 Issoudun",10,null,"14/05/11 Vendome",10,null,"29/05/11 Issoudun",30,null,"11/01/15 Vendome",10,null,null,null,null,null,null,null,null,null,null,null,null,null,null,null,null,"2023-05-22"]
["M19071980SALES01","SALESSES","JULIEN","1980-07-19","JUDO CLUB DE VOVES","CM",28,"OK","",17,"",null,"13/05/2023 TOURS",null,null,"05/02/17 St jean le blanc",10,null,"26/03/17 Chatellerault",7,null,null,null,null,null,null,null,null,null,null,null,null,null,null,null,null,null,null,null,null,null,null,null,null,null,null,null,null,"2023-05-22"]
["M31011994SALIO01","SALIOT","Cedric","1994-01-31","LE CENTRAL J JUDO ORLEANAIS","1 DAN 13/10/2019",45,"","",30,"",null,null,null,null,"05/05/2019 - SHIAI GIEN",30,null,null,null,null,null,null,null,null,null,null,null,null,null,null,null,null,null,null,null,null,null,null,null,null,null,null,null,null,null,null,null,"2023-05-22"]
["PAS LICENCIE","SAMPAIO","Stéphane","1994-12-17","JUDO CLUB CHALETTOIS","CM",45,"","",40,"",null,null,null,null,"26/11/2018 – SHIAI ANGERS",40,null,null,null,null,null,null,null,null,null,null,null,null,null,null,null,null,null,null,null,null,null,null,null,null,null,null,null,null,null,null,null,"2023-05-22"]
["M29091984SANTI01","SANTIAGO","Jeremy","1984-09-29","ASS SPORT LAMOTTOISE","CM 15/06/13",41,"","",64,"",null,null,null,null,"20/11/16 St jean le blanc",14,null,"11/03/17 St georges/eure",10,null,"17/02/18 Orléans",10,null,"11/03/18 Tours",30,null,null,null,null,null,null,null,null,null,null,null,null,null,null,null,null,null,null,null,null,null,null,"2023-05-22"]
["M28122004SASSE01","SASSERANT","CORENTIN","2004-12-28","JCLUB FERTESIEN","1 DAN 20/02/2022",45,"OK","",0,"",null,"10/12/11 Tours",null,null,null,null,null,null,null,null,null,null,null,null,null,null,null,null,null,null,null,null,null,null,null,null,null,null,null,null,null,null,null,null,null,null,null,"2023-05-22"]
["PAS LICENCIE","SAUTRON","Christophe","1989-07-08","ASL ST JEAN LE BLANC","1 Dan 13/11/04",45,"OK","",0,"",null,"09/06/12 Châteauroux",null,null,null,null,null,null,null,null,null,null,null,null,null,null,null,null,null,null,null,null,null,null,null,null,null,null,null,null,null,null,null,null,null,null,null,"2023-05-22"]
["F30011979SAYAD01 ","SAYADA","GERALDINE ","1979-01-30","F30011979SAYAD01 ","1 DAN 30/01/2022",45,"","",10,"",null,null,null,null,"15/01/12 Lamotte Beuvron",10,null,null,null,null,null,null,null,null,null,null,null,null,null,null,null,null,null,null,null,null,null,null,null,null,null,null,null,null,null,null,null,"2023-05-22"]
["PAS LICENCIE","SAYEDE","Pierrick","1996-01-04","AS JUDO HANCHES","CM",28,"","",20,"",null,null,null,null,"03/02/2019 SHIAI TEST EFFICACITE - ISSOUDUN",20,null,null,null,null,null,null,null,null,null,null,null,null,null,null,null,null,null,null,null,null,null,null,null,null,null,null,null,null,null,null,null,"2023-05-22"]
["M11121998SEJEA01","SEJEAU","Victor","1998-12-11","JC ISSOLDUNOIS","1 DAN 14/06/2022",36,"","",37,"",null,null,null,null,"26/01/2019 CHAMPIONNAT CADETS/CADETTES 1ERE DIVISION BASSIN SUD - TOURS",10,null,null,null,null,"06/11/2022 SHIAI ISSOUDUN",27,null,null,null,null,null,null,null,null,null,null,null,null,null,null,null,null,null,null,null,null,null,null,null,null,null,"2023-05-22"]
["M19092002SEJEA01","SEJEAU","Julien","2002-09-19","JC ISSOLDUNOIS","1 Dan 28/01/18",36,"","",94,"",null,null,null,null,"10/01/10 Orléans",32,null,"24/01/10 Tours",10,null,"20/03/10 Le Mans",10,null,"03/04/11 Tours",42,null,null,null,null,null,null,null,null,null,null,null,null,null,null,null,null,null,null,null,null,null,null,"2023-05-22"]
["PAS LICENCIE","SERGENT","Anthony","1993-05-06","US ORLEANS LOIRET JUDO JUJITSU","1 Dan 08/06/08",45,"","",112,"",null,null,null,null,"17/05/14 Gien",10,null,"10/01/15 Orléans",10,null,"14/03/15 Chatellerault",10,null,"05/12/15 Nantes",7,null,"27/02/16 St Georges/eure",10,null,"10/04/16 Orléans",7,null,"11/03/17 St georges/eure",17,null,"02/04/17 Angers",14,null,"30/04/17 Orléans",17,null,"24/10/2021 CHAMPIONNAT REGIONAL INDIVIDUEL SENIOR 1ERE DIVISION",10,null,null,null,null,"2023-05-22"]
["PAS LICENCIE","SEVENO","Vincent","1999-01-27","AMIJ EPERNON","CM",28,"","",101,"",null,null,null,null,"7/12/08 St Amand",10,null,"5/12/09 St Amand",7,null,"16/01/10 Vierzon",10,null,"27/11/10 Issoudun",15,null,"30/01/11 Orléans",10,null,"15/01/11 St Amand",21,null,"12/02/11 Vierzon",28,null,null,null,null,null,null,null,null,null,null,null,null,null,"2023-05-22"]
["PAS LICENCIE","SHAITA","Ralid","1997-01-07","DREUX AC JUDO","CM",28,"","",50,"",null,null,null,null,"13/01/13 Orléans",10,null,"18/05/14 Limoges",10,null,"06/11/16 Orléans",20,null,"22/04/18 Issoudun",10,null,null,null,null,null,null,null,null,null,null,null,null,null,null,null,null,null,null,null,null,null,null,"2023-05-22"]
["PAS LICENCIE","SIMARD","Loïc","1982-12-09","JUDO CLUB SELLOIS","1 Dan 06/12/98",41,"","",10,"",null,null,null,null,"27/11/10 Issoudun",10,null,null,null,null,null,null,null,null,null,null,null,null,null,null,null,null,null,null,null,null,null,null,null,null,null,null,null,null,null,null,null,"2023-05-22"]
["PAS LICENCIE","SIMONET","Philippe","1968-12-01","JC CHATILLONNAIS","1 Dan 04/04/09  ",36,"","",123,"OK",null,null,null,"Juge Arbitre 20/03/05 Issoudun","17/12/00 Chateauroux",27,null,"25/02/01 Le Poinçonnet",25,null,"27/05/01 Orléans",17,null,"10/03/02 Le Poinçonnet  ",27,null,"5/05/02 Chatillon/Indre",27,null,null,null,null,null,null,null,null,null,null,null,null,null,null,null,null,null,null,null,"2023-05-22"]
["PAS LICENCIE","SIMONET","Alexandre","1978-02-11","JUDO CLUB DEOLS","1 Dan 14/05/95",36,"","",100,"",null,null,null,null,"10/03/02 Le Poinçonnet",10,null,"5/05/02 Chatillon/Indre",14,null,"25/5/02 St Amand",10,null,"4/05/03 Chartres",15,null,"5/04/03 Chatillon",27,null,"14/12/03 Vendôme",10,null,"8/02/04 Le Poinçonnet",14,null,null,null,null,null,null,null,null,null,null,null,null,null,"2023-05-22"]
["PAS LICENCIE","SOETENS","Allan","1984-10-15","JUDO CLUB MEHUN","1 Dan 09/12/01",18,"","",101,"",null,null,null,null,"15/12/02 Joigny",10,null,"20/03/05 Limoges",25,null,"1/05/05 Issoudun",24,null,"28/05/05 Issoudun",42,null,null,null,null,null,null,null,null,null,null,null,null,null,null,null,null,null,null,null,null,null,null,"2023-05-22"]
["PAS LICENCIE","SOLET","Remy","1994-11-03","JC NOGENT LE ROTROU","1 Dan  13/12/09  ",28,"","",52,"",null,null,null,null,"16/12/07 Tours",7,null,"6/07/08 Tours",20,null,"3/02/08 St Doulchard",15,null,"7/06/09 Angers",10,null,null,null,null,null,null,null,null,null,null,null,null,null,null,null,null,null,null,null,null,null,null,"2023-05-22"]
["PAS LICENCIE","SOULARD","Stevens","1979-07-20","JUDO CLUB CHATEAUNEUF","CM",45,"","",0,"",null,null,null,null,null,null,null,null,null,null,null,null,null,null,null,null,null,null,null,null,null,null,null,null,null,null,null,null,null,null,null,null,null,null,null,null,null,"2023-05-22"]
["F17062004SOUTT01","SOUTTRE","CLELIA","2004-06-17","UNION SPORTIVE ST MAUR JUDO","CM",36,"","",30,"",null,null,null,null,"OPEN SENIOR - LAMOTTE - 24-03-2019",30,null,null,null,null,null,null,null,null,null,null,null,null,null,null,null,null,null,null,null,null,null,null,null,null,null,null,null,null,null,null,null,"2023-05-22"]
["PAS LICENCIE","SOYER","Kévin","1991-02-01","US ORLEANS LOIRET JUDO JUJITSU","2 Dan 08/06/11",45,"","",20,"",null,null,null,null,"19/05/2019 INDIVIDUEL CADETS \"ESPOIR\" - LA SOURCE MINOUFLET",10,null,"18_11_2022 St Doulchard Open",10,null,null,null,null,null,null,null,null,null,null,null,null,null,null,null,null,null,null,null,null,null,null,null,null,null,null,null,null,"2023-05-22"]
["PAS LICENCIE","STRAUCH","Ludwig","1981-04-08","JC NOGENT LE ROTROU","1 Dan 12/06/09   ",28,"","",170,"OK",null,null,null,"F1 01/05/11","27/11/10 Issoudun",10,null,"15/01/11 St Amand",14,null,"12/02/11 Vierzon",24,null,"13/03/11 Issoudun",15,null,"14/05/11 Dun/Auron",7,null,"11/12/11 Tours",10,null,"13/01/13 Orléans",10,null,"31/03/13 Bourges",10,null,"03/03/2019 OPEN SENIOR Saint Georges sur Eure",30,null,"OPEN SENIOR - LAMOTTE - 24-03-2019",10,null,"Vierzon 12-05-2019 OPEN SENIOR CEINTURE DE COULEUR",30,null,"2023-05-22"]
["PAS LICENCIE","TAC","Dogan","1996-06-04","AS GIEN JUDO","CM 03/05/11",45,"","",30,"",null,null,null,null,"02/06/13 Ceyrat",10,null,"02/02/14 St georges/eure",10,null,"15/02/14 Issoudun",10,null,null,null,null,null,null,null,null,null,null,null,null,null,null,null,null,null,null,null,null,null,null,null,null,null,"2023-05-22"]
["PAS LICENCIE","TAING","Anthony","1997-09-01","JUDO CLUB JOCONDIEN","CM",37,"OK","",30,"OK",null,"08/06/13 Tours",null,"13/10/12 Tours","01/12/12 Tours",10,null,"01/02/15 Vendome",20,null,null,null,null,null,null,null,null,null,null,null,null,null,null,null,null,null,null,null,null,null,null,null,null,null,null,null,null,"2023-05-22"]
["PAS LICENCIE","TAMTBON","Abigail","1991-06-20","BOURGES JUDO  ","1 Dan 01/04/07",18,"OK","",37,"OK",null,"02/12/17 Tours",null,"08/10/16 Parcay Meslay","04/02/18 Vendome",7,null,"26/05/18 St Berthevin",30,null,null,null,null,null,null,null,null,null,null,null,null,null,null,null,null,null,null,null,null,null,null,null,null,null,null,null,null,"2023-05-22"]
["PAS LICENCIE","TANZILLI","Robin","1995-08-15","US ST PIERRE DES CORPS","1 Dan 17/10/10",37,"","",57,"",null,null,null,null,"03/02/2019 SHIAI TEST EFFICACITE - ISSOUDUN",27,null,"OPEN SENIOR - LAMOTTE - 24-03-2019",10,null,"11/05/2019 CHAMPIONNAT REGIONAL INDIVIDUEL SENIOR 2DIV - VIERZON",10,null,"18_11_2022 St Doulchard Open",10,null,null,null,null,null,null,null,null,null,null,null,null,null,null,null,null,null,null,null,null,null,null,"2023-05-22"]
["PAS LICENCIE","TARDIF ","BENJAMIN","1987-01-09","LE CENTRAL J JUDO ORLEANAIS","CM 04/10/2018",45,"","",10,"",null,null,null,null,"30/01/16 Orléans",10,null,null,null,null,null,null,null,null,null,null,null,null,null,null,null,null,null,null,null,null,null,null,null,null,null,null,null,null,null,null,null,"2023-05-22"]
["PAS LICENCIE","TEILLARD","Gaetan","1999-01-07","L.E.S.S.C.A.L.E","CM",28,"","",87,"",null,null,null,null,"13/01/2019 ST GEORGES SUR EURE",10,null,"02-02-2019 Demie finale juniors Issoudun",20,null,"17/03/2019 1/4 DE FINALE SENIORS G ET F 1ERE DIV N°1 - dojo J C Rousseau - ORLEANS",20,null,"07-11-2021 SHIAI AMILLY",37,null,null,null,null,null,null,null,null,null,null,null,null,null,null,null,null,null,null,null,null,null,null,"2023-05-22"]
["M19062004TEIXE01","TEIXEIRA","VICTOR","2004-06-19","SAINT DOULCHARD JUDO CLUB","MA",18,{"$f":"IF(M3440=\"\",\"\",\"OK\")","v":"OK"},{"$f":"IF(N3440=\"\",\"\",\"OK\")","v":""},{"$f":"Q3440+T3440+W3440+Z3440+AC3440+AF3440+AI3440+AL3440+AO3440+AR3440+AU3440","v":0},{"$f":"IF(O3440=\"\",\"\",\"OK\")","v":""},null,"13/05/2023 TOURS"]
["PAS LICENCIE","TERON","Bastien","1986-05-10","JUDO CLUB AGYLIEN","1 Dan 28/03/04 ",45,"","",20,"",null,null,null,null,"15/12/12 Orléans",10,null,"01/12/12 Orléans",10,null,null,null,null,null,null,null,null,null,null,null,null,null,null,null,null,null,null,null,null,null,null,null,null,null,null,null,null,"2023-05-22"]
["PAS LICENCIE","TETAULT","Nathalie","1989-12-11","LE DOJO DU COMBRAY","2 Dan 12/06/09  ",28,"","",101,"",null,null,null,null,"29/11/08 St Georges/Eure",10,null,"30/01/11 Orléans",5,null,"13/02/11 Nogent le rotrou",29,null,"13/03/11 Issoudun",17,null,"29/05/11 Issoudun",10,null,"06/11/16 Orléans",10,null,"28/05/17 Issoudun",10,null,"11/03/18 Tours",10,null,null,null,null,null,null,null,null,null,null,"2023-05-22"]
["PAS LICENCIE","TETAULT","Caroline","1992-07-07","BOURGES JUDO  ","2 Dan 12/03/10  ",18,"","",30,"",null,null,null,null,"16-02-2020 – 1/4 DE FINALE SENIOR 1ERE DIVISION BASSIN SUD -  TOURS",20,null,"25-10-2020 RGC - CREPS DE LA REGION CENTRE",10,null,null,null,null,null,null,null,null,null,null,null,null,null,null,null,null,null,null,null,null,null,null,null,null,null,null,null,null,"2023-05-22"]
["M14061979THENA01","THENAISIE","David","1979-06-14","ARTS MARTIAUX DE ST GEORGES","2 Dan 15/06/07   ",28,"","",40,"",null,null,null,null,"11/10/15 Vendome",10,null,"13/03/16 Tours",10,null,"20/03/16 Tours",10,null,"04/02/18 Vendome",10,null,null,null,null,null,null,null,null,null,null,null,null,null,null,null,null,null,null,null,null,null,null,"2023-05-22"]
["PAS LICENCIE","THIAULT","Christophe","1969-12-14","JC BEAUCE ORATIENNE","CM 20/06/14",41,"OK","",20,"OK",null,"23/04/16 Orléans",null,"26/03/17 Lamotte Beuvron","28/05/16 Issoudun",10,null,"05/02/17 St jean le blanc",10,null,null,null,null,null,null,null,null,null,null,null,null,null,null,null,null,null,null,null,null,null,null,null,null,null,null,null,null,"2023-05-22"]
["PAS LICENCIE","THIBAUDAT","Thomas","1997-11-06","JC BALGENTIEN","CM",45,{"$f":"IF(M3477=\"\",\"\",\"OK\")","v":"OK"},"",27,"OK",null,"02/03/2019 ORLEANS",null,"CJA Cadet Tours 19/03/16","01/10/16 Tours",27,null,null,null,null,null,null,null,null,null,null,null,null,null,null,null,null,null,null,null,null,null,null,null,null,null,null,null,null,null,null,null,"2023-05-22"]
["PAS LICENCIE","THIERY","Emmanuelle","1995-06-19","J3 SPORTS AMILLY","1 Dan 03/02/13",45,"","",120,"OK",null,null,null,"08/10/11 Tours","13/03/11 Issoudun",22,null,"07/05/11 St Berthevin",7,null,"29/05/11 Issoudun",31,null,"15/10/11 Paris",10,null,"26/11/11 Issoudun",40,null,"13/01/13 Orléans",10,null,null,null,null,null,null,null,null,null,null,null,null,null,null,null,null,"2023-05-22"]
["PAS LICENCIE","THONET","Julien","1996-06-16","ASS SALBRIS SPORTS","CM",41,"","",50,"",null,null,null,null,"TOURNOI NATIONAL INDIVIDUEL CADET - CREPS DE BOURGES - DATE ?",20,null,"30 - 11 et 01 - 12 - TOURNOI NATIONAL INDIVIDUEL CADET-BOURGES",20,null,"25 01 2020 CHAMPIONNAT CADETS-CADETTES 1ERE DIVISION BASSIN NORD TOURS",10,null,null,null,null,null,null,null,null,null,null,null,null,null,null,null,null,null,null,null,null,null,null,null,null,null,"2023-05-22"]
["PAS LICENCIE","THOREAU","Sébastien","1987-11-05","SC LANGEAIS","2 Dan 05/11/16",37,"","",10,"",null,null,null,null,"07-11-2021 SHIAI AMILLY",10,null,null,null,null,null,null,null,null,null,null,null,null,null,null,null,null,null,null,null,null,null,null,null,null,null,null,null,null,null,null,null,"2023-05-22"]
["PAS LICENCIE","TIRLEMONT","Maxime","1992-01-15","USP JC  POINCONNET","1 Dan  14/05/08 ",36,"","",52,"",null,null,null,null,"11/10/09 Chateauroux",10,null,"6/12/09 Joigny",10,null,"23/01/10 Tours",7,null,"27/02/10 Issoudun",25,null,null,null,null,null,null,null,null,null,null,null,null,null,null,null,null,null,null,null,null,null,null,"2023-05-22"]
["F02102008TOMBO01","TOMBOLOMAKO","Ornella","2008-10-02","UNION JUDO TOURAINE METROPOLE","CM",37,"OK","",0,"OK",null,"23/04/16 Tours",null,"14/11/15 Parcay Meslay",null,null,null,null,null,null,null,null,null,null,null,null,null,null,null,null,null,null,null,null,null,null,null,null,null,null,null,null,null,null,null,null,null,"2023-05-22"]
["M31012006TOURN01","TOURNIER","LUCAS","2006-01-31","ALERTE SP.FONDETTES","1 DAN 08/01/2023",37,"","",101,"",null,null,null,null,"03/12/11 Nantes",10,null,"20/05/12 Amilly",27,null,"03/02/13 Issoudun",17,null,"16/03/13 La flèche",37,null,"26/05/13 Tours",10,null,null,null,null,null,null,null,null,null,null,null,null,null,null,null,null,null,null,null,"2023-05-22"]
["M28062005TRACZ01 ","TRACZ","EWAN ","2005-06-28","JUDO CLUB ST GEORGES SUR CHER","CM",41,{"$f":"IF(M3523=\"\",\"\",\"OK\")","v":"OK"},{"$f":"IF(N3523=\"\",\"\",\"OK\")","v":"OK"},{"$f":"Q3523+T3523+W3523+Z3523+AC3523+AF3523+AI3523+AL3523+AO3523+AR3523+AU3523","v":0},{"$f":"IF(O3523=\"\",\"\",\"OK\")","v":""},null,"12/06/2022 TOURS","12/03/2022 TOURS"]
["PAS LICENCIE","TRAINOIR","Florian","1986-04-12","J3 SPORTS AMILLY","2 Dan 02/04/11",45,"","",0,"",null,null,null,null,null,null,null,null,null,null,null,null,null,null,null,null,null,null,null,null,null,null,null,null,null,null,null,null,null,null,null,null,null,null,null,null,null,"2023-05-22"]
["PAS LICENCIE","TREMBLIN","Pascal","1960-07-28","ASS SPORT LAMOTTOISE","2 Dan 06/06/09   ",41,"","",50,"",null,null,null,null,"11/01/03 Vendôme",20,null,"6/12/03 Vineuil",10,null,"09/04/16 Orléans",20,null,null,null,null,null,null,null,null,null,null,null,null,null,null,null,null,null,null,null,null,null,null,null,null,null,"2023-05-22"]
["F20042001TRIVE01","TRIVES","Emma ","2001-04-20","US ELECTRIQUE AVOINE BEAUMONT","1 Dan 25/11/18",37,"","",80,"",null,null,null,null,"12/10/13 Issoudun",10,null,"08/12/13 Orléans",20,null,"25/05/14 Tours",10,null,"28/05/17 Issoudun",20,null,"18_11_2022 St Doulchard Open",20,null,null,null,null,null,null,null,null,null,null,null,null,null,null,null,null,null,null,null,"2023-05-22"]
["PAS LICENCIE","TROGER","Aymeric","1992-06-21","ESVRES JUDO CLUB","CM 12/05/07",37,"","",0,"",null,null,null,null,null,null,null,null,null,null,null,null,null,null,null,null,null,null,null,null,null,null,null,null,null,null,null,null,null,null,null,null,null,null,null,null,null,"2023-05-22"]
["PAS LICENCIE","TURELIER","Aurélie ","1982-01-26","CSC BRIARE","CM",45,{"$f":"IF(M3555=\"\",\"\",\"OK\")","v":"OK"},{"$f":"IF(N3555=\"\",\"\",\"OK\")","v":""},{"$f":"Q3555+T3555+W3555+Z3555+AC3555+AF3555+AI3555+AL3555+AO3555+AR3555+AU3555","v":0},{"$f":"IF(O3555=\"\",\"\",\"OK\")","v":""},null,"26/11/2022 ORLEANS"]
["M28091997TURPI01","TURPIN","JULIEN","1997-09-28","JUDO CLUB FERTESIEN","CM",45,"OK","",100,"OK",null,"09/06/12 Orléans",null,"14/10/12 Orléans","21/10/12 St jean le blanc",40,null,"12/01/13 Orléans",50,"OK",null,null,null,"09/11/13 Orléans",10,null,null,null,null,null,null,null,null,null,null,null,null,null,null,null,null,null,null,null,null,null,null,"2023-05-22"]
["PAS LICENCIE","VAISSIERES","Francoise","1972-06-27","PLANETE JUDO TOURYJANVILLE","CM 18/06/16",28,"","",120,"",null,null,null,null,"5/04/08 Tours",24,null,"11/01/09 Tours",20,null,"19/04/09 Amilly",10,null,"25/04/09 Tours",15,null,"17/10/09 Tours",14,null,"29/11/09 Vendôme",10,null,"16/01/10 Tours",27,null,null,null,null,null,null,null,null,null,null,null,null,null,"2023-05-22"]
["M07091985VALLE01","VALLENARI","Stephane","1985-09-07","J3 SPORTS AMILLY","1 DAN 28/11/2021",45,"OK","",7,"",null,"2/06/06 Le Poinçonnet",null,null,"28/11/09 Vendôme",7,null,null,null,null,null,null,null,null,null,null,null,null,null,null,null,null,null,null,null,null,null,null,null,null,null,null,null,null,null,null,null,"2023-05-22"]
["PAS LICENCIE","VALLON","Lilian","1999-03-23","SPG CLUB AMBOISIEN","CM 14/06/14",37,"OK","",10,"OK",null,"09/06/12 St Georges/Eure",null,"02/12/12 St Georges/eure","14/04/07 Gallardon",10,null,null,null,null,null,null,null,null,null,null,null,null,null,null,null,null,null,null,null,null,null,null,null,null,null,null,null,null,null,null,null,"2023-05-22"]
["PAS LICENCIE","VANHOUCKE","Guillaume","1992-01-01","US ORLEANS LOIRET JUDO JUJITSU","1 Dan  25/11/07 ",45,"","",50,"",null,null,null,null,"06/04/14 Vendome",50,"ok",null,null,null,null,null,null,null,null,null,null,null,null,null,null,null,null,null,null,null,null,null,null,null,null,null,null,null,null,null,null,"2023-05-22"]
["PAS LICENCIE","VASSAL","Romain","1981-03-31","JC NOGENT LE ROTROU","CM",28,"","",60,"OK",null,null,null,"08/10/16 Vierzon","29/01/17 Tours",10,null,"05/02/17 St jean le blanc",50,"OK",null,null,null,null,null,null,null,null,null,null,null,null,null,null,null,null,null,null,null,null,null,null,null,null,null,null,null,"2023-05-22"]
["PAS LICENCIE","VAUCHAMP","Dorine","2001-01-05","JUDO KODOKAN CLUB DU BERRY","CM 25/05/15",18,"","",107,"",null,null,null,null,"03/10/15 Bourges",10,null,"21/05/16 Limoges",30,null,"28/05/16 Issoudun",37,null,"05/02/17 St jean le blanc",20,null,"02/04/17 Issoudun",10,null,null,null,null,null,null,null,null,null,null,null,null,null,null,null,null,null,null,null,"2023-05-22"]
["PAS LICENCIE","VEAUVY","Julien","1981-08-01","JC DESCARTES","1 Dan 6/04/01",37,"","",10,"",null,null,null,null,"25-01-2020 CHAMPIONNAT CADETS 1ERE DIVISION BASSIN SUD TOURS",10,null,null,null,null,null,null,null,null,null,null,null,null,null,null,null,null,null,null,null,null,null,null,null,null,null,null,null,null,null,null,null,"2023-05-22"]
["M10092003VELTE01","VELTE","TIMOTHEE","2003-09-10","ST AVERTIN SPORTS","1 DAN 31/03/2019",37,"","",100,"",null,null,null,null,"11/10/09 Chateauroux",10,null,"23/01/10 Tours",10,null,"15/05/10 Tours",10,null,"19/03/11 Le Mans",30,null,"28/01/12 Orléans",30,null,"11/03/12 Le Mans",10,null,null,null,null,null,null,null,null,null,null,null,null,null,null,null,null,"2023-05-22"]
["PAS LICENCIE","VENEROSY","Camille","1995-02-06","JC LEVROUSAIN","CM",36,"","",10,"OK",null,null,null,"24/05/14 Tours","04/03/17 Angers",10,null,null,null,null,null,null,null,null,null,null,null,null,null,null,null,null,null,null,null,null,null,null,null,null,null,null,null,null,null,null,null,"2023-05-22"]
["PAS LICENCIE","VENNEVIER","Maxime","1999-10-15","ES BOURGUEIL","CM 11/09/13",37,"","",90,"",null,null,null,null,"17/03/18 Avion",10,null,"03/03/18 Ploermel",20,null,"04/03/18 Mont de marsan",20,null,"15/12/2018 - 1/2 finale Chpt de France Ile de France jujitsu (Bretigny)",20,null,"Chpt de France Seniors LE PUY en VELAY 23/03/2019",10,null,"12/01/2020 - 1/2 Finale Chpt de France Orleans",10,null,null,null,null,null,null,null,null,null,null,null,null,null,null,null,null,"2023-05-22"]
["M17061985VENON01","VENON","Fabien","1985-06-17","US ORLEANS LOIRET JUDO JUJITSU","1 Dan 25/05/02",45,"OK","",30,"OK",null,"12/06/09 Orléans",null,"22/03/08 Amilly","21/05/11 St Jean le Blanc",30,null,null,null,null,null,null,null,null,null,null,null,null,null,null,null,null,null,null,null,null,null,null,null,null,null,null,null,null,null,null,null,"2023-05-22"]
["PAS LICENCIE","VENTOLINI","Marco","1993-10-19","JUDO CLUB LOURY","CM 29/06/07",45,"OK","",50,"OK",null,"15/11/14 Orléans",null,"27/06/13 Olivet","01/02/15 Vendome",30,null,"07/06/15 Vierzon",20,null,null,null,null,null,null,null,null,null,null,null,null,null,null,null,null,null,null,null,null,null,null,null,null,null,null,null,null,"2023-05-22"]
["PAS LICENCIE","VENTURA","Hugo","1998-03-31","USM SARAN","CM",45,"OK","",34,"OK",null,"16/02/13 Orléans",null,"06/04/13 Chateauroux","02/06/13 Vendome",10,null,"16/11/13 Limoges",7,null,"01/12/13 Déols",10,null,"27/05/17 Issoudun",7,null,null,null,null,null,null,null,null,null,null,null,null,null,null,null,null,null,null,null,null,null,null,"2023-05-22"]
["PAS LICENCIE","VENTURA LARANJEIRA","Christophe","1994-05-06","USP JC  POINCONNET","CM",36,"","",35,"",null,null,null,null,"5/04/08 Gien",10,null,"29/11/08 St Georges/Eure",10,null,"25/04/09 Orléans",15,null,null,null,null,null,null,null,null,null,null,null,null,null,null,null,null,null,null,null,null,null,null,null,null,null,"2023-05-22"]
["PAS LICENCIE","VERCRUYSSEN","Julien","1992-09-28","JUDO CLUB CHATEAUNEUF","1 Dan  05/04/08   ",45,"OK","",24,"",null,"02/12/17 Tours",null,null,"04/11/18 Tours",7,null,"03/02/2019 SHIAI TEST EFFICACITE - ISSOUDUN",17,null,null,null,null,null,null,null,null,null,null,null,null,null,null,null,null,null,null,null,null,null,null,null,null,null,null,null,null,"2023-05-22"]
["PAS LICENCIE","VERDIER","Flora","1994-05-30","US ST PIERRE CORPS","CM 26/06/15",37,"","",61,"",null,null,null,null,"31/01/09 Issoudun",7,null,"21/03/09 Vineuil",7,null,"21/02/15 Issoudun",20,null,"09/04/16 Orléans",10,null,"14/05/17 Tours",17,null,null,null,null,null,null,null,null,null,null,null,null,null,null,null,null,null,null,null,"2023-05-22"]
["PAS LICENCIE","VERDIER","Victor","1990-02-06","ST AVERTIN SPORTS","1 Dan 14/12/08   ",37,"OK","",0,"OK",null,"18/06/11 Tours",null,"11/05/11 Tours",null,null,null,null,null,null,null,null,null,null,null,null,null,null,null,null,null,null,null,null,null,null,null,null,null,null,null,null,null,null,null,null,null,"2023-05-22"]
["PAS LICENCIE","VERDIER","Romain","1992-07-27","US ST PIERRE CORPS","CM",37,"","",10,"",null,null,null,null,"30/01/11 Orléans",10,null,null,null,null,null,null,null,null,null,null,null,null,null,null,null,null,null,null,null,null,null,null,null,null,null,null,null,null,null,null,null,"2023-05-22"]
["PAS LICENCIE","VERDIER","Aline","1992-10-01","BLOIS JUDO","CM",41,"","",50,"",null,null,null,null,"04/11/18 Tours",20,null,"TEST EFFICACITE TOURS 15-12-19",30,null,null,null,null,null,null,null,null,null,null,null,null,null,null,null,null,null,null,null,null,null,null,null,null,null,null,null,null,"2023-05-22"]
["M02071999VERDI01","VERDIER","Adrien","1999-07-02","US ST PIERRE CORPS","2 Dan 05/02/18",37,"","",20,"",null,null,null,null,"4/12/04 Vendôme",10,null,"13/03/16 Tours",10,null,null,null,null,null,null,null,null,null,null,null,null,null,null,null,null,null,null,null,null,null,null,null,null,null,null,null,null,"2023-05-22"]
["PAS LICENCIE","VERELST","Guillaume","1985-11-25","SMOC ST JEAN DE BRAYE","1 Dan 04/12/04   ",45,"","",47,"",null,null,null,null,"21/10/12 St jean le blanc",20,null,"01/12/12 Orléans",10,null,"12/01/13 Orléans",7,null,"03/02/13 Issoudun",10,null,null,null,null,null,null,null,null,null,null,null,null,null,null,null,null,null,null,null,null,null,null,"2023-05-22"]
["PAS LICENCIE","VERET","Rudy","1995-05-06","JUDO CLUB CHATEAUNEUF","1 Dan 24/03/12",45,"","",37,"",null,null,null,null,"29/09/18 Orléans",17,null,"02-02-2019 Demie finale juniors Issoudun",10,null,"24/10/2021 CHAMPIONNAT REGIONAL INDIVIDUEL SENIOR 1ERE DIVISION",10,null,null,null,null,null,null,null,null,null,null,null,null,null,null,null,null,null,null,null,null,null,null,null,null,null,"2023-05-22"]
["F15062002VERGE01","VERGEROLLE","Myliane","2002-06-15","C'CHARTRES JUDO HORIZON 28","1 Dan 16/06/18",28,"","",70,"",null,null,null,null,"25/05/14 Tours",20,null,"11/01/15 Tours",10,null,"20/11/16 St jean le blanc",20,null,"04/02/18 Vendome",20,null,null,null,null,null,null,null,null,null,null,null,null,null,null,null,null,null,null,null,null,null,null,"2023-05-22"]
["PAS LICENCIE","VERGES","Michel","1996-08-03","AS LUYNOISE","1 Dan 09/06/12",37,"","",27,"",null,null,null,null,"27/02/16 Vierzon",10,null,"10/04/16 Orléans",17,null,null,null,null,null,null,null,null,null,null,null,null,null,null,null,null,null,null,null,null,null,null,null,null,null,null,null,null,"2023-05-22"]
["PAS LICENCIE","VERGNAUD","Romain","1998-08-20","A JUDO CHATEAUROUX","1 Dan 23/01/16",36,"","",30,"",null,null,null,null,"01/06/13 Vendome",30,null,null,null,null,null,null,null,null,null,null,null,null,null,null,null,null,null,null,null,null,null,null,null,null,null,null,null,null,null,null,null,"2023-05-22"]
["PAS LICENCIE","VERNA","Jeremy","1983-09-21","JC DESCARTES","CM",37,"","",0,"",null,null,null,null,null,null,null,null,null,null,null,null,null,null,null,null,null,null,null,null,null,null,null,null,null,null,null,null,null,null,null,null,null,null,null,null,null,"2023-05-22"]
["M26121981VERNA01","VERNA","AURELIEN","1981-12-26","J.C.DESCARTES","1 DAN 23/10/2021",37,"","",0,"",null,null,null,null,null,null,null,null,null,null,null,null,null,null,null,null,null,null,null,null,null,null,null,null,null,null,null,null,null,null,null,null,null,null,null,null,null,"2023-05-22"]
["M15031997VETTO01","VETTORI","MAXIME","1997-03-15","US.ORLEANS LOIRET JUDO JUJITSU","CM",45,"","",60,"",null,null,null,null,"02/06/13 Vendome",30,null,"08/10/17 St Georges/eure",20,null,"13-10-2019 - TEST EFFICACITE COMBAT A SAINT GEORGES/EURE",10,null,null,null,null,null,null,null,null,null,null,null,null,null,null,null,null,null,null,null,null,null,null,null,null,null,"2023-05-22"]
["M02081972VERRE01","VERREY","Philippe","1972-08-02","DOJO LUISANTAIS","1 Dan 16/02/13",28,{"$f":"IF(M3622=\"\",\"\",\"OK\")","v":""},"",17,"",null,null,null,null,"20/04/14 Tours",17,null,null,null,null,null,null,null,null,null,null,null,null,null,null,null,null,null,null,null,null,null,null,null,null,null,null,null,null,null,null,null,"2023-05-22"]
["PAS LICENCIE","VEYRINAS","Jean claude","1962-09-23","AS CHANCEAUX JUDO","2 Dan 26/02/82",37,{"$f":"IF(M3623=\"\",\"\",\"OK\")","v":"OK"},{"$f":"IF(N3623=\"\",\"\",\"OK\")","v":"OK"},{"$f":"Q3623+T3623+W3623+Z3623+AC3623+AF3623+AI3623+AL3623+AO3623+AR3623+AU3623","v":0},{"$f":"IF(O3623=\"\",\"\",\"OK\")","v":""},null,"12/06/2022 TOURS","12/06/2022 TOURS"]
["M06062006VEZAR01","VEZARD","NELOIS","2006-06-06","ST AVERTIN SPORTS","CM",37,"","",122,"",null,null,null,null,"24/01/10 Tours",19,null,"16/01/10 Tours",22,null,"7/03/10 Issoudun",24,null,"20/03/10 Le Mans",19,null,"29/05/11 Issoudun",38,null,null,null,null,null,null,null,null,null,null,null,null,null,null,null,null,null,null,null,"2023-05-22"]
["PAS LICENCIE","VIALLE","Florian","1991-09-23","UNION JUDO 37 TOURS","2 Dan 26/09/09 ",37,"OK","",10,"OK",null,"10/05/14 Tours",null,"19/04/15 Vendome","13/06/15 Limoges",10,null,null,null,null,null,null,null,null,null,null,null,null,null,null,null,null,null,null,null,null,null,null,null,null,null,null,null,null,null,null,null,"2023-05-22"]
["PAS LICENCIE","VICHY","Jessica","1998-01-19","J VINEUIL SPORTS","CM",41,"OK",{"$f":"IF(N3626=\"\",\"\",\"OK\")","v":""},{"$f":"Q3626+T3626+W3626+Z3626+AC3626+AF3626+AI3626+AL3626+AO3626+AR3626+AU3626","v":10},{"$f":"IF(O3626=\"\",\"\",\"OK\")","v":"OK"},null,"15/11/14 Orléans",null,"18/04/15 Chateauroux","06/03/16 Limoges",10,null,null,null,null,null,null,null,null,null,null,null,null,null,null,null,null,null,null,null,null,null,null,null,null,null,null,null,null,null,null,null,"2023-05-22"]
["PAS LICENCIE","VIDAR","Alex","1999-01-13","USP JC  POINCONNET","CM",36,"","",94,"",null,null,null,null,"21/10/12 St jean le blanc",17,null,"12/01/13 Orléans",40,null,"02/06/13 Vendome",37,null,null,null,null,null,null,null,null,null,null,null,null,null,null,null,null,null,null,null,null,null,null,null,null,null,"2023-05-22"]
["PAS LICENCIE","VIDEAU","Alexy","1991-04-01","SMOC ST JEAN DE BRAYE","2 Dan 18/06/11",45,{"$f":"IF(M3628=\"\",\"\",\"OK\")","v":"OK"},{"$f":"IF(N3628=\"\",\"\",\"OK\")","v":"OK"},{"$f":"Q3628+T3628+W3628+Z3628+AC3628+AF3628+AI3628+AL3628+AO3628+AR3628+AU3628","v":17},{"$f":"IF(O3628=\"\",\"\",\"OK\")","v":""},null,"12/03/2022 TOURS","26/06/20201 ORLEANS",null,"06/11/2022 SHIAI ISSOUDUN",17]
["F29092003VIE**01","VIE","LEANE","2003-09-29","ASL ST PRYVE ST MESMIN","MA",45,"","",37,"",null,null,null,null,"30/09/17 Orléans",10,null,"28/01/18 Orléans",7,null,"26/01/2019 CHAMPIONNAT CADETS CADETTES 1ERE DIV BASIN NORD",20,null,null,null,null,null,null,null,null,null,null,null,null,null,null,null,null,null,null,null,null,null,null,null,null,null,"2023-05-22"]
["M09072002VIEIL01","VIEILLEFAULT","Yannis","2002-07-09","US SANDILLONNAISE JUDO","CM 24/06/17",45,{"$f":"IF(M3630=\"\",\"\",\"OK\")","v":"OK"},{"$f":"IF(N3630=\"\",\"\",\"OK\")","v":""},{"$f":"Q3630+T3630+W3630+Z3630+AC3630+AF3630+AI3630+AL3630+AO3630+AR3630+AU3630","v":0},{"$f":"IF(O3630=\"\",\"\",\"OK\")","v":""},null,"11/02/2023 ORLEANS"]
["M27012008VIENN01","VIENNE","MAXIMILIEN","2008-01-27","AVENIR SONZAY JUDO","MA",37,"OK","OK",44,"OK",null,"12/06/10 Orléans ","13/05/2023 TOURS","27/02/10 Orléans","25/04/09 Orléans",24,null,"27/11/10 Issoudun",20,null,null,null,null,null,null,null,null,null,null,null,null,null,null,null,null,null,null,null,null,null,null,null,null,null,null,null,null,"2023-05-22"]
["PAS LICENCIE","VIET","Alexandre","1991-02-18","JC ARTENAY","1 Dan  01/12/07",45,"","",110,"",null,null,null,null,"20/09/15 La roche/yon",20,null,"04/10/15 Limoges",10,null,"29/11/15 Tours",30,null,"12/12/15 Boe",50,"OK",null,null,null,null,null,null,null,null,null,null,null,null,null,null,null,null,null,null,null,null,null,"2023-05-22"]
["PAS LICENCIE","VIEVILLE","Paul","1993-04-15","BOURGES JUDO","1 Dan 22/03/08",18,{"$f":"IF(M3633=\"\",\"\",\"OK\")","v":""},{"$f":"IF(N3633=\"\",\"\",\"OK\")","v":"OK"},{"$f":"Q3633+T3633+W3633+Z3633+AC3633+AF3633+AI3633+AL3633+AO3633+AR3633+AU3633","v":0},{"$f":"IF(O3633=\"\",\"\",\"OK\")","v":""},null,null,"12/03/2022 TOURS"]
["M27052007VIGIE02","VIGIER","MARIUS","2007-05-27","JUDO CLUB SANCOINS","CM",18,"OK","",70,"OK",null,"18/06/11 Tours",null,"20/10/10 Tours","26/11/11 Issoudun",10,null,"28/01/12 Orléans",20,null,"13/05/12 Vendome",10,null,"23/03/13 Parthenay",10,null,"16/11/13 St Georges/eure",10,null,"25/01/14 Bourges",10,null,null,null,null,null,null,null,null,null,null,null,null,null,null,null,null,"2023-05-22"]
["PAS LICENCIE","VIGNAUD","Jean Claude","1961-03-18","SPG CLUB AMBOISIEN","CM",37,"","",20,"",null,null,null,null,"03/02/13 Issoudun",10,null,"29/11/15 Tours",10,null,null,null,null,null,null,null,null,null,null,null,null,null,null,null,null,null,null,null,null,null,null,null,null,null,null,null,null,"2023-05-22"]
["PAS LICENCIE","VIGNERON","Charlotte","1995-08-16","SPG CLUB AMBOISIEN","CM",37,{"$f":"IF(M3636=\"\",\"\",\"OK\")","v":""},{"$f":"IF(N3636=\"\",\"\",\"OK\")","v":"OK"},{"$f":"Q3636+T3636+W3636+Z3636+AC3636+AF3636+AI3636+AL3636+AO3636+AR3636+AU3636","v":0},{"$f":"IF(O3636=\"\",\"\",\"OK\")","v":""},null,null,"12/03/2022 TOURS"]
["M02112007VIGNE01","VIGNERON","NOHAN","2007-11-02","A.S.MONTS JUDO JUJITSU","CM",37,"OK","",0,"",null,"23/10/2021 TOURS",null,null,null,null,null,null,null,null,null,null,null,null,null,null,null,null,null,null,null,null,null,null,null,null,null,null,null,null,null,null,null,null,null,null,null,"2023-05-22"]
["F01041966VIGOT02","VIGOT","ISABELLE","1966-04-01","CS OUCQUOIS","1 DAN 01/12/2018",41,{"$f":"IF(M3638=\"\",\"\",\"OK\")","v":""},{"$f":"IF(N3638=\"\",\"\",\"OK\")","v":""},{"$f":"Q3638+T3638+W3638+Z3638+AC3638+AF3638+AI3638+AL3638+AO3638+AR3638+AU3638","v":20},{"$f":"IF(O3638=\"\",\"\",\"OK\")","v":""},null,null,null,null,"06/11/2022 SHIAI ISSOUDUN",20]
["M22082006VILAI01","VILAIN","SIMON","2006-08-22","S.M.O.C. ST JEAN DE BRAYE","1 DAN 27/03/2022",45,{"$f":"IF(M3639=\"\",\"\",\"OK\")","v":"OK"},{"$f":"IF(N3639=\"\",\"\",\"OK\")","v":""},{"$f":"Q3639+T3639+W3639+Z3639+AC3639+AF3639+AI3639+AL3639+AO3639+AR3639+AU3639","v":0},{"$f":"IF(O3639=\"\",\"\",\"OK\")","v":""},null,"26/11/2022 ORLEANS"]
["M17041972VILAI01","VILAIN","OLIVIER","1972-04-17","S.M.O.C. ST JEAN DE BRAYE","CM",45,"OK","OK",101,"",null,"10/05/14 Tours","13/05/2023 TOURS",null,"15/12/12 Orléans",17,null,"12/01/14 Bourges",27,null,"15/02/14 Issoudun",20,null,"23/03/14 Limoges",17,null,"31/05/14 Ceyrat",20,null,null,null,null,null,null,null,null,null,null,null,null,null,null,null,null,null,null,null,"2023-05-22"]
["PAS LICENCIE","VILLAUDY","Charlie","1998-08-13","BOURGES JUDO","CM",18,"","",61,"OK",null,null,null,"29/04/17 Orléans","09/10/16 Vierzon",7,null,"04/12/16 Nevers",20,null,"05/02/17 St jean le blanc",17,null,"27/05/17 Issoudun",7,null,"04/02/18 Vendome",10,null,null,null,null,null,null,null,null,null,null,null,null,null,null,null,null,null,null,null,"2023-05-22"]
["PAS LICENCIE","VILLEDIEU DE TORCY","Christian","1967-09-09","JUDO CLUB LOURY","1 Dan 13/03/16",45,"OK","",30,"OK",null,"18/06/11 Orléans",null,"CJA Cadets 15,61 05/12/10 Orléans","29/01/11 Orléans",10,null,"15/05/11 Lamotte Beuvron",10,null,"26/11/11 Issoudun",10,null,null,null,null,null,null,null,null,null,null,null,null,null,null,null,null,null,null,null,null,null,null,null,null,null,"2023-05-22"]
["PAS LICENCIE","VILLEDIEU DE TORCY","Nicolas ","1995-06-22","JUDO CLUB LOURY","CM",45,"","",30,"",null,null,null,null,"06/10/18 Tours",10,null,"16-02-2019 - Demi final Championnat de France Cadet(te)s - Tours",10,null,"19/05/2019 INDIVIDUEL CADETS \"ESPOIR\" - LA SOURCE MINOUFLET",10,null,null,null,null,null,null,null,null,null,null,null,null,null,null,null,null,null,null,null,null,null,null,null,null,null,"2023-05-22"]
["M11122002VILLE01","VILLEMADE","Antoine","2002-12-11","UNION JUDO 37 TOURS","1 Dan 28/01/18",37,"","",70,"",null,null,null,null,"22/02/15 Issoudun",20,null,"20/11/16 St jean le blanc",10,null,"03/12/16 Nantes",10,null,"11/03/17 St georges/eure",10,null,"02/04/17 Issoudun",20,null,null,null,null,null,null,null,null,null,null,null,null,null,null,null,null,null,null,null,"2023-05-22"]
["PAS LICENCIE","VILLEMADE","Hugo","1999-11-02","US ORLEANS LOIRET JUDO JUJITSU","1 Dan 17/05/14",45,"OK","",44,"",null,"01/06/2019 TOURS",null,null,"01/04/17 Issoudun",10,null,"27/05/17 Issoudun",7,null,"08/10/17 St Georges/eure",17,null,"26/11/2018 – SHIAI ANGERS",10,null,null,null,null,null,null,null,null,null,null,null,null,null,null,null,null,null,null,null,null,null,null,"2023-05-22"]
["F13081990VILLE01","VILLENEUVE","Natacha","1990-08-13","AJ OLIVET","1 Dan 21/05/11",45,"","",20,"OK",null,null,null,"13/06/15 Bourges","12/01/14 Bourges",20,null,null,null,null,null,null,null,null,null,null,null,null,null,null,null,null,null,null,null,null,null,null,null,null,null,null,null,null,null,null,null,"2023-05-22"]
["PAS LICENCIE","VILLEPREUX","Charlotte","1999-07-17","AVENIR J LIGNIERES","CM 01/10/13",18,"","",30,"",null,null,null,null,"26/05/13 Tours",30,null,null,null,null,null,null,null,null,null,null,null,null,null,null,null,null,null,null,null,null,null,null,null,null,null,null,null,null,null,null,null,"2023-05-22"]
["PAS LICENCIE","VILLERMET","Jacky","1983-08-17","ES GATINAISE","1 Dan 05/12/99",45,"","",0,"",null,null,null,null,null,null,null,null,null,null,null,null,null,null,null,null,null,null,null,null,null,null,null,null,null,null,null,null,null,null,null,null,null,null,null,null,null,"2023-05-22"]
["F12101997VILLI01","VILLIE","Elodie","1997-10-12","US LA FERTE ST AUBIN","2 DAN 01/03/2020",45,"","",20,"",null,null,null,null,"14/12/08 Amilly",10,null,"24/01/10 Tours",10,null,null,null,null,null,null,null,null,null,null,null,null,null,null,null,null,null,null,null,null,null,null,null,null,null,null,null,null,"2023-05-22"]
["PAS LICENCIE","VILLOINGT","Tom","1993-07-26","JC ARTENAY","CM  24/06/07",45,"","",121,"",null,null,null,null,"5/06/10 St Jean le Blanc",10,null,"13/02/11 Vendome",24,null,"26/11/11 Issoudun",20,null,"28/01/12 Orléans",27,null,"09/06/12 Angers",30,null,"24/02/13  Angers",10,null,null,null,null,null,null,null,null,null,null,null,null,null,null,null,null,"2023-05-22"]
["PAS LICENCIE","VILMONT","Océane","1989-06-20","AS MONTLOUIS JUDO","2 Dan  07/12/08  ",37,"","",0,"",null,null,null,null,null,null,null,null,null,null,null,null,null,null,null,null,null,null,null,null,null,null,null,null,null,null,null,null,null,null,null,null,null,null,null,null,null,"2023-05-22"]
["M24111992VILMO01","VILMONT","VICKY","1992-11-24","UNION JUDO TOURAINE","4 DAN 08/04/2021",37,"","",104,"",null,null,null,null,"13/01/13 Orléans",27,null,"03/02/13 Issoudun",10,null,"01/12/12 Nantes",10,null,"16/03/13 La flèche",20,null,"26/05/13 Tours",17,null,"09/11/13 Orléans",20,null,null,null,null,null,null,null,null,null,null,null,null,null,null,null,null,"2023-05-22"]
["PAS LICENCIE","VILO","Jean Bastien","1996-06-19","US ORLEANS LOIRET JUDO JUJITSU","1 Dan 12/06/11",45,"","",10,"",null,null,null,null,"01/04/17 Issoudun",10,null,null,null,null,null,null,null,null,null,null,null,null,null,null,null,null,null,null,null,null,null,null,null,null,null,null,null,null,null,null,null,{"$f":"TODAY()","v":"2023-05-22"}]
["PAS LICENCIE","VILPOUX","Guillaume","1994-08-22","DOJO VIERZONNAIS","1 Dan 19/01/11",18,"OK","",40,"",null,"12/06/09 Vierzon",null,null,"14/12/08 Le Poinçonnet",30,null,"9/05/09 Vendôme",10,null,null,null,null,null,null,null,null,null,null,null,null,null,null,null,null,null,null,null,null,null,null,null,null,null,null,null,null,"2023-05-22"]
["PAS LICENCIE","VINCELOT","Damien","1993-01-17","A JUDO CHATEAUROUX","CM",36,"","",120,"",null,null,null,null,"05/02/17 St jean le blanc",40,null,"26/03/17 Chatellerault",10,null,"27/05/17 Issoudun",30,null,"08/10/17 St Georges/eure",40,null,null,null,null,null,null,null,null,null,null,null,null,null,null,null,null,null,null,null,null,null,null,"2023-05-22"]
["PAS LICENCIE","VINCENT","Olivier","1978-02-01","JC ARGENTONNAIS","2 Dan 23/11/14",36,"","",10,"",null,null,null,null,"09/04/11 Tours",10,null,null,null,null,null,null,null,null,null,null,null,null,null,null,null,null,null,null,null,null,null,null,null,null,null,null,null,null,null,null,null,"2023-05-22"]
["PAS LICENCIE","VINCENT","Adrien","1982-06-13","JC LIGUEIL","CM",37,"","",40,"",null,null,null,null,"18/10/08 Tours",30,null,"1/02/09 Issoudun",10,null,null,null,null,null,null,null,null,null,null,null,null,null,null,null,null,null,null,null,null,null,null,null,null,null,null,null,null,"2023-05-22"]
["PAS LICENCIE","VINCENT","Mathieu","1993-01-30","JC BALGENTIEN","CM",45,"","",30,"",null,null,null,null,"21/10/12 St jean le blanc",30,null,null,null,null,null,null,null,null,null,null,null,null,null,null,null,null,null,null,null,null,null,null,null,null,null,null,null,null,null,null,null,"2023-05-22"]
["PAS LICENCIE","VINCENT","Guillaume","1996-03-12","JC ST DENIS  L'HOTEL","1 Dan 18/06/11",45,"","",113,"OK",null,null,null,"Abitre Départemental  26/04/08 Tours","29/11/08 Chatellerault ",15,null,"12/12/09 Chatellerault",27,null,"7/03/10 Issoudun",25,null,"29/05/10 St Berthevin",20,null,"07/05/11 St Berthevin",26,null,null,null,null,null,null,null,null,null,null,null,null,null,null,null,null,null,null,null,"2023-05-22"]
["PAS LICENCIE","VINOLO","Julien","1983-05-14","UNION JUDO 37 TOURS","3 Dan  08/06/08  ",37,{"$f":"IF(M3660=\"\",\"\",\"OK\")","v":""},{"$f":"IF(N3660=\"\",\"\",\"OK\")","v":""},{"$f":"Q3660+T3660+W3660+Z3660+AC3660+AF3660+AI3660+AL3660+AO3660+AR3660+AU3660","v":0},{"$f":"IF(O3660=\"\",\"\",\"OK\")","v":""}]
["M31072007VIRMO01","VIRMOUX","ILANN","2007-07-31","JUDO CLUB FERTESIEN","1 DAN 28/01/2023",45,"","",101,"",null,null,null,null,"16/01/11 Amilly",7,null,"23/01/11 Tours",27,null,"30/01/11 Orléans",14,null,"13/03/11 Issoudun",22,null,"03/04/11 Tours",7,null,"29/05/11 Issoudun",24,null,null,null,null,null,null,null,null,null,null,null,null,null,null,null,null,"2023-05-22"]
["PAS LICENCIE","VIRIOT","Caroline","1994-08-18","JUDO CLUB TOURAINE","1 Dan 04/12/10",37,"","",24,"",null,null,null,null,"25/04/09 Orléans",19,null,"10/05/09 Vendôme",5,null,null,null,null,null,null,null,null,null,null,null,null,null,null,null,null,null,null,null,null,null,null,null,null,null,null,null,null,"2023-05-22"]
["PAS LICENCIE","VIROULEAU","Sébastien","1976-01-29","US SANDILLONNAISE JUDO","2 Dan 29/03/97",45,"","",52,"",null,null,null,null,"18/03/07 Orléans",20,null,"22/03/09 Orléans",32,null,null,null,null,null,null,null,null,null,null,null,null,null,null,null,null,null,null,null,null,null,null,null,null,null,null,null,null,"2023-05-22"]
["PAS LICENCIE","VISKAEV","Sourhrab","1979-09-23","US ORLEANS LOIRET JUDO JUJITSU","1 Dan 26/01/08   ",45,"","",60,"",null,null,null,null,"06/10/18 Tours",40,null,"26/01/2019 CHAMPIONNAT CADETS/CADETTES 1ERE DIVISION BASSIN SUD - TOURS",10,null,"19/05/2019 INDIVIDUEL CADETS \"ESPOIR\" - LA SOURCE MINOUFLET",10,null,null,null,null,null,null,null,null,null,null,null,null,null,null,null,null,null,null,null,null,null,null,null,null,null,"2023-05-22"]
["M08082003VISOM01","VISOMBLAIN","Trevis","2003-08-08","BOURGES JUDO","CM 27/06/15",18,"","",40,"",null,null,null,null,"28/11/09 Vendôme",40,null,null,null,null,null,null,null,null,null,null,null,null,null,null,null,null,null,null,null,null,null,null,null,null,null,null,null,null,null,null,null,"2023-05-22"]
["PAS LICENCIE","VITAL","Gérald","1977-04-08","JUDO CLUB ST GEORGES/CHER","1 Dan  05/12/09  ",41,"","",0,"",null,null,null,null,null,null,null,null,null,null,null,null,null,null,null,null,null,null,null,null,null,null,null,null,null,null,null,null,null,null,null,null,null,null,null,null,null,"2023-05-22"]
["F16092004VITTE01","VITTE","MARION","2004-09-16","JC ISSOLDUNOIS","1 DAN 12/03/2023",36,{"$f":"IF(M3667=\"\",\"\",\"OK\")","v":""},{"$f":"IF(N3667=\"\",\"\",\"OK\")","v":""},{"$f":"Q3667+T3667+W3667+Z3667+AC3667+AF3667+AI3667+AL3667+AO3667+AR3667+AU3667","v":10},{"$f":"IF(O3667=\"\",\"\",\"OK\")","v":""},null,null,null,null,"18_11_2022 St Doulchard Open",10]
["M27052000VLAJ*01","VLAJ"," Baptiste","2000-05-27","LURCY LEVIS JUDO","CM",null,"","",7,"",null,null,null,null,"22/02/15 Issoudun",7,null,null,null,null,null,null,null,null,null,null,null,null,null,null,null,null,null,null,null,null,null,null,null,null,null,null,null,null,null,null,null,"2023-05-22"]
["PAS LICENCIE","VOISIN","Xavier","1998-12-17","JC NOGENT LE ROTROU","1 Dan 23/11/14",28,"","",20,"",null,null,null,null,"OPEN SENIOR - LAMOTTE - 24-03-2019",20,null,null,null,null,null,null,null,null,null,null,null,null,null,null,null,null,null,null,null,null,null,null,null,null,null,null,null,null,null,null,null,"2023-05-22"]
["M05012000VOLAN01","VOLANT","CAMILLE","2000-01-05","DROUE.JC","CM",null,"","",98,"",null,null,null,null,"11/12/05 Vendôme",10,null,"11/10/08 Tours",7,null,"11/01/09 Tours",10,null,"16/01/10 Tours",24,null,"2/05/10 Tours",7,null,"23/01/11 Tours",10,null,"10/03/13 St jean le blanc",10,null,"20/04/14 Tours",10,null,"19/04/15 Tours",10,null,null,null,null,null,null,null,"2023-05-22"]
["PAS LICENCIE","VOLANT","Franck","1965-09-30","BALLAN JUDO CLUB","1 Dan 07/03/08  ",37,"","",136,"",null,null,null,null,"10/12/06 Tours",20,null,"25/10/08 Cormelle le Royal",10,null,"29/11/08 Chatellerault ",10,null,"6/12/08 Nantes",10,null,"14/12/08 Tours",17,null,"11/01/09 Tours",10,null,"31/01/09 Issoudun",17,null,"10/05/09 Vendôme",5,null,"24/01/10 Tours",37,null,null,null,null,null,null,null,"2023-05-22"]
["PAS LICENCIE","VOLANT","Adrien","1991-07-03","UNION JUDO TOURAINE METROPOLE 37","1 Dan  07/12/07  ",37,"OK","",20,"",null,"01/06/2019 TOURS",null,null,"13-10-2019 - TEST EFFICACITE COMBAT A SAINT GEORGES/EURE",20,null,null,null,null,null,null,null,null,null,null,null,null,null,null,null,null,null,null,null,null,null,null,null,null,null,null,null,null,null,null,null,"2023-05-22"]
["M25042002VOLAN01","VOLANT","LOU","2002-04-25","DROUE JUDO CLUB","CM",37,"OK","",20,"",null,"01/06/2019 TOURS",null,null,"13-10-2019 - TEST EFFICACITE COMBAT A SAINT GEORGES/EURE",20,null,null,null,null,null,null,null,null,null,null,null,null,null,null,null,null,null,null,null,null,null,null,null,null,null,null,null,null,null,null,null,"2023-05-22"]
["M24011997VOLAN01","VOLANT","PIERRE","1997-01-24","DROUE JUDO CLUB","CM",37,"","",0,"",null,null,null,null,null,null,null,null,null,null,null,null,null,null,null,null,null,null,null,null,null,null,null,null,null,null,null,null,null,null,null,null,null,null,null,null,null,"2023-05-22"]
["M09031982VOLCO02","VOLCOOFF","MATHEU",null,null,null,null,{"$f":"IF(M3675=\"\",\"\",\"OK\")","v":"OK"},{"$f":"IF(N3675=\"\",\"\",\"OK\")","v":"OK"},{"$f":"Q3675+T3675+W3675+Z3675+AC3675+AF3675+AI3675+AL3675+AO3675+AR3675+AU3675","v":0},{"$f":"IF(O3675=\"\",\"\",\"OK\")","v":""},null,"13/05/2023 TOURS","13/05/2023 TOURS"]
["F27042004VOLTE01","VOLTEAU","CASSIE ","2004-04-27","J 3 SPORT AMILLY","1 DAN 05/12/2021",45,{"$f":"IF(M3676=\"\",\"\",\"OK\")","v":""},{"$f":"IF(N3676=\"\",\"\",\"OK\")","v":""},{"$f":"Q3676+T3676+W3676+Z3676+AC3676+AF3676+AI3676+AL3676+AO3676+AR3676+AU3676","v":0},{"$f":"IF(O3676=\"\",\"\",\"OK\")","v":""}]
["M08081978VOLTE01 ","VOLTEAU","DAVID","1978-08-08","J 3 SPORT AMILLY","1 DAN 12/03/2022",45,"","",0,"",null,null,null,null,null,null,null,null,null,null,null,null,null,null,null,null,null,null,null,null,null,null,null,null,null,null,null,null,null,null,null,null,null,null,null,null,null,"2023-05-22"]
["M04022003VOLET01","VOLETTE","Audric","2003-02-04","JUDO CLUB LOURY","1 DAN 25/01/2020",45,"","",40,"",null,null,null,null,"28/04/18 Tours",40,null,null,null,null,null,null,null,null,null,null,null,null,null,null,null,null,null,null,null,null,null,null,null,null,null,null,null,null,null,null,null,"2023-05-22"]
["PAS LICENCIE","VOLTE","Olivier","1974-01-06","ST AVERTIN SPORTS","1 Dan",37,"OK","OK",7,"",null,"12/06/2022 TOURS","23/10/2021 TOURS",null,"06/11/2022 SHIAI ISSOUDUN",7,null,null,null,null,null,null,null,null,null,null,null,null,null,null,null,null,null,null,null,null,null,null,null,null,null,null,null,null,null,null,null,"2023-05-22"]
["M14122006VOYER01","VOYER","DOUGGY","2006-12-14","J.C.DESCARTES","MA 20/02/2020",37,"","",10,"",null,null,null,null,"23/01/10 Tours",10,null,null,null,null,null,null,null,null,null,null,null,null,null,null,null,null,null,null,null,null,null,null,null,null,null,null,null,null,null,null,null,"2023-05-22"]
["PAS LICENCIE","VOYER","Elodie","1995-04-22","AMIJ EPERNON","CM",28,"","",10,"",null,null,null,null,"23/06/13 Paris",10,null,null,null,null,null,null,null,null,null,null,null,null,null,null,null,null,null,null,null,null,null,null,null,null,null,null,null,null,null,null,null,"2023-05-22"]
["PAS LICENCIE","VRIGNAT","Frédérique","1969-03-26","JUDO CLUB BLANCOIS","1 Dan 27/05/12",36,"","",10,"",null,null,null,null,"02/12/12 Reuilly",10,null,null,null,null,null,null,null,null,null,null,null,null,null,null,null,null,null,null,null,null,null,null,null,null,null,null,null,null,null,null,null,"2023-05-22"]
["PAS LICENCIE","VRIGNAT","Thomas","1996-06-20","JUDO CLUB BLANCOIS","1 Dan 19/02/12",36,"","OK",0,"",null,null,"10/10/2020 TOURS",null,null,null,null,null,null,null,null,null,null,null,null,null,null,null,null,null,null,null,null,null,null,null,null,null,null,null,null,null,null,null,null,null,null,"2023-05-22"]
["M12091969VUILL01","VUILLAUME","ANTOINE","1969-09-12","JUDO DOJO LOCHOIS","CM",37,"OK","",84,"OK",null,"31/03/12 Tours",null,"CJA 15,58 08/01/12","15/01/12 Tours",20,null,"13/05/12 Vendome",30,null,"09/06/12 Angers",24,null,"21/10/12 St jean le blanc",10,null,null,null,null,null,null,null,null,null,null,null,null,null,null,null,null,null,null,null,null,null,null,"2023-05-22"]
["PAS LICENCIE","VUILLEMIN","Vincent","1997-01-09","AS CHANCEAUX JUDO","CM",37,"","",20,"",null,null,null,null,"26/11/2018 – SHIAI ANGERS",20,null,null,null,null,null,null,null,null,null,null,null,null,null,null,null,null,null,null,null,null,null,null,null,null,null,null,null,null,null,null,null,"2023-05-22"]
["M22112002WAHL*01","WAHL","Hugo","2002-11-22","SMOC ST JEAN DE BRAYE","1 Dan 08/12/18",45,"","",0,"",null,null,null,null,null,null,null,null,null,null,null,null,null,null,null,null,null,null,null,null,null,null,null,null,null,null,null,null,null,null,null,null,null,null,null,null,null,"2023-05-22"]
["M19012005WAHL*01","WAHL","TOM","2005-01-19","S.M.O.C. ST JEAN DE BRAYE","1 DAN 10/04/2022",45,{"$f":"IF(M3687=\"\",\"\",\"OK\")","v":"OK"},{"$f":"IF(N3687=\"\",\"\",\"OK\")","v":""},{"$f":"Q3687+T3687+W3687+Z3687+AC3687+AF3687+AI3687+AL3687+AO3687+AR3687+AU3687","v":0},{"$f":"IF(O3687=\"\",\"\",\"OK\")","v":""},null,"12/03/2022 TOURS"]
["M19112005WALOP01","WALOP","JUANEL","2005-11-19","J.C. RICHELAIS","CM 07/01/2019",37,"","",10,"OK",null,null,null,"14/12/08 St Georges/Eure","11/04/09 Brou",10,null,null,null,null,null,null,null,null,null,null,null,null,null,null,null,null,null,null,null,null,null,null,null,null,null,null,null,null,null,null,null,"2023-05-22"]
["PAS LICENCIE","WASCHINGER","Stéphane","1970-01-18","DOJO BREZOLIEN","CM",28,"OK","",107,"",null,"26/02/11 Lyon",null,null,"15/03/08 Tours",7,null,"26/04/08 Tours",10,null,"9/05/09 Vendôme",10,null,"28/02/10 Tours",20,null,"27/03/10 Gien",20,null,"21/05/11 St Jean le Blanc",40,null,null,null,null,null,null,null,null,null,null,null,null,null,null,null,null,"2023-05-22"]
["PAS LICENCIE","WATHIER","Serge","1965-07-09","JC LIGUEIL","CM",37,"","",20,"",null,null,null,null,"22/10/17 Ceyrat",10,null,"18_11_2022 St Doulchard Open",10,null,null,null,null,null,null,null,null,null,null,null,null,null,null,null,null,null,null,null,null,null,null,null,null,null,null,null,null,"2023-05-22"]
["F14022002WEBER01","WEBER","Marie","2002-02-14","JC PITHIVIERS","1 Dan 31/05/17",45,"","",10,"",null,null,null,null,"06/10/18 Tours",10,null,null,null,null,null,null,null,null,null,null,null,null,null,null,null,null,null,null,null,null,null,null,null,null,null,null,null,null,null,null,null,"2023-05-22"]
["M12072003WEISS01","WEISS","Damien","2003-07-12","JUDO CLUB DE SAVONNIERES","CM 15/02/17",37,"","",20,"",null,null,null,null,"11/03/18 Tours",20,null,null,null,null,null,null,null,null,null,null,null,null,null,null,null,null,null,null,null,null,null,null,null,null,null,null,null,null,null,null,null,"2023-05-22"]
["PAS LICENCIE","WERBROUCK","Marie","1989-07-11","DOJO 190 ST PLANTAIRE","1 Dan 12/12/17",36,"OK","",20,"OK",null,"08/06/13 Tours",null,"13/10/12 Tours","16/11/13 Limoges",10,null,"21/06/14 Limoges",10,null,null,null,null,null,null,null,null,null,null,null,null,null,null,null,null,null,null,null,null,null,null,null,null,null,null,null,null,"2023-05-22"]
["PAS LICENCIE","WERY","Bruno","1969-05-19","JC DESCARTES","CM",37,"OK","",50,"OK",null,"08/06/13 Tours",null,"13/10/12 Tours","01/12/12 Tours",10,null,"16/11/13 Limoges",10,null,"01/02/14 Tours",10,null,"15/03/15 Chatellerault",10,null,"01/02/15 Vendome",10,null,null,null,null,null,null,null,null,null,null,null,null,null,null,null,null,null,null,null,"2023-05-22"]
["PAS LICENCIE","WERY","Anaelle","1998-08-08","JC DESCARTES","CM",37,"","",60,"",null,null,null,null,"07/01/12 St Amand",10,null,"15/01/12 Lamotte Beuvron",20,null,"11/02/12 Issoudun",20,null,"03/06/12 Ceyrat",10,null,null,null,null,null,null,null,null,null,null,null,null,null,null,null,null,null,null,null,null,null,null,"2023-05-22"]
["PAS LICENCIE","WILD","Richard","1996-06-17","BOURGES JUDO","CM",18,"OK","",90,"",null,"19/03/11 Tours",null,null,"10/05/03 Tours",10,null,"2/05/10 Tours",40,null,"03/04/11 Tours",10,null,"09/04/11 Tours",30,null,null,null,null,null,null,null,null,null,null,null,null,null,null,null,null,null,null,null,null,null,null,"2023-05-22"]
["PAS LICENCIE","WILK","Dimitri","1986-03-09","BALLAN JUDO CLUB","CM",37,"OK","",7,"",null,"02/12/17 Tours",null,null,"04/02/18 Vendome",7,null,null,null,null,null,null,null,null,null,null,null,null,null,null,null,null,null,null,null,null,null,null,null,null,null,null,null,null,null,null,null,"2023-05-22"]
["PAS LICENCIE","WISSOCQ","Hugo","2000-05-04","JUDO KODOKAN 28","CM 16/05/15",28,{"$f":"IF(M3698=\"\",\"\",\"OK\")","v":""},"",20,"",null,null,null,null,"02/12/12 Buxerolles",10,null,"08/03/15 Angers",10,null,null,null,null,null,null,null,null,null,null,null,null,null,null,null,null,null,null,null,null,null,null,null,null,null,null,null,null,"2023-05-22"]
["PAS LICENCIE","WOLFENSPERGER","Rémi","1994-10-13","JUDO CLUB DE SAVONNIERES","1 Dan 28/01/12",37,"","",10,"",null,null,null,null,"05/02/17 St jean le blanc",10,null,null,null,null,null,null,null,null,null,null,null,null,null,null,null,null,null,null,null,null,null,null,null,null,null,null,null,null,null,null,null,"2023-05-22"]
["PAS LICENCIE","WOZNIAK","Jonathan","1981-01-21","AVENIR JUDO CLUB COURTENAY","CM?",41,"","",20,"",null,null,null,null,"26/05/13 Tours",10,null,"25/01/14 Paris",10,null,null,null,null,null,null,null,null,null,null,null,null,null,null,null,null,null,null,null,null,null,null,null,null,null,null,null,null,"2023-05-22"]
["PAS LICENCIE","WUILLOT","Gabrielle","1994-04-04","AS JUDO HANCHES","2 Dan 06/06/12",28,"OK",{"$f":"IF(N3701=\"\",\"\",\"OK\")","v":"OK"},{"$f":"Q3701+T3701+W3701+Z3701+AC3701+AF3701+AI3701+AL3701+AO3701+AR3701+AU3701","v":54},{"$f":"IF(O3701=\"\",\"\",\"OK\")","v":""},null,"02/06/2021 ORLEANS","26/06/20201 ORLEANS",null,"20/11/16 St jean le blanc",7,null,"24/11/16 Orkéans",10,null,"30/04/17 Orléans",7,null,"28/10/17 Cormeilles le royal",10,null,"29/11/18 Orléans",10,null,"11/05/2019 CHAMPIONNAT REGIONAL INDIVIDUEL SENIOR 2DIV - VIERZON",10,null,null,null,null,null,null,null,null,null,null,null,null,null,null,null,null,"2023-05-22"]
["M25101998WUILL01","WUILLOT","Kylian","1998-10-25","ALLIANCE JUDO 28","2 Dan 08/06/16",28,"","",20,"",null,null,null,null,"19/05/2019 INDIVIDUEL CADETS \"ESPOIR\" - LA SOURCE MINOUFLET",20,null,null,null,null,null,null,null,null,null,null,null,null,null,null,null,null,null,null,null,null,null,null,null,null,null,null,null,null,null,null,null,"2023-05-22"]
["M02022004WYNS*01","WYNS","Julian","7436-01-21","AST CHATEAUNEUF","CM",28,"","",187,"",null,null,null,null,"29/09/18 Orléans",30,null,"13/01/2019 ST GEORGES SUR EURE",20,null,"02-02-2019 Demie finale juniors Issoudun",20,null,"16-02-2019 - Demi final Championnat de France Cadet(te)s - Tours",40,null,"17/03/2019 1/4 DE FINALE SENIORS G ET F 1ERE DIV N°1 - dojo J C Rousseau - ORLEANS",10,null,"11/05/2019 CHAMPIONNAT REGIONAL INDIVIDUEL SENIOR 2DIV - VIERZON",30,null,"16-02-2020 – 1/4 DE FINALE SENIOR 1ERE DIVISION BASSIN SUD -  TOURS",27,null,"24/10/2021 CHAMPIONNAT REGIONAL INDIVIDUEL SENIOR 1ERE DIVISION",10,null,null,null,null,null,null,null,null,null,null,"2023-05-22"]
["M27052002YAKOU01","YAKOUB","Yacine","2002-05-27","US ORLEANS LOIRET JUDO JUJITSU","1 Dan 25/06/17",45,{"$f":"IF(M3704=\"\",\"\",\"OK\")","v":""},{"$f":"IF(N3704=\"\",\"\",\"OK\")","v":""},{"$f":"Q3704+T3704+W3704+Z3704+AC3704+AF3704+AI3704+AL3704+AO3704+AR3704+AU3704","v":17},{"$f":"IF(O3704=\"\",\"\",\"OK\")","v":""},null,null,null,null,"20/11/2022 Open cadets St Doulchard",10,null,"03/12/2022 TOURNOI DE BOURGES",7]
["M21012008YAZID01","YAZIDI","Younes","2008-01-21","BOURGES JUDO","CM",18,"OK","",10,"",null,"01/06/2019 TOURS",null,null,"06/11/2022 SHIAI ISSOUDUN",10,null,null,null,null,null,null,null,null,null,null,null,null,null,null,null,null,null,null,null,null,null,null,null,null,null,null,null,null,null,null,null,"2023-05-22"]
["M22101997YASUI01","YASUI","TAIKI","1997-10-22","JUDO ST CYR SUR LOIRE","CM",37,"OK","OK",102,"",null,"31/03/12 Vierzon","13/05/2023 TOURS",null,"30/01/11 Orléans",47,null,"15/01/11 St Amand",55,null,null,null,null,null,null,null,null,null,null,null,null,null,null,null,null,null,null,null,null,null,null,null,null,null,null,null,null,"2023-05-22"]
["PAS LICENCIE","YANDOURKAEV","Magomed","1993-07-28","BOURGES JUDO","CM",18,"","",10,"",null,null,null,null,"02/02/14 St georges/eure",10,null,null,null,null,null,null,null,null,null,null,null,null,null,null,null,null,null,null,null,null,null,null,null,null,null,null,null,null,null,null,null,"2023-05-22"]
["PAS LICENCIE","YOUNSI","Alexis","1999-08-25","L.E.S.S.C.A.L.E","CM 04/05/13",28,"OK","",10,"OK",null,"26/11/16 Houlgate",null,"11/11/16 St Georges/eure","10/06/18 Houlgate",10,null,null,null,null,null,null,null,null,null,null,null,null,null,null,null,null,null,null,null,null,null,null,null,null,null,null,null,null,null,null,null,"2023-05-22"]
["PAS LICENCIE","YOUNSI","Damien","1999-11-04","ARTS MARTIAUX ST GEORGES/EURE","CM 01/01/15",28,"OK","",0,"OK",null,"24/11/12 Orléans",null,"08/12/12 Tours",null,null,null,null,null,null,null,null,null,null,null,null,null,null,null,null,null,null,null,null,null,null,null,null,null,null,null,null,null,null,null,null,null,"2023-05-22"]
["PAS LICENCIE","YOUSFI","Farid","1983-03-26","JUDO CLUB TOURAINE","CM",37,"OK","",84,"",null,"01/06/2019 TOURS",null,null,"11/10/08 Tours",7,null,"28/02/10 Tours",10,null,"11/01/15 Tours",20,null,"04/03/17 Angers",47,"OK",null,null,null,null,null,null,null,null,null,null,null,null,null,null,null,null,null,null,null,null,null,"2023-05-22"]
["M25121989YVARS01","YVARS","Pierre","1989-12-25","JUDO ST CYR SUR LOIRE","CM 15/06/07",37,"OK","OK",57,"",null,"7/06/02 Tours","13/05/2023 TOURS",null,"24/11/02 Vendôme",10,null,"30/03/03 Tours",10,null,"10/05/03 Tours",7,null,"31/05/03 Vierzon",20,null,"1/06/03 Vierzon",10,null,null,null,null,null,null,null,null,null,null,null,null,null,null,null,null,null,null,null,"2023-05-22"]
["PAS LICENCIE","YVON","Jimmy","1974-07-24","JUDO CHÂTEAU RENAULT","CM 4/06/97",37,"OK","",10,"",null,"19/03/11 Orléans",null,null,"21/10/12 St jean le blanc",10,null,null,null,null,null,null,null,null,null,null,null,null,null,null,null,null,null,null,null,null,null,null,null,null,null,null,null,null,null,null,null,"2023-05-22"]
["PAS LICENCIE","YVON ","Jean Claude","1958-09-24","JC MEROIS","CM",41,"OK","",40,"",null,"23/01/16 Tours",null,null,"09/10/16 Vierzon",10,null,"20/11/16 Angers",30,null,null,null,null,null,null,null,null,null,null,null,null,null,null,null,null,null,null,null,null,null,null,null,null,null,null,null,null,"2023-05-22"]
["PAS LICENCIE","YVON ","Mathéo","2000-02-03","JUDO CHÂTEAU RENAULT","CM 01/01/13",37,{"$f":"IF(M3714=\"\",\"\",\"OK\")","v":""},{"$f":"IF(N3714=\"\",\"\",\"OK\")","v":""},{"$f":"Q3714+T3714+W3714+Z3714+AC3714+AF3714+AI3714+AL3714+AO3714+AR3714+AU3714","v":20},{"$f":"IF(O3714=\"\",\"\",\"OK\")","v":""},null,null,null,null,"18/12/2022 JUJITSU ORLEANS",20]
["PAS LICENCIE","ZAGHLA","ILYESS",null,"BOURGES JUDO","CM",18,"","",60,"",null,null,null,null,"21/10/18 Ceyrat",10,null,"13/01/2019 ST GEORGES SUR EURE",10,null,"02-02-2019 Demie finale juniors Issoudun",10,null,"26/01/2019 CHAMPIONNAT CADETS/CADETTES 1ERE DIVISION BASSIN SUD - TOURS",20,null,"15-02-2020 - 1/2 FINALE CADETS - Tours",10,null,null,null,null,null,null,null,null,null,null,null,null,null,null,null,null,null,null,null,"2023-05-22"]
["F06042003ZAGO*01","ZAGO","Lucile","2003-04-06","JC ISSOLDUNOIS","1 Dan 11/06/18",36,"","",37,"",null,null,null,null,"13/01/13 Orléans",10,null,"23/06/13 Paris",17,null,"08/12/13 Orléans",10,null,null,null,null,null,null,null,null,null,null,null,null,null,null,null,null,null,null,null,null,null,null,null,null,null,"2023-05-22"]
["PAS LICENCIE","ZAKARIA","Sarah","1979-04-04","ES COULLONNAISE JUDO","2 Dan 24/03/00",45,"","",10,"",null,null,null,null,"03/04/11 Nogent le Rotrou",10,null,null,null,null,null,null,null,null,null,null,null,null,null,null,null,null,null,null,null,null,null,null,null,null,null,null,null,null,null,null,null,"2023-05-22"]
["PAS LICENCIE","ZAMBON","Pauline","1996-10-07","JUDO CLUB CLOYSIEN","CM",28,"","",107,"",null,null,null,null,"20/12/97 Vierzon",17,null,"10/01/98 Orléans",10,null,"11/04/98 Vierzon",40,null,"17/05/98 Nogent",15,null,"29/01/00 Tours",25,null,null,null,null,null,null,null,null,null,null,null,null,null,null,null,null,null,null,null,"2023-05-22"]
["PAS LICENCIE","ZANETTI","Sylvain","1979-11-27","AVORD JUDO CLUB","1 Dan 12/04/97",18,"","",10,"",null,null,null,null,"27/11/10 Issoudun",10,null,null,null,null,null,null,null,null,null,null,null,null,null,null,null,null,null,null,null,null,null,null,null,null,null,null,null,null,null,null,null,"2023-05-22"]
["PAS LICENCIE","ZANNETTI","Jessyca","1984-11-20","JUDO CLUB SANCOINS","2 Dan 11/12/10  ",18,"","",24,"",null,null,null,null,"26/01/2019 CHAMPIONNAT CADETS/CADETTES 1ERE DIVISION BASSIN SUD - TOURS",7,null,"19/05/2019 INDIVIDUEL CADETS \"ESPOIR\" - LA SOURCE MINOUFLET",17,null,null,null,null,null,null,null,null,null,null,null,null,null,null,null,null,null,null,null,null,null,null,null,null,null,null,null,null,"2023-05-22"]
["M12042002ZANNI01","ZANNIER","Thomas","2002-04-12","ST AVERTIN SPORTS","1 Dan 12/05/18",37,{"$f":"IF(M3721=\"\",\"\",\"OK\")","v":"OK"},{"$f":"IF(N3721=\"\",\"\",\"OK\")","v":"OK"},{"$f":"Q3721+T3721+W3721+Z3721+AC3721+AF3721+AI3721+AL3721+AO3721+AR3721+AU3721","v":0},{"$f":"IF(O3721=\"\",\"\",\"OK\")","v":""},null,"12/06/2022 TOURS","12/06/2022 TOURS"]
["M18072006ZAUGG01","ZAUGG","SOREN","2006-07-18","ST AVERTIN SPORTS","CM",37,"","OK",10,"",null,null,"26/06/20201 ORLEANS",null,"25 01 2020 CHAMPIONNAT CADETS-CADETTES 1ERE DIVISION BASSIN NORD TOURS",10,null,null,null,null,null,null,null,null,null,null,null,null,null,null,null,null,null,null,null,null,null,null,null,null,null,null,null,null,null,null,null,"2023-05-22"]
["M20072007ZIDI*01","ZIDI","NADHIR","2007-07-20","US ST PIERRE CORPS","MA",37,{"$f":"IF(M3723=\"\",\"\",\"OK\")","v":"OK"},{"$f":"IF(N3723=\"\",\"\",\"OK\")","v":""},{"$f":"Q3723+T3723+W3723+Z3723+AC3723+AF3723+AI3723+AL3723+AO3723+AR3723+AU3723","v":0},{"$f":"IF(O3723=\"\",\"\",\"OK\")","v":""},null,"13/05/2023 TOURS"]
["M31082004ZOUHA01 ","ZOUHAR","ADAM ","2004-08-31","JC BALGENTIEN","CM",45,"","",0,""]